Workbook

Sheet A1__Forecast
B1: Twelve month profit & loss projection year 2020
B2: Jan | C2: Feb | D2: Mar | E2: Apr | F2: May | G2: Jun | H2: Jul | I2: Aug | J2: Sept | K2: Oct | L2: Nov | M2: Dec | N2: Yearly
A3: Revenues
A4: Revenue 1 | B4: 190 | C4: 210 | D4: 150 | E4: 140 | F4: 160 | G4: 170 | H4: 190 | I4: 160 | J4: 120 | K4: 140 | L4: 150 | M4: 170 | N4: =SUM(B4:M4) -> 1950
A5: Revenue 2 | B5: 200 | C5: 220 | D5: 160 | E5: 150 | F5: 170 | G5: 180 | H5: 200 | I5: 210 | J5: 170 | K5: 190 | L5: 200 | M5: 150 | N5: =SUM(B5:M5) -> 2200
A6: Revenue 3 | B6: 150 | C6: 170 | D6: 140 | E6: 120 | F6: 140 | G6: 150 | H6: 170 | I6: 210 | J6: 90 | K6: 110 | L6: 120 | M6: 200 | N6: 1770
A7: Total | B7: =SUM(B4:B6) -> 540 | C7: =SUM(C4:C6) -> 600 | D7: 450 | E7: 410 | F7: =SUM(F5:F6) -> 310 | G7: =SUM(G5:G6) -> 330 | H7: 560 | I7: 580 | J7: 380 | K7: =SUM(K4:K5) -> 330 | L7: 470 | M7: 520 | N7: 5480
A9: Cost
A10: Cost 1 | B10: 100 | C10: 160 | D10: 120 | E10: 80 | F10: 100 | G10: 110 | H10: 110 | I10: 90 | J10: 65 | K10: 50 | L10: 90 | M10: 110 | N10: =SUM(B10:M10) -> 1185
A11: Cost 2 | B11: 120 | C11: 170 | D11: 130 | E11: 90 | F11: 110 | G11: 120 | H11: 120 | I11: 140 | J11: 115 | K11: 100 | L11: 140 | M11: 160 | N11: =SUM(B11:M11) -> 1515
A12: Cost 3 | B12: 110 | C12: 120 | D12: 100 | E12: 60 | F12: 80 | G12: 90 | H12: 90 | I12: 60 | J12: 35 | K12: 150 | L12: 60 | M12: 80 | N12: =SUM(B12:M12) -> 1035
A13: Total | B13: =SUM(B10:B12) -> 330 | C13: 450 | D13: 350 | E13: 230 | F13: 290 | G13: 320 | H13: 320 | I13: =SUM(I11:I12) -> 200 | J13: 215 | K13: 300 | L13: 290 | M13: 350 | N13: =SUM(B13:M13) -> 3645
A15: Profit | B15: =B7-B13 -> 210 | C15: 150 | D15: 100 | E15: 180 | F15: 20 | G15: 10 | H15: 240 | I15: 380 | J15: 165 | K15: 30 | L15: 180 | M15: 170 | N15: =SUM(B15:M15) -> 1835
A17: Net Profit | B17: 0.2 | N17: =N15*(1-net_profit_1) -> 1468

Sheet A2__Forecast
B1: Twelve month profit & loss projection year 2020
B2: Jan | C2: Feb | D2: Mar | E2: Apr | F2: May | G2: Jun | H2: Jul | I2: Aug | J2: Sept | K2: Oct | L2: Nov | M2: Dec | N2: Yearly
A3: Revenues
A4: Revenue 1 | B4: 190 | C4: 210 | D4: 150 | E4: 140 | F4: 160 | G4: 170 | H4: 190 | I4: 160 | J4: 120 | K4: 140 | L4: 150 | M4: 170 | N4: =SUM(B4:M4) -> 1950
A5: Revenue 2 | B5: 200 | C5: 220 | D5: 160 | E5: 150 | F5: 170 | G5: 180 | H5: 200 | I5: 210 | J5: 170 | K5: 190 | L5: 200 | M5: 150 | N5: =SUM(B5:M5) -> 2200
A6: Revenue 3 | B6: 150 | C6: 170 | D6: 140 | E6: 120 | F6: 140 | G6: 150 | H6: 170 | I6: 210 | J6: 90 | K6: 110 | L6: 120 | M6: 200 | N6: 1770
A7: Total | B7: =SUM(B4:B6) -> 540 | C7: =SUM(C4:C6) -> 600 | D7: 450 | E7: 410 | F7: =SUM(F5:F6) -> 310 | G7: =SUM(G5:G6) -> 330 | H7: 560 | I7: 580 | J7: 380 | K7: =SUM(K4:K5) -> 330 | L7: 470 | M7: 520 | N7: 5480
A9: Cost
A10: Cost 1 | B10: 100 | C10: 160 | D10: 120 | E10: 80 | F10: 100 | G10: 110 | H10: 110 | I10: 90 | J10: 65 | K10: 50 | L10: 90 | M10: 110 | N10: =SUM(B10:M10) -> 1185
A11: Cost 2 | B11: 120 | C11: 170 | D11: 130 | E11: 90 | F11: 110 | G11: 120 | H11: 120 | I11: 140 | J11: 115 | K11: 100 | L11: 140 | M11: 160 | N11: =SUM(B11:M11) -> 1515
A12: Cost 3 | B12: 110 | C12: 120 | D12: 100 | E12: 60 | F12: 80 | G12: 90 | H12: 90 | I12: 60 | J12: 35 | K12: 150 | L12: 60 | M12: 80 | N12: =SUM(B12:M12) -> 1035
A13: Cost 4 | B13: 150 | C13: 170 | D13: 110 | E13: 100 | F13: 120 | G13: 130 | H13: 150 | I13: 160 | J13: 120 | K13: 140 | L13: 150 | M13: 100 | N13: =SUM(B13:M13) -> 1600
A14: Total | B14: =SUM(B11:B13) -> 380 | C14: 460 | D14: 340 | E14: 250 | F14: 310 | G14: 340 | H14: 360 | I14: =SUM(I12:I13) -> 220 | J14: 270 | K14: 390 | L14: 350 | M14: 340 | N14: =SUM(B14:M14) -> 4010
A16: Profit | B16: =B7-B14 -> 160 | C16: 140 | D16: 110 | E16: 160 | F16: 0 | G16: -10 | H16: 200 | I16: 360 | J16: 110 | K16: -60 | L16: 120 | M16: 180 | N16: =SUM(B16:M16) -> 1470
A18: Net Profit | B18: 0.2 | N18: =N16*(1-net_profit_2) -> 1176

Sheet B___Budget
B1: Budget 2020
A3: INCOME | B3: Jan | C3: Feb | D3: Mar | E3: Apr | F3: May | G3: Jun | H3: Jul | I3: Aug | J3: Sept | K3: Oct | L3: Nov | M3: Dec | N3: Year
A4: Wages | B4: 417 | C4: 424 | D4: 694 | E4: 350 | F4: 547 | G4: 680 | H4: 410 | I4: 381 | J4: 685 | K4: 256 | L4: 500 | M4: 401 | N4: =SUM(B4:M4) -> 5745
A5: Interest/dividends | B5: 656 | C5: 305 | D5: 631 | E5: 519 | F5: 684 | G5: 523 | H5: 231 | I5: 361 | J5: 602 | K5: 499 | L5: 680 | M5: 471 | N5: =SUM(B5:M5) -> 6162
A6: Miscellaneous | B6: 328 | C6: 386 | D6: 307 | E6: 587 | F6: 305 | G6: 563 | H6: 668 | I6: 473 | J6: 655 | K6: 458 | L6: 293 | M6: 233 | N6: 5256
A7: Income totals | B7: =SUM(B4:B6) -> 1401 | C7: 1115 | D7: =SUM(D4:D6)+500 -> 2132 | E7: 1956 | F7: 1536 | G7: 1766 | H7: 1309 | I7: 1215 | J7: 1942 | K7: 1213 | L7: 1473 | M7: 1105 | N7: 18163
A9: EXPENSES
A10: Home
A11: Mortgage/rent | B11: 26 | C11: 131 | D11: 58 | E11: 67 | F11: 134 | G11: 41 | H11: 127 | I11: 20 | J11: 135 | K11: 42 | L11: 22 | M11: 45 | N11: =SUM(B11:M11) -> 848
A12: Utilities 1 | B12: 22 | C12: 75 | D12: 64 | E12: 149 | F12: 27 | G12: 73 | H12: 104 | I12: 17 | J12: 127 | K12: 122 | L12: 41 | M12: 93 | N12: 914
A13: Home telephone 1 | B13: 78 | C13: 73 | D13: 65 | E13: 100 | F13: 123 | G13: 75 | H13: 92 | I13: 16 | J13: 38 | K13: 128 | L13: 143 | M13: 57 | N13: 988
A14: Cellular telephone 1 | B14: 14 | C14: 101 | D14: 140 | E14: 107 | F14: 132 | G14: 55 | H14: 113 | I14: 127 | J14: 15 | K14: 54 | L14: 67 | M14: 80 | N14: =SUM(B14:K14) -> 858
A15: Home repairs 1 | B15: 74 | C15: 53 | D15: 135 | E15: 130 | F15: 92 | G15: 136 | H15: 17 | I15: 101 | J15: 70 | K15: 112 | L15: 57 | M15: 95 | N15: =SUM(B15:K15) -> 920
A16: Home improvement 1 | B16: 87 | C16: 105 | D16: 131 | E16: 80 | F16: 38 | G16: 11 | H16: 137 | I16: 139 | J16: 59 | K16: 95 | L16: 129 | M16: 100 | N16: 1111
A17: Home totals | B17: =SUM(B11:B16) -> 301 | C17: 538 | D17: 593 | E17: 633 | F17: 546 | G17: 391 | H17: =SUM(H12:H16) -> 463 | I17: =SUM(I12:I16) -> 400 | J17: =SUM(J11:J16) -> 444 | K17: =SUM(K11:K16) -> 553 | L17: =SUM(L11:L16) -> 459 | M17: =SUM(M11:M16) -> 470 | N17: 5791
A19: Daily living
A20: Groceries | B20: 147 | C20: 119 | D20: 50 | E20: 75 | F20: 40 | G20: 142 | H20: 136 | I20: 95 | J20: 16 | K20: 85 | L20: 90 | M20: 142 | N20: =SUM(B20:M20) -> 1137
A21: Child care | B21: 19 | C21: 136 | D21: 39 | E21: 50 | F21: 106 | G21: 43 | H21: 132 | I21: 99 | J21: 95 | K21: 16 | L21: 113 | M21: 67 | N21: 915
A22: Dry cleaning | B22: 99 | C22: 79 | D22: 47 | E22: 36 | F22: 41 | G22: 88 | H22: 74 | I22: 12 | J22: 49 | K22: 75 | L22: 24 | M22: 69 | N22: 693
A23: Dining out | B23: 115 | C23: 129 | D23: 11 | E23: 66 | F23: 75 | G23: 79 | H23: 90 | I23: 39 | J23: 142 | K23: 25 | L23: 129 | M23: 49 | N23: 949
A24: Housecleaning service | B24: 124 | C24: 29 | D24: 129 | E24: 28 | F24: 139 | G24: 55 | H24: 67 | I24: 124 | J24: 136 | K24: 148 | L24: 86 | M24: 39 | N24: 1104
A25: Dog walker | B25: 144 | C25: 50 | D25: 100 | E25: 72 | F25: 122 | G25: 54 | H25: 99 | I25: 61 | J25: 130 | K25: 117 | L25: 53 | M25: 72 | N25: 1074
A26: Daily living totals | B26: =SUM(B20:B25) -> 648 | C26: 542 | D26: =SUM(D20:D23) -> 147 | E26: 327 | F26: 523 | G26: 461 | H26: 598 | I26: 430 | J26: 568 | K26: 466 | L26: 495 | M26: 438 | N26: 5643
A28: Transportation
A29: Gas/fuel | B29: 66 | C29: 19 | D29: 72 | E29: 47 | F29: 61 | G29: 136 | H29: 29 | I29: 26 | J29: 90 | K29: 137 | L29: 90 | M29: 55 | N29: =SUM(B29:M29) -> 828
A30: Insurance | B30: 14 | C30: 12 | D30: 121 | E30: 31 | F30: 81 | G30: 79 | H30: 37 | I30: 13 | J30: 33 | K30: 103 | L30: 56 | M30: 68 | N30: 648
A31: Repairs | B31: 128 | C31: 38 | D31: 44 | E31: 14 | F31: 146 | G31: 145 | H31: 135 | I31: 117 | J31: 87 | K31: 31 | L31: 75 | M31: 33 | N31: 993
A32: Car wash/detailing services | B32: 140 | C32: 92 | D32: 114 | E32: 117 | F32: 32 | G32: 15 | H32: 27 | I32: 33 | J32: 136 | K32: 39 | L32: 138 | M32: 140 | N32: 1023
A33: Parking | B33: 90 | C33: 13 | D33: 25 | E33: 106 | F33: 81 | G33: 31 | H33: 100 | I33: 128 | J33: 78 | K33: 92 | L33: 90 | M33: 126 | N33: 960
A34: Public transportation | B34: 117 | C34: 26 | D34: 122 | E34: 140 | F34: 81 | G34: 147 | H34: 139 | I34: 88 | J34: 43 | K34: 101 | L34: 99 | M34: 41 | N34: 1144
A35: Transportation totals | B35: =SUM(B29:B34) -> 555 | C35: =SUM(C29:C34) -> 200 | D35: =SUM(D29:D34) -> 498 | E35: 455 | F35: 482 | G35: 553 | H35: 467 | I35: 405 | J35: 467 | K35: 503 | L35: 548 | M35: 463 | N35: 5596
A37: Entertainment
A38: Cable TV | B38: 104 | C38: 139 | D38: 76 | E38: 136 | F38: 32 | G38: 113 | H38: 68 | I38: 49 | J38: 128 | K38: 145 | L38: 68 | M38: 38 | N38: =SUM(B38:M38) -> 1096
A39: Video/DVD rentals | B39: 126 | C39: 62 | D39: 27 | E39: 144 | F39: 55 | G39: 54 | H39: 67 | I39: 98 | J39: 21 | K39: 72 | L39: 140 | M39: 90 | N39: =SUM(B39:M39) -> 956
A40: Movies/plays | B40: 126 | C40: 39 | D40: 121 | E40: 114 | F40: 147 | G40: 92 | H40: 131 | I40: 120 | J40: 94 | K40: 96 | L40: 110 | M40: 95 | N40: =SUM(B40:M40) -> 1285
A41: Concerts/clubs | B41: 11 | C41: 145 | D41: 29 | E41: 72 | F41: 123 | G41: 88 | H41: 85 | I41: 29 | J41: 61 | K41: 112 | L41: 60 | M41: 135 | N41: =SUM(B41:M41) -> 950
A42: Entertainment totals | B42: =SUM(B38:B41) -> 367 | C42: 385 | D42: 253 | E42: 466 | F42: 357 | G42: 347 | H42: 351 | I42: 296 | J42: 304 | K42: 425 | L42: 378 | M42: 358 | N42: =SUM(B42:M42) -> 4287
A44: Vacations
A45: Plane fare | B45: 43 | C45: 45 | D45: 27 | E45: 49 | F45: 65 | G45: 84 | H45: 146 | I45: 99 | J45: 144 | K45: 71 | L45: 116 | M45: 71 | N45: =SUM(B45:M45) -> 960
A46: Accommodations | B46: 50 | C46: 87 | D46: 0 | E46: 133 | F46: 45 | G46: 115 | H46: 104 | I46: 73 | J46: 20 | K46: 52 | L46: 82 | M46: 149 | N46: 910
A47: Food | B47: 27 | C47: 89 | D47: 0 | E47: 63 | F47: 104 | G47: 47 | H47: 110 | I47: 35 | J47: 24 | K47: 50 | L47: 134 | M47: 73 | N47: 756
A48: Souvenirs | B48: 30 | C48: 87 | D48: 70 | E48: 71 | F48: 14 | G48: 106 | H48: 65 | I48: 28 | J48: 44 | K48: 109 | L48: 78 | M48: 131 | N48: 833
A49: Pet boarding | B49: 15 | C49: 125 | D49: 111 | E49: 37 | F49: 21 | G49: 102 | H49: 83 | I49: 25 | J49: 82 | K49: 33 | L49: 87 | M49: 29 | N49: 750
A50: Rental car | B50: 15 | C50: 100 | D50: 45 | E50: 121 | F50: 50 | G50: 134 | H50: 109 | I50: 35 | J50: 98 | K50: 117 | L50: 129 | M50: 128 | N50: =SUM(B50:M50) -> 1081
A51: Vacations totals | B51: =SUM(B45:B50) -> 180 | C51: =SUM(C45:C50) -> 533 | D51: 253 | E51: 474 | F51: 299 | G51: 588 | H51: 617 | I51: 295 | J51: 412 | K51: 432 | L51: 626 | M51: 581 | N51: 5290
A53: Recreation
A54: Gym fees | B54: 54 | C54: 141 | D54: 134 | E54: 47 | F54: 78 | G54: 129 | H54: 15 | I54: 54 | J54: 19 | K54: 37 | L54: 12 | M54: 75 | N54: =SUM(B54:M54) -> 795
A55: Sports equipment | B55: 15 | C55: 136 | D55: 102 | E55: 134 | F55: 108 | G55: 66 | H55: 33 | I55: 33 | J55: 71 | K55: 127 | L55: 67 | M55: 37 | N55: =SUM(B55:M55) -> 929
A56: Team dues | B56: 96 | C56: 14 | D56: 60 | E56: 52 | F56: 18 | G56: 15 | H56: 108 | I56: 117 | J56: 132 | K56: 53 | L56: 70 | M56: 16 | N56: =SUM(B56:M56) -> 751
A57: Toys/child gear | B57: 43 | C57: 50 | D57: 133 | E57: 118 | F57: 127 | G57: 104 | H57: 23 | I57: 101 | J57: 55 | K57: 122 | L57: 22 | M57: 125 | N57: =SUM(B57:M57) -> 1023
A58: Recreation totals | B58: =SUM(B54:B57) -> 208 | C58: =SUM(C54:C57) -> 341 | D58: 429 | E58: 351 | F58: 331 | G58: 314 | H58: 179 | I58: 305 | J58: 277 | K58: 339 | L58: 171 | M58: 253 | N58: =SUM(B58:M58) -> 3498
A60: Personal
A61: Clothing | B61: 130 | C61: 52 | D61: 114 | E61: 46 | F61: 120 | G61: 91 | H61: 56 | I61: 65 | J61: 39 | K61: 59 | L61: 73 | M61: 11 | N61: =SUM(B61:M61) -> 856
A62: Gifts | B62: 131 | C62: 20 | D62: 129 | E62: 16 | F62: 101 | G62: 61 | H62: 37 | I62: 15 | J62: 116 | K62: 19 | L62: 113 | M62: 17 | N62: =SUM(B62:M62) -> 775
A63: Books | B63: 105 | C63: 27 | D63: 129 | E63: 14 | F63: 43 | G63: 104 | H63: 27 | I63: 136 | J63: 49 | K63: 45 | L63: 42 | M63: 30 | N63: =SUM(B63:M63) -> 751
A64: Music (CDs, etc.) | B64: 15 | C64: 110 | D64: 58 | E64: 78 | F64: 74 | G64: 25 | H64: 57 | I64: 24 | J64: 77 | K64: 42 | L64: 81 | M64: 89 | N64: =SUM(B64:M64) -> 730
A65: Personal totals | B65: =SUM(B61:B64) -> 381 | C65: 209 | D65: 430 | E65: 154 | F65: 338 | G65: 281 | H65: 177 | I65: 240 | J65: 281 | K65: 165 | L65: 309 | M65: 147 | N65: 3112
A67: Financial obligations
A68: Long-term savings | B68: 50 | C68: 81 | D68: 144 | E68: 33 | F68: 81 | G68: 144 | H68: 85 | I68: 50 | J68: 83 | K68: 110 | L68: 53 | M68: 107 | N68: =SUM(B68:M68) -> 1021
A69: Retirement (401k, Roth IRA) | B69: 132 | C69: 108 | D69: 35 | E69: 16 | F69: 84 | G69: 60 | H69: 52 | I69: 50 | J69: 87 | K69: 105 | L69: 95 | M69: 110 | N69: =SUM(B69:M69) -> 934
A70: Income tax (additional) | B70: 28 | C70: 60 | D70: 103 | E70: 85 | F70: 55 | G70: 114 | H70: 126 | I70: 105 | J70: 119 | K70: 26 | L70: 82 | M70: 31 | N70: 934
A71: Other obligations | B71: 108 | C71: 146 | D71: 30 | E71: 66 | F71: 71 | G71: 96 | H71: 81 | I71: 121 | J71: 81 | K71: 67 | L71: 49 | M71: 79 | N71: 995
A72: Financial obligation totals | B72: =SUM(B69:B71) -> 268 | C72: =SUM(C69:C71) -> 314 | D72: 168 | E72: 167 | F72: 210 | G72: 270 | H72: 259 | I72: 276 | J72: 287 | K72: 198 | L72: 226 | M72: 220 | N72: 2863
A74: Misc. payments
A75: Other 1 | B75: 78 | C75: 114 | D75: 116 | E75: 98 | F75: 44 | G75: 27 | H75: 22 | I75: 25 | J75: 84 | K75: 131 | L75: 58 | M75: 115 | N75: =SUM(B75:M75) -> 912
A76: Other 2 | B76: 11 | C76: 65 | D76: 27 | E76: 132 | F76: 122 | G76: 71 | H76: 68 | I76: 64 | J76: 41 | K76: 34 | L76: 17 | M76: 149 | N76: =SUM(B76:M76) -> 801
A77: Other 3 | B77: 115 | C77: 103 | D77: 136 | E77: 138 | F77: 63 | G77: 24 | H77: 46 | I77: 128 | J77: 132 | K77: 64 | L77: 125 | M77: 73 | N77: 1147
A78: Other 4 | B78: 23 | C78: 99 | D78: 119 | E78: 136 | F78: 140 | G78: 85 | H78: 104 | I78: 35 | J78: 36 | K78: 137 | L78: 37 | M78: 28 | N78: 979
A79: Misc. payments totals | B79: =SUM(B75:B78) -> 227 | C79: 381 | D79: 398 | E79: 504 | F79: 369 | G79: 207 | H79: 240 | I79: 252 | J79: 293 | K79: 366 | L79: 237 | M79: 365 | N79: 3839

Sheet C___Expense
C1: Average | E1: Jan | F1: Feb | G1: Mar | H1: Apr | I1: May | J1: Jun
A2: Full Time
A3: Executive Director | C3: =AVERAGE(E3:J3) -> 0.6033333333 | E3: 0.81 | F3: 0.09 | G3: 0.81 | H3: 0.98 | I3: 0.52 | J3: 0.41 | L3: Utilities 1 | M3: =VLOOKUP($L3,B___Budget!$A$10:$D$15,2,FALSE) -> 22 | N3: =VLOOKUP($L3,B___Budget!$A$10:$D$15,3,FALSE) -> 75 | O3: =VLOOKUP($L3,B___Budget!$A$10:$D$15,4,FALSE) -> 64
A4: Director of Finance | C4: =AVERAGE(E4:J4) -> 0.47 | E4: 0.9 | F4: 0.59 | G4: 0.69 | H4: =[1]Sheet1!B3/20 -> 0.05 | I4: 0.31 | J4: 0.28 | L4: Home telephone 1 | M4: =VLOOKUP($L4,B___Budget!$A$10:$D$15,2,FALSE) -> 78 | N4: =VLOOKUP($L4,B___Budget!$A$10:$D$15,3,FALSE) -> 73 | O4: =VLOOKUP($L4,B___Budget!$A$10:$D$15,4,FALSE) -> 65
A5: Director of Development | C5: 0.55 | E5: 0.63 | F5: 0.47 | G5: 0.7 | H5: =[1]Sheet1!B4/20 -> 0.1 | I5: 0.44 | J5: 0.96 | L5: Cellular telephone 1 | M5: =VLOOKUP($L5,B___Budget!$A$10:$D$15,2,FALSE) -> 14 | N5: =VLOOKUP($L5,B___Budget!$A$10:$D$15,3,FALSE) -> 101 | O5: =VLOOKUP($L5,B___Budget!$A$10:$D$15,4,FALSE) -> 140
A6: Program Director | C6: 0.5183333333 | E6: 0.81 | F6: 0.64 | G6: 0.56 | H6: 0.23 | I6: 0.16 | J6: 0.71 | L6: Cellular telephone 1 | M6: =VLOOKUP($L6,B___Budget!$A$10:$D$15,2,FALSE) -> 14 | N6: =VLOOKUP($L6,B___Budget!$A$10:$D$15,3,FALSE) -> 101 | O6: =VLOOKUP($L6,B___Budget!$A$10:$D$15,4,FALSE) -> 140
A7: Average Full Time | C7: 0.5354166667 | E7: =AVERAGE(E3:E6) -> 0.7875 | F7: =AVERAGE(F3:F6) -> 0.4475 | G7: 0.69 | H7: 0.34 | I7: 0.3575 | J7: 0.59
A9: Part Time
A10: Hotel employee | C10: =AVERAGE(E10:J10) -> 0.4816666667 | E10: 0.26 | F10: 0.42 | G10: 0.24 | H10: 0.51 | I10: 0.91 | J10: 0.55 | L10: Cell phone allowance | M10: =VLOOKUP(L10,J___Employee_Summary!$A$35:$C$37,3,FALSE)/1000 -> 85.29519
A11: Arts and Music Instructor A | C11: 0.5366666667 | E11: 0.52 | F11: 0.66 | G11: 0.76 | H11: 0.04 | I11: 0.97 | J11: 0.27 | L11: Housing allowance | M11: =VLOOKUP(L11,J___Employee_Summary!$A$35:$C$37,3,FALSE)/1000 -> 131.74051
A12: Arts and Music Instructor B | C12: 0.4266666667 | E12: 0.07 | F12: 0.49 | G12: 0.49 | H12: 0.25 | I12: 0.48 | J12: 0.78 | L12: Performance Bonus | M12: =VLOOKUP(L12,J___Employee_Summary!$A$35:$C$37,3,FALSE)/1000 -> 177.70308
A13: Average Part Time | C13: =AVERAGE(#REF!) ->  | E13: =AVERAGE(E10:E12) -> 0.2833333333 | F13: =AVERAGE(F10:F12) -> 0.5233333333 | G13: 0.4966666667 | H13: 0.2666666667 | I13: 0.7866666667 | J13: 0.5333333333
E14: =E13/$C13 -> 

Sheet D1__DCF_Analysis
A1: DCF Analysis
A2: (€ Millions) | B2: 2013 | C2: 2014 | D2: 2015 | E2: 2016 | F2: 2017 | G2: 2018 | H2: 2019 | I2: 2020E | J2: 2021E | K2: 2022E | L2: 2023E | M2: 2024E | N2: 2025E | O2: 2026E | P2: 2027E | Q2: 2028E | R2: 2029E | S2: 2030E
A4: DIS Enterprise Value
A5: Total Present Value of Product 1 | B5: =B48 -> 5634.74207 | C5: =C48 -> 5918.02213 | D5: 6669.537034 | E5: 6966.249499 | F5: 7567.190868 | G5: 7927.782375 | H5: 8489.808109 | I5: 8511.754144 | J5: 8724.20014 | K5: 8870.750898 | L5: 9034.546546 | M5: 9211.931865 | N5: 9430.446606 | O5: 9648.631846 | P5: 9890.979753 | Q5: 10100.03257 | R5: 10319.3658 | S5: 11118.48482
A6: Total Present Value of Product 2 | B6: =B73 -> 2921.678037 | C6: =C73 -> 3071.727687 | D6: 3197.059034 | E6: 3267.185646 | F6: 3371.126404 | G6: 3459.280994 | H6: 3625.022063 | I6: 3735.35569 | J6: 3792.024786 | K6: 3876.074945 | L6: 3955.692831 | M6: 4057.466874 | N6: 4162.517445 | O6: 4275.609197 | P6: 4384.593709 | Q6: 4488.73773 | R6: 4581.228183 | S6: 4935.992873
A7: Total Present Value of Product 3 | B7: =B98 -> 12505.9326 | C7: =C98 -> 13551.34899 | D7: 14553.95632 | E7: 15300.34021 | F7: 16421.92567 | G7: 17200.24987 | H7: 18218.18356 | I7: 18963.457 | J7: 19304.97892 | K7: 19667.98472 | L7: 20051.16512 | M7: 20512.2083 | N7: 20994.32181 | O7: 21487.54651 | P7: 21963.02667 | Q7: 22388.75756 | R7: 22762.18586 | S7: 24519.10555
A8: Total Present Value of Product 4 | B8: =B123 -> 15790.2506 | C8: =C123 -> 16812.32606 | D8: 18010.51681 | E8: 19141.9468 | F8: 21880.64891 | G8: 24177.8856 | H8: 25867.10863 | I8: 27232.15281 | J8: 27893.72066 | K8: 28651.69049 | L8: 29373.7344 | M8: 30259.67363 | N8: 31160.0173 | O8: 32108.03601 | P8: 33009.00131 | Q8: 33853.83823 | R8: 34583.916 | S8: 37262.05203
A9: Total Present Value of Product 5 | B9: =B148 -> 5914.91576 | C9: =C148 -> 6440.150157 | D9: 6991.096001 | E9: 7444.300431 | F9: 8071.70533 | G9: 8517.966213 | H9: 9082.675152 | I9: 9567.797093 | J9: 9800.798658 | K9: 10050.99681 | L9: 10275.99187 | M9: 10557.73817 | N9: 10846.29582 | O9: 11153.85385 | P9: 11448.3811 | Q9: 11727.64218 | R9: 11973.12997 | S9: 12900.31446
A10: Total Present Value of Product 6 | B10: =B173 -> 2449.084773 | C10: =C173 -> 2436.135966 | D10: 2470.85482 | E10: 2413.053994 | F10: 2401.738637 | G10: 2369.238256 | H10: 2401.096413 | I10: 2418.479835 | J10: 2418.136045 | K10: 2441.666693 | L10: 2473.906522 | M10: 2536.526644 | N10: 2601.188493 | O10: 2670.926911 | P10: 2738.227615 | Q10: 2802.715852 | R10: 2860.148215 | S10: 3081.634584
A11: Total Present Value of Product 7 | B11: =B198 -> 702.6139877 | C11: =C198 -> 866.7116891 | D11: 952.9764248 | E11: 1016.880529 | F11: 1219.215662 | G11: 1333.848006 | H11: 1415.973285 | I11: 1582.376072 | J11: 1700.235841 | K11: 1771.620346 | L11: 1824.526224 | M11: 1881.899213 | N11: 1940.045777 | O11: 2000.900222 | P11: 2059.152498 | Q11: 2114.412754 | R11: 2163.686675 | S11: 2209.837111
A12: Total Present Value of Product 8 | B12: =B223 -> -1262.017667 | C12: =C223 -> -1326.705353 | D12: -1375.54725 | E12: -1441.740809 | F12: -1482.15691 | G12: -1519.226499 | H12: -1470.535561 | I12: -1473.40462 | J12: -1463.381917 | K12: -1463.49943 | L12: -1464.924745 | M12: -1475.726052 | N12: -1489.606871 | O12: -1507.687368 | P12: -1525.922319 | Q12: -1543.773569 | R12: -1558.839051 | S12: -1678.727443
A13: Total Present Value of Product 9 | B13: =B248 -> 7524.834633 | C13: =C248 -> 8127.191522 | D13: 8719.836688 | E13: 9094.984497 | F13: 9637.17568 | G13: 9995.193432 | H13: 10674.68994 | I13: 11265.35304 | J13: 11659.12818 | K13: 12049.97775 | L13: 12406.67273 | M13: 12824.2194 | N13: 13162.1228 | O13: 13524.02819 | P13: 13845.56613 | Q13: 14129.0115 | R13: 14358.1955 | S13: 15466.44567
A14: Total Present Value of Product 10 | B14: =B273 -> 3084.811086 | C14: =C273 -> 3335.865365 | D14: 3639.735696 | E14: 3819.526714 | F14: 4111.074193 | G14: 4327.453538 | H14: 4646.253869 | I14: 4918.019441 | J14: 5072.085108 | K14: 5219.904069 | L14: 5303.896491 | M14: 5424.890339 | N14: 5537.173332 | O14: 5670.780242 | P14: 5788.350313 | Q14: 5919.765469 | R14: 6024.150412 | S14: 6490.65323
A15: Total Enterprise Value | B15: =SUM(B5:B14) -> 55266.84588 | C15: 59232.77421 | D15: 63830.02158 | E15: 67022.72751 | F15: 73199.64445 | G15: 77789.67177 | H15: 82950.27546 | I15: 86721.34051 | J15: 88901.92642 | K15: 91137.16729 | L15: 93235.20798 | M15: 95790.8284 | N15: 98344.52251 | O15: 101032.6256 | P15: 103601.3568 | Q15: 105981.1403 | R15: 108067.1676 | S15: 116305.7929
A18: Discount Rate
A19: Weighted Average Cost of Debt | B19: 0.05853411758 | C19: 0.04464825971 | D19: 0.03790359405 | E19: 0.0416536939 | F19: 0.03288354689 | G19: 0.03337104072 | H19: 0.02440644778 | I19: 0.02007872271 | J19: 0.02561229263 | K19: 0.02948913018 | L19: 0.03385784351 | M19: 0.03518309317 | N19: 0.03594052149 | O19: 0.03549991509 | P19: 0.03533201163 | Q19: 0.03542247651 | R19: 0.03647472095 | S19: 0.0375351628
A20: Risk Free Rate | B20: 0.05 | C20: =+B20 -> 0.05 | D20: =+C20 -> 0.05 | E20: 0.05 | F20: 0.05 | G20: 0.05 | H20: 0.05 | I20: 0.05 | J20: 0.05 | K20: 0.05 | L20: 0.05 | M20: 0.05 | N20: 0.05 | O20: 0.05 | P20: 0.05 | Q20: 0.05 | R20: 0.05 | S20: 0.05
A21: Risk Premium | B21: 0.05 | C21: 0.05 | D21: 0.05 | E21: 0.05 | F21: 0.05 | G21: 0.05 | H21: 0.05 | I21: 0.05 | J21: 0.05 | K21: 0.05 | L21: 0.05 | M21: 0.05 | N21: 0.05 | O21: 0.05 | P21: 0.05 | Q21: 0.05 | R21: 0.05 | S21: 0.05
A22: Forward Beta | B22: 1 | C22: 1 | D22: 1 | E22: 1 | F22: 1 | G22: 1 | H22: 1 | I22: 1 | J22: 1 | K22: 1 | L22: 1 | M22: 1 | N22: 1 | O22: 1 | P22: 1 | Q22: 1 | R22: 1 | S22: 1
A23: Cost of Equity | B23: =B20+(B21*B22) -> 0.1 | C23: =C20+(C21*C22) -> 0.1 | D23: 0.1 | E23: 0.1 | F23: 0.1 | G23: 0.1 | H23: 0.1 | I23: 0.1 | J23: 0.1 | K23: 0.1 | L23: 0.1 | M23: 0.1 | N23: 0.1 | O23: 0.1 | P23: 0.1 | Q23: 0.1 | R23: 0.1 | S23: 0.1
A25: Debt/Capital | B25: 0.2 | C25: =+B25 -> 0.2 | D25: =+C25 -> 0.2 | E25: =+D25 -> 0.2 | F25: =+E25 -> 0.2 | G25: =+F25 -> 0.2 | H25: 0.2 | I25: 0.2 | J25: 0.2 | K25: 0.2 | L25: 0.2 | M25: 0.2 | N25: 0.2 | O25: =+N25 -> 0.2 | P25: =+O25 -> 0.2 | Q25: =+P25 -> 0.2 | R25: =+Q25 -> 0.2 | S25: =+R25 -> 0.2
A26: Tax Rate | B26: 0.4 | C26: 0.4 | D26: 0.4 | E26: 0.4 | F26: 0.4 | G26: 0.4 | H26: 0.4 | I26: 0.4 | J26: 0.4 | K26: 0.4 | L26: 0.4 | M26: 0.4 | N26: 0.4 | O26: 0.4 | P26: 0.4 | Q26: 0.4 | R26: 0.4 | S26: 0.4
A27: WACC | B27: =(B25*(B19*(1-B26))+((1-B25)*B23)) -> 0.08702409411 | C27: =(C25*(C19*(1-C26))+((1-C25)*C23)) -> 0.08535779117 | D27: =(D25*(D19*(1-D26))+((1-D25)*D23)) -> 0.08454843129 | E27: 0.08499844327 | F27: 0.08394602563 | G27: 0.08400452489 | H27: 0.08292877373 | I27: 0.08240944672 | J27: 0.08307347512 | K27: 0.08353869562 | L27: 0.08406294122 | M27: 0.08422197118 | N27: 0.08431286258 | O27: 0.08425998981 | P27: 0.0842398414 | Q27: 0.08425069718 | R27: 0.08437696651 | S27: 0.08450421954
A29: Product 1
A30: Growth Rate | B30: 0.02 | C30: 0.02 | D30: 0.02 | E30: 0.02 | F30: 0.02 | G30: 0.02 | H30: 0.02 | I30: 0.02 | J30: 0.02 | K30: 0.02 | L30: 0.02 | M30: 0.02 | N30: 0.02 | O30: 0.02 | P30: 0.02 | Q30: 0.02 | R30: 0.02 | S30: 0.02
A32: EBITDA | B32: =B281 -> 1081.075067 | C32: 827.7949322 | D32: -62.61479605 | E32: 488.1376481 | F32: 364.3376023 | G32: 544.8203949 | H32: 507.7644383 | I32: 1400.490428 | J32: 803.2650583 | K32: 1002.516646 | L32: 990.3075589 | M32: 1089.975861 | N32: 1069.424891 | O32: 1142.22695 | P32: 1128.365291 | Q32: 1214.069781 | R32: 1200.499542 | S32: =S281 -> 1273.264669
A33: Depreciation | B33: =-B302 -> -31 | C33: =-C302 -> -41 | D33: -50 | E33: -56 | F33: -53 | G33: -48 | H33: -54 | I33: -49.80293 | J33: -51.028472 | K33: -52.9730353 | L33: -54.0495418 | M33: -55.60402215 | N33: -56.65535166 | O33: -58.20485072 | P33: -59.32339721 | Q33: -60.94971309 | R33: -62.1244482 | S33: =-S302 -> -63.81725282
A34: EBITA | B34: =SUM(B32:B33) -> 1050.075067 | C34: =SUM(C32:C33) -> 786.7949322 | D34: -112.6147961 | E34: 432.1376481 | F34: 311.3376023 | G34: 496.8203949 | H34: 453.7644383 | I34: 1350.687498 | J34: 752.2365863 | K34: 949.5436109 | L34: 936.2580171 | M34: 1034.371839 | N34: 1012.769539 | O34: 1084.022099 | P34: 1069.041894 | Q34: 1153.120068 | R34: 1138.375094 | S34: 1209.447416
A35: Taxes | B35: =-(B34*B26) -> -420.0300268 | C35: -314.7179729 | D35: 45.04591842 | E35: -172.8550593 | F35: -124.5350409 | G35: -198.728158 | H35: -181.5057753 | I35: -540.274999 | J35: -300.8946345 | K35: -379.8174444 | L35: -374.5032068 | M35: -413.7487356 | N35: -405.1078156 | O35: -433.6088396 | P35: -427.6167576 | Q35: -461.2480271 | R35: -455.3500375 | S35: -483.7789664
A36: EBIAT | B36: =SUM(B34:B35) -> 630.0450402 | C36: =SUM(C34:C35) -> 472.0769593 | D36: -67.56887763 | E36: 259.2825889 | F36: 186.8025614 | G36: 298.092237 | H36: 272.258663 | I36: 810.4124985 | J36: 451.3419518 | K36: 569.7261666 | L36: 561.7548102 | M36: 620.6231034 | N36: 607.6617235 | O36: 650.4132594 | P36: 641.4251364 | Q36: 691.8720407 | R36: 683.0250562 | S36: 725.6684495
A37: Depreciation | B37: =B302 -> 31 | C37: =C302 -> 41 | D37: 50 | E37: 56 | F37: 53 | G37: 48 | H37: 54 | I37: 49.80293 | J37: 51.028472 | K37: 52.9730353 | L37: 54.0495418 | M37: 55.60402215 | N37: 56.65535166 | O37: 58.20485072 | P37: 59.32339721 | Q37: 60.94971309 | R37: 62.1244482 | S37: 63.81725282
A38: Capital Expenditures | B38: =-B322 -> -85 | C38: =-C322 -> -126 | D38: -135 | E38: -102 | F38: -118 | G38: -79 | H38: -78 | I38: -105.16849 | J38: -108.4981503 | K38: -111.3678681 | L38: -114.3171338 | M38: -117.3591588 | N38: -120.4797209 | O38: -123.6873966 | P38: -126.9847499 | Q38: -130.3744246 | R38: -133.8504156 | S38: -137.423256
A39: Unlevered Free Cash Flow | B39: =SUM(B36:B38) -> 576.0450402 | C39: =SUM(C36:C38) -> 387.0769593 | D39: -152.5688776 | E39: 213.2825889 | F39: 121.8025614 | G39: 267.092237 | H39: 248.258663 | I39: 755.0469385 | J39: 393.8722734 | K39: 511.3313338 | L39: 501.4872183 | M39: 558.8679668 | N39: 543.8373542 | O39: 584.9307135 | P39: 573.7637837 | Q39: 622.4473291 | R39: 611.2990888 | S39: 652.0624464
A41: Terminal FCF | B41: =$S$39*(1+B30) -> 665.1036953 | C41: 665.1036953 | D41: 665.1036953 | E41: 665.1036953 | F41: 665.1036953 | G41: 665.1036953 | H41: 665.1036953 | I41: 665.1036953 | J41: 665.1036953 | K41: 665.1036953 | L41: 665.1036953 | M41: 665.1036953 | N41: 665.1036953 | O41: 665.1036953 | P41: 665.1036953 | Q41: 665.1036953 | R41: 665.1036953 | S41: 665.1036953
A42: Terminal FCF Multiple | B42: =(1+B30)/(B27-B30) -> 15.21840785 | C42: 15.60640257 | D42: 15.80208813 | E42: 15.69268353 | F42: 15.95095223 | G42: 15.93637328 | H42: 16.20880147 | I42: 16.34367958 | J42: 16.17161569 | K42: 16.05320962 | L42: 15.92184156 | M42: 15.88241502 | N42: 15.85996889 | O42: 15.87301839 | P42: 15.87799686 | Q42: 15.87531412 | R42: 15.84417619 | S42: 15.81291902
A43: Terminal Value | B43: =B41*B42 -> 10121.8193 | C43: =C41*C42 -> 10379.87602 | D43: 10510.02721 | E43: 10437.2618 | F43: 10609.03727 | G43: 10599.34076 | H43: 10780.53375 | I43: 10870.24168 | J43: 10755.80136 | K43: 10677.04904 | L43: 10589.67566 | M43: 10563.45292 | N43: 10548.52392 | O43: 10557.20319 | P43: 10560.51439 | Q43: 10558.73008 | R43: 10538.02013 | S43: 10517.23087
A44: PV of Terminal Value | B44: =B43/((1+B27)^B46) -> 2450.150054 | C44: 2799.144482 | D44: 3110.782039 | E44: 3331.033239 | F44: 3720.286873 | G44: 4026.296131 | H44: 4487.882093 | I44: 4924.061415 | J44: 5244.710171 | K44: 5619.476158 | L44: 6018.678853 | M44: 6502.744322 | N44: 7037.503827 | O44: 7638.624322 | P44: 8285.314286 | Q44: 8981.570183 | R44: 9718.041288 | S44: 10517.23087
A45: PV of Cash Flows | B45: =NPV(B27,C39:$S39) -> 3184.592016 | C45: =NPV(C27,D39:$S39) -> 3118.877648 | D45: =NPV(D27,E39:$S39) -> 3558.754995 | E45: =NPV(E27,F39:$S39) -> 3635.21626 | F45: =NPV(F27,G39:$S39) -> 3846.903995 | G45: =NPV(G27,H39:$S39) -> 3901.486243 | H45: =NPV(H27,I39:$S39) -> 4001.926016 | I45: =NPV(I27,J39:$S39) -> 3587.692729 | J45: =NPV(J27,K39:$S39) -> 3479.489969 | K45: =NPV(K27,L39:$S39) -> 3251.27474 | L45: =NPV(L27,M39:$S39) -> 3015.867693 | M45: =NPV(M27,N39:$S39) -> 2709.187543 | N45: =NPV(N27,O39:$S39) -> 2392.942779 | O45: =NPV(O27,P39:$S39) -> 2010.007524 | P45: =NPV(P27,Q39:$S39) -> 1605.665467 | Q45: =NPV(Q27,R39:$S39) -> 1118.46239 | R45: =NPV(R27,S39:$S39) -> 601.3245085 | S45: =NPV(S27,$S39:T39) -> 601.2539506
A46: Years to Terminal Period | B46: 17 | C46: =B46-1 -> 16 | D46: =C46-1 -> 15 | E46: =D46-1 -> 14 | F46: 13 | G46: 12 | H46: 11 | I46: 10 | J46: 9 | K46: 8 | L46: 7 | M46: 6 | N46: 5 | O46: 4 | P46: 3 | Q46: 2 | R46: 1 | S46: 0
A48: Total Present Value of Product 1 | B48: =B44+B45 -> 5634.74207 | C48: =C44+C45 -> 5918.02213 | D48: =D44+D45 -> 6669.537034 | E48: 6966.249499 | F48: 7567.190868 | G48: 7927.782375 | H48: 8489.808109 | I48: 8511.754144 | J48: 8724.20014 | K48: 8870.750898 | L48: 9034.546546 | M48: 9211.931865 | N48: 9430.446606 | O48: 9648.631846 | P48: 9890.979753 | Q48: 10100.03257 | R48: 10319.3658 | S48: 11118.48482
A49: PV / CY FCF | B49: =B48/B39 -> 9.781773432 | C49: =C48/C39 -> 15.28900646 | D49: -43.71492494 | E49: 32.66206367 | F49: 62.12669735 | G49: 29.68181504 | H49: 34.19742944 | I49: 11.27314569 | J49: 22.14982046 | K49: 17.34834209 | L49: 18.01550711 | M49: 16.48319892 | N49: 17.34056429 | O49: 16.49534145 | P49: 17.23876626 | Q49: 16.22632486 | R49: 16.88104233 | S49: 17.05125772
A50: PV / FY FCF | B50: =B48/C39 -> 14.55716217 | C50: =C48/D39 -> -38.7891831 | D50: 31.27089309 | E50: 57.19296392 | F50: 28.33175143 | G50: 31.93355785 | H50: 11.2440799 | I50: 21.61044257 | J50: 17.06173583 | K50: 17.68888732 | L50: 16.1657978 | M50: 16.93876265 | N50: 16.12233105 | O50: 16.81638354 | P50: 15.89046862 | Q50: 16.52224379 | R50: 15.82573242
A51: PV / CY EBITDA | B51: =B48/B32 -> 5.21216541 | C51: =C48/C32 -> 7.149140324 | D51: -106.5169489 | E51: 14.27107605 | F51: 20.76972242 | G51: 14.55118503 | H51: 16.71997381 | I51: 6.077695339 | J51: 10.86092324 | K51: 8.848482398 | L51: 9.1229704 | M51: 8.451500802 | N51: 8.818241176 | O51: 8.447210818 | P51: =P48/P32 -> 8.765760371 | Q51: =Q48/Q32 -> 8.319153258 | R51: 8.595893157 | S51: 8.732265253
A52: PV / FY EBITDA | B52: =B48/C32 -> 6.806929894 | C52: =C48/D32 -> -94.51475535 | D52: 13.66323016 | E52: 19.12031439 | F52: 13.88933112 | G52: 15.61311068 | H52: 6.062025089 | I52: 10.59644517 | J52: 8.70229953 | K52: 8.957571633 | L52: 8.288758374 | M52: 8.613911968 | N52: 8.256193402 | O52: 8.55098249 | P52: 8.146961492 | Q52: 8.413191526 | R52: 8.104651021
A54: Product 2
A55: Growth Rate | B55: 0.02 | C55: 0.02 | D55: 0.02 | E55: 0.02 | F55: 0.02 | G55: 0.02 | H55: 0.02 | I55: 0.02 | J55: 0.02 | K55: 0.02 | L55: 0.02 | M55: 0.02 | N55: 0.02 | O55: 0.02 | P55: 0.02 | Q55: 0.02 | R55: 0.02 | S55: 0.02
A57: EBITDA | B57: =B282 -> 150.924933 | C57: 308.2050678 | D57: 297.6147961 | E57: 293.8623519 | F57: 385.6623977 | G57: 319.1796051 | H57: 314.2355617 | I57: 370.9049329 | J57: 348.4515371 | K57: 335.5875192 | L57: 351.0035648 | M57: 367.4252035 | N57: 384.4817218 | O57: 402.3610844 | P57: 421.1041487 | Q57: 440.7538376 | R57: 461.1260905 | S57: =S282 -> 482.4661572
A58: Depreciation | B58: =B303 -> 0 | C58: 0 | D58: 0 | E58: 0 | F58: 0 | G58: 0 | H58: 0 | I58: 0 | J58: 0 | K58: 0 | L58: 0 | M58: 0 | N58: 0 | O58: 0 | P58: 0 | Q58: 0 | R58: 0 | S58: =S303 -> 0
A59: EBITA | B59: =B57-B58 -> 150.924933 | C59: 308.2050678 | D59: 297.6147961 | E59: 293.8623519 | F59: 385.6623977 | G59: 319.1796051 | H59: 314.2355617 | I59: 370.9049329 | J59: 348.4515371 | K59: 335.5875192 | L59: 351.0035648 | M59: 367.4252035 | N59: 384.4817218 | O59: 402.3610844 | P59: 421.1041487 | Q59: 440.7538376 | R59: 461.1260905 | S59: 482.4661572
A60: Taxes | B60: =-(B59*B26) -> -60.36997319 | C60: -123.2820271 | D60: -119.0459184 | E60: -117.5449407 | F60: -154.2649591 | G60: -127.671842 | H60: -125.6942247 | I60: -148.3619732 | J60: -139.3806148 | K60: -134.2350077 | L60: -140.4014259 | M60: -146.9700814 | N60: -153.7926887 | O60: -160.9444338 | P60: -168.4416595 | Q60: -176.301535 | R60: -184.4504362 | S60: -192.9864629
A61: EBIAT | B61: =SUM(B59:B60) -> 90.55495979 | C61: =SUM(C59:C60) -> 184.9230407 | D61: 178.5688776 | E61: 176.3174111 | F61: 231.3974386 | G61: 191.507763 | H61: 188.541337 | I61: 222.5429598 | J61: 209.0709222 | K61: 201.3525115 | L61: 210.6021389 | M61: 220.4551221 | N61: 230.6890331 | O61: 241.4166506 | P61: 252.6624892 | Q61: 264.4523025 | R61: 276.6756543 | S61: 289.4796943
A62: Depreciation | B62: =-B58 -> 0 | C62: =-C58 -> 0 | D62: 0 | E62: 0 | F62: 0 | G62: 0 | H62: 0 | I62: 0 | J62: 0 | K62: 0 | L62: 0 | M62: 0 | N62: 0 | O62: 0 | P62: 0 | Q62: 0 | R62: 0 | S62: =-S58 -> 0
A63: Capital Expenditures | B63: =B323 -> 0 | C63: 0 | D63: 0 | E63: 0 | F63: 0 | G63: 0 | H63: 0 | I63: 0 | J63: 0 | K63: 0 | L63: 0 | M63: 0 | N63: 0 | O63: 0 | P63: 0 | Q63: 0 | R63: 0 | S63: =S323 -> 0
A64: Unlevered Free Cash Flow | B64: =SUM(B61:B63) -> 90.55495979 | C64: =SUM(C61:C63) -> 184.9230407 | D64: 178.5688776 | E64: 176.3174111 | F64: 231.3974386 | G64: 191.507763 | H64: 188.541337 | I64: 222.5429598 | J64: 209.0709222 | K64: 201.3525115 | L64: 210.6021389 | M64: 220.4551221 | N64: 230.6890331 | O64: 241.4166506 | P64: 252.6624892 | Q64: 264.4523025 | R64: 276.6756543 | S64: 289.4796943
A66: Terminal FCF | B66: =$S$64*(1+B55) -> 295.2692882 | C66: 295.2692882 | D66: 295.2692882 | E66: 295.2692882 | F66: 295.2692882 | G66: 295.2692882 | H66: 295.2692882 | I66: 295.2692882 | J66: 295.2692882 | K66: 295.2692882 | L66: 295.2692882 | M66: 295.2692882 | N66: 295.2692882 | O66: 295.2692882 | P66: 295.2692882 | Q66: 295.2692882 | R66: 295.2692882 | S66: 295.2692882
A67: Terminal FCF Multiple | B67: =(1+B55)/(B27-B55) -> 15.21840785 | C67: 15.60640257 | D67: 15.80208813 | E67: 15.69268353 | F67: 15.95095223 | G67: 15.93637328 | H67: 16.20880147 | I67: 16.34367958 | J67: 16.17161569 | K67: 16.05320962 | L67: 15.92184156 | M67: 15.88241502 | N67: 15.85996889 | O67: 15.87301839 | P67: 15.87799686 | Q67: 15.87531412 | R67: 15.84417619 | S67: 15.81291902
A68: Terminal Value | B68: =B66*B67 -> 4493.528454 | C68: =C66*C67 -> 4608.091378 | D68: 4665.871315 | E68: 4633.567495 | F68: 4709.826311 | G68: 4705.521594 | H68: 4785.961272 | I68: 4825.786636 | J68: 4774.981455 | K68: 4740.019779 | L68: 4701.230824 | M68: 4689.589379 | N68: 4682.961726 | O68: 4686.814841 | P68: 4688.284831 | Q68: 4687.492699 | R68: 4678.298625 | S68: 4669.069343
A69: PV of Terminal Value | B69: =B68/((1+B27)^B71) -> 1087.731233 | C69: 1242.665474 | D69: 1381.015329 | E69: 1478.794691 | F69: 1651.601795 | G69: 1787.452996 | H69: 1992.371656 | I69: 2186.011173 | J69: 2328.361502 | K69: 2494.736891 | L69: 2671.960829 | M69: 2886.859148 | N69: 3124.262819 | O69: 3391.127101 | P69: 3678.22171 | Q69: 3987.320854 | R69: 4314.273329 | S69: 4669.069343
A70: PV of Cash Flows | B70: =NPV(B27,C64:$S64) -> 1833.946804 | C70: =NPV(C27,D64:$S64) -> 1829.062213 | D70: =NPV(D27,E64:$S64) -> 1816.043706 | E70: =NPV(E27,F64:$S64) -> 1788.390955 | F70: =NPV(F27,G64:$S64) -> 1719.52461 | G70: =NPV(G27,H64:$S64) -> 1671.827998 | H70: =NPV(H27,I64:$S64) -> 1632.650407 | I70: =NPV(I27,J64:$S64) -> 1549.344517 | J70: =NPV(J27,K64:$S64) -> 1463.663284 | K70: =NPV(K27,L64:$S64) -> 1381.338054 | L70: =NPV(L27,M64:$S64) -> 1283.732002 | M70: =NPV(M27,N64:$S64) -> 1170.607726 | N70: =NPV(N27,O64:$S64) -> 1038.254626 | O70: =NPV(O27,P64:$S64) -> 884.4820954 | P70: =NPV(P27,Q64:$S64) -> 706.3719987 | Q70: =NPV(Q27,R64:$S64) -> 501.4168755 | R70: =NPV(R27,S64:$S64) -> 266.9548536 | S70: =NPV(S27,$S64:T64) -> 266.9235298
A71: Years to Terminal Period | B71: 17 | C71: =B71-1 -> 16 | D71: =C71-1 -> 15 | E71: 14 | F71: 13 | G71: 12 | H71: 11 | I71: 10 | J71: 9 | K71: 8 | L71: 7 | M71: 6 | N71: 5 | O71: 4 | P71: 3 | Q71: 2 | R71: 1 | S71: 0
A73: Total Present Value of Product 2 | B73: =B69+B70 -> 2921.678037 | C73: =C69+C70 -> 3071.727687 | D73: 3197.059034 | E73: 3267.185646 | F73: 3371.126404 | G73: 3459.280994 | H73: 3625.022063 | I73: 3735.35569 | J73: 3792.024786 | K73: 3876.074945 | L73: 3955.692831 | M73: 4057.466874 | N73: 4162.517445 | O73: =O69+O70 -> 4275.609197 | P73: =P69+P70 -> 4384.593709 | Q73: 4488.73773 | R73: 4581.228183 | S73: 4935.992873
A74: PV / CY FCF | B74: =B73/B64 -> 32.26414151 | C74: =C73/C64 -> 16.61084349 | D74: 17.90378635 | E74: 18.53013622 | F74: 14.5685554 | G74: 18.06339826 | H74: 19.22666997 | I74: 16.78487468 | J74: 18.13750447 | K74: 19.25019418 | L74: 18.78277615 | M74: 18.40495624 | N74: 18.04384625 | O74: 17.71049837 | P74: 17.35356017 | Q74: 16.97371392 | R74: 16.55811818 | S74: 17.05125772
A75: PV / FY FCF | B75: =B73/C64 -> 15.79942676 | C75: =C73/D64 -> 17.20192078 | D75: 18.13240686 | E75: 14.11936824 | F75: 17.60307964 | G75: 18.34759978 | H75: 16.28908893 | I75: 17.86645245 | J75: 18.83276626 | K75: 18.40472735 | L75: 17.94330199 | M75: 17.58846886 | N75: 17.24204786 | O75: 16.92221592 | P75: 16.5799037 | Q75: 16.2238262 | R75: 15.82573242
A76: PV / CY EBITDA | B76: =B73/B57 -> 19.3584849 | C76: =C73/C57 -> 9.966506095 | D76: 10.74227181 | E76: 11.11808173 | F76: 8.741133242 | G76: 10.83803896 | H76: 11.53600198 | I76: 10.07092481 | J76: 10.88250268 | K76: 11.55011651 | L76: 11.26966569 | M76: 11.04297374 | N76: 10.82630775 | O76: 10.62629902 | P76: 10.4121361 | Q76: 10.18422835 | R76: 9.934870911 | S76: 10.23075463
A77: PV / FY EBITDA | B77: =B73/C57 -> 9.479656055 | C77: =C73/D57 -> 10.32115247 | D77: 10.87944411 | E77: 8.471620944 | F77: 10.56184778 | G77: 11.00855987 | H77: 9.773453359 | I77: 10.71987147 | J77: 11.29965976 | K77: 11.04283641 | L77: 10.76598119 | M77: 10.55308131 | N77: 10.34522872 | O77: 10.15332955 | P77: 9.947942219 | Q77: 9.734295721 | R77: 9.495439451
A79: Product 3
A80: Growth Rate | B80: 0.015 | C80: =+B80 -> 0.015 | D80: =+C80 -> 0.015 | E80: 0.015 | F80: 0.015 | G80: 0.015 | H80: 0.015 | I80: 0.015 | J80: 0.015 | K80: 0.015 | L80: 0.015 | M80: 0.015 | N80: 0.015 | O80: 0.015 | P80: 0.015 | Q80: 0.015 | R80: 0.015 | S80: =+R80 -> 0.015
A82: EBITDA | B82: =B283 -> 707 | C82: 807 | D82: 648 | E82: 755 | F82: 921 | G82: 1052 | H82: =H283 -> 1258 | I82: 1567.403888 | J82: 1732.286506 | K82: 1863.787404 | L82: 1863.488481 | M82: 1986.87641 | N82: 2054.129123 | O82: 2180.227943 | P82: 2259.36823 | Q82: 2390.741859 | R82: 2473.675514 | S82: 2614.87559
A83: Depreciation | B83: =-B304 -> -18 | C83: =-C304 -> -18 | D83: -29 | E83: -33 | F83: -48 | G83: -55 | H83: =-H304 -> -57 | I83: -61 | J83: -67.39001605 | K83: -68.81534443 | L83: -71.75384528 | M83: -74.80948864 | N83: -77.986786 | O83: -82.29042009 | P83: -86.72525151 | Q83: -91.29632542 | R83: -96.00887858 | S83: -99.86834664
A84: EBITA | B84: =SUM(B82:B83) -> 689 | C84: =SUM(C82:C83) -> 789 | D84: 619 | E84: 722 | F84: 873 | G84: 997 | H84: =SUM(H82:H83) -> 1201 | I84: 1506.403888 | J84: 1664.89649 | K84: 1794.97206 | L84: 1791.734636 | M84: 1912.066921 | N84: 1976.142337 | O84: 2097.937523 | P84: 2172.642979 | Q84: 2299.445534 | R84: 2377.666635 | S84: 2515.007244
A85: Taxes | B85: =-(B84*B26) -> -275.6 | C85: -315.6 | D85: -247.6 | E85: -288.8 | F85: -349.2 | G85: -398.8 | H85: -480.4 | I85: -602.5615553 | J85: -665.9585961 | K85: -717.9888239 | L85: -716.6938544 | M85: -764.8267684 | N85: -790.456935 | O85: -839.1750093 | P85: -869.0571914 | Q85: -919.7782135 | R85: -951.066654 | S85: -1006.002897
A86: EBIAT | B86: =SUM(B84:B85) -> 413.4 | C86: =SUM(C84:C85) -> 473.4 | D86: 371.4 | E86: 433.2 | F86: 523.8 | G86: 598.2 | H86: =SUM(H84:H85) -> 720.6 | I86: 903.8423329 | J86: 998.9378942 | K86: 1076.983236 | L86: 1075.040782 | M86: 1147.240153 | N86: 1185.685402 | O86: 1258.762514 | P86: 1303.585787 | Q86: 1379.66732 | R86: 1426.599981 | S86: 1509.004346
A87: Depreciation | B87: =B304 -> 18 | C87: =C304 -> 18 | D87: 29 | E87: 33 | F87: 48 | G87: 55 | H87: =H304 -> 57 | I87: 61 | J87: 67.39001605 | K87: 68.81534443 | L87: 71.75384528 | M87: 74.80948864 | N87: 77.986786 | O87: 82.29042009 | P87: 86.72525151 | Q87: 91.29632542 | R87: 96.00887858 | S87: 99.86834664
A88: Capital Expenditures | B88: =-B324 -> -36 | C88: =-C324 -> -62 | D88: -46 | E88: -97 | F88: -115 | G88: -69 | H88: =-H324 -> -45 | I88: -45.21089869 | J88: -45.42601535 | K88: -45.64543435 | L88: -45.86924172 | M88: -46.09752525 | N88: -46.33037444 | O88: -47.56788062 | P88: -48.81013692 | Q88: -50.05723834 | R88: -51.3092818 | S88: -51.56636612
A89: Unlevered Free Cash Flow | B89: =SUM(B86:B88) -> 395.4 | C89: =SUM(C86:C88) -> 429.4 | D89: 354.4 | E89: 369.2 | F89: 456.8 | G89: 584.2 | H89: =SUM(H86:H88) -> 732.6 | I89: 919.6314342 | J89: 1020.901895 | K89: 1100.153146 | L89: 1100.925385 | M89: 1175.952116 | N89: 1217.341814 | O89: 1293.485053 | P89: 1341.500902 | Q89: 1420.906407 | R89: 1471.299578 | S89: 1557.306327
A91: Terminal FCF | B91: =$S$89*(1+B80) -> 1580.665922 | C91: 1580.665922 | D91: 1580.665922 | E91: 1580.665922 | F91: 1580.665922 | G91: 1580.665922 | H91: 1580.665922 | I91: 1580.665922 | J91: 1580.665922 | K91: 1580.665922 | L91: 1580.665922 | M91: 1580.665922 | N91: 1580.665922 | O91: 1580.665922 | P91: 1580.665922 | Q91: 1580.665922 | R91: 1580.665922 | S91: 1580.665922
A92: Terminal FCF Multiple | B92: =(1+B80)/(B27-B80) -> 14.0925063 | C92: 14.42626301 | D92: 14.59414657 | E92: 14.50032247 | F92: 14.72166076 | G92: 14.70918033 | H92: 14.94212164 | I92: 15.05723677 | J92: 14.9103597 | K92: 14.80915256 | L92: 14.69673869 | M92: 14.66297453 | N92: 14.64374666 | O92: 14.65492563 | P92: 14.65919014 | Q92: 14.65689215 | R92: 14.63021592 | S92: 14.60342993
A93: Terminal Value | B93: =B91*B92 -> 22275.54446 | C93: =C91*C92 -> 22803.10231 | D93: 23068.47014 | E93: 22920.16559 | F93: 23270.02747 | G93: 23250.30008 | H93: =H91*H92 -> 23618.50247 | I93: 23800.46104 | J93: 23568.29746 | K93: 23408.32279 | L93: 23230.634 | M93: 23177.26414 | N93: 23146.87131 | O93: 23164.54153 | P93: 23171.28229 | Q93: 23167.64994 | R93: 23125.48373 | S93: 23083.14403
A94: PV of Terminal Value | B94: =B93/((1+B27)^B96) -> 5392.155783 | C94: 6149.319885 | D94: 6827.858876 | E94: 7314.929417 | F94: 8160.13513 | G94: 8831.926005 | H94: 9832.264036 | I94: 10781.26276 | J94: 11492.29939 | K94: 12320.11872 | L94: 13203.21133 | M94: 14267.66644 | N94: 15442.55829 | O94: 16760.61616 | P94: 18179.16715 | Q94: 19707.09283 | R94: 21326.05583 | S94: 23083.14403
A95: PV of Cash Flows | B95: =NPV(B27,C89:$S89) -> 7113.776812 | C95: =NPV(C27,D89:$S89) -> 7402.029104 | D95: =NPV(D27,E89:$S89) -> 7726.097445 | E95: =NPV(E27,F89:$S89) -> 7985.41079 | F95: =NPV(F27,G89:$S89) -> 8261.790541 | G95: =NPV(G27,H89:$S89) -> 8368.32386 | H95: =NPV(H27,I89:$S89) -> 8385.919528 | I95: =NPV(I27,J89:$S89) -> 8182.194243 | J95: =NPV(J27,K89:$S89) -> 7812.679529 | K95: =NPV(K27,L89:$S89) -> 7347.865997 | L95: =NPV(L27,M89:$S89) -> 6847.953792 | M95: =NPV(M27,N89:$S89) -> 6244.541861 | N95: =NPV(N27,O89:$S89) -> 5551.763529 | O95: =NPV(O27,P89:$S89) -> 4726.930349 | P95: =NPV(P27,Q89:$S89) -> 3783.859528 | Q95: =NPV(Q27,R89:$S89) -> 2681.664734 | R95: =NPV(R27,S89:$S89) -> 1436.130031 | S95: =NPV(S27,$S89:T89) -> 1435.961519
A96: Years to Terminal Period | B96: 17 | C96: =B96-1 -> 16 | D96: =C96-1 -> 15 | E96: 14 | F96: 13 | G96: 12 | H96: =G96-1 -> 11 | I96: 10 | J96: 9 | K96: 8 | L96: 7 | M96: 6 | N96: 5 | O96: 4 | P96: 3 | Q96: 2 | R96: 1 | S96: 0
A98: Total Present Value of Product 3 | B98: =B94+B95 -> 12505.9326 | C98: =C94+C95 -> 13551.34899 | D98: 14553.95632 | E98: 15300.34021 | F98: 16421.92567 | G98: 17200.24987 | H98: =H94+H95 -> 18218.18356 | I98: 18963.457 | J98: 19304.97892 | K98: 19667.98472 | L98: 20051.16512 | M98: 20512.2083 | N98: 20994.32181 | O98: 21487.54651 | P98: 21963.02667 | Q98: 22388.75756 | R98: 22762.18586 | S98: 24519.10555
A99: PV / CY FCF | B99: =B98/B89 -> 31.62855993 | C99: =C98/C89 -> 31.55880063 | D99: 41.06646817 | E99: 41.44187488 | F99: 35.94992485 | G99: 29.44239963 | H99: 24.86784543 | I99: 20.62071423 | J99: 18.90972974 | K99: 17.87749714 | L99: 18.21301006 | M99: 17.44306424 | N99: 17.24603688 | O99: 16.6121336 | P99: 16.37198055 | Q99: 15.75667296 | R99: 15.47080296 | S99: 15.7445617
A100: PV / FY FCF | B100: =B98/C89 -> 29.1242026 | C100: =C98/D89 -> 38.23744071 | D100: 39.42025006 | E100: 33.49461516 | F100: 28.11010899 | G100: 23.47836454 | H100: 19.81030975 | I100: 18.57520012 | J100: 17.5475378 | K100: 17.86495705 | L100: 17.05100475 | M100: 16.84999896 | N100: 16.23081903 | O100: 16.01754161 | P100: 15.45705372 | Q100: 15.21699449 | R100: 14.61638309
A101: PV / CY EBITDA | B101: =B98/B82 -> 17.68873069 | C101: =C98/C82 -> 16.79225401 | D101: 22.45980914 | E101: 20.26535127 | F101: 17.83053819 | G101: 16.3500474 | H101: 14.48186293 | I101: 12.09864104 | J101: 11.14421826 | K101: 10.55269752 | L101: 10.76001559 | M101: 10.32384712 | N101: 10.2205463 | O101: 9.855642194 | P101: 9.720870808 | Q101: 9.36477415 | R101: 9.201767062 | S101: 9.376777099
A102: PV / FY EBITDA | B102: =B98/C82 -> 15.49681858 | C102: =C98/D82 -> 20.9125756 | D102: 19.27676334 | E102: 16.61274724 | F102: 15.6101955 | G102: 13.67269465 | H102: 11.62315833 | I102: 10.94706732 | J102: 10.35792971 | K102: 10.55439028 | L102: 10.0918029 | M102: 9.985841722 | N102: 9.629415988 | O102: 9.510422526 | P102: 9.186699346 | Q102: 9.050806155 | R102: 8.70488292
A104: Product 4
A105: Growth Rate | B105: 0.02 | C105: 0.02 | D105: 0.02 | E105: 0.02 | F105: 0.02 | G105: 0.02 | H105: 0.02 | I105: 0.02 | J105: 0.02 | K105: 0.02 | L105: 0.02 | M105: 0.02 | N105: 0.02 | O105: 0.02 | P105: 0.02 | Q105: 0.02 | R105: 0.02 | S105: 0.02
A107: EBITDA | B107: =B284 -> 2103.622795 | C107: 2252.638562 | D107: 1923.632964 | E107: 1726.918434 | F107: 1960.593723 | G107: 2216.944518 | H107: 2549.001543 | I107: 2837.303325 | J107: 3282.741067 | K107: 3444.67925 | L107: 3646.923817 | M107: 3851.804545 | N107: 4075.023701 | O107: 4310.561826 | P107: 4559.085024 | Q107: 4821.295031 | R107: 5097.931121 | S107: 5389.772092
A108: Depreciation | B108: =-B305 -> -591.7307772 | C108: =-C305 -> -609.7987694 | D108: -618.1265774 | E108: -619.9585714 | F108: -630.3702082 | G108: -683.7531716 | H108: -715.8020706 | I108: -763 | J108: -781.2844347 | K108: -800.5275235 | L108: -822.4373865 | M108: -854.7025388 | N108: -888.2678046 | O108: -923.1862897 | P108: -959.5132924 | Q108: -997.306395 | R108: -1036.625559 | S108: -1077.533225
A109: EBITA | B109: =SUM(B107:B108) -> 1511.892018 | C109: =SUM(C107:C108) -> 1642.839793 | D109: 1305.506386 | E109: 1106.959863 | F109: 1330.223515 | G109: 1533.191347 | H109: 1833.199472 | I109: 2074.303325 | J109: 2501.456632 | K109: 2644.151726 | L109: 2824.48643 | M109: 2997.102006 | N109: 3186.755896 | O109: 3387.375537 | P109: 3599.571731 | Q109: 3823.988636 | R109: 4061.305562 | S109: 4312.238867
A110: Taxes | B110: =-(B109*B26) -> -604.7568071 | C110: -657.135917 | D110: -522.2025545 | E110: -442.7839451 | F110: -532.0894061 | G110: -613.2765387 | H110: -733.2797889 | I110: -829.7213299 | J110: -1000.582653 | K110: -1057.66069 | L110: -1129.794572 | M110: -1198.840802 | N110: -1274.702358 | O110: -1354.950215 | P110: -1439.828693 | Q110: -1529.595455 | R110: -1624.522225 | S110: -1724.895547
A111: EBIAT | B111: =SUM(B109:B110) -> 907.1352107 | C111: =SUM(C109:C110) -> 985.7038755 | D111: 783.3038318 | E111: 664.1759176 | F111: 798.1341092 | G111: 919.9148081 | H111: 1099.919683 | I111: 1244.581995 | J111: 1500.873979 | K111: 1586.491036 | L111: 1694.691858 | M111: 1798.261204 | N111: 1912.053538 | O111: 2032.425322 | P111: 2159.743039 | Q111: 2294.393182 | R111: 2436.783337 | S111: 2587.34332
A112: Depreciation | B112: =B305 -> 591.7307772 | C112: =C305 -> 609.7987694 | D112: 618.1265774 | E112: 619.9585714 | F112: 630.3702082 | G112: 683.7531716 | H112: 715.8020706 | I112: 763 | J112: 781.2844347 | K112: 800.5275235 | L112: 822.4373865 | M112: 854.7025388 | N112: 888.2678046 | O112: 923.1862897 | P112: 959.5132924 | Q112: 997.306395 | R112: 1036.625559 | S112: 1077.533225
A113: Capital Expenditures | B113: =-B325 -> -682.4586554 | C113: =-C325 -> -670.4319182 | D113: -863.8347967 | E113: -1067.18033 | F113: -2113.914019 | G113: -2088.928117 | H113: -997.4969133 | I113: -985.5028124 | J113: -1015.804263 | K113: -1050.550115 | L113: -1098.545864 | M113: -1147.275847 | N113: -1197.29762 | O113: -1249.619529 | P113: -1304.351567 | Q113: -1361.609144 | R113: -1419.318101 | S113: -1479.58015
A114: Unlevered Free Cash Flow | B114: =SUM(B111:B113) -> 816.4073324 | C114: =SUM(C111:C113) -> 925.0707267 | D114: 537.5956125 | E114: 216.9541593 | F114: -685.4097015 | G114: -485.2601372 | H114: 818.2248406 | I114: 1022.079182 | J114: 1266.354151 | K114: 1336.468444 | L114: 1418.583381 | M114: 1505.687896 | N114: 1603.023722 | O114: 1705.992083 | P114: 1814.904764 | Q114: 1930.090433 | R114: 2054.090795 | S114: 2185.296395
A116: Terminal FCF | B116: =$S114*(1+B105) -> 2229.002323 | C116: 2229.002323 | D116: 2229.002323 | E116: 2229.002323 | F116: 2229.002323 | G116: 2229.002323 | H116: 2229.002323 | I116: 2229.002323 | J116: 2229.002323 | K116: 2229.002323 | L116: 2229.002323 | M116: 2229.002323 | N116: 2229.002323 | O116: 2229.002323 | P116: 2229.002323 | Q116: 2229.002323 | R116: 2229.002323 | S116: 2229.002323
A117: Terminal FCF Multiple | B117: =(1+B105)/(B27-B105) -> 15.21840785 | C117: 15.60640257 | D117: 15.80208813 | E117: 15.69268353 | F117: 15.95095223 | G117: 15.93637328 | H117: 16.20880147 | I117: 16.34367958 | J117: 16.17161569 | K117: 16.05320962 | L117: 15.92184156 | M117: 15.88241502 | N117: 15.85996889 | O117: 15.87301839 | P117: 15.87799686 | Q117: 15.87531412 | R117: 15.84417619 | S117: 15.81291902
A118: Terminal Value | B118: =B116*B117 -> 33921.86645 | C118: =C116*C117 -> 34786.70758 | D118: 35222.89115 | E118: 34979.02803 | F118: 35554.70957 | G118: 35522.21305 | H118: 36129.45612 | I118: 36430.09974 | J118: 36046.56894 | K118: 35782.64154 | L118: 35489.82182 | M118: 35401.93998 | N118: 35351.9075 | O118: 35380.99486 | P118: 35392.09188 | Q118: 35386.11204 | R118: 35316.70553 | S118: 35247.03323
A119: PV of Terminal Value | B119: =B118/((1+B27)^B121) -> 8211.336368 | C119: 9380.942544 | D119: 10425.35238 | E119: 11163.49357 | F119: 12468.02287 | G119: 13493.57024 | H119: 15040.51125 | I119: 16502.30544 | J119: 17576.91505 | K119: 18832.89102 | L119: 20170.7632 | M119: 21793.04114 | N119: 23585.21308 | O119: 25599.78463 | P119: 27767.0759 | Q119: 30100.48048 | R119: 32568.66073 | S119: 35247.03323
A120: PV of Cash Flows | B120: =NPV(B27,C114:$S114) -> 7578.914232 | C120: =NPV(C27,D114:$S114) -> 7431.383519 | D120: =NPV(D27,E114:$S114) -> 7585.164434 | E120: =NPV(E27,F114:$S114) -> 7978.453235 | F120: =NPV(F27,G114:$S114) -> 9412.626049 | G120: =NPV(G27,H114:$S114) -> 10684.31536 | H120: =NPV(H27,I114:$S114) -> 10826.59739 | I120: =NPV(I27,J114:$S114) -> 10729.84737 | J120: =NPV(J27,K114:$S114) -> 10316.80561 | K120: =NPV(K27,L114:$S114) -> 9818.799471 | L120: =NPV(L27,M114:$S114) -> 9202.971194 | M120: =NPV(M27,N114:$S114) -> 8466.63249 | N120: =NPV(N27,O114:$S114) -> 7574.804213 | O120: =NPV(O27,P114:$S114) -> 6508.251381 | P120: =NPV(P27,Q114:$S114) -> 5241.925408 | Q120: =NPV(Q27,R114:$S114) -> 3753.357748 | R120: =NPV(R27,S114:$S114) -> 2015.255269 | S120: =NPV(S27,$S114:T114) -> 2015.018803
A121: Years to Terminal Period | B121: 17 | C121: =B121-1 -> 16 | D121: =C121-1 -> 15 | E121: 14 | F121: 13 | G121: 12 | H121: 11 | I121: 10 | J121: 9 | K121: 8 | L121: 7 | M121: 6 | N121: 5 | O121: 4 | P121: 3 | Q121: 2 | R121: 1 | S121: 0
A123: Total Present Value of Product 4 | B123: =B119+B120 -> 15790.2506 | C123: =C119+C120 -> 16812.32606 | D123: 18010.51681 | E123: 19141.9468 | F123: 21880.64891 | G123: 24177.8856 | H123: 25867.10863 | I123: 27232.15281 | J123: 27893.72066 | K123: 28651.69049 | L123: 29373.7344 | M123: 30259.67363 | N123: 31160.0173 | O123: 32108.03601 | P123: 33009.00131 | Q123: 33853.83823 | R123: 34583.916 | S123: 37262.05203
A124: PV / CY FCF | B124: =B123/B114 -> 19.34114256 | C124: =C123/C114 -> 18.17409802 | D124: 33.50197879 | E124: 88.23037489 | F124: -31.9234596 | G124: -49.82458633 | H124: 31.61369265 | I124: 26.64387778 | J124: 22.02679293 | K124: 21.43835915 | L124: 20.70638553 | M124: 20.09690967 | N124: 19.43827584 | O124: 18.82074151 | P124: 18.18773192 | Q124: 17.54002696 | R124: 16.83660532 | S124: 17.05125772
A125: PV / FY FCF | B125: =B123/C114 -> 17.06923605 | C125: =C123/D114 -> 31.27318318 | D125: 83.0153101 | E125: -27.92774418 | F125: -45.09055502 | G125: 29.54919528 | H125: 25.30832159 | I125: 21.50437364 | J125: 20.87121532 | K125: 20.19739613 | L125: 19.50851466 | M125: 18.87662248 | N125: 18.26504215 | O125: 17.69130626 | P125: 17.10230814 | Q125: 16.48117908 | R125: 15.82573242
A126: PV / CY EBITDA | B126: =B123/B107 -> 7.506217673 | C126: =C123/C107 -> 7.46339264 | D126: 9.362761581 | E126: 11.08445334 | F126: 11.16021573 | G126: 10.90594979 | H126: 10.14793761 | I126: 9.59789973 | J126: 8.497082192 | K126: 8.317665713 | L126: 8.05438662 | M126: 7.855973293 | N126: 7.646585539 | O126: 7.44868936 | P126: 7.240268856 | Q126: 7.0217313 | R126: 6.783911979 | S126: 6.913474521
A127: PV / FY EBITDA | B127: =B123/C107 -> 7.009668957 | C127: =C123/D107 -> 8.739882494 | D127: 10.42928053 | E127: 9.763341877 | F127: 9.869732297 | G127: 9.485237725 | H127: 9.116793544 | I127: 8.295553094 | J127: 8.097624957 | K127: 7.85639951 | L127: 7.625967012 | M127: 7.425643593 | N127: 7.228760091 | O127: 7.042649094 | P127: 6.846501011 | Q127: 6.64070138 | R127: 6.416582262
A129: Product 5
A130: Growth Rate | B130: 0.02 | C130: 0.02 | D130: 0.02 | E130: 0.02 | F130: 0.02 | G130: 0.02 | H130: 0.02 | I130: 0.02 | J130: 0.02 | K130: 0.02 | L130: 0.02 | M130: 0.02 | N130: 0.02 | O130: 0.02 | P130: 0.02 | Q130: 0.02 | R130: 0.02 | S130: 0.02
A132: EBITDA | B132: =B285 -> 395.9907543 | C132: 403.7111063 | D132: 346.1729858 | E132: 377.8314454 | F132: 421.4078648 | G132: 486.643832 | H132: 618.6474012 | I132: 738.4772128 | J132: 874.3869054 | K132: 945.5036437 | L132: 1018.279503 | M132: 1073.024536 | N132: 1130.411745 | O132: 1190.561474 | P132: 1253.59936 | Q132: 1319.656559 | R132: 1388.869982 | S132: 1461.382542
A133: Depreciation | B133: =-B306 -> -179.1656939 | C133: =-C306 -> -181.8356128 | D133: -180.5887975 | E133: -194.5765249 | F133: -203.345887 | G133: -209.4462636 | H133: -219.4132601 | I133: -229.3249969 | J133: -240.7912467 | K133: -252.830809 | L133: -265.4723495 | M133: -276.4075645 | N133: -287.7960041 | O133: -299.6565881 | P133: -312.0090328 | Q133: -324.8738842 | R133: -338.2725542 | S133: -352.2273568
A134: EBITA | B134: =SUM(B132:B133) -> 216.8250604 | C134: =SUM(C132:C133) -> 221.8754935 | D134: 165.5841884 | E134: 183.2549205 | F134: 218.0619778 | G134: 277.1975684 | H134: 399.234141 | I134: 509.152216 | J134: 633.5956587 | K134: 692.6728347 | L134: 752.8071532 | M134: 796.6169719 | N134: 842.6157406 | O134: 890.9048854 | P134: 941.5903272 | Q134: 994.782675 | R134: 1050.597428 | S134: 1109.155185
A135: Taxes | B135: =-(B134*B26) -> -86.73002415 | C135: -88.7501974 | D135: -66.23367535 | E135: -73.30196819 | F135: -87.22479112 | G135: -110.8790274 | H135: -159.6936564 | I135: -203.6608864 | J135: -253.4382635 | K135: -277.0691339 | L135: -301.1228613 | M135: -318.6467888 | N135: -337.0462963 | O135: -356.3619542 | P135: -376.6361309 | Q135: -397.91307 | R135: -420.2389712 | S135: -443.662074
A136: EBIAT | B136: =SUM(B134:B135) -> 130.0950362 | C136: =SUM(C134:C135) -> 133.1252961 | D136: 99.35051302 | E136: 109.9529523 | F136: 130.8371867 | G136: 166.318541 | H136: 239.5404846 | I136: 305.4913296 | J136: 380.1573952 | K136: 415.6037008 | L136: 451.6842919 | M136: 477.9701832 | N136: 505.5694444 | O136: 534.5429313 | P136: 564.9541963 | Q136: 596.869605 | R136: 630.3584568 | S136: 665.493111
A137: Depreciation | B137: =B306 -> 179.1656939 | C137: =C306 -> 181.8356128 | D137: 180.5887975 | E137: 194.5765249 | F137: 203.345887 | G137: 209.4462636 | H137: 219.4132601 | I137: 229.3249969 | J137: 240.7912467 | K137: 252.830809 | L137: 265.4723495 | M137: 276.4075645 | N137: 287.7960041 | O137: 299.6565881 | P137: 312.0090328 | Q137: 324.8738842 | R137: 338.2725542 | S137: 352.2273568
A138: Capital Expenditures | B138: =-B326 -> -133.5413446 | C138: =-C326 -> -122.5680818 | D138: -175.1652033 | E138: -227.8196702 | F138: -180.0859812 | G138: -153.0718831 | H138: -142.5030867 | I138: -182.6513312 | J138: -175.2766195 | K138: -181.7456702 | L138: -190.1951596 | M138: -199.1925613 | N138: =-N326 -> -208.37466 | O138: =-O326 -> -217.9868213 | P138: -228.0494697 | Q138: -238.5840111 | R138: -249.6128808 | S138: -261.1595928
A139: Unlevered Free Cash Flow | B139: =+B136+B137+B138 -> 175.7193856 | C139: =+C136+C137+C138 -> 192.3928271 | D139: 104.7741072 | E139: 76.70980698 | F139: 154.0970925 | G139: 222.6929215 | H139: 316.4506581 | I139: 352.1649952 | J139: 445.6720225 | K139: 486.6888396 | L139: 526.9614818 | M139: 555.1851863 | N139: 584.9907885 | O139: 616.2126981 | P139: 648.9137594 | Q139: 683.1594781 | R139: 719.0181302 | S139: 756.5608749
A141: Terminal FCF | B141: =$S139*(1+B130) -> 771.6920924 | C141: 771.6920924 | D141: 771.6920924 | E141: 771.6920924 | F141: 771.6920924 | G141: 771.6920924 | H141: 771.6920924 | I141: 771.6920924 | J141: 771.6920924 | K141: 771.6920924 | L141: 771.6920924 | M141: 771.6920924 | N141: 771.6920924 | O141: 771.6920924 | P141: 771.6920924 | Q141: 771.6920924 | R141: 771.6920924 | S141: 771.6920924
A142: Terminal FCF Multiple | B142: =(1+B130)/(B27-B130) -> 15.21840785 | C142: 15.60640257 | D142: 15.80208813 | E142: 15.69268353 | F142: 15.95095223 | G142: 15.93637328 | H142: 16.20880147 | I142: 16.34367958 | J142: 16.17161569 | K142: 16.05320962 | L142: 15.92184156 | M142: 15.88241502 | N142: 15.85996889 | O142: 15.87301839 | P142: 15.87799686 | Q142: 15.87531412 | R142: 15.84417619 | S142: 15.81291902
A143: Terminal Value | B143: =B141*B142 -> 11743.925 | C143: =C141*C142 -> 12043.33745 | D143: 12194.34646 | E143: 12109.91979 | F143: 12309.2237 | G143: 12297.97324 | H143: 12508.20392 | I143: 12612.28829 | J143: 12479.50795 | K143: 12388.13492 | L143: 12286.75923 | M143: 12256.33408 | N143: 12239.01258 | O143: 12249.08277 | P143: 12252.92462 | Q143: 12250.85437 | R143: 12226.82548 | S143: 12202.70457
A144: PV of Terminal Value | B144: =B143/((1+B27)^B146) -> 2842.806972 | C144: 3247.730658 | D144: 3609.310725 | E144: 3864.859011 | F144: 4316.493776 | G144: 4671.543563 | H144: 5207.102512 | I144: 5713.183197 | J144: 6085.218582 | K144: 6520.043935 | L144: 6983.222181 | M144: 7544.863166 | N144: 8165.322328 | O144: 8862.77738 | P144: 9613.104788 | Q144: 10420.94148 | R144: 11275.4382 | S144: 12202.70457
A145: PV of Cash Flows | B145: =NPV(B27,C139:$S139) -> 3072.108788 | C145: =NPV(C27,D139:$S139) -> 3192.419499 | D145: =NPV(D27,E139:$S139) -> 3381.785276 | E145: =NPV(E27,F139:$S139) -> 3579.44142 | F145: =NPV(F27,G139:$S139) -> 3755.211553 | G145: =NPV(G27,H139:$S139) -> 3846.42265 | H145: =NPV(H27,I139:$S139) -> 3875.57264 | I145: =NPV(I27,J139:$S139) -> 3854.613896 | J145: =NPV(J27,K139:$S139) -> 3715.580076 | K145: =NPV(K27,L139:$S139) -> 3530.952875 | L145: =NPV(L27,M139:$S139) -> 3292.769685 | M145: =NPV(M27,N139:$S139) -> 3012.875004 | N145: =NPV(N27,O139:$S139) -> 2680.973489 | O145: =NPV(O27,P139:$S139) -> 2291.076467 | P145: =NPV(P27,Q139:$S139) -> 1835.276317 | Q145: =NPV(Q27,R139:$S139) -> 1306.700698 | R145: =NPV(R27,S139:$S139) -> 697.6917606 | S145: =NPV(S27,$S139:T139) -> 697.6098952
A146: Years to Terminal Period | B146: 17 | C146: =B146-1 -> 16 | D146: =C146-1 -> 15 | E146: 14 | F146: 13 | G146: 12 | H146: 11 | I146: 10 | J146: 9 | K146: 8 | L146: 7 | M146: 6 | N146: 5 | O146: 4 | P146: 3 | Q146: 2 | R146: 1 | S146: 0
A148: Total Present Value of Product 5 | B148: =B144+B145 -> 5914.91576 | C148: =C144+C145 -> 6440.150157 | D148: 6991.096001 | E148: 7444.300431 | F148: 8071.70533 | G148: 8517.966213 | H148: 9082.675152 | I148: 9567.797093 | J148: 9800.798658 | K148: 10050.99681 | L148: 10275.99187 | M148: 10557.73817 | N148: 10846.29582 | O148: 11153.85385 | P148: 11448.3811 | Q148: 11727.64218 | R148: 11973.12997 | S148: 12900.31446
A149: PV / CY FCF | B149: =B148/B139 -> 33.66114524 | C149: =C148/C139 -> 33.47396185 | D149: 66.72541707 | E149: 97.04496366 | F149: 52.38064651 | G149: 38.24982921 | H149: 28.70171042 | I149: 27.16850687 | J149: 21.99105657 | K149: 20.65179226 | L149: 19.50046108 | M149: 19.01660641 | N149: 18.54096856 | O149: 18.10065564 | P149: 17.64237688 | Q149: 17.1667708 | R149: 16.65205572 | S149: 17.05125772
A150: PV / FY FCF | B150: =B148/C139 -> 30.74395157 | C150: =C148/D139 -> 61.46700104 | D150: 91.13692599 | E150: 48.30915568 | F150: 36.24589985 | G150: 26.91720177 | H150: 25.79096524 | I150: 21.46824708 | J150: 20.13770989 | K150: 19.07349428 | L150: 18.50912474 | M150: 18.04769986 | N150: 17.60154546 | O150: 17.18849953 | P150: 16.75799205 | Q150: 16.31063486 | R150: 15.82573242
A151: PV / CY EBITDA | B151: =B148/B132 -> 14.9370047 | C151: =C148/C132 -> 15.95237301 | D151: 20.19538291 | E151: 19.70270215 | F151: 19.15414021 | G151: 17.50349157 | H151: 14.68150539 | I151: 12.95611689 | J151: 11.20876651 | K151: 10.63030997 | L151: 10.09152383 | M151: 9.83923276 | N151: 9.594995689 | O151: 9.368566088 | P151: 9.132408225 | Q151: 8.88688962 | R151: 8.620770928 | S151: 8.827472679
A152: PV / FY EBITDA | B152: =B148/C132 -> 14.65135754 | C152: =C148/D132 -> 18.60384958 | D152: 18.50321376 | E152: 17.66530967 | F152: 16.58647413 | G152: 13.76869311 | H152: 12.29919488 | I152: 10.94229229 | J152: 10.36569105 | K152: 9.87056774 | L152: 9.576660661 | M152: 9.339727953 | N152: 9.110235849 | O152: 8.897462941 | P152: 8.675273142 | Q152: 8.444017316 | R152: 8.193015602
A154: Product 6
A155: Growth Rate | B155: 0.02 | C155: =+B155 -> 0.02 | D155: =+C155 -> 0.02 | E155: 0.02 | F155: 0.02 | G155: 0.02 | H155: 0.02 | I155: 0.02 | J155: 0.02 | K155: 0.02 | L155: 0.02 | M155: 0.02 | N155: 0.02 | O155: 0.02 | P155: 0.02 | Q155: 0.02 | R155: 0.02 | S155: 0.02
A157: EBITDA | B157: =B286 -> 363 | C157: =C286 -> 487.2726 | D157: 350.81035 | E157: 370.4592 | F157: 360.8865 | G157: 329.819 | H157: 289.38048 | I157: 273.115896 | J157: 255.7129999 | K157: 267.6500073 | L157: 287.5347787 | M157: 303.9762999 | N157: 321.3289449 | O157: 339.6433383 | P157: 358.9729243 | Q157: 379.3741238 | R157: 400.9065004 | S157: 423.6329349
A158: Depreciation | B158: =-B307 -> -204.468 | C158: =-C307 -> -238.977 | D158: -218.22168 | E158: -226.9944 | F158: -241.335 | G158: -225.6793 | H158: -225.16108 | I158: -239.6132563 | J158: -230.761529 | K158: -220.8420756 | L158: -220.8885 | M158: -220.603484 | N158: -219.9565937 | O158: -218.9152163 | P158: -217.4444186 | Q158: -215.5067964 | R158: -213.0623139 | S158: -210.0681341
A159: EBITA | B159: =SUM(B157:B158) -> 158.532 | C159: =SUM(C157:C158) -> 248.2956 | D159: 132.58867 | E159: 143.4648 | F159: 119.5515 | G159: 104.1397 | H159: 64.2194 | I159: 33.50263969 | J159: 24.95147085 | K159: 46.80793171 | L159: 66.64627871 | M159: 83.37281582 | N159: 101.3723512 | O159: 120.728122 | P159: 141.5285056 | Q159: 163.8673274 | R159: 187.8441865 | S159: 213.5648007
A160: Taxes | B160: =-B159*B26 -> -63.4128 | C160: -99.31824 | D160: -53.035468 | E160: -57.38592 | F160: -47.8206 | G160: -41.65588 | H160: -25.68776 | I160: -13.40105588 | J160: -9.980588339 | K160: -18.72317268 | L160: -26.65851148 | M160: -33.34912633 | N160: -40.54894047 | O160: -48.2912488 | P160: -56.61140225 | Q160: -65.54693096 | R160: -75.13767458 | S160: -85.42592029
A161: EBIAT | B161: =SUM(B159:B160) -> 95.1192 | C161: =SUM(C159:C160) -> 148.97736 | D161: 79.553202 | E161: 86.07888 | F161: 71.7309 | G161: 62.48382 | H161: 38.53164 | I161: 20.10158381 | J161: 14.97088251 | K161: 28.08475902 | L161: 39.98776722 | M161: 50.02368949 | N161: 60.82341071 | O161: 72.4368732 | P161: 84.91710337 | Q161: 98.32039644 | R161: 112.7065119 | S161: 128.1388804
A162: Depreciation | B162: =-B158 -> 204.468 | C162: =-C158 -> 238.977 | D162: 218.22168 | E162: 226.9944 | F162: 241.335 | G162: 225.6793 | H162: 225.16108 | I162: 239.6132563 | J162: 230.761529 | K162: 220.8420756 | L162: 220.8885 | M162: 220.603484 | N162: 219.9565937 | O162: 218.9152163 | P162: 217.4444186 | Q162: 215.5067964 | R162: 213.0623139 | S162: 210.0681341
A163: Capital Expenditures | B163: =-B327 -> -167.508 | C163: =-C327 -> -108.6669 | D163: -97.43978 | E163: -61.698 | F163: -59.952915 | G163: -56.1510355 | H163: -56.4789964 | I163: -57.7618107 | J163: -72.40925601 | K163: -90.07704411 | L163: -110.1140581 | M163: -131.7138351 | N163: -135.549568 | O163: -139.5575015 | P163: -143.7457392 | Q163: -148.1227771 | R163: -152.6975226 | S163: -157.4793149
A164: Unlevered Free Cash Flow | B164: =SUM(B161:B163) -> 132.0792 | C164: =SUM(C161:C163) -> 279.28746 | D164: 200.335102 | E164: 251.37528 | F164: 253.112985 | G164: 232.0120845 | H164: 207.2137236 | I164: 201.9530294 | J164: 173.3231555 | K164: 158.8497905 | L164: 150.7622091 | M164: 138.9133385 | N164: 145.2304364 | O164: 151.794588 | P164: 158.6157828 | Q164: 165.7044158 | R164: 173.0713032 | S164: 180.7276996
A166: Terminal FCF | B166: =$S164*(1+B155) -> 184.3422536 | C166: 184.3422536 | D166: 184.3422536 | E166: 184.3422536 | F166: 184.3422536 | G166: 184.3422536 | H166: 184.3422536 | I166: 184.3422536 | J166: 184.3422536 | K166: 184.3422536 | L166: 184.3422536 | M166: 184.3422536 | N166: 184.3422536 | O166: 184.3422536 | P166: 184.3422536 | Q166: 184.3422536 | R166: 184.3422536 | S166: 184.3422536
A167: Terminal FCF Multiple | B167: =(1+B155)/(B27-B155) -> 15.21840785 | C167: 15.60640257 | D167: 15.80208813 | E167: 15.69268353 | F167: 15.95095223 | G167: 15.93637328 | H167: 16.20880147 | I167: 16.34367958 | J167: 16.17161569 | K167: 16.05320962 | L167: 15.92184156 | M167: 15.88241502 | N167: 15.85996889 | O167: 15.87301839 | P167: 15.87799686 | Q167: 15.87531412 | R167: 15.84417619 | S167: 15.81291902
A168: Terminal Value | B168: =B166*B167 -> 2805.3956 | C168: =C166*C167 -> 2876.919421 | D168: 2912.992539 | E168: 2892.824647 | F168: 2940.434482 | G168: 2937.746965 | H168: 2987.966991 | I168: 3012.830726 | J168: 2981.112082 | K168: 2959.28484 | L168: 2935.068155 | M168: 2927.800179 | N168: 2923.662409 | O168: 2926.067982 | P168: 2926.985724 | Q168: 2926.491182 | R168: 2920.751146 | S168: 2914.989129
A169: PV of Terminal Value | B169: =B168/((1+B27)^B171) -> 679.0913746 | C169: 775.8197792 | D169: 862.1942347 | E169: 923.2397571 | F169: 1031.126531 | G169: 1115.94103 | H169: 1243.875662 | I169: 1364.768508 | J169: 1453.640537 | K169: 1557.511868 | L169: 1668.156156 | M169: 1802.321279 | N169: 1950.536923 | O169: 2117.14539 | P169: 2296.384035 | Q169: 2489.360532 | R169: 2693.483204 | S169: 2914.989129
A170: PV of Cash Flows | B170: =NPV(B27,C164:$S164) -> 1769.993399 | C170: =NPV(C27,D164:$S164) -> 1660.316187 | D170: =NPV(D27,E164:$S164) -> 1608.660585 | E170: =NPV(E27,F164:$S164) -> 1489.814236 | F170: =NPV(F27,G164:$S164) -> 1370.612106 | G170: =NPV(G27,H164:$S164) -> 1253.297226 | H170: =NPV(H27,I164:$S164) -> 1157.220751 | I170: =NPV(I27,J164:$S164) -> 1053.711326 | J170: =NPV(J27,K164:$S164) -> 964.4955085 | K170: =NPV(K27,L164:$S164) -> 884.1548245 | L170: =NPV(L27,M164:$S164) -> 805.7503658 | M170: =NPV(M27,N164:$S164) -> 734.2053649 | N170: =NPV(N27,O164:$S164) -> 650.6515693 | O170: =NPV(O27,P164:$S164) -> 553.7815209 | P170: =NPV(P27,Q164:$S164) -> 441.8435794 | Q170: =NPV(Q27,R164:$S164) -> 313.35532 | R170: =NPV(R27,S164:$S164) -> 166.6650115 | S170: =NPV(S27,$S164:T164) -> 166.6454555
A171: Years to Terminal Period | B171: 17 | C171: =B171-1 -> 16 | D171: =C171-1 -> 15 | E171: 14 | F171: 13 | G171: 12 | H171: 11 | I171: 10 | J171: 9 | K171: 8 | L171: 7 | M171: 6 | N171: 5 | O171: 4 | P171: 3 | Q171: 2 | R171: 1 | S171: 0
A173: Total Present Value of Product 6 | B173: =B169+B170 -> 2449.084773 | C173: =C169+C170 -> 2436.135966 | D173: 2470.85482 | E173: 2413.053994 | F173: 2401.738637 | G173: 2369.238256 | H173: 2401.096413 | I173: 2418.479835 | J173: 2418.136045 | K173: 2441.666693 | L173: 2473.906522 | M173: 2536.526644 | N173: 2601.188493 | O173: 2670.926911 | P173: 2738.227615 | Q173: 2802.715852 | R173: 2860.148215 | S173: 3081.634584
A174: PV / CY FCF | B174: =B173/B164 -> 18.542547 | C174: =C173/C164 -> 8.722682953 | D174: 12.33360902 | E174: 9.599408476 | F174: 9.488800572 | G174: 10.21170195 | H174: 11.58753567 | I174: 11.97545707 | J174: 13.95160409 | K174: 15.37091541 | L174: 16.40932788 | M174: 18.25977744 | N174: 17.9107669 | O174: 17.59566626 | P174: 17.26327334 | Q174: 16.91394788 | R174: 16.5258374 | S174: 17.05125772
A175: PV / FY FCF | B175: =B173/C164 -> 8.769046678 | C175: =C173/D164 -> 12.16030512 | D175: 9.829346864 | E175: 9.533505338 | F175: 10.3517825 | G175: 11.43379026 | H175: 11.88938051 | I175: 13.95358761 | J175: 15.22278397 | K175: 16.19548232 | L175: 17.80899191 | M175: 17.4655307 | N175: =N173/O164 -> 17.13624002 | O175: =O173/P164 -> 16.83897317 | P175: 16.52477155 | Q175: 16.19399519 | R175: 15.82573242
A176: PV / CY EBITDA | B176: =B173/B157 -> 6.746790009 | C176: =C173/C157 -> 4.999534073 | D176: 7.043277999 | E176: 6.513683541 | F176: 6.65510801 | G176: 7.183449879 | H176: 8.29736827 | I176: 8.855141243 | J176: 9.456445494 | K176: 9.122610223 | L176: 8.603851448 | M176: 8.34448819 | N176: 8.09509549 | O176: 7.863916673 | P176: 7.62795027 | Q176: 7.387735947 | R176: 7.134202645 | S176: 7.274303603
A177: PV / FY EBITDA | B177: =B173/C157 -> 5.026108124 | C177: =C173/D157 -> 6.944310413 | D177: 6.669708351 | E177: 6.686462346 | F177: 7.28198993 | G177: 8.187277371 | H177: 8.791492725 | I177: 9.457789928 | J177: 9.034694485 | K177: 8.491726476 | L177: 8.138484885 | M177: 7.893862924 | N177: =N173/O157 -> 7.658588288 | O177: =O173/P157 -> 7.440468989 | P177: 7.217750085 | Q177: 6.990946391 | R177: 6.75147747
A179: Product 7
A180: Growth Rate | B180: 0.015 | C180: 0.015 | D180: 0.015 | E180: 0.015 | F180: 0.015 | G180: 0.015 | H180: 0.015 | I180: 0.015 | J180: 0.015 | K180: 0.015 | L180: 0.015 | M180: 0.015 | N180: 0.015 | O180: 0.015 | P180: 0.015 | Q180: 0.015 | R180: 0.015 | S180: 0.015
A182: EBITDA | B182: =B287 -> -36 | C182: -8.2726 | D182: 15.18965 | E182: 71.5408 | F182: 121.1135 | G182: 178.181 | H182: 229.61952 | I182: 266.1227265 | J182: 293.7721948 | K182: 302.917933 | L182: 315.0346503 | M182: 327.6360363 | N182: 340.7414777 | O182: 354.3711368 | P182: 368.5459823 | Q182: 383.2878216 | R182: 398.6193345 | S182: 414.5641078
A183: Depreciation | B183: =-B308 -> -99.532 | C183: =-C308 -> -103.023 | D183: -107.77832 | E183: -105.0056 | F183: -81.665 | G183: -88.3207 | H183: -101.83892 | I183: -104.8940876 | J183: -108.0409102 | K183: -108.0409102 | L183: -111.2821375 | M183: -114.6206017 | N183: -118.0592197 | O183: -121.6009963 | P183: -125.2490262 | Q183: -129.006497 | R183: -132.8766919 | S183: -136.8629926
A184: EBITA | B184: =SUM(B182:B183) -> -135.532 | C184: =SUM(C182:C183) -> -111.2956 | D184: -92.58867 | E184: -33.4648 | F184: 39.4485 | G184: 89.8603 | H184: 127.7806 | I184: 161.2286389 | J184: 185.7312846 | K184: 194.8770227 | L184: 203.7525127 | M184: 213.0154346 | N184: 222.682258 | O184: 232.7701405 | P184: 243.2969561 | Q184: 254.2813246 | R184: 265.7426426 | S184: 277.7011152
A185: Taxes | B185: =-(B184*B26) -> 54.2128 | C185: 44.51824 | D185: 37.035468 | E185: 13.38592 | F185: -15.7794 | G185: -35.94412 | H185: -51.11224 | I185: -64.49145556 | J185: -74.29251383 | K185: -77.95080909 | L185: -81.50100509 | M185: -85.20617385 | N185: -89.07290321 | O185: -93.10805621 | P185: -97.31878245 | Q185: -101.7125299 | R185: -106.297057 | S185: -111.0804461
A186: EBIAT | B186: =SUM(B184:B185) -> -81.3192 | C186: =SUM(C184:C185) -> -66.77736 | D186: -55.553202 | E186: -20.07888 | F186: 23.6691 | G186: 53.91618 | H186: 76.66836 | I186: 96.73718335 | J186: 111.4387707 | K186: 116.9262136 | L186: 122.2515076 | M186: 127.8092608 | N186: 133.6093548 | O186: 139.6620843 | P186: 145.9781737 | Q186: 152.5687948 | R186: 159.4455856 | S186: 166.6206691
A187: Depreciation | B187: =B308 -> 99.532 | C187: =C308 -> 103.023 | D187: 107.77832 | E187: 105.0056 | F187: 81.665 | G187: 88.3207 | H187: 101.83892 | I187: 104.8940876 | J187: 108.0409102 | K187: 108.0409102 | L187: 111.2821375 | M187: 114.6206017 | N187: 118.0592197 | O187: 121.6009963 | P187: 125.2490262 | Q187: 129.006497 | R187: 132.8766919 | S187: 136.8629926
A188: Capital Expenditures | B188: =-B328 -> -88.492 | C188: =-C328 -> -31.3331 | D188: -45.56022 | E188: -176.302 | F188: -119.047085 | G188: -84.8489645 | H188: -213.5210036 | I188: -207.3341527 | J188: -162.4501232 | K188: -144.3943252 | L188: -141.9700982 | M188: -144.6489021 | N188: -147.4348582 | O188: -150.3322525 | P188: -153.3455426 | Q188: -156.4793643 | R188: -159.7385389 | S188: -163.1280804
A189: Unlevered Free Cash Flow | B189: =SUM(B186:B188) -> -70.2792 | C189: =SUM(C186:C188) -> 4.91254 | D189: 6.664898 | E189: -91.37528 | F189: -13.712985 | G189: 57.3879155 | H189: -35.0137236 | I189: -5.702881725 | J189: 57.02955776 | K189: 80.57279869 | L189: 91.563547 | M189: 97.78096033 | N189: 104.2337163 | O189: 110.9308281 | P189: 117.8816573 | Q189: 125.0959274 | R189: 132.5837385 | S189: 140.3555813
A191: Terminal FCF | B191: =$S189*(1+B180) -> 142.460915 | C191: 142.460915 | D191: 142.460915 | E191: 142.460915 | F191: 142.460915 | G191: 142.460915 | H191: 142.460915 | I191: 142.460915 | J191: 142.460915 | K191: 142.460915 | L191: 142.460915 | M191: 142.460915 | N191: 142.460915 | O191: 142.460915 | P191: 142.460915 | Q191: 142.460915 | R191: 142.460915 | S191: 142.460915
A192: Terminal FCF Multiple | B192: =(1+B180)/(B27-B180) -> 14.0925063 | C192: 14.42626301 | D192: 14.59414657 | E192: 14.50032247 | F192: 14.72166076 | G192: 14.70918033 | H192: 14.94212164 | I192: 15.05723677 | J192: 14.9103597 | K192: 14.80915256 | L192: 14.69673869 | M192: 14.66297453 | N192: 14.64374666 | O192: 14.65492563 | P192: 14.65919014 | Q192: 14.65689215 | R192: 14.63021592 | S192: 14.60342993
A193: Terminal Value | B193: =B191*B192 -> 2007.631343 | C193: =C191*C192 -> 2055.178629 | D193: 2079.095475 | E193: 2065.729208 | F193: 2097.261263 | G193: 2095.483289 | H193: 2128.668322 | I193: 2145.067728 | J193: 2124.143486 | K193: 2109.725425 | L193: 2093.710841 | M193: 2088.900768 | N193: 2086.161549 | O193: 2087.754115 | P193: 2088.36164 | Q193: 2088.034268 | R193: 2084.233947 | S193: 2080.417991
A194: PV of Terminal Value | B194: =B193/((1+B27)^B196) -> 485.9796345 | C194: 554.2206773 | D194: 615.3754629 | E194: 659.2737427 | F194: 735.4497251 | G194: 795.9963222 | H194: 886.1539383 | I194: 971.6844889 | J194: 1035.768194 | K194: 1110.377191 | L194: 1189.967811 | M194: 1285.904117 | N194: 1391.793771 | O194: 1510.586571 | P194: 1638.436529 | Q194: 1776.144117 | R194: 1922.056639 | S194: 2080.417991
A195: PV of Cash Flows | B195: =NPV(B27,B189:$S189) -> 216.6343532 | C195: =NPV(C27,C189:$S189) -> 312.4910118 | D195: =NPV(D27,D189:$S189) -> 337.6009619 | E195: =NPV(E27,E189:$S189) -> 357.6067859 | F195: =NPV(F27,F189:$S189) -> 483.7659371 | G195: =NPV(G27,G189:$S189) -> 537.8516842 | H195: =NPV(H27,H189:$S189) -> 529.819347 | I195: =NPV(I27,I189:$S189) -> 610.6915828 | J195: =NPV(J27,J189:$S189) -> 664.4676466 | K195: =NPV(K27,K189:$S189) -> 661.2431547 | L195: =NPV(L27,L189:$S189) -> 634.5584128 | M195: =NPV(M27,M189:$S189) -> 595.9950959 | N195: =NPV(N27,N189:$S189) -> 548.2520056 | O195: =NPV(O27,O189:$S189) -> 490.313651 | P195: =NPV(P27,P189:$S189) -> 420.715969 | Q195: =NPV(Q27,Q189:$S189) -> 338.2686371 | R195: =NPV(R27,R189:$S189) -> 241.6300362 | S195: =NPV(S27,S189:$S189) -> 129.4191196
A196: Years to Terminal Period | B196: 17 | C196: =B196-1 -> 16 | D196: =C196-1 -> 15 | E196: 14 | F196: 13 | G196: 12 | H196: 11 | I196: 10 | J196: 9 | K196: 8 | L196: 7 | M196: 6 | N196: 5 | O196: 4 | P196: 3 | Q196: 2 | R196: 1 | S196: 0
A198: Total Present Value of Product 7 | B198: =B194+B195 -> 702.6139877 | C198: =C194+C195 -> 866.7116891 | D198: 952.9764248 | E198: 1016.880529 | F198: 1219.215662 | G198: 1333.848006 | H198: 1415.973285 | I198: 1582.376072 | J198: 1700.235841 | K198: 1771.620346 | L198: 1824.526224 | M198: 1881.899213 | N198: 1940.045777 | O198: 2000.900222 | P198: 2059.152498 | Q198: 2114.412754 | R198: 2163.686675 | S198: 2209.837111
A199: PV / CY FCF | B199: =B198/B189 -> -9.99746707 | C199: =C198/C189 -> 176.4284238 | D199: 142.9843975 | E199: -11.12861737 | F199: -88.90957456 | G199: 23.24266346 | H199: -40.44052273 | I199: -277.469558 | J199: 29.81323909 | K199: 21.98782188 | L199: 19.92633842 | M199: 19.24607006 | N199: 18.61245905 | O199: 18.03736848 | P199: 17.4679636 | Q199: 16.90233085 | R199: 16.31939707 | S199: 15.7445617
A200: PV / FY FCF | B200: =B198/C189 -> 143.0245836 | C200: =C198/D189 -> 130.0412533 | D200: -10.4292586 | E200: -74.15457164 | F200: 21.24516375 | G200: -38.09500588 | H200: -248.2908385 | I200: 27.74659552 | J200: 21.10185904 | K200: 19.34853339 | L200: 18.65931995 | M200: 18.05461111 | N200: 17.48878837 | O200: 16.97380465 | P200: 16.46058781 | Q200: 15.9477533 | R200: 15.41575087
A201: PV / CY EBITDA | B201: =B198/B182 -> -19.51705521 | C201: =C198/C182 -> -104.7689589 | D201: 62.73853741 | E201: 14.21399437 | F201: 10.06671975 | G201: 7.485916043 | H201: 6.166606764 | I201: 5.946038854 | J201: 5.787599612 | K201: 5.848515896 | L201: 5.791509672 | M201: 5.743871262 | N201: 5.693600291 | O201: 5.64634084 | P201: 5.587233607 | Q201: 5.516514313 | R201: 5.427952153 | S201: 5.330507559
A202: PV / FY EBITDA | B202: =B198/C182 -> -84.9326678 | C202: =C198/D182 -> 57.05935878 | D202: 13.3207404 | E202: 8.396095634 | F202: 6.8425683 | G202: 5.808948675 | H202: 5.320752962 | I202: 5.386405179 | J202: 5.612859642 | K202: 5.623572977 | L202: 5.5687593 | M202: 5.522953137 | N202: 5.474615665 | O202: 5.429173884 | P202: 5.372340006 | Q202: 5.304340685 | R202: 5.219184763
A204: Product 8
A205: Growth Rate | B205: 0.01 | C205: 0.01 | D205: 0.01 | E205: 0.01 | F205: 0.01 | G205: 0.01 | H205: 0.01 | I205: 0.01 | J205: 0.01 | K205: 0.01 | L205: 0.01 | M205: 0.01 | N205: 0.01 | O205: 0.01 | P205: 0.01 | Q205: 0.01 | R205: 0.01 | S205: 0.01
A207: EBITDA | B207: =B289 -> -22.61354924 | C207: -93.34966824 | D207: -69.80594956 | E207: -89.74987953 | F207: -145.0015883 | G207: -53.58835037 | H207: -46.64894398 | I207: 82.04063557 | J207: 119.023772 | K207: 135.2143114 | L207: 154.2645245 | M207: 173.1365548 | N207: 191.8625412 | O207: 210.4737128 | P207: 229.0004547 | Q207: 247.4723724 | R207: 265.9183524 | S207: 284.3666213
A208: Depreciation | B208: =-B310 -> -19.10352893 | C208: =-C310 -> -11.36561784 | D208: -23.28462516 | E208: 7.535096297 | F208: -9.283904849 | G208: -33.8005648 | H208: -105.7846692 | I208: -111.7 | J208: -118.402 | K208: -120.77004 | L208: -126.808542 | M208: -133.1489691 | N208: -139.8064176 | O208: -146.7967384 | P208: -154.1365754 | Q208: -161.8434041 | R208: -169.9355743 | S208: -178.432353
A209: EBITA | B209: =SUM(B207:B208) -> -41.71707817 | C209: =SUM(C207:C208) -> -104.7152861 | D209: -93.09057472 | E209: -82.21478324 | F209: -154.2854931 | G209: -87.38891517 | H209: -152.4336132 | I209: -29.65936443 | J209: 0.6217720169 | K209: 14.44427142 | L209: 27.45598249 | M209: 39.98758566 | N209: 52.05612366 | O209: 63.67697434 | P209: 74.86387936 | Q209: 85.62896826 | R209: 95.98277806 | S209: 105.9342683
A210: Taxes | B210: =-(B209*B26) -> 16.68683127 | C210: 41.88611443 | D210: 37.23622989 | E210: 32.88591329 | F210: 61.71419724 | G210: 34.95556607 | H210: 60.97344528 | I210: 11.86374577 | J210: -0.2487088068 | K210: -5.777708566 | L210: -10.98239299 | M210: -15.99503426 | N210: -20.82244946 | O210: -25.47078974 | P210: -29.94555174 | Q210: -34.25158731 | R210: -38.39311122 | S210: -42.37370732
A211: EBIAT | B211: =SUM(B209:B210) -> -25.0302469 | C211: =SUM(C209:C210) -> -62.82917164 | D211: -55.85434483 | E211: -49.32886994 | F211: -92.57129586 | G211: -52.4333491 | H211: -91.46016793 | I211: -17.79561866 | J211: 0.3730632102 | K211: 8.66656285 | L211: 16.47358949 | M211: 23.9925514 | N211: 31.2336742 | O211: 38.20618461 | P211: 44.91832762 | Q211: 51.37738096 | R211: 57.58966683 | S211: 63.56056098
A212: Depreciation | B212: =B208 -> -19.10352893 | C212: =C208 -> -11.36561784 | D212: -23.28462516 | E212: 7.535096297 | F212: -9.283904849 | G212: -33.8005648 | H212: -105.7846692 | I212: -111.7 | J212: -118.402 | K212: -120.77004 | L212: -126.808542 | M212: -133.1489691 | N212: -139.8064176 | O212: -146.7967384 | P212: -154.1365754 | Q212: -161.8434041 | R212: -169.9355743 | S212: -178.432353
A213: Capital Expenditures | B213: 0 | C213: 0 | D213: 0 | E213: 0 | F213: 0 | G213: 0 | H213: 0 | I213: 0 | J213: 0 | K213: 0 | L213: 0 | M213: 0 | N213: 0 | O213: 0 | P213: 0 | Q213: 0 | R213: 0 | S213: 0
A214: Unlevered Free Cash Flow | B214: =SUM(B211:B213) -> -44.13377583 | C214: =SUM(C211:C213) -> -74.19478948 | D214: -79.13896999 | E214: -41.79377364 | F214: -101.8552007 | G214: -86.2339139 | H214: -197.2448372 | I214: -129.4956187 | J214: -118.0289368 | K214: -112.1034772 | L214: -110.3349525 | M214: -109.1564177 | N214: -108.5727434 | O214: -108.5905538 | P214: -109.2182477 | Q214: -110.4660232 | R214: -112.3459075 | S214: -114.8717921
A216: Terminal FCF | B216: =$S214*(1+B205) -> -116.02051 | C216: -116.02051 | D216: -116.02051 | E216: -116.02051 | F216: -116.02051 | G216: -116.02051 | H216: -116.02051 | I216: -116.02051 | J216: -116.02051 | K216: -116.02051 | L216: -116.02051 | M216: -116.02051 | N216: -116.02051 | O216: -116.02051 | P216: -116.02051 | Q216: -116.02051 | R216: -116.02051 | S216: -116.02051
A217: Terminal FCF Multiple | B217: =(1+B205)/(B27-B205) -> 13.11277999 | C217: 13.4027283 | D217: 13.54823948 | E217: 13.46694619 | F217: 13.65861101 | G217: 13.64781412 | H217: 13.84912907 | I217: 13.94845625 | J217: 13.82170478 | K217: 13.73426591 | L217: 13.63704956 | M217: 13.60783046 | N217: 13.59118684 | O217: 13.6008637 | P217: 13.60455493 | Q217: 13.60256588 | R217: 13.57947288 | S217: 13.55627918
A218: Terminal Value | B218: =B216*B217 -> -1521.351422 | C218: =C216*C217 -> -1554.991372 | D218: -1571.873654 | E218: -1562.441965 | F218: -1584.679015 | G218: -1583.426355 | H218: -1606.783017 | I218: -1618.307008 | J218: -1603.601237 | K218: -1593.456535 | L218: -1582.177445 | M218: -1578.787429 | N218: -1576.856429 | O218: -1577.979143 | P218: -1578.407401 | Q218: -1578.17663 | R218: -1575.497369 | S218: -1572.806424
A219: PV of Terminal Value | B219: =B218/((1+B27)^B221) -> -368.2677154 | C219: -419.33502 | D219: -465.2467812 | E219: -498.650529 | F219: -555.7017464 | G219: -601.4848993 | H219: -668.8957054 | I219: -733.0695423 | J219: -781.9430128 | K219: -838.6578511 | L219: -899.2360329 | M219: -971.8840105 | N219: -1052.008152 | O219: -1141.740824 | P219: -1238.348901 | Q219: -1342.44403 | R219: -1452.905602 | S219: -1572.806424
A220: PV of Cash Flows | B220: =NPV(B27,C214:$S214) -> -893.7499515 | C220: =NPV(C27,D214:$S214) -> -907.3703331 | D220: =NPV(D27,E214:$S214) -> -910.300469 | E220: =NPV(E27,F214:$S214) -> -943.0902798 | F220: =NPV(F27,G214:$S214) -> -926.4551634 | G220: =NPV(G27,H214:$S214) -> -917.7416 | H220: =NPV(H27,I214:$S214) -> -801.6398557 | I220: =NPV(I27,J214:$S214) -> -740.3350779 | J220: =NPV(J27,K214:$S214) -> -681.4389044 | K220: =NPV(K27,L214:$S214) -> -624.8415786 | L220: =NPV(L27,M214:$S214) -> -565.6887126 | M220: =NPV(M27,N214:$S214) -> -503.8420412 | N220: =NPV(N27,O214:$S214) -> -437.5987194 | O220: =NPV(O27,P214:$S214) -> -365.946544 | P220: =NPV(P27,Q214:$S214) -> -287.5734174 | Q220: =NPV(Q27,R214:$S214) -> -201.3295392 | R220: =NPV(R27,S214:$S214) -> -105.933449 | S220: =NPV(S27,$S214:T214) -> -105.921019
A221: Years to Terminal Period | B221: 17 | C221: =B221-1 -> 16 | D221: =C221-1 -> 15 | E221: 14 | F221: 13 | G221: 12 | H221: 11 | I221: 10 | J221: 9 | K221: 8 | L221: 7 | M221: 6 | N221: 5 | O221: 4 | P221: 3 | Q221: 2 | R221: 1 | S221: 0
A223: Total Present Value of Product 8 | B223: =B219+B220 -> -1262.017667 | C223: =C219+C220 -> -1326.705353 | D223: -1375.54725 | E223: -1441.740809 | F223: -1482.15691 | G223: -1519.226499 | H223: -1470.535561 | I223: -1473.40462 | J223: -1463.381917 | K223: -1463.49943 | L223: -1464.924745 | M223: -1475.726052 | N223: -1489.606871 | O223: -1507.687368 | P223: -1525.922319 | Q223: -1543.773569 | R223: -1558.839051 | S223: -1678.727443
A224: PV / CY FCF | B224: =B223/B214 -> 28.59527976 | C224: =C223/C214 -> 17.88138173 | D224: 17.38141462 | E224: 34.49654537 | F224: 14.55160757 | G224: 17.61750604 | H224: 7.45538176 | I224: 11.37802681 | J224: 12.39850122 | K224: 13.05489773 | L224: 13.27706871 | M224: 13.51937048 | N224: 13.71989714 | O224: 13.88414843 | P224: 13.97131295 | Q224: 13.97509863 | R224: 13.87535235 | S224: 14.61392229
A225: PV / FY FCF | B225: =B223/C214 -> 17.00951881 | C225: =C223/D214 -> 16.76424843 | D225: 32.9127315 | E225: 14.15480799 | F225: 17.18763353 | G225: 7.702237083 | H225: 11.35587116 | I225: 12.48341856 | J225: 13.05384948 | K225: 13.26415063 | L225: 13.42041793 | M225: 13.59204904 | N225: 13.71764687 | O225: 13.80435412 | P225: 13.81349916 | Q225: 13.74125328 | R225: 13.570251
A226: PV / CY EBITDA | B226: =B223/B207 -> 55.80803144 | C226: =C223/C207 -> 14.21221284 | D226: 19.70530104 | E226: 16.06398601 | F226: 10.22165983 | G226: 28.34993965 | H226: 31.52344803 | I226: -17.95944912 | J226: -12.29487095 | K226: -10.82355421 | L226: -9.496186828 | M226: -8.52348052 | N226: -7.763927558 | O226: -7.163304851 | P226: -6.663403008 | Q226: -6.238165313 | R226: -5.862096531 | S226: -5.903391315
A227: PV / FY EBITDA | B227: =B223/C207 -> 13.51925176 | C227: =C223/D207 -> 19.00562003 | D227: 15.32645233 | E227: 9.942931151 | F227: 27.65819249 | G227: 32.56722167 | H227: -17.92447792 | I227: -12.37907853 | J227: -10.82268513 | K227: -9.486947401 | L227: -8.461094467 | M227: -7.691579828 | N227: -7.077401028 | O227: -6.583774559 | P227: -6.166030996 | Q227: -5.805441992 | R227: -5.48179334
A229: Product 9
A230: Growth Rate | B230: 0.015 | C230: 0.015 | D230: 0.015 | E230: 0.015 | F230: 0.015 | G230: 0.015 | H230: 0.015 | I230: 0.015 | J230: 0.015 | K230: 0.015 | L230: 0.015 | M230: 0.015 | N230: 0.015 | O230: 0.015 | P230: 0.015 | Q230: 0.015 | R230: 0.015 | S230: 0.015
A232: EBITDA | B232: =B290 -> 581.043339 | C232: 576.982259 | D232: 436.42813 | E232: 520.9385349 | F232: 716.8892547 | G232: 776.5974185 | H232: 627.8875386 | I232: 686.4986665 | J232: 712.2122896 | K232: 846.9003693 | L232: 948.6483568 | M232: 1024.170005 | N232: 1241.780419 | O232: 1298.847779 | P232: 1405.994577 | Q232: 1504.55045 | R232: 1595.880826 | S232: 1676.163244
A233: Depreciation | B233: =-B311 -> -20.20295687 | C233: =-C311 -> -34.0578105 | D233: -34.28754514 | E233: -32.75503666 | F233: -29.23362377 | G233: -37.86042837 | H233: -37.27082081 | I233: -30 | J233: -26.22052176 | K233: -27.20152769 | L233: -28.3584528 | M233: -29.4172861 | N233: -31.24431192 | O233: -32.30255738 | P233: -33.65244992 | Q233: -35.00108839 | R233: -36.34977626 | S233: -37.68097816
A234: EBITA | B234: =SUM(B232:B233) -> 560.8403821 | C234: =SUM(C232:C233) -> 542.9244485 | D234: 402.1405849 | E234: 488.1834983 | F234: 687.6556309 | G234: 738.7369902 | H234: 590.6167178 | I234: 656.4986665 | J234: 685.9917678 | K234: 819.6988416 | L234: 920.289904 | M234: 994.7527193 | N234: 1210.536107 | O234: 1266.545222 | P234: 1372.342127 | Q234: 1469.549362 | R234: 1559.531049 | S234: 1638.482266
A235: Taxes | B235: =-(B234*B26) -> -224.3361529 | C235: -217.1697794 | D235: -160.8562339 | E235: -195.2733993 | F235: -275.0622524 | G235: -295.4947961 | H235: -236.2466871 | I235: -262.5994666 | J235: -274.3967071 | K235: -327.8795366 | L235: -368.1159616 | M235: -397.9010877 | N235: -484.2144428 | O235: -506.6180887 | P235: -548.9368509 | Q235: -587.8197448 | R235: -623.8124197 | S235: -655.3929063
A236: EBIAT | B236: =SUM(B234:B235) -> 336.5042293 | C236: =SUM(C234:C235) -> 325.7546691 | D236: 241.2843509 | E236: 292.910099 | F236: 412.5933785 | G236: 443.2421941 | H236: 354.3700307 | I236: 393.8991999 | J236: 411.5950607 | K236: 491.819305 | L236: 552.1739424 | M236: 596.8516316 | N236: 726.3216642 | O236: 759.9271331 | P236: 823.4052764 | Q236: 881.7296172 | R236: 935.7186296 | S236: 983.0893594
A237: Depreciation | B237: =B311 -> 20.20295687 | C237: =C311 -> 34.0578105 | D237: 34.28754514 | E237: 32.75503666 | F237: 29.23362377 | G237: 37.86042837 | H237: 37.27082081 | I237: 30 | J237: 26.22052176 | K237: 27.20152769 | L237: 28.3584528 | M237: 29.4172861 | N237: 31.24431192 | O237: 32.30255738 | P237: 33.65244992 | Q237: 35.00108839 | R237: 36.34977626 | S237: 37.68097816
A238: Capital Expenditures | B238: =-B331 -> -32.64502178 | C238: =-C331 -> -69.82802488 | D238: -51.17024503 | E238: -34.44661133 | F238: -39.19092793 | G238: -40.05978936 | H238: -41.18582299 | I238: -33 | J238: -28.84257393 | K238: -29.64966518 | L238: -30.62712902 | M238: -31.47649613 | N238: -33.11897064 | O238: -33.91768525 | P238: -34.99854791 | Q238: -36.05112104 | R238: -37.07677178 | S238: -38.43459772
... 88 more rows

Sheet D2__Balance_Sheet
A1: Balance Sheet
A2: (€ Millions) | C2: Q1 | D2: Q2 | E2: Q3 | F2: Q4 | G2: Fiscal Yr | H2: Q1 | I2: Q2 | J2: Q3 | K2: Q4 | L2: Fiscal Yr | M2: Q1 | N2: Q2 | O2: Q3 | P2: Q4 | Q2: Fiscal Yr | R2: Q1 | S2: Q2 | T2: Q3 | U2: Q4 | V2: Fiscal Yr | W2: Q1 | X2: Q2 | Y2: Q3 | Z2: Q4 | AA2: Fiscal Yr | AB2: Q1 | AC2: Q2 | AD2: Q3 | AE2: Q4 | AF2: Fiscal Yr | AG2: Q1 | AH2: Q2 | AI2: Q3 | AJ2: Q4 | AK2: Fiscal Yr | AL2: Q1 | AM2: Q2 | AN2: Q3 | AO2: Q4 | AP2: Fiscal Yr | AQ2: Q1 | AR2: Q2 | AS2: Q3 | AT2: Q4 | AU2: Fiscal Yr | AV2: Q1 | AW2: Q2 | AX2: Q3 | AY2: Q4 | AZ2: Fiscal Yr | BA2: Q1 | BB2: Q2 | BC2: Q3 | BD2: Q4 | BE2: Fiscal Yr | BF2: Q1 | BG2: Q2 | BH2: Q3 | BI2: Q4 | BJ2: Fiscal Yr | BK2: Q1 | BL2: Q2 | BM2: Q3 | BN2: Q4 | BO2: Fiscal Yr | BP2: Q1 | BQ2: Q2 | BR2: Q3 | BS2: Q4 | BT2: Fiscal Yr | BU2: Q1 | BV2: Q2 | BW2: Q3 | BX2: Q4 | BY2: Fiscal Yr | BZ2: Q1 | CA2: Q2 | CB2: Q3 | CC2: Q4 | CD2: Fiscal Yr | CE2: Q1 | CF2: Q2 | CG2: Q3 | CH2: Q4 | CI2: Fiscal Yr | CJ2: Q1 | CK2: Q2 | CL2: Q3 | CM2: Q4 | CN2: Fiscal Yr
C3: 2007 | D3: 2007 | E3: 2007 | F3: 2007 | G3: 2007 | H3: 2008 | I3: 2008 | J3: 2008 | K3: 2008 | L3: 2008 | M3: 2009 | N3: 2009 | O3: 2009 | P3: 2009 | Q3: 2009 | R3: 2010 | S3: 2010 | T3: 2010 | U3: 2010 | V3: 2010 | W3: 2011 | X3: 2011 | Y3: 2011 | Z3: 2011 | AA3: 2011 | AB3: 2012 | AC3: 2012 | AD3: 2012 | AE3: 2012 | AF3: 2012 | AG3: 2013 | AH3: 2013 | AI3: 2013 | AJ3: 2013 | AK3: 2013 | AL3: 2014 | AM3: 2014 | AN3: 2014 | AO3: 2014 | AP3: 2014 | AQ3: 2015 | AR3: 2015 | AS3: 2015 | AT3: 2015 | AU3: 2015 | AV3: 2016 | AW3: 2016 | AX3: 2016 | AY3: 2016 | AZ3: 2016 | BA3: 2017 | BB3: 2017 | BC3: 2017 | BD3: 2017 | BE3: 2017 | BF3: 2018 | BG3: 2018 | BH3: 2018 | BI3: 2018 | BJ3: 2018 | BK3: 2019 | BL3: 2019 | BM3: 2019 | BN3: 2019 | BO3: 2019 | BP3: 2020E | BQ3: 2020E | BR3: 2020E | BS3: 2020E | BT3: 2020E | BU3: 2021E | BV3: 2021E | BW3: 2021E | BX3: 2021E | BY3: 2021E | BZ3: 2022E | CA3: 2022E | CB3: 2022E | CC3: 2022E | CD3: 2022E | CE3: 2023E | CF3: 2023E | CG3: 2023E | CH3: 2023E | CI3: 2023E | CJ3: 2024E | CK3: 2024E | CL3: 2024E | CM3: 2024E | CN3: 2024E
A5: Assets
A6: Cash & Cash Equivalents | F6: 218.662 | G6: =F6 -> 218.662 | H6: 220.7 | I6: 231.252 | J6: 141.354 | K6: 183.684 | L6: =K6 -> 183.684 | M6: 142.097 | N6: 141.831 | O6: 144.461 | P6: 189.917 | Q6: =P6 -> 189.917 | R6: 199.759 | S6: 218.664 | T6: 198.7 | U6: 259.061 | V6: =U6 -> 259.061 | W6: 217.36 | X6: 253.302 | Y6: 454.168 | Z6: 420.818 | AA6: =Z6 -> 420.818 | AB6: 635.186 | AC6: 425.393 | AD6: 644.754 | AE6: 772.5 | AF6: =AE6 -> 772.5 | AG6: 526.03 | AH6: 901.617 | AI6: 559.283 | AJ6: 946.422 | AK6: =AJ6 -> 946.422 | AL6: 1032.733 | AM6: 1162.453 | AN6: 1134.263 | AO6: 886.45 | AP6: =AO6 -> 886.45 | AQ6: 1148.925 | AR6: 1226.78 | AS6: 1132.144 | AT6: 999.487 | AU6: =AT6 -> 999.487 | AV6: 1589.442 | AW6: 1137.606 | AX6: 814.149 | AY6: 749.891 | AZ6: =AY6 -> 749.891 | BA6: 900.156 | BB6: 827.475 | BC6: 769.212 | BD6: 989.5 | BE6: =BD6 -> 989.5 | BF6: 801.263 | BG6: 951.238 | BH6: 1162.38 | BI6: 1425.052 | BJ6: =BI6 -> 1425.052 | BK6: 1306.382 | BL6: 1246.41 | BM6: 819.085 | BN6: 834.556 | BO6: =BN6 -> 834.556 | BP6: 733.916 | BQ6: 817.02 | BR6: 903.329 | BS6: 908.6563183 | BT6: =BS6 -> 908.6563183 | BU6: 380.0875462 | BV6: 623.4122561 | BW6: 739.2621296 | BX6: 893.5950219 | BY6: =BX6 -> 893.5950219 | BZ6: 1113.24316 | CA6: 1497.328968 | CB6: 1701.1697 | CC6: 1933.227444 | CD6: =CC6 -> 1933.227444 | CE6: 2251.588572 | CF6: 2699.562468 | CG6: 2939.148554 | CH6: 3213.912359 | CI6: =CH6 -> 3213.912359 | CJ6: 3560.278959 | CK6: 4045.908458 | CL6: 4303.149766 | CM6: 4596.615126 | CN6: =CM6 -> 4596.615126
A7: Short Term Investments | F7: 362.951 | G7: 362.951 | H7: 400.09 | I7: 468.66 | J7: 494.877 | K7: 434.053 | L7: 434.053 | M7: 510.56 | N7: 640.791 | O7: 708.269 | P7: 906.616 | Q7: 906.616 | R7: 1049.576 | S7: 1062.555 | T7: 941.072 | U7: 1054.16 | V7: 1054.16 | W7: 1249.743 | X7: 1437.264 | Y7: 1438.617 | Z7: 1280.016 | AA7: 1280.016 | AB7: 1469.419 | AC7: 1400.693 | AD7: 1341.698 | AE7: 1508.379 | AF7: 1508.379 | AG7: 1756.37 | AH7: 1422.208 | AI7: 1396.431 | AJ7: 1047.432 | AK7: 1047.432 | AL7: 682.511 | AM7: 702.283 | AN7: 866.641 | AO7: 1132.752 | AP7: 1132.752 | AQ7: 1234.769 | AR7: 1437.405 | AS7: 1424.317 | AT7: 904.986 | AU7: 904.986 | AV7: 1082.942 | AW7: 1507.116 | AX7: 1764.125 | AY7: 1718.124 | AZ7: 1718.124 | BA7: 1736.679 | BB7: 1798.045 | BC7: 1950.064 | BD7: 1922.192 | BE7: 1922.192 | BF7: 1964.855 | BG7: 2046.879 | BH7: 2084.983 | BI7: 2113.301 | BJ7: 2113.301 | BK7: 2354.307 | BL7: 2619.298 | BM7: 2344.852 | BN7: 2339.196 | BO7: 2339.196 | BP7: 2398.176 | BQ7: 2513.191 | BR7: 2616.868 | BS7: 2616.868 | BT7: 2616.868 | BU7: =BS7 -> 2616.868 | BV7: 2616.868 | BW7: 2616.868 | BX7: 2616.868 | BY7: 2616.868 | BZ7: =BX7 -> 2616.868 | CA7: 2616.868 | CB7: 2616.868 | CC7: 2616.868 | CD7: 2616.868 | CE7: =CC7 -> 2616.868 | CF7: 2616.868 | CG7: 2616.868 | CH7: 2616.868 | CI7: 2616.868 | CJ7: =CH7 -> 2616.868 | CK7: 2616.868 | CL7: 2616.868 | CM7: 2616.868 | CN7: 2616.868
A8: Accounts Receivable | F8: 125.656 | G8: 125.656 | H8: 143.653 | I8: 133.875 | J8: 144.909 | K8: 116.506 | L8: 116.506 | M8: 135.626 | N8: 129.226 | O8: 108.707 | P8: 146.311 | Q8: 146.311 | R8: 122.955 | S8: 105.654 | T8: 110.573 | U8: 141.945 | V8: 141.945 | W8: 138.352 | X8: 172.173 | Y8: 157.236 | Z8: 173.245 | AA8: 173.245 | AB8: 281.53 | AC8: 276.24 | AD8: 284.586 | AE8: 356.815 | AF8: 356.815 | AG8: 304.748 | AH8: 318.09 | AI8: 260.953 | AJ8: 318.145 | AK8: 318.145 | AL8: 293.266 | AM8: 321.15 | AN8: 327.97 | AO8: 467.234 | AP8: 467.234 | AQ8: 300.048 | AR8: 262.598 | AS8: 281.807 | AT8: 410.879 | AU8: 410.879 | AV8: 350.577 | AW8: 439.151 | AX8: 484.55 | AY8: 554.328 | AZ8: 554.328 | BA8: 533.353 | BB8: 568.57 | BC8: 559.32 | BD8: 634.373 | BE8: 634.373 | BF8: 512.211 | BG8: 529.391 | BH8: 566.671 | BI8: 617.233 | BJ8: 617.233 | BK8: 485.801 | BL8: 470.052 | BM8: 522.409 | BN8: 599.82 | BO8: 599.82 | BP8: 510.507 | BQ8: 531.557 | BR8: 528.331 | BS8: 609.105861 | BT8: 609.105861 | BU8: 557.9106814 | BV8: 583.0279209 | BW8: 660.0785094 | BX8: 767.54754 | BY8: 767.54754 | BZ8: 701.3955256 | CA8: 717.0171576 | CB8: 795.5888892 | CC8: 911.5018852 | CD8: 911.5018852 | CE8: 822.9245564 | CF8: 818.5380134 | CG8: 890.7003039 | CH8: 1012.437175 | CI8: 1012.437175 | CJ8: 912.3111516 | CK8: 902.1790329 | CL8: 976.0433094 | CM8: 1103.313643 | CN8: 1103.313643
A9: Inventory | F9: 0 | G9: 0 | H9: 0 | I9: 0 | J9: 0 | K9: 0 | L9: 0 | M9: 0 | N9: 0 | O9: 0 | P9: 0 | Q9: 0 | R9: 0 | S9: 0 | T9: 0 | U9: 0 | V9: 0 | W9: 0 | X9: 0 | Y9: 0 | Z9: 0 | AA9: 0 | AB9: 0 | AC9: 0 | AD9: 0 | AE9: 0 | AF9: =AE9 -> 0 | AG9: 0 | AH9: 0 | AI9: 0 | AJ9: 0 | AK9: =AJ9 -> 0 | AL9: 0 | AM9: 0 | AN9: 0 | AO9: 0 | AP9: =AO9 -> 0 | AQ9: 0 | AR9: 0 | AS9: 0 | AT9: 0 | AU9: =AT9 -> 0 | AV9: 0 | AW9: 0 | AX9: 0 | AY9: 0 | AZ9: =AY9 -> 0 | BA9: 0 | BB9: 0 | BC9: 0 | BD9: 0 | BE9: =BD9 -> 0 | BF9: 0 | BG9: 0 | BH9: 0 | BI9: 0 | BJ9: =BI9 -> 0 | BK9: 0 | BL9: 0 | BM9: 0 | BN9: 0 | BO9: =BN9 -> 0 | BP9: 0 | BQ9: 0 | BR9: 0 | BS9: 0 | BT9: =BS9 -> 0 | BU9: =BS9 -> 0 | BV9: 0 | BW9: 0 | BX9: 0 | BY9: =BX9 -> 0 | BZ9: =BX9 -> 0 | CA9: 0 | CB9: 0 | CC9: 0 | CD9: =CC9 -> 0 | CE9: =CC9 -> 0 | CF9: 0 | CG9: 0 | CH9: 0 | CI9: =CH9 -> 0 | CJ9: =CH9 -> 0 | CK9: 0 | CL9: 0 | CM9: 0 | CN9: =CM9 -> 0
A10: Other Receivables | F10: 18.299 | G10: 18.299 | H10: 20.17 | I10: 28.861 | J10: 27.677 | K10: 30.367 | L10: 30.367 | M10: 23.313 | N10: 29.365 | O10: 32.348 | P10: 27.731 | Q10: 27.731 | R10: 32.035 | S10: 37.881 | T10: 26.518 | U10: 25.495 | V10: 25.495 | W10: 28.188 | X10: 36.466 | Y10: 39.889 | Z10: 31.504 | AA10: 31.504 | AB10: 50.323 | AC10: 55.947 | AD10: 46.105 | AE10: 51.851 | AF10: 51.851 | AG10: 63.511 | AH10: 53.367 | AI10: 60.721 | AJ10: 44.666 | AK10: 44.666 | AL10: 38.839 | AM10: 46.98 | AN10: 33.687 | AO10: 45.835 | AP10: 45.835 | AQ10: 0 | AR10: 0 | AS10: 0 | AT10: 0 | AU10: 0 | AV10: 0 | AW10: 0 | AX10: 0 | AY10: 0 | AZ10: 0 | BA10: 0 | BB10: 0 | BC10: 0 | BD10: 0 | BE10: 0 | BF10: 0 | BG10: 0 | BH10: 0 | BI10: 0 | BJ10: 0 | BK10: 0 | BL10: 0 | BM10: 0 | BN10: 0 | BO10: 0 | BP10: 0 | BQ10: 0 | BR10: 0 | BS10: 0 | BT10: 0 | BU10: =BS10 -> 0 | BV10: 0 | BW10: 0 | BX10: 0 | BY10: 0 | BZ10: =BX10 -> 0 | CA10: 0 | CB10: 0 | CC10: 0 | CD10: 0 | CE10: =CC10 -> 0 | CF10: 0 | CG10: 0 | CH10: 0 | CI10: 0 | CJ10: =CH10 -> 0 | CK10: 0 | CL10: 0 | CM10: 0 | CN10: 0
A11: Deferred Income Taxes | F11: 22.726 | G11: 22.726 | H11: 22.299 | I11: 26.743 | J11: 31.655 | K11: 31.53 | L11: 31.53 | M11: 22.976 | N11: 20.297 | O11: 12.141 | P11: 35.875 | Q11: 35.875 | R11: 27.955 | S11: 31.961 | T11: 30.113 | U11: 51.751 | V11: 51.751 | W11: 37.924 | X11: 56.513 | Y11: 55.018 | Z11: 58.71 | AA11: 58.71 | AB11: 124.898 | AC11: 128.814 | AD11: 138.504 | AE11: 155.613 | AF11: 155.613 | AG11: 164.264 | AH11: 196.098 | AI11: 168.783 | AJ11: 171.472 | AK11: 171.472 | AL11: 132.892 | AM11: 100.206 | AN11: 94.5 | AO11: 110.713 | AP11: 110.713 | AQ11: 81.125 | AR11: 76.907 | AS11: 72.163 | AT11: 77.417 | AU11: 77.417 | AV11: 67.265 | AW11: 70.955 | AX11: 76.765 | AY11: 83.247 | AZ11: 83.247 | BA11: 66.928 | BB11: 68.017 | BC11: 71.087 | BD11: 91.963 | BE11: 91.963 | BF11: 77.514 | BG11: 79.36 | BH11: 57.024 | BI11: 59.537 | BJ11: 59.537 | BK11: 64.93 | BL11: 54.525 | BM11: 47.71 | BN11: 102.247 | BO11: 102.247 | BP11: 91.149 | BQ11: 72.489 | BR11: 79.713 | BS11: 79.713 | BT11: 79.713 | BU11: =BS11 -> 79.713 | BV11: 79.713 | BW11: 79.713 | BX11: 79.713 | BY11: 79.713 | BZ11: =BX11 -> 79.713 | CA11: 79.713 | CB11: 79.713 | CC11: 79.713 | CD11: 79.713 | CE11: =CC11 -> 79.713 | CF11: 79.713 | CG11: 79.713 | CH11: 79.713 | CI11: 79.713 | CJ11: =CH11 -> 79.713 | CK11: 79.713 | CL11: 79.713 | CM11: 79.713 | CN11: 79.713
A12: Other Current Assets | F12: 20.62 | G12: 20.62 | H12: 19.291 | I12: 18.386 | J12: 23.197 | K12: 18.032 | L12: 18.032 | M12: 18.475 | N12: 24.535 | O12: 31.236 | P12: 22.578 | Q12: 22.578 | R12: 29.858 | S12: 27.924 | T12: 26.595 | U12: 18.617 | V12: 18.617 | W12: 28.372 | X12: 43.85 | Y12: 35.751 | Z12: 44.285 | AA12: 44.285 | AB12: 34.176 | AC12: 41.369 | AD12: 40.907 | AE12: 39.3 | AF12: 39.3 | AG12: 42.077 | AH12: 61.141 | AI12: 59.059 | AJ12: 44.84 | AK12: 44.84 | AL12: 46.031 | AM12: 48.397 | AN12: 60.059 | AO12: 92.119 | AP12: 92.119 | AQ12: 104.124 | AR12: 84.079 | AS12: 80.503 | AT12: 80.855 | AU12: 80.855 | AV12: 86.993 | AW12: 121.243 | AX12: 96.826 | AY12: 110.46 | AZ12: 110.46 | BA12: 113.682 | BB12: 127.211 | BC12: 119.513 | BD12: 133.423 | BE12: 133.423 | BF12: 149.812 | BG12: 163.939 | BH12: 139.115 | BI12: 116.237 | BJ12: 116.237 | BK12: 161.663 | BL12: 167.372 | BM12: 152.068 | BN12: 170.11 | BO12: 170.11 | BP12: 208.643 | BQ12: 180.086 | BR12: 151.227 | BS12: 160.6398262 | BT12: 160.6398262 | BU12: 228.261803 | BV12: 197.7415558 | BW12: 189.1350099 | BX12: 202.6204058 | BY12: 202.6204058 | BZ12: 287.2754474 | CA12: 243.4541333 | CB12: 228.2015584 | CC12: 240.8536982 | CD12: 240.8536982 | CE12: 337.4139195 | CF12: 278.2313078 | CG12: 255.7499365 | CH12: 267.7824342 | CI12: 267.7824342 | CJ12: 374.4673126 | CK12: 307.0011085 | CL12: 280.5482317 | CM12: 292.1000604 | CN12: 292.1000604
A13: Total Current Assets | N13: =SUM(N6:N12) -> 986.045 | O13: =SUM(O6:O12) -> 1037.162 | P13: =SUM(P6:P12) -> 1329.028 | Q13: 1329.028 | R13: =SUM(R6:R12) -> 1462.138 | S13: =SUM(S6:S12) -> 1484.639 | T13: =SUM(T6:T12) -> 1333.571 | U13: =SUM(U6:U12) -> 1551.029 | V13: 1551.029 | W13: =SUM(W6:W12) -> 1699.939 | X13: =SUM(X6:X12) -> 1999.568 | Y13: =SUM(Y6:Y12) -> 2180.679 | Z13: =SUM(Z6:Z12) -> 2008.578 | AA13: 2008.578 | AB13: =SUM(AB6:AB12) -> 2595.532 | AC13: =SUM(AC6:AC12) -> 2328.456 | AD13: =SUM(AD6:AD12) -> 2496.554 | AE13: =SUM(AE6:AE12) -> 2884.458 | AF13: 2884.458 | AG13: =SUM(AG6:AG12) -> 2857 | AH13: =SUM(AH6:AH12) -> 2952.521 | AI13: =SUM(AI6:AI12) -> 2505.23 | AJ13: =SUM(AJ6:AJ12) -> 2572.977 | AK13: 2572.977 | AL13: =SUM(AL6:AL12) -> 2226.272 | AM13: =SUM(AM6:AM12) -> 2381.469 | AN13: =SUM(AN6:AN12) -> 2517.12 | AO13: =SUM(AO6:AO12) -> 2735.103 | AP13: 2735.103 | AQ13: =SUM(AQ6:AQ12) -> 2868.991 | AR13: =SUM(AR6:AR12) -> 3087.769 | AS13: =SUM(AS6:AS12) -> 2990.934 | AT13: =SUM(AT6:AT12) -> 2473.624 | AU13: 2473.624 | AV13: =SUM(AV6:AV12) -> 3177.219 | AW13: =SUM(AW6:AW12) -> 3276.071 | AX13: =SUM(AX6:AX12) -> 3236.415 | AY13: =SUM(AY6:AY12) -> 3216.05 | AZ13: 3216.05 | BA13: =SUM(BA6:BA12) -> 3350.798 | BB13: =SUM(BB6:BB12) -> 3389.318 | BC13: =SUM(BC6:BC12) -> 3469.196 | BD13: =SUM(BD6:BD12) -> 3771.451 | BE13: 3771.451 | BF13: =SUM(BF6:BF12) -> 3505.655 | BG13: =SUM(BG6:BG12) -> 3770.807 | BH13: =SUM(BH6:BH12) -> 4010.173 | BI13: =SUM(BI6:BI12) -> 4331.36 | BJ13: 4331.36 | BK13: =SUM(BK6:BK12) -> 4373.083 | BL13: =SUM(BL6:BL12) -> 4557.657 | BM13: =SUM(BM6:BM12) -> 3886.124 | BN13: =SUM(BN6:BN12) -> 4045.929 | BO13: 4045.929 | BP13: =SUM(BP6:BP12) -> 3942.391 | BQ13: =SUM(BQ6:BQ12) -> 4114.343 | BR13: =SUM(BR6:BR12) -> 4279.468 | BS13: =SUM(BS6:BS12) -> 4374.983005 | BT13: 4374.983005 | BU13: =SUM(BU6:BU12) -> 3862.841031 | BV13: =SUM(BV6:BV12) -> 4100.762733 | BW13: =SUM(BW6:BW12) -> 4285.056649 | BX13: =SUM(BX6:BX12) -> 4560.343968 | BY13: 4560.343968 | BZ13: =SUM(BZ6:BZ12) -> 4798.495133 | CA13: =SUM(CA6:CA12) -> 5154.381259 | CB13: =SUM(CB6:CB12) -> 5421.541148 | CC13: =SUM(CC6:CC12) -> 5782.164027 | CD13: 5782.164027 | CE13: =SUM(CE6:CE12) -> 6108.508048 | CF13: =SUM(CF6:CF12) -> 6492.912789 | CG13: =SUM(CG6:CG12) -> 6782.179794 | CH13: =SUM(CH6:CH12) -> 7190.712969 | CI13: 7190.712969 | CJ13: =SUM(CJ6:CJ12) -> 7543.638423 | CK13: =SUM(CK6:CK12) -> 7951.6696 | CL13: =SUM(CL6:CL12) -> 8256.322307 | CM13: =SUM(CM6:CM12) -> 8688.60983 | CN13: 8688.60983
A15: PP&E | F15: 77.611 | G15: =F15 -> 77.611 | H15: 79.059 | I15: 80.286 | J15: 69.36 | K15: 71.09 | L15: =K15 -> 71.09 | M15: 70.228 | N15: 73.626 | O15: 72.874 | P15: 77.007 | Q15: =P15 -> 77.007 | R15: 82.512 | S15: 84.713 | T15: 89.029 | U15: 99.675 | V15: =U15 -> 99.675 | W15: 100.34 | X15: 98.934 | Y15: 103.663 | Z15: 103.549 | AA15: =Z15 -> 103.549 | AB15: 208.159 | AC15: 210.181 | AD15: 212.875 | AE15: 219.317 | AF15: =AE15 -> 219.317 | AG15: 258.899 | AH15: 266.395 | AI15: 278.722 | AJ15: 289.758 | AK15: =AJ15 -> 289.758 | AL15: 297.522 | AM15: 300.371 | AN15: 317.071 | AO15: 313.037 | AP15: =AO15 -> 313.037 | AQ15: 300.376 | AR15: 291.72 | AS15: 335.752 | AT15: 388.132 | AU15: =AT15 -> 388.132 | AV15: 386.205 | AW15: 407.621 | AX15: 422.92 | AY15: 448.881 | AZ15: =AY15 -> 448.881 | BA15: 453.497 | BB15: 463.415 | BC15: 499.059 | BD15: 527.828 | BE15: =BD15 -> 527.828 | BF15: 549.78 | BG15: 573.566 | BH15: 619.392 | BI15: 664.302 | BJ15: =BI15 -> 664.302 | BK15: 686.014 | BL15: 645.865 | BM15: 659.747 | BN15: 659.774 | BO15: =BN15 -> 659.774 | BP15: 651.083 | BQ15: 642.45 | BR15: 785.856 | BS15: =BS145 -> 762.4048186 | BT15: =BS15 -> 762.4048186 | BU15: =BU145 -> 737.9877652 | BV15: =BV145 -> 712.6833664 | BW15: =BW145 -> 688.1700196 | BX15: =BX145 -> 664.6398534 | BY15: =BX15 -> 664.6398534 | BZ15: =BZ145 -> 641.9977051 | CA15: =CA145 -> 619.9643338 | CB15: =CB145 -> 598.2699389 | CC15: =CC145 -> 576.7195641 | CD15: =CC15 -> 576.7195641 | CE15: =CE145 -> 555.0233575 | CF15: =CF145 -> 532.6610619 | CG15: =CG145 -> 509.2576968 | CH15: =CH145 -> 484.6732812 | CI15: =CH15 -> 484.6732812 | CJ15: =CJ145 -> 458.8016396 | CK15: =CK145 -> 431.4721725 | CL15: =CL145 -> 402.5315802 | CM15: =CM145 -> 371.8598802 | CN15: =CM15 -> 371.8598802
A16: Goodwill | F16: 36.402 | G16: 36.402 | I16: 114.061 | J16: 109.343 | K16: 82.746 | L16: 82.746 | M16: 95.826 | N16: 111.98 | O16: 112.45 | P16: 95.971 | Q16: 95.971 | R16: 95.971 | S16: 110.232 | T16: 110.26 | U16: 110.287 | V16: 110.287 | W16: 119.082 | X16: 119.082 | Y16: 118.683 | Z16: 118.683 | AA16: =Z16 -> 118.683 | AB16: 2126.173 | AC16: 2143.625 | AD16: 2147.557 | AE16: 2149.494 | AF16: 2149.494 | AG16: 2134.058 | AH16: 2147.034 | AI16: 2153.093 | AJ16: 2148.102 | AK16: 2148.102 | AL16: 2144.368 | AM16: 2135.167 | AN16: 2134.032 | AO16: 2134.73 | AP16: 2134.73 | AQ16: 2132.375 | AR16: 2134.997 | AS16: 2125.946 | AT16: 3468.171 | AU16: 3468.171 | AV16: 3494.073 | AW16: 3488.252 | AX16: 3489.938 | AY16: 3641.844 | AZ16: 3641.844 | BA16: 3686.073 | BB16: 3693.505 | BC16: 3740.199 | BD16: 3849.217 | BE16: 3849.217 | BF16: 4138.077 | BG16: 4122.813 | BH16: 4126.548 | BI16: 4133.259 | BJ16: 4133.259 | BK16: 4221.487 | BL16: 4225.169 | BM16: 4752.315 | BN16: 4771.981 | BO16: 4771.981 | BP16: 4782.448 | BQ16: 4773.798 | BR16: 4746.781 | BS16: 4746.781 | BT16: 4746.781 | BU16: =BS16 -> 4746.781 | BV16: 4746.781 | BW16: 4746.781 | BX16: 4746.781 | BY16: 4746.781 | BZ16: =BX16 -> 4746.781 | CA16: 4746.781 | CB16: 4746.781 | CC16: 4746.781 | CD16: 4746.781 | CE16: =CC16 -> 4746.781 | CF16: 4746.781 | CG16: 4746.781 | CH16: 4746.781 | CI16: 4746.781 | CJ16: =CH16 -> 4746.781 | CK16: 4746.781 | CL16: 4746.781 | CM16: 4746.781 | CN16: 4746.781
A17: Intangibles | G17: 0 | K17: 16.067 | L17: 16.067 | P17: 15.318 | Q17: 15.318 | R17: 15.161 | S17: 14.812 | T17: 14.2 | U17: 15.513 | V17: 15.513 | W17: 17.814 | X17: 17.108 | Y17: 16.804 | Z17: 16.477 | AA17: 16.477 | AB17: 641.894 | AC17: 593.57 | AD17: 541.542 | AE17: 506.405 | AF17: 506.405 | AG17: 464.338 | AH17: 476.978 | AI17: 438.26 | AJ17: 402.619 | AK17: 402.619 | AL17: 357.221 | AM17: 313.245 | AN17: 246.401 | AO17: 214.96 | AP17: 214.96 | AQ17: 181.468 | AR17: 148.507 | AS17: 117.384 | AT17: 527.387 | AU17: 527.387 | AV17: 487.605 | AW17: 447.372 | AX17: 413.091 | AY17: 457.263 | AZ17: 457.263 | BA17: 447.616 | BB17: 424.199 | BC17: 419.824 | BD17: 545.526 | BE17: 545.526 | BF17: 637.825 | BG17: 600.332 | BH17: 576.948 | BI17: 545.036 | BJ17: 545.036 | BK17: 580.568 | BL17: 551.265 | BM17: 637.957 | BN17: 605.254 | BO17: 605.254 | BP17: 570.171 | BQ17: 532.317 | BR17: 490.839 | BS17: 528.129 | BT17: 528.129 | BU17: 511.263 | BV17: 494.397 | BW17: 477.531 | BX17: 460.665 | BY17: 460.665 | BZ17: 443.799 | CA17: 426.933 | CB17: 410.067 | CC17: 393.201 | CD17: 393.201 | CE17: 376.335 | CF17: 359.469 | CG17: 342.603 | CH17: 325.737 | CI17: 325.737 | CJ17: 308.871 | CK17: 292.005 | CL17: 275.139 | CM17: 258.273 | CN17: 258.273
A18: Investment in Lease Receivable | G18: 0 | L18: 0 | Q18: 0 | T18: 126.8 | U18: 126.8 | V18: 126.8 | W18: 126.8 | X18: 126.8 | Y18: 126.8 | Z18: 126.8 | AA18: =Z18 -> 126.8 | AB18: 126.8 | AC18: 126.8 | AD18: 126.8 | AE18: 126.8 | AF18: =AE18 -> 126.8 | AG18: 126.8 | AH18: 207.239 | AI18: 207.239 | AJ18: 207.239 | AK18: 207.239 | AL18: 207.239 | AM18: 207.239 | AN18: 207.239 | AO18: 207.239 | AP18: 207.239 | AQ18: 207.239 | AR18: 207.239 | AS18: 207.239 | AT18: 207.239 | AU18: 207.239 | AV18: 207.239 | AW18: 207.239 | AX18: 207.239 | AY18: 207.239 | AZ18: 207.239 | BA18: 207.239 | BB18: 207.239 | BC18: 207.239 | BD18: 207.239 | BE18: 207.239 | BF18: 207.239 | BG18: 207.239 | BH18: 207.239 | BI18: 207.239 | BJ18: 207.239 | BK18: 207.239 | BL18: 207.239 | BM18: 207.239 | BN18: 207.239 | BO18: 207.239 | BP18: 207.239 | BQ18: 207.239 | BR18: 80.439 | BS18: 80.439 | BT18: 80.439 | BU18: =BS18 -> 80.439 | BV18: 80.439 | BW18: 80.439 | BX18: 80.439 | BY18: 80.439 | BZ18: =BX18 -> 80.439 | CA18: 80.439 | CB18: 80.439 | CC18: 80.439 | CD18: 80.439 | CE18: =CC18 -> 80.439 | CF18: 80.439 | CG18: 80.439 | CH18: 80.439 | CI18: 80.439 | CJ18: =CH18 -> 80.439 | CK18: 80.439 | CL18: 80.439 | CM18: 80.439 | CN18: 80.439
A19: Deferred Income Taxes | F19: 11.594 | G19: =F19 -> 11.594 | H19: 12.562 | I19: 17.336 | J19: 23.212 | K19: 43.085 | L19: =K19 -> 43.085 | M19: 26.243 | N19: 25.728 | O19: 24.797 | P19: 0 | Q19: =P19 -> 0 | R19: 0 | S19: 0 | T19: 0 | U19: 0 | V19: =U19 -> 0 | W19: 0 | X19: 0 | Y19: 0 | Z19: 0 | AA19: =Z19 -> 0 | AB19: 0 | AC19: 0 | AD19: 0 | AE19: 0 | AF19: =AE19 -> 0 | AG19: 0 | AH19: 0 | AI19: 0 | AJ19: 0 | AK19: =AJ19 -> 0 | AL19: 0 | AM19: 0 | AN19: 0 | AO19: 0 | AP19: =AO19 -> 0 | AQ19: 0 | AR19: 0 | AS19: 0 | AT19: 0 | AU19: =AT19 -> 0 | AV19: 0 | AW19: 0 | AX19: 0 | AY19: 0 | AZ19: =AY19 -> 0 | BA19: 0 | BB19: 0 | BC19: 0 | BD19: 0 | BE19: =BD19 -> 0 | BF19: 0 | BG19: 0 | BH19: 0 | BI19: 0 | BJ19: =BI19 -> 0 | BK19: 0 | BL19: 0 | BM19: 0 | BN19: 0 | BO19: =BN19 -> 0 | BP19: 0 | BQ19: 0 | BR19: 0 | BS19: 0 | BT19: =BS19 -> 0 | BU19: =BS19 -> 0 | BV19: 0 | BW19: 0 | BX19: 0 | BY19: =BX19 -> 0 | BZ19: =BX19 -> 0 | CA19: 0 | CB19: 0 | CC19: 0 | CD19: =CC19 -> 0 | CE19: =CC19 -> 0 | CF19: 0 | CG19: 0 | CH19: 0 | CI19: =CH19 -> 0 | CJ19: =CH19 -> 0 | CK19: 0 | CL19: 0 | CM19: 0 | CN19: =CM19 -> 0
A20: Other Non-Current Assets | F20: 37.652 | G20: 37.652 | H20: 72.118 | I20: 35.677 | J20: 39.279 | K20: 24.45 | L20: 24.45 | M20: 42.487 | N20: 42.357 | O20: 39.498 | P20: 37.721 | Q20: 37.721 | R20: 35.724 | S20: 38.731 | T20: 46.948 | U20: 55.328 | V20: 55.328 | W20: 58.835 | X20: 59.724 | Y20: 58.966 | Z20: 66.228 | AA20: 66.228 | AB20: 103.175 | AC20: 98.854 | AD20: 95.457 | AE20: =68.183 -> 68.183 | AF20: 68.183 | AG20: 63.089 | AH20: 85.782 | AI20: 83.917 | AJ20: 92.984 | AK20: 92.984 | AL20: 108.279 | AM20: 122.926 | AN20: 216.887 | AO20: 216.529 | AP20: 216.529 | AQ20: 197.147 | AR20: 193.513 | AS20: 184.705 | AT20: 191.266 | AU20: 191.266 | AV20: 192.728 | AW20: 180.376 | AX20: 177.426 | AY20: 169.871 | AZ20: 169.871 | BA20: 164.801 | BB20: 162.04 | BC20: 157.241 | BD20: 89.922 | BE20: 89.922 | BF20: 94.132 | BG20: 91.075 | BH20: 89.713 | BI20: 93.327 | BJ20: 93.327 | BK20: 97.32 | BL20: 93.174 | BM20: 90.774 | BN20: 90.121 | BO20: 90.121 | BP20: 92.55 | BQ20: 102.052 | BR20: 110.297 | BS20: 117.1622191 | BT20: 117.1622191 | BU20: 101.2525216 | BV20: 112.0571352 | BW20: 137.9451036 | BX20: 147.7806403 | BY20: 147.7806403 | BZ20: 127.4298331 | CA20: 137.9617583 | CB20: 166.4381842 | CC20: 175.6659879 | CD20: 175.6659879 | CE20: 149.6702897 | CF20: 157.6694547 | CG20: 186.5305187 | CH20: 195.306388 | CI20: 195.306388 | CJ20: 166.1064583 | CK20: 173.9728636 | CL20: 204.6170876 | CM20: 213.0423824 | CN20: 213.0423824
A22: Total Assets | C22: =SUM(C13:C20) -> 0 | D22: =SUM(D13:D20) -> 0 | E22: =SUM(E13:E20) -> 0 | F22: =SUM(F13:F20) -> 163.259 | G22: 163.259 | H22: =SUM(H13:H20) -> 163.739 | I22: =SUM(I13:I20) -> 247.36 | J22: =SUM(J13:J20) -> 241.194 | K22: =SUM(K13:K20) -> 237.438 | L22: 237.438 | M22: =SUM(M13:M20) -> 234.784 | N22: =SUM(N13:N20) -> 1239.736 | O22: =SUM(O13:O20) -> 1286.781 | P22: =SUM(P13:P20) -> 1555.045 | Q22: 1555.045 | R22: =SUM(R13:R20) -> 1691.506 | S22: =SUM(S13:S20) -> 1733.127 | T22: =SUM(T13:T20) -> 1720.808 | U22: =SUM(U13:U20) -> 1958.632 | V22: 1958.632 | W22: =SUM(W13:W20) -> 2122.81 | X22: =SUM(X13:X20) -> 2421.216 | Y22: =SUM(Y13:Y20) -> 2605.595 | Z22: =SUM(Z13:Z20) -> 2440.315 | AA22: 2440.315 | AB22: =SUM(AB13:AB20) -> 5801.733 | AC22: =SUM(AC13:AC20) -> 5501.486 | AD22: =SUM(AD13:AD20) -> 5620.785 | AE22: =SUM(AE13:AE20) -> 5954.657 | AF22: 5954.657 | AG22: =SUM(AG13:AG20) -> 5904.184 | AH22: =SUM(AH13:AH20) -> 6135.949 | AI22: =SUM(AI13:AI20) -> 5666.461 | AJ22: =SUM(AJ13:AJ20) -> 5713.679 | AK22: 5713.679 | AL22: =SUM(AL13:AL20) -> 5340.901 | AM22: =SUM(AM13:AM20) -> 5460.417 | AN22: =SUM(AN13:AN20) -> 5638.75 | AO22: =SUM(AO13:AO20) -> 5821.598 | AP22: 5821.598 | AQ22: =SUM(AQ13:AQ20) -> 5887.596 | AR22: =SUM(AR13:AR20) -> 6063.745 | AS22: =SUM(AS13:AS20) -> 5961.96 | AT22: =SUM(AT13:AT20) -> 7255.819 | AU22: 7255.819 | AV22: =SUM(AV13:AV20) -> 7945.069 | AW22: =SUM(AW13:AW20) -> 8006.931 | AX22: =SUM(AX13:AX20) -> 7947.029 | AY22: =SUM(AY13:AY20) -> 8141.148 | AZ22: 8141.148 | BA22: =SUM(BA13:BA20) -> 8310.024 | BB22: =SUM(BB13:BB20) -> 8339.716 | BC22: =SUM(BC13:BC20) -> 8492.758 | BD22: =SUM(BD13:BD20) -> 8991.183 | BE22: 8991.183 | BF22: =SUM(BF13:BF20) -> 9132.708 | BG22: =SUM(BG13:BG20) -> 9365.832 | BH22: =SUM(BH13:BH20) -> 9630.013 | BI22: =SUM(BI13:BI20) -> 9974.523 | BJ22: 9974.523 | BK22: =SUM(BK13:BK20) -> 10165.711 | BL22: =SUM(BL13:BL20) -> 10280.369 | BM22: =SUM(BM13:BM20) -> 10234.156 | BN22: =SUM(BN13:BN20) -> 10380.298 | BO22: 10380.298 | BP22: =SUM(BP13:BP20) -> 10245.882 | BQ22: =SUM(BQ13:BQ20) -> 10372.199 | BR22: =SUM(BR13:BR20) -> 10493.68 | BS22: =SUM(BS13:BS20) -> 10609.89904 | BT22: 10609.89904 | BU22: =SUM(BU13:BU20) -> 10040.56432 | BV22: =SUM(BV13:BV20) -> 10247.12023 | BW22: =SUM(BW13:BW20) -> 10415.92277 | BX22: =SUM(BX13:BX20) -> 10660.64946 | BY22: 10660.64946 | BZ22: =SUM(BZ13:BZ20) -> 10838.94167 | CA22: =SUM(CA13:CA20) -> 11166.46035 | CB22: =SUM(CB13:CB20) -> 11423.53627 | CC22: =SUM(CC13:CC20) -> 11754.97058 | CD22: 11754.97058 | CE22: =SUM(CE13:CE20) -> 12016.7567 | CF22: =SUM(CF13:CF20) -> 12369.93231 | CG22: =SUM(CG13:CG20) -> 12647.79101 | CH22: =SUM(CH13:CH20) -> 13023.64964 | CI22: 13023.64964 | CJ22: =SUM(CJ13:CJ20) -> 13304.63752 | CK22: =SUM(CK13:CK20) -> 13676.33964 | CL22: =SUM(CL13:CL20) -> 13965.82997 | CM22: =SUM(CM13:CM20) -> 14359.00509 | CN22: 14359.00509
A23: Liabilities
A24: Accounts Payable | F24: 30.891 | G24: =F24 -> 30.891 | H24: 34.443 | I24: 33.712 | J24: 32.868 | K24: 37.765 | L24: =K24 -> 37.765 | M24: 34.191 | N24: 41.306 | O24: 32.07 | P24: 37.437 | Q24: =P24 -> 37.437 | R24: 35.598 | S24: 33.133 | T24: 36.661 | U24: 43.192 | V24: =U24 -> 43.192 | W24: 38.575 | X24: 38.717 | Y24: 37.428 | Z24: 41.042 | AA24: =Z24 -> 41.042 | AB24: 51.218 | AC24: 49.481 | AD24: 38.624 | AE24: 55.031 | AF24: =AE24 -> 55.031 | AG24: 46.867 | AH24: 55.038 | AI24: 64.374 | AJ24: 66.867 | AK24: =AJ24 -> 66.867 | AL24: 62.019 | AM24: 60.961 | AN24: 56.254 | AO24: 55.84 | AP24: =AO24 -> 55.84 | AQ24: 41.416 | AR24: 42.258 | AS24: 48.416 | AT24: 58.904 | AU24: =AT24 -> 58.904 | AV24: 44.188 | AW24: 50.273 | AX24: 56.465 | AY24: 52.432 | AZ24: =AY24 -> 52.432 | BA24: 54.742 | BB24: 60.533 | BC24: 65.236 | BD24: 86.66 | BE24: =BD24 -> 86.66 | BF24: 70.1 | BG24: 69.416 | BH24: 58.446 | BI24: 49.759 | BJ24: =BI24 -> 49.759 | BK24: 72.725 | BL24: 53.685 | BM24: 71.07 | BN24: 62.096 | BO24: =BN24 -> 62.096 | BP24: 64.508 | BQ24: 54.858 | BR24: 53.791 | BS24: 66.25210067 | BT24: =BS24 -> 66.25210067 | BU24: 67.43608661 | BV24: 57.22300812 | BW24: 58.23655878 | BX24: 72.17739779 | BY24: =BX24 -> 72.17739779 | BZ24: 78.77332822 | CA24: 71.00986953 | CB24: 60.62935387 | CC24: 54.80445198 | CD24: =CC24 -> 54.80445198 | CE24: 88.99703444 | CF24: 77.98479357 | CG24: 65.23413261 | CH24: 58.47510581 | CI24: =CH24 -> 58.47510581 | CJ24: 97.17249117 | CK24: 84.62591493 | CL24: 70.35239334 | CM24: 62.6959378 | CN24: =CM24 -> 62.6959378
A25: Accrued Expenses | F25: 130.381 | G25: 130.381 | H25: 118.52 | I25: 153.721 | J25: 127.979 | K25: 135.028 | L25: 135.028 | M25: 145.521 | N25: 157.942 | O25: 148.301 | P25: 160.009 | Q25: 160.009 | R25: 175.508 | S25: 188.852 | T25: 169.724 | U25: 202.762 | V25: 202.762 | W25: 196.567 | X25: 215.755 | Y25: 207.355 | Z25: 226.985 | AA25: 226.985 | AB25: 284.484 | AC25: 280.585 | AD25: 253.389 | AE25: 297.55 | AF25: 297.55 | AG25: 270.515 | AH25: 369.264 | AI25: 349.263 | AJ25: 383.436 | AK25: 383.436 | AL25: 368.978 | AM25: 377.572 | AN25: 356.408 | AO25: 399.969 | AP25: 399.969 | AQ25: 345.677 | AR25: 363.431 | AS25: 349.077 | AT25: 419.646 | AU25: 419.646 | AV25: 364.437 | AW25: 468.587 | AX25: 468.477 | AY25: 564.275 | AZ25: 564.275 | BA25: 458.463 | BB25: 496.535 | BC25: 450.343 | BD25: 554.941 | BE25: 554.941 | BF25: 476.14 | BG25: 555.024 | BH25: 547.812 | BI25: 590.14 | BJ25: 590.14 | BK25: 505.465 | BL25: 538.402 | BM25: 547.997 | BN25: 656.939 | BO25: 656.939 | BP25: 584.273 | BQ25: 656.94 | BR25: 630.679 | BS25: 640.0152966 | BT25: 640.0152966 | BU25: 614.2781 | BV25: 688.9623343 | BW25: 665.4672524 | BX25: 677.9025916 | BY25: 677.9025916 | BZ25: 652.5323605 | CA25: 736.051147 | CB25: 709.5168173 | CC25: 719.7156374 | CD25: 719.7156374 | CE25: 704.6199402 | CF25: 800.6101203 | CG25: 773.5818705 | CH25: 786.7920086 | CI25: 786.7920086 | CJ25: 765.2671601 | CK25: 868.322225 | CL25: 840.6033467 | CM25: 856.974412 | CN25: 856.974412
A26: Deferred Revenue | F26: 21.701 | G26: =F26 -> 21.701 | H26: 23.615 | I26: 25.796 | J26: 27.315 | K26: 31.185 | L26: =K26 -> 31.185 | M26: 32.484 | N26: 42.021 | O26: 41.609 | P26: 45.6 | Q26: =P26 -> 45.6 | R26: 43.326 | S26: 44.78 | T26: 47.148 | U26: 59.541 | V26: =U26 -> 59.541 | W26: 57.087 | X26: 61.033 | Y26: 60.01 | Z26: 57.839 | AA26: 57.839 | AB26: 82.408 | AC26: 89.017 | AD26: 103.509 | AE26: 130.31 | AF26: =AE26 -> 130.31 | AG26: 139.692 | AH26: 179.331 | AI26: 164.442 | AJ26: 183.318 | AK26: =AJ26 -> 183.318 | AL26: 191.662 | AM26: 191.594 | AN26: 204.593 | AO26: 243.964 | AP26: =AO26 -> 243.964 | AQ26: 198.313 | AR26: 185.191 | AS26: 188.328 | AT26: 281.576 | AU26: =AT26 -> 281.576 | AV26: 320.535 | AW26: 362.566 | AX26: 375.927 | AY26: 380.748 | AZ26: =AY26 -> 380.748 | BA26: 399.572 | BB26: 438.078 | BC26: 439.69 | BD26: 476.402 | BE26: =BD26 -> 476.402 | BF26: 492.545 | BG26: 535.115 | BH26: 505.646 | BI26: 561.463 | BJ26: =BI26 -> 561.463 | BK26: 645.834 | BL26: 638.885 | BM26: 683.143 | BN26: 775.544 | BO26: =BN26 -> 775.544 | BP26: 831.077 | BQ26: 879.109 | BR26: 947.563 | BS26: 1017.222076 | BT26: =BS26 -> 1017.222076 | BU26: 1042.151016 | BV26: 1117.179455 | BW26: 1197.662572 | BX26: 1283.056355 | BY26: =BX26 -> 1283.056355 | BZ26: 1312.960475 | CA26: 1376.885657 | CB26: 1446.561449 | CC26: 1526.762906 | CD26: =CC26 -> 1526.762906 | CE26: 1543.730161 | CF26: 1575.22274 | CG26: 1622.889937 | CH26: 1699.243502 | CI26: =CH26 -> 1699.243502 | CJ26: 1715.051177 | CK26: 1739.925665 | CL26: 1782.115484 | CM26: 1855.495711 | CN26: =CM26 -> 1855.495711
A27: Current Portion of Long Term Debt | G27: =F27 -> 0 | L27: =K27 -> 0 | Q27: =P27 -> 0 | V27: =U27 -> 0 | AA27: =Z27 -> 0 | AF27: =AE27 -> 0 | AK27: =AJ27 -> 0 | AP27: =AO27 -> 0 | AU27: =AT27 -> 0 | AX27: 8.698 | AY27: 8.799 | AZ27: =AY27 -> 8.799 | BA27: 8.9 | BB27: 9.003 | BC27: 9.107 | BD27: 9.212 | BE27: =BD27 -> 9.212 | BF27: 9.318 | BG27: 9.426 | BH27: 11.093 | BI27: 11.217 | BJ27: =BI27 -> 11.217 | BK27: 22.406 | BL27: 20.083 | BM27: 17.462 | BN27: 14.676 | BO27: =BN27 -> 14.676 | BP27: 613.31 | BQ27: 609.742 | BR27: 606.426 | BS27: 606.426 | BT27: =BS27 -> 606.426 | BU27: 6.426 | BV27: 6.426 | BW27: 6.426 | BX27: 6.426 | BY27: =BX27 -> 6.426 | BZ27: =BX27 -> 6.426 | CA27: 6.426 | CB27: 6.426 | CC27: 6.426 | CD27: =CC27 -> 6.426 | CE27: =CC27 -> 6.426 | CF27: 6.426 | CG27: 6.426 | CH27: 6.426 | CI27: =CH27 -> 6.426 | CJ27: =CH27 -> 6.426 | CK27: 6.426 | CL27: 6.426 | CM27: 6.426 | CN27: =CM27 -> 6.426
A28: Other Current Liabilities | C28: =SUM(C29:C31) -> 0 | D28: =SUM(D29:D31) -> 0 | E28: =SUM(E29:E31) -> 0 | F28: =SUM(F29:F31) -> 132.228 | G28: =F28 -> 132.228 | H28: =SUM(H29:H31) -> 123.853 | I28: =SUM(I29:I31) -> 133.425 | J28: =SUM(J29:J31) -> 156.546 | K28: =SUM(K29:K31) -> 173.311 | L28: =K28 -> 173.311 | M28: =SUM(M29:M31) -> 178.202 | N28: =SUM(N29:N31) -> 191.53 | O28: =SUM(O29:O31) -> 201.025 | P28: =SUM(P29:P31) -> 193.484 | Q28: =P28 -> 193.484 | R28: =SUM(R29:R31) -> 185.363 | S28: =SUM(S29:S31) -> 154.248 | T28: =SUM(T29:T31) -> 176.691 | U28: =SUM(U29:U31) -> 145.913 | V28: =U28 -> 145.913 | W28: =SUM(W29:W31) -> 191.959 | X28: 202.419 | Y28: 174.292 | Z28: 154.529 | AA28: 154.529 | AB28: 153.187 | AC28: 155.198 | AD28: 162.175 | AE28: 187.965 | AF28: =AE28 -> 187.965 | AG28: =SUM(AG29:AG31) -> 198.45 | AH28: =SUM(AH29:AH31) -> 175.448 | AI28: =SUM(AI29:AI31) -> 229.665 | AJ28: =SUM(AJ29:AJ31) -> 218.789 | AK28: =AJ28 -> 218.789 | AL28: =SUM(AL29:AL31) -> 46.887 | AM28: =SUM(AM29:AM31) -> 42.638 | AN28: =SUM(AN29:AN31) -> 44.408 | AO28: =SUM(AO29:AO31) -> 62.826 | AP28: =AO28 -> 62.826 | AQ28: =SUM(AQ29:AQ31) -> 51.459 | AR28: =SUM(AR29:AR31) -> 22.752 | AS28: =SUM(AS29:AS31) -> 28.562 | AT28: =SUM(AT29:AT31) -> 84.427 | AU28: =AT28 -> 84.427 | AV28: =SUM(AV29:AV31) -> 171.614 | AW28: =SUM(AW29:AW31) -> 88.482 | AX28: =SUM(AX29:AX31) -> 57.635 | AY28: =SUM(AY29:AY31) -> 61.834 | AZ28: =AY28 -> 61.834 | BA28: =SUM(BA29:BA31) -> 63.855 | BB28: =SUM(BB29:BB31) -> 46.23 | BC28: =SUM(BC29:BC31) -> 67.883 | BD28: =SUM(BD29:BD31) -> 123.564 | BE28: =BD28 -> 123.564 | BF28: =SUM(BF29:BF31) -> 66.919 | BG28: =SUM(BG29:BG31) -> 76.663 | BH28: =SUM(BH29:BH31) -> 46.713 | BI28: =SUM(BI29:BI31) -> 59.173 | BJ28: =BI28 -> 59.173 | BK28: =SUM(BK29:BK31) -> 17.893 | BL28: =SUM(BL29:BL31) -> 13.8 | BM28: =SUM(BM29:BM31) -> 9.445 | BN28: =SUM(BN29:BN31) -> 16.393 | BO28: =BN28 -> 16.393 | BP28: =SUM(BP29:BP31) -> 19.179 | BQ28: =SUM(BQ29:BQ31) -> 17.323 | BR28: =SUM(BR29:BR31) -> 6.789 | BS28: =SUM(BS29:BS31) -> 6.67145 | BT28: =BS28 -> 6.67145 | BU28: =SUM(BU29:BU31) -> 6.5597775 | BV28: =SUM(BV29:BV31) -> 6.453688625 | BW28: =SUM(BW29:BW31) -> 6.352904194 | BX28: =SUM(BX29:BX31) -> 6.257158984 | BY28: =BX28 -> 6.257158984 | BZ28: =SUM(BZ29:BZ31) -> 6.166201035 | CA28: =SUM(CA29:CA31) -> 6.079790983 | CB28: =SUM(CB29:CB31) -> 5.997701434 | CC28: =SUM(CC29:CC31) -> 5.919716362 | CD28: =CC28 -> 5.919716362 | CE28: =SUM(CE29:CE31) -> 5.845630544 | CF28: =SUM(CF29:CF31) -> 5.775249017 | CG28: =SUM(CG29:CG31) -> 5.708386566 | CH28: =SUM(CH29:CH31) -> 5.644867238 | CI28: =CH28 -> 5.644867238 | CJ28: =SUM(CJ29:CJ31) -> 5.584523876 | CK28: =SUM(CK29:CK31) -> 5.527197682 | CL28: =SUM(CL29:CL31) -> 5.472737798 | CM28: =SUM(CM29:CM31) -> 5.421000908 | CN28: =CM28 -> 5.421000908
A29: Other Accrued Expenses | G29: 0 | L29: 0 | Q29: 0 | V29: 0 | AA29: 0 | AF29: 0 | AK29: 0 | AP29: 0 | AU29: 0 | AZ29: 0 | BA29: 0 | BB29: 0 | BC29: 0 | BD29: 0 | BE29: 0 | BJ29: =BI29 -> 0 | BO29: 0 | BT29: 0 | BY29: 0 | CD29: 0 | CI29: 0 | CN29: 0
A30: Restructuring obligations | G30: 0 | H30: 1.673 | L30: 0 | Q30: 0 | V30: 0 | AA30: 0 | AB30: 25.768 | AC30: 17.332 | AD30: 12.618 | AE30: 10.088 | AF30: 10.088 | AG30: 8.066 | AH30: 6.558 | AI30: 5.849 | AJ30: 3.731 | AK30: 3.731 | AL30: 5.956 | AM30: 5.573 | AN30: 6.862 | AO30: 35.69 | AP30: 35.69 | AQ30: 18.352 | AR30: 11.728 | AS30: 8.23 | AT30: 37.793 | AU30: 37.793 | AV30: 19.773 | AW30: 16.504 | AX30: 9.222 | AY30: 8.119 | AZ30: 8.119 | BA30: 6.759 | BB30: 5.26 | BC30: 6.663 | BD30: 80.93 | BE30: 80.93 | BF30: 36.37 | BG30: 18.337 | BH30: 14.803 | BI30: 9.287 | BJ30: 9.287 | BK30: 6.767 | BL30: 6.671 | BM30: 4.841 | BN30: 6.171 | BO30: 6.171 | BP30: 6.193 | BQ30: 3.627 | BR30: 2.351 | BS30: =BR30*0.95 -> 2.23345 | BT30: 2.23345 | BU30: =BS30*0.95 -> 2.1217775 | BV30: =BU30*0.95 -> 2.015688625 | BW30: =BV30*0.95 -> 1.914904194 | BX30: =BW30*0.95 -> 1.819158984 | BY30: 1.819158984 | BZ30: =BX30*0.95 -> 1.728201035 | CA30: =BZ30*0.95 -> 1.641790983 | CB30: =CA30*0.95 -> 1.559701434 | CC30: =CB30*0.95 -> 1.481716362 | CD30: 1.481716362 | CE30: =CC30*0.95 -> 1.407630544 | CF30: =CE30*0.95 -> 1.337249017 | CG30: =CF30*0.95 -> 1.270386566 | CH30: =CG30*0.95 -> 1.206867238 | CI30: 1.206867238 | CJ30: =CH30*0.95 -> 1.146523876 | CK30: =CJ30*0.95 -> 1.089197682 | CL30: =CK30*0.95 -> 1.034737798 | CM30: =CL30*0.95 -> 0.9830009081 | CN30: 0.9830009081
A31: Income Taxes Payable | F31: 132.228 | G31: 132.228 | H31: 122.18 | I31: 133.425 | J31: 156.546 | K31: 173.311 | L31: 173.311 | M31: 178.202 | N31: 191.53 | O31: 201.025 | P31: 193.484 | Q31: 193.484 | R31: 185.363 | S31: 154.248 | T31: 176.691 | U31: 145.913 | V31: 145.913 | W31: 191.959 | X31: 202.419 | Y31: 174.292 | Z31: 154.529 | AA31: 154.529 | AB31: 127.419 | AC31: 137.866 | AD31: 149.557 | AE31: 177.877 | AF31: 177.877 | AG31: 190.384 | AH31: 168.89 | AI31: 223.816 | AJ31: 215.058 | AK31: 215.058 | AL31: 40.931 | AM31: 37.065 | AN31: 37.546 | AO31: 27.136 | AP31: 27.136 | AQ31: 33.107 | AR31: 11.024 | AS31: 20.332 | AT31: 46.634 | AU31: 46.634 | AV31: 151.841 | AW31: 71.978 | AX31: 48.413 | AY31: 53.715 | AZ31: 53.715 | BA31: 57.096 | BB31: 40.97 | BC31: 61.22 | BD31: 42.634 | BE31: 42.634 | BF31: 30.549 | BG31: 58.326 | BH31: 31.91 | BI31: 49.886 | BJ31: 49.886 | BK31: 11.126 | BL31: 7.129 | BM31: 4.604 | BN31: 10.222 | BO31: 10.222 | BP31: 12.986 | BQ31: 13.696 | BR31: 4.438 | BS31: 4.438 | BT31: 4.438 | BU31: =BS31 -> 4.438 | BV31: 4.438 | BW31: 4.438 | BX31: 4.438 | BY31: 4.438 | BZ31: =BX31 -> 4.438 | CA31: 4.438 | CB31: 4.438 | CC31: 4.438 | CD31: 4.438 | CE31: =CC31 -> 4.438 | CF31: 4.438 | CG31: 4.438 | CH31: 4.438 | CI31: 4.438 | CJ31: =CH31 -> 4.438 | CK31: 4.438 | CL31: 4.438 | CM31: 4.438 | CN31: 4.438
A32: Total Current Liabilities | C32: =SUM(C24:C26,C27:C28) -> 0 | D32: =SUM(D24:D26,D27:D28) -> 0 | E32: =SUM(E24:E26,E27:E28) -> 0 | F32: =SUM(F24:F26,F27:F28) -> 315.201 | G32: 315.201 | H32: =SUM(H24:H26,H27:H28) -> 300.431 | I32: =SUM(I24:I26,I27:I28) -> 346.654 | J32: =SUM(J24:J26,J27:J28) -> 344.708 | K32: =SUM(K24:K26,K27:K28) -> 377.289 | L32: 377.289 | M32: =SUM(M24:M26,M27:M28) -> 390.398 | N32: =SUM(N24:N26,N27:N28) -> 432.799 | O32: =SUM(O24:O26,O27:O28) -> 423.005 | P32: =SUM(P24:P26,P27:P28) -> 436.53 | Q32: 436.53 | R32: =SUM(R24:R26,R27:R28) -> 439.795 | S32: =SUM(S24:S26,S27:S28) -> 421.013 | T32: =SUM(T24:T26,T27:T28) -> 430.224 | U32: =SUM(U24:U26,U27:U28) -> 451.408 | V32: 451.408 | W32: =SUM(W24:W26,W27:W28) -> 484.188 | X32: =SUM(X24:X26,X27:X28) -> 517.924 | Y32: =SUM(Y24:Y26,Y27:Y28) -> 479.085 | Z32: =SUM(Z24:Z26,Z27:Z28) -> 480.395 | AA32: 480.395 | AB32: =SUM(AB24:AB26,AB27:AB28) -> 571.297 | AC32: =SUM(AC24:AC26,AC27:AC28) -> 574.281 | AD32: =SUM(AD24:AD26,AD27:AD28) -> 557.697 | AE32: =SUM(AE24:AE26,AE27:AE28) -> 670.856 | AF32: 670.856 | AG32: =SUM(AG24:AG26,AG27:AG28) -> 655.524 | AH32: =SUM(AH24:AH26,AH27:AH28) -> 779.081 | AI32: =SUM(AI24:AI26,AI27:AI28) -> 807.744 | AJ32: =SUM(AJ24:AJ26,AJ27:AJ28) -> 852.41 | AK32: 852.41 | AL32: =SUM(AL24:AL26,AL27:AL28) -> 669.546 | AM32: =SUM(AM24:AM26,AM27:AM28) -> 672.765 | AN32: =SUM(AN24:AN26,AN27:AN28) -> 661.663 | AO32: =SUM(AO24:AO26,AO27:AO28) -> 762.599 | AP32: 762.599 | AQ32: =SUM(AQ24:AQ26,AQ27:AQ28) -> 636.865 | AR32: =SUM(AR24:AR26,AR27:AR28) -> 613.632 | AS32: =SUM(AS24:AS26,AS27:AS28) -> 614.383 | AT32: =SUM(AT24:AT26,AT27:AT28) -> 844.553 | AU32: 844.553 | AV32: =SUM(AV24:AV26,AV27:AV28) -> 900.774 | AW32: =SUM(AW24:AW26,AW27:AW28) -> 969.908 | AX32: =SUM(AX24:AX26,AX27:AX28) -> 967.202 | AY32: =SUM(AY24:AY26,AY27:AY28) -> 1068.088 | AZ32: 1068.088 | BA32: =SUM(BA24:BA26,BA27:BA28) -> 985.532 | BB32: =SUM(BB24:BB26,BB27:BB28) -> 1050.379 | BC32: =SUM(BC24:BC26,BC27:BC28) -> 1032.259 | BD32: =SUM(BD24:BD26,BD27:BD28) -> 1250.779 | BE32: 1250.779 | BF32: =SUM(BF24:BF26,BF27:BF28) -> 1115.022 | BG32: =SUM(BG24:BG26,BG27:BG28) -> 1245.644 | BH32: =SUM(BH24:BH26,BH27:BH28) -> 1169.71 | BI32: =SUM(BI24:BI26,BI27:BI28) -> 1271.752 | BJ32: 1271.752 | BK32: =SUM(BK24:BK26,BK27:BK28) -> 1264.323 | BL32: =SUM(BL24:BL26,BL27:BL28) -> 1264.855 | BM32: =SUM(BM24:BM26,BM27:BM28) -> 1329.117 | BN32: =SUM(BN24:BN26,BN27:BN28) -> 1525.648 | BO32: 1525.648 | BP32: =SUM(BP24:BP26,BP27:BP28) -> 2112.347 | BQ32: =SUM(BQ24:BQ26,BQ27:BQ28) -> 2217.972 | BR32: =SUM(BR24:BR26,BR27:BR28) -> 2245.248 | BS32: =SUM(BS24:BS26,BS27:BS28) -> 2336.586923 | BT32: 2336.586923 | BU32: =SUM(BU24:BU26,BU27:BU28) -> 1736.850981 | BV32: =SUM(BV24:BV26,BV27:BV28) -> 1876.244487 | BW32: =SUM(BW24:BW26,BW27:BW28) -> 1934.145288 | BX32: =SUM(BX24:BX26,BX27:BX28) -> 2045.819503 | BY32: 2045.819503 | BZ32: =SUM(BZ24:BZ26,BZ27:BZ28) -> 2056.858365 | CA32: =SUM(CA24:CA26,CA27:CA28) -> 2196.452464 | CB32: =SUM(CB24:CB26,CB27:CB28) -> 2229.131321 | CC32: =SUM(CC24:CC26,CC27:CC28) -> 2313.628712 | CD32: 2313.628712 | CE32: =SUM(CE24:CE26,CE27:CE28) -> 2349.618767 | CF32: =SUM(CF24:CF26,CF27:CF28) -> 2466.018903 | CG32: =SUM(CG24:CG26,CG27:CG28) -> 2473.840327 | CH32: =SUM(CH24:CH26,CH27:CH28) -> 2556.581484 | CI32: 2556.581484 | CJ32: =SUM(CJ24:CJ26,CJ27:CJ28) -> 2589.501352 | CK32: =SUM(CK24:CK26,CK27:CK28) -> 2704.827003 | CL32: =SUM(CL24:CL26,CL27:CL28) -> 2704.969962 | CM32: =SUM(CM24:CM26,CM27:CM28) -> 2787.013062 | CN32: 2787.013062
A33: Capital Lease Obligation | G33: 0 | L33: 0 | Q33: 0 | V33: 0 | AA33: 0 | AF33: 0 | AK33: 0 | AP33: 0 | AU33: 0 | AZ33: 0 | BE33: 0 | BJ33: 0 | BO33: 0 | BT33: 0 | BY33: 0 | CD33: 0 | CI33: 0 | CN33: 0
A34: LT Portion of Convertible Debt | G34: 0 | L34: 0 | Q34: 0 | V34: 0 | AA34: 0 | AF34: 0 | AK34: 0 | AP34: 0 | AU34: 0 | AZ34: 0 | BE34: 0 | BJ34: 0 | BO34: 0 | BT34: 0 | BY34: 0 | CD34: 0 | CI34: 0 | CN34: 0
A35: Debt | AL35: 450 | AM35: 350 | AN35: =AM35 -> 350 | AO35: 350 | AP35: 350 | AQ35: 350 | AR35: 350 | AS35: 350 | AT35: 1000 | AU35: 1000 | AV35: 1493.546 | AW35: 1493.651 | AX35: 1515.752 | AY35: 1513.662 | AZ35: 1513.662 | BA35: 1511.553 | BB35: 1509.428 | BC35: 1507.278 | BD35: 1505.096 | BE35: 1505.096 | BF35: 1502.893 | BG35: 1500.668 | BH35: 1499.881 | BI35: 1496.938 | BJ35: 1496.938 | BK35: 1509.003 | BL35: 1505.56 | BM35: 1502.369 | BN35: 1499.297 | BO35: 1499.297 | BP35: 896.418 | BQ35: 896.551 | BR35: 901.83 | BS35: =BS129 -> 900 | BT35: 900 | BU35: =BU129 -> 900 | BV35: =BV129 -> 900 | BW35: =BW129 -> 900 | BX35: =BX129 -> 900 | BY35: 900 | BZ35: =BZ129 -> 900 | CA35: =CA129 -> 900 | CB35: =CB129 -> 900 | CC35: =CC129 -> 900 | CD35: 900 | CE35: =CE129 -> 900 | CF35: =CF129 -> 900 | CG35: =CG129 -> 900 | CH35: =CH129 -> 900 | CI35: 900 | CJ35: =CJ129 -> 900 | CK35: =CK129 -> 900 | CL35: =CL129 -> 900 | CM35: =CM129 -> 900 | CN35: 900
A36: Income taxes payable | AL36: 197.741 | AM36: 200.111 | AN36: 99.636 | AO36: 123.182 | AP36: 123.182 | AQ36: 120.289 | AR36: 137.24 | AS36: 137.296 | AT36: 223.528 | AU36: =AT36 -> 223.528 | AV36: 224.273 | AW36: 218.153 | AX36: 221.736 | AY36: 164.713 | AZ36: =AY36 -> 164.713 | BA36: 170.721 | BB36: 173.023 | BC36: 143.028 | BD36: 156.958 | BE36: =BD36 -> 156.958 | BF36: 150.137 | BG36: 151.671 | BH36: 151.946 | BI36: 155.096 | BJ36: =BI36 -> 155.096 | BK36: 159.859 | BL36: 161.937 | BM36: 120.525 | BN36: 132.545 | BO36: =BN36 -> 132.545 | BP36: 135.202 | BQ36: 139.87 | BR36: 141.473 | BS36: 141.473 | BT36: =BS36 -> 141.473 | BU36: =BS36 -> 141.473 | BV36: 141.473 | BW36: 141.473 | BX36: 141.473 | BY36: =BX36 -> 141.473 | BZ36: =BX36 -> 141.473 | CA36: 141.473 | CB36: 141.473 | CC36: 141.473 | CD36: =CC36 -> 141.473 | CE36: =CC36 -> 141.473 | CF36: 141.473 | CG36: 141.473 | CH36: 141.473 | CI36: =CH36 -> 141.473 | CJ36: =CH36 -> 141.473 | CK36: 141.473 | CL36: 141.473 | CM36: 141.473 | CN36: =CM36 -> 141.473
A37: Long-term Deferred Revenue | G37: 0 | L37: 0 | Q37: 0 | V37: 0 | Z37: 9.731 | AA37: 9.731 | AB37: 12.355 | AC37: 12.603 | AD37: 21.282 | AE37: 32.644 | AF37: 32.644 | AG37: 30.847 | AH37: 29.465 | AI37: 27.66 | AJ37: 25.95 | AK37: =AJ37 -> 25.95 | AL37: 22.956 | AM37: 24.819 | AN37: 27.838 | AO37: 31.356 | AP37: 31.356 | AQ37: 26.973 | AR37: 28.124 | AS37: 29.866 | AT37: 36.717 | AU37: =AT37 -> 36.717 | AV37: 39.208 | AW37: 41.777 | AX37: 44.988 | AY37: 48.929 | AZ37: =AY37 -> 48.929 | BA37: 43.826 | BB37: 43.949 | BC37: 44.369 | BD37: 55.303 | BE37: =BD37 -> 55.303 | BF37: 56.419 | BG37: 57.663 | BH37: 54.687 | BI37: 58.102 | BJ37: =BI37 -> 58.102 | BK37: 54.197 | BL37: 52.376 | BM37: 50.932 | BN37: 53.268 | BO37: =BN37 -> 53.268 | BP37: 50.01 | BQ37: 49.495 | BR37: 48.975 | BS37: 54.61234197 | BT37: 54.61234197 | BU37: 55.80662645 | BV37: 55.52040366 | BW37: 62.50897758 | BX37: 70.23147039 | BY37: 70.23147039 | BZ37: 71.61162832 | CA37: 69.79932717 | CB37: 76.93760456 | CC37: 85.08501853 | CD37: 85.08501853 | CE37: 85.72745475 | CF37: 81.42046191 | CG37: 87.9257871 | CH37: 96.37828974 | CI37: 96.37828974 | CJ37: 96.93667796 | CK37: 91.66056231 | CL37: 98.31652095 | CM37: 107.0724929 | CN37: 107.0724929
A38: Deferred Income Taxes | G38: 0 | H38: 0 | I38: 0 | J38: 0 | K38: 0 | L38: 0 | M38: 0 | N38: 0 | O38: 0 | P38: 17.715 | Q38: 17.715 | R38: 34.227 | S38: 49.862 | T38: 59.731 | U38: 78.909 | V38: 78.909 | W38: 8.999 | X38: 28.622 | Y38: 41.883 | Z38: 78.8 | AA38: 78.8 | AB38: 110.991 | AC38: 112.067 | AD38: 95.565 | AE38: 70.715 | AF38: 70.715 | AG38: 78.368 | AH38: 97.97 | AI38: 60.777 | AJ38: 148.943 | AK38: 148.943 | AL38: 146.344 | AM38: 137.852 | AN38: 96.827 | AO38: 117.328 | AP38: 117.328 | AQ38: 114.603 | AR38: 104.49 | AS38: 105.597 | AT38: 252.486 | AU38: 252.486 | AV38: 79.67 | AW38: 66.142 | AX38: 73.108 | AY38: 103.098 | AZ38: 103.098 | BA38: 120.756 | BB38: 121.996 | BC38: 151.065 | BD38: 181.602 | BE38: 181.602 | BF38: 254.193 | BG38: 250.756 | BH38: 253.626 | BI38: 265.106 | BJ38: 265.106 | BK38: 292.77 | BL38: 286.104 | BM38: 328.31 | BN38: 375.634 | BO38: 375.634 | BP38: 362.859 | BQ38: 351.612 | BR38: 344.715 | BS38: 344.715 | BT38: 344.715 | BU38: =BS38 -> 344.715 | BV38: 344.715 | BW38: 344.715 | BX38: 344.715 | BY38: 344.715 | BZ38: =BX38 -> 344.715 | CA38: 344.715 | CB38: 344.715 | CC38: 344.715 | CD38: 344.715 | CE38: =CC38 -> 344.715 | CF38: 344.715 | CG38: 344.715 | CH38: 344.715 | CI38: 344.715 | CJ38: =CH38 -> 344.715 | CK38: 344.715 | CL38: 344.715 | CM38: 344.715 | CN38: 344.715
A39: Other Long Term Liabilities | G39: 0 | L39: 0 | Q39: 0 | T39: 5.097 | U39: 4.838 | V39: 4.838 | W39: 5.058 | X39: 4.767 | Y39: 4.476 | Z39: 7.063 | AA39: 7.063 | AB39: =22.564+7.914 -> 30.478 | AC39: 33.928 | AD39: 32.422 | AE39: 29.966 | AF39: 29.966 | AG39: 31.37 | AH39: 33.721 | AI39: 37.28 | AJ39: 36.394 | AK39: 36.394 | AL39: 40.164 | AM39: 34.213 | AN39: 31.344 | AO39: 26.779 | AP39: 26.779 | AQ39: 27.706 | AR39: 29.218 | AS39: 30.26 | AT39: 34.385 | AU39: 34.385 | AV39: 36.178 | AW39: 38.545 | AX39: 39.385 | AY39: 50.271 | AZ39: 50.271 | BA39: 52.229 | BB39: 51.526 | BC39: 50.801 | BD39: 58.332 | BE39: 58.332 | BF39: 67.742 | BG39: 59.784 | BH39: 61.47 | BI39: 62.347 | BJ39: 62.347 | BK39: 80.221 | BL39: 82.235 | BM39: 68.144 | BN39: 69.272 | BO39: 69.272 | BP39: 78.163 | BQ39: 79.811 | BR39: 80.179 | BS39: 80.179 | BT39: 80.179 | BU39: =BS39 -> 80.179 | BV39: 80.179 | BW39: 80.179 | BX39: 80.179 | BY39: 80.179 | BZ39: =BX39 -> 80.179 | CA39: 80.179 | CB39: 80.179 | CC39: 80.179 | CD39: 80.179 | CE39: =CC39 -> 80.179 | CF39: 80.179 | CG39: 80.179 | CH39: 80.179 | CI39: 80.179 | CJ39: =CH39 -> 80.179 | CK39: 80.179 | CL39: 80.179 | CM39: 80.179 | CN39: 80.179
A41: Total Liabilities | C41: =SUM(C32:C39) -> 0 | D41: =SUM(D32:D39) -> 0 | E41: =SUM(E32:E39) -> 0 | F41: =SUM(F32:F39) -> 315.201 | G41: 315.201 | H41: =SUM(H32:H39) -> 300.431 | I41: =SUM(I32:I39) -> 346.654 | J41: =SUM(J32:J39) -> 344.708 | K41: =SUM(K32:K39) -> 377.289 | L41: 377.289 | M41: =SUM(M32:M39) -> 390.398 | N41: =SUM(N32:N39) -> 432.799 | O41: =SUM(O32:O39) -> 423.005 | P41: =SUM(P32:P39) -> 454.245 | Q41: 454.245 | R41: =SUM(R32:R39) -> 474.022 | S41: =SUM(S32:S39) -> 470.875 | T41: =SUM(T32:T39) -> 495.052 | U41: =SUM(U32:U39) -> 535.155 | V41: 535.155 | W41: =SUM(W32:W39) -> 498.245 | X41: =SUM(X32:X39) -> 551.313 | Y41: =SUM(Y32:Y39) -> 525.444 | Z41: =SUM(Z32:Z39) -> 575.989 | AA41: 575.989 | AB41: =SUM(AB32:AB39) -> 725.121 | AC41: =SUM(AC32:AC39) -> 732.879 | AD41: =SUM(AD32:AD39) -> 706.966 | AE41: =SUM(AE32:AE39) -> 804.181 | AF41: 804.181 | AG41: =SUM(AG32:AG39) -> 796.109 | AH41: =SUM(AH32:AH39) -> 940.237 | AI41: =SUM(AI32:AI39) -> 933.461 | AJ41: =SUM(AJ32:AJ39) -> 1063.697 | AK41: 1063.697 | AL41: =SUM(AL32:AL39) -> 1526.751 | AM41: =SUM(AM32:AM39) -> 1419.76 | AN41: =SUM(AN32:AN39) -> 1267.308 | AO41: =SUM(AO32:AO39) -> 1411.244 | AP41: 1411.244 | AQ41: =SUM(AQ32:AQ39) -> 1276.436 | AR41: =SUM(AR32:AR39) -> 1262.704 | AS41: =SUM(AS32:AS39) -> 1267.402 | AT41: =SUM(AT32:AT39) -> 2391.669 | AU41: 2391.669 | AV41: =SUM(AV32:AV39) -> 2773.649 | AW41: =SUM(AW32:AW39) -> 2828.176 | AX41: =SUM(AX32:AX39) -> 2862.171 | AY41: =SUM(AY32:AY39) -> 2948.761 | AZ41: 2948.761 | BA41: =SUM(BA32:BA39) -> 2884.617 | BB41: =SUM(BB32:BB39) -> 2950.301 | BC41: =SUM(BC32:BC39) -> 2928.8 | BD41: =SUM(BD32:BD39) -> 3208.07 | BE41: 3208.07 | BF41: =SUM(BF32:BF39) -> 3146.406 | BG41: =SUM(BG32:BG39) -> 3266.186 | BH41: =SUM(BH32:BH39) -> 3191.32 | BI41: =SUM(BI32:BI39) -> 3309.341 | BJ41: 3309.341 | BK41: =SUM(BK32:BK39) -> 3360.373 | BL41: =SUM(BL32:BL39) -> 3353.067 | BM41: =SUM(BM32:BM39) -> 3399.397 | BN41: =SUM(BN32:BN39) -> 3655.664 | BO41: 3655.664 | BP41: =SUM(BP32:BP39) -> 3634.999 | BQ41: =SUM(BQ32:BQ39) -> 3735.311 | BR41: =SUM(BR32:BR39) -> 3762.42 | BS41: =SUM(BS32:BS39) -> 3857.566265 | BT41: 3857.566265 | BU41: =SUM(BU32:BU39) -> 3259.024607 | BV41: =SUM(BV32:BV39) -> 3398.13189 | BW41: =SUM(BW32:BW39) -> 3463.021265 | BX41: =SUM(BX32:BX39) -> 3582.417973 | BY41: 3582.417973 | BZ41: =SUM(BZ32:BZ39) -> 3594.836993 | CA41: =SUM(CA32:CA39) -> 3732.618791 | CB41: =SUM(CB32:CB39) -> 3772.435926 | CC41: =SUM(CC32:CC39) -> 3865.080731 | CD41: 3865.080731 | CE41: =SUM(CE32:CE39) -> 3901.713221 | CF41: =SUM(CF32:CF39) -> 4013.806364 | CG41: =SUM(CG32:CG39) -> 4028.133114 | CH41: =SUM(CH32:CH39) -> 4119.326774 | CI41: 4119.326774 | CJ41: =SUM(CJ32:CJ39) -> 4152.80503 | CK41: =SUM(CK32:CK39) -> 4262.854565 | CL41: =SUM(CL32:CL39) -> 4269.653483 | CM41: =SUM(CM32:CM39) -> 4360.452555 | CN41: 4360.452555
A42: Common and Preferred Stock | F42: 29.576 | G42: =+F42 -> 29.576 | H42: 29.576 | I42: 29.576 | J42: 29.576 | K42: 29.576 | L42: =+K42 -> 29.576 | M42: 29.576 | N42: 29.576 | O42: 29.576 | P42: 29.576 | Q42: =+P42 -> 29.576 | R42: 29.576 | S42: 29.576 | T42: 29.576 | U42: 29.576 | V42: =+U42 -> 29.576 | W42: 29.576 | X42: 29.6 | Y42: 29.6 | Z42: 29.6 | AA42: 29.6 | AB42: 29.908 | AC42: 29.908 | AD42: 0.056 | AE42: 0.056 | AF42: =+AE42 -> 0.056 | AG42: 0.061 | AH42: 0.061 | AI42: 0.061 | AJ42: 0.061 | AK42: =+AJ42 -> 0.061 | AL42: 0.061 | AM42: 0.061 | AN42: 0.061 | AO42: 0.061 | AP42: =+AO42 -> 0.061 | AQ42: 0.061 | AR42: 0.061 | AS42: 0.061 | AT42: 0.061 | AU42: =+AT42 -> 0.061 | AV42: 0.061 | AW42: 0.061 | AX42: 0.061 | AY42: 0.061 | AZ42: =+AY42 -> 0.061 | BA42: 0.061 | BB42: 0.061 | BC42: 0.061 | BD42: 0.061 | BE42: =+BD42 -> 0.061 | BF42: 0.061 | BG42: 0.061 | BH42: 0.061 | BI42: 0.061 | BJ42: =+BI42 -> 0.061 | BK42: 0.061 | BL42: 0.061 | BM42: 0.061 | BN42: 0.061 | BO42: =+BN42 -> 0.061 | BP42: 0.061 | BQ42: 0.061 | BR42: 0.061 | BS42: =BQ42 -> 0.061 | BT42: =+BS42 -> 0.061 | BU42: =BS42 -> 0.061 | BV42: =BT42 -> 0.061 | BW42: =BU42 -> 0.061 | BX42: =BV42 -> 0.061 | BY42: =+BX42 -> 0.061 | BZ42: =BX42 -> 0.061 | CA42: =BY42 -> 0.061 | CB42: =BZ42 -> 0.061 | CC42: =CA42 -> 0.061 | CD42: =+CC42 -> 0.061 | CE42: =CC42 -> 0.061 | CF42: =CD42 -> 0.061 | CG42: =CE42 -> 0.061 | CH42: =CF42 -> 0.061 | CI42: =+CH42 -> 0.061 | CJ42: =CH42 -> 0.061 | CK42: =CI42 -> 0.061 | CL42: =CJ42 -> 0.061 | CM42: =CK42 -> 0.061 | CN42: =+CM42 -> 0.061
A43: Additional Paid in Capital | F43: 595.81 | G43: =+F43 -> 595.81 | H43: 620.042 | I43: 695.781 | J43: 706.955 | K43: 710.273 | L43: =+K43 -> 710.273 | M43: 718.286 | N43: 746.008 | O43: 764.323 | P43: 874.126 | Q43: =+P43 -> 874.126 | R43: 901.831 | S43: 953.195 | T43: 1006.431 | U43: 1164.643 | V43: =+U43 -> 1164.643 | W43: 1228.927 | X43: 1264.712 | Y43: 1290.905 | Z43: 1321.146 | AA43: 1321.146 | AB43: 2407.685 | AC43: 2388.203 | AD43: 2437.694 | AE43: 2508.961 | AF43: =+AE43 -> 2508.961 | AG43: 2429.251 | AH43: 2452.639 | AI43: 2432.489 | AJ43: 2340.969 | AK43: =+AJ43 -> 2340.969 | AL43: 2317.582 | AM43: 2308.054 | AN43: 2369.689 | AO43: 2396.819 | AP43: =+AO43 -> 2396.819 | AQ43: 2352.383 | AR43: 2361.224 | AS43: 2303.342 | AT43: 2363.644 | AU43: =+AT43 -> 2363.644 | AV43: 2339.965 | AW43: 2376.202 | AX43: 2425.083 | AY43: 2458.278 | AZ43: =+AY43 -> 2458.278 | BA43: 2529.789 | BB43: 2611.997 | BC43: 2680.407 | BD43: 2753.896 | BE43: =+BD43 -> 2753.896 | BF43: 2821.712 | BG43: 2886.953 | BH43: 2961.799 | BI43: 3038.665 | BJ43: =+BI43 -> 3038.665 | BK43: 3116.471 | BL43: 3189.883 | BM43: 3266.17 | BN43: 3392.696 | BO43: =+BN43 -> 3392.696 | BP43: 3475.186 | BQ43: 3562.682 | BR43: 3675.629 | BS43: =BS66 -> 3801.965345 | BT43: =+BS43 -> 3801.965345 | BU43: =BU66 -> 3882.938495 | BV43: =BV66 -> 3971.27284 | BW43: =BW66 -> 4066.96838 | BX43: =BX66 -> 4170.025116 | BY43: =+BX43 -> 4170.025116 | BZ43: =BZ66 -> 4253.120183 | CA43: =CA66 -> 4343.769348 | CB43: =CB66 -> 4441.972609 | CC43: =CC66 -> 4547.729967 | CD43: =+CC43 -> 4547.729967 | CE43: =CE66 -> 4633.09034 | CF43: =CF66 -> 4726.210747 | CG43: =CG66 -> 4827.091189 | CH43: =CH66 -> 4935.731664 | CI43: =+CH43 -> 4935.731664 | CJ43: =CJ66 -> 5023.480325 | CK43: =CK66 -> 5119.206138 | CL43: =CL66 -> 5222.909102 | CM43: =CM66 -> 5334.589216 | CN43: =+CM43 -> 5334.589216
A44: Other Comprehensive Income | F44: 3.918 | G44: =+F44 -> 3.918 | H44: -1.185 | I44: -6.576 | J44: -7.852 | K44: -3.95 | L44: =+K44 -> -3.95 | M44: -3.657 | N44: -0.506 | O44: -0.127 | P44: -0.999 | Q44: =+P44 -> -0.999 | R44: 5.582 | S44: -4.42 | T44: -0.558 | U44: -2.289 | V44: =+U44 -> -2.289 | W44: -3.223 | X44: 0.523 | Y44: -2.811 | Z44: -0.914 | AA44: -0.914 | AB44: -5.034 | AC44: -2.891 | AD44: 1.762 | AE44: -51.008 | AF44: =+AE44 -> -51.008 | AG44: 7.103 | AH44: 16.755 | AI44: 13.7 | AJ44: 27.948 | AK44: =+AJ44 -> 27.948 | AL44: 26.215 | AM44: 21.301 | AN44: 23.439 | AO44: 57.222 | AP44: =+AO44 -> 57.222 | AQ44: 25.095 | AR44: 27.31 | AS44: 21.728 | AT44: 24.446 | AU44: =+AT44 -> 24.446 | AV44: 29.109 | AW44: 39.995 | AX44: 21.571 | AY44: 17.428 | AZ44: =+AY44 -> 17.428 | BA44: 28.695 | BB44: 54.342 | BC44: 59.194 | BD44: 29.95 | BE44: =+BD44 -> 29.95 | BF44: 46.748 | BG44: 20.615 | BH44: 22.511 | BI44: 30.712 | BJ44: =+BI44 -> 30.712 | BK44: 40.11 | BL44: 27.461 | BM44: 12.966 | BN44: 46.103 | BO44: =+BN44 -> 46.103 | BP44: 56.592 | BQ44: 46.642 | BR44: 20.067 | BS44: 20.067 | BT44: =+BS44 -> 20.067 | BU44: =BS44 -> 20.067 | BV44: 20.067 | BW44: 20.067 | BX44: 20.067 | BY44: =+BX44 -> 20.067 | BZ44: =BX44 -> 20.067 | CA44: 20.067 | CB44: 20.067 | CC44: 20.067 | CD44: =+CC44 -> 20.067 | CE44: =CC44 -> 20.067 | CF44: 20.067 | CG44: 20.067 | CH44: 20.067 | CI44: =+CH44 -> 20.067 | CJ44: =CH44 -> 20.067 | CK44: 20.067 | CL44: 20.067 | CM44: 20.067 | CN44: =+CM44 -> 20.067
A45: Treasury Stock | F45: -1378.537 | G45: =+F45 -> -1378.537 | H45: -1371.958 | I45: -1374.64 | J45: -1477.113 | K45: -1607.354 | L45: =+K45 -> -1607.354 | M45: -1643.879 | N45: -1626.575 | O45: -1650.033 | P45: -1602.301 | Q45: =+P45 -> -1602.301 | R45: -1639.949 | S45: -1742.966 | T45: -1938.046 | U45: -2007.26 | V45: =+U45 -> -2007.26 | W45: -2018.372 | X45: -1962.331 | Y45: -1919.858 | Z45: -2324.072 | AA45: -2324.072 | AB45: -299.585 | AC45: -713.347 | AD45: -686.824 | AE45: -623.924 | AF45: =+AE45 -> -623.924 | AG45: -789.977 | AH45: -887.885 | AI45: -1532.634 | AJ45: -1760.588 | AK45: =+AJ45 -> -1760.588 | AL45: -2790.678 | AM45: -2764.639 | AN45: -2689.236 | AO45: -2957.154 | AP45: =+AO45 -> -2957.154 | AQ45: -2836.219 | AR45: -2783.465 | AS45: -2962.53 | AT45: -2823.914 | AU45: =+AT45 -> -2823.914 | AV45: -2624.783 | AW45: -2807.6 | AX45: -3100.721 | AY45: -3264.294 | AZ45: =+AY45 -> -3264.294 | BA45: -3178.769 | BB45: -3505.559 | BC45: -3557.234 | BD45: -3529.529 | BE45: =+BD45 -> -3529.529 | BF45: -3379.289 | BG45: -3479.213 | BH45: -3361.053 | BI45: -3407.259 | BJ45: =+BI45 -> -3407.259 | BK45: -3159.793 | BL45: -3145.566 | BM45: -3322.654 | BN45: -3643.19 | BO45: =+BN45 -> -3643.19 | BP45: -3655.657 | BQ45: -3778.601 | BR45: -3815.287 | BS45: =BS73 -> -3981.664801 | BT45: =+BS45 -> -3981.664801 | BU45: =BU73 -> -4155.84682 | BV45: =BV73 -> -4338.112855 | BW45: =BW73 -> -4528.752687 | BX45: =BX73 -> -4728.066439 | BY45: =+BX45 -> -4728.066439 | BZ45: =BZ73 -> -4936.36494 | CA45: =CA73 -> -5153.970104 | CB45: =CB73 -> -5381.215331 | CC45: =CC73 -> -5618.445907 | CD45: =+CC45 -> -5618.445907 | CE45: =CE73 -> -5866.019431 | CF45: =CF73 -> -6124.306253 | CG45: =CG73 -> -6393.689923 | CH45: =CH73 -> -6674.567664 | CI45: =+CH45 -> -6674.567664 | CJ45: =CJ73 -> -6967.350857 | CK45: =CK73 -> -7272.46554 | CL45: =CL73 -> -7590.352935 | CM45: =CM73 -> -7921.469981 | CN45: =+CM45 -> -7921.469981
A46: Retained Earnings | F46: 1366.205 | G46: =+F46 -> 1366.205 | H46: 1413.036 | I46: 1464.342 | J46: 1508.589 | K46: 1545.776 | L46: =+K46 -> 1545.776 | M46: 1597.107 | N46: 1658.434 | O46: 1720.037 | P46: 1800.398 | Q46: =+P46 -> 1800.398 | R46: 1920.444 | S46: 2026.867 | T46: 2128.353 | U46: 2238.807 | V46: =+U46 -> 2238.807 | W46: 2387.657 | X46: 2537.399 | Y46: 2682.315 | Z46: 2838.566 | AA46: 2838.566 | AB46: 2943.638 | AC46: 3066.734 | AD46: 3161.131 | AE46: 3316.402 | AF46: =+AE46 -> 3316.402 | AG46: 3461.637 | AH46: 3614.142 | AI46: 3819.384 | AJ46: 4041.592 | AK46: =+AJ46 -> 4041.592 | AL46: 4260.97 | AM46: 4475.88 | AN46: 4667.489 | AO46: 4913.406 | AP46: =+AO46 -> 4913.406 | AQ46: 5069.84 | AR46: 5195.911 | AS46: 5331.957 | AT46: 5299.913 | AU46: =+AT46 -> 5299.913 | AV46: 5427.068 | AW46: 5570.097 | AX46: 5738.864 | AY46: 5980.914 | AZ46: =+AY46 -> 5980.914 | BA46: 6045.631 | BB46: 6228.574 | BC46: 6381.53 | BD46: 6528.735 | BE46: =+BD46 -> 6528.735 | BF46: 6497.07 | BG46: 6671.23 | BH46: 6815.375 | BI46: 7003.003 | BJ46: =+BI46 -> 7003.003 | BK46: 6808.489 | BL46: 6855.463 | BM46: 6878.216 | BN46: 6928.964 | BO46: =+BN46 -> 6928.964 | BP46: 6734.701 | BQ46: 6806.104 | BR46: 6850.79 | BS46: 6911.904235 | BT46: =+BS46 -> 6911.904235 | BU46: 7034.320036 | BV46: 7195.700359 | BW46: 7394.557814 | BX46: 7616.144811 | BY46: =+BX46 -> 7616.144811 | BZ46: 7907.221434 | CA46: 8223.914317 | CB46: 8570.215068 | CC46: 8940.477789 | CD46: =+CC46 -> 8940.477789 | CE46: 9327.844565 | CF46: 9734.093447 | CG46: 10166.12863 | CH46: 10623.03086 | CI46: =+CH46 -> 10623.03086 | CJ46: 11075.57502 | CK46: 11546.61647 | CL46: 12043.49232 | CM46: 12565.3053 | CN46: =+CM46 -> 12565.3053
A48: Total Stockholder's Equity | C48: =SUM(C42:C46) -> 0 | D48: =SUM(D42:D46) -> 0 | E48: =SUM(E42:E46) -> 0 | F48: =SUM(F42:F46) -> 616.972 | G48: =F48 -> 616.972 | H48: =SUM(H42:H46) -> 689.511 | I48: =SUM(I42:I46) -> 808.483 | J48: =SUM(J42:J46) -> 760.155 | K48: =SUM(K42:K46) -> 674.321 | L48: =K48 -> 674.321 | M48: =SUM(M42:M46) -> 697.433 | N48: =SUM(N42:N46) -> 806.937 | O48: =SUM(O42:O46) -> 863.776 | P48: =SUM(P42:P46) -> 1100.8 | Q48: =P48 -> 1100.8 | R48: =SUM(R42:R46) -> 1217.484 | S48: =SUM(S42:S46) -> 1262.252 | T48: =SUM(T42:T46) -> 1225.756 | U48: =SUM(U42:U46) -> 1423.477 | V48: =U48 -> 1423.477 | W48: =SUM(W42:W46) -> 1624.565 | X48: =SUM(X42:X46) -> 1869.903 | Y48: =SUM(Y42:Y46) -> 2080.151 | Z48: =SUM(Z42:Z46) -> 1864.326 | AA48: 1864.326 | AB48: =SUM(AB42:AB46) -> 5076.612 | AC48: =SUM(AC42:AC46) -> 4768.607 | AD48: =SUM(AD42:AD46) -> 4913.819 | AE48: =SUM(AE42:AE46) -> 5150.487 | AF48: =AE48 -> 5150.487 | AG48: =SUM(AG42:AG46) -> 5108.075 | AH48: =SUM(AH42:AH46) -> 5195.712 | AI48: =SUM(AI42:AI46) -> 4733 | AJ48: =SUM(AJ42:AJ46) -> 4649.982 | AK48: =AJ48 -> 4649.982 | AL48: =SUM(AL42:AL46) -> 3814.15 | AM48: =SUM(AM42:AM46) -> 4040.657 | AN48: =SUM(AN42:AN46) -> 4371.442 | AO48: =SUM(AO42:AO46) -> 4410.354 | AP48: =AO48 -> 4410.354 | AQ48: =SUM(AQ42:AQ46) -> 4611.16 | AR48: =SUM(AR42:AR46) -> 4801.041 | AS48: =SUM(AS42:AS46) -> 4694.558 | AT48: =SUM(AT42:AT46) -> 4864.15 | AU48: =AT48 -> 4864.15 | AV48: =SUM(AV42:AV46) -> 5171.42 | AW48: =SUM(AW42:AW46) -> 5178.755 | AX48: =SUM(AX42:AX46) -> 5084.858 | AY48: =SUM(AY42:AY46) -> 5192.387 | AZ48: =AY48 -> 5192.387 | BA48: =SUM(BA42:BA46) -> 5425.407 | BB48: =SUM(BB42:BB46) -> 5389.415 | BC48: =SUM(BC42:BC46) -> 5563.958 | BD48: =SUM(BD42:BD46) -> 5783.113 | BE48: =BD48 -> 5783.113 | BF48: =SUM(BF42:BF46) -> 5986.302 | BG48: =SUM(BG42:BG46) -> 6099.646 | BH48: =SUM(BH42:BH46) -> 6438.693 | BI48: =SUM(BI42:BI46) -> 6665.182 | BJ48: =BI48 -> 6665.182 | BK48: =SUM(BK42:BK46) -> 6805.338 | BL48: =SUM(BL42:BL46) -> 6927.302 | BM48: =SUM(BM42:BM46) -> 6834.759 | BN48: =SUM(BN42:BN46) -> 6724.634 | BO48: =BN48 -> 6724.634 | BP48: =SUM(BP42:BP46) -> 6610.883 | BQ48: =SUM(BQ42:BQ46) -> 6636.888 | BR48: =SUM(BR42:BR46) -> 6731.26 | BS48: =SUM(BS42:BS46) -> 6752.332778 | BT48: =BS48 -> 6752.332778 | BU48: =SUM(BU42:BU46) -> 6781.53971 | BV48: =SUM(BV42:BV46) -> 6848.988344 | BW48: =SUM(BW42:BW46) -> 6952.901507 | BX48: =SUM(BX42:BX46) -> 7078.231488 | BY48: =BX48 -> 7078.231488 | BZ48: =SUM(BZ42:BZ46) -> 7244.104678 | CA48: =SUM(CA42:CA46) -> 7433.84156 | CB48: =SUM(CB42:CB46) -> 7651.100345 | CC48: =SUM(CC42:CC46) -> 7889.889849 | CD48: =CC48 -> 7889.889849 | CE48: =SUM(CE42:CE46) -> 8115.043474 | CF48: =SUM(CF42:CF46) -> 8356.125941 | CG48: =SUM(CG42:CG46) -> 8619.657895 | CH48: =SUM(CH42:CH46) -> 8904.322864 | CI48: =CH48 -> 8904.322864 | CJ48: =SUM(CJ42:CJ46) -> 9151.832491 | CK48: =SUM(CK42:CK46) -> 9413.485071 | CL48: =SUM(CL42:CL46) -> 9696.176491 | CM48: =SUM(CM42:CM46) -> 9998.552537 | CN48: =CM48 -> 9998.552537
A49: Total Liabs & Stockholder's Equity | C49: =C41+C48 -> 0 | D49: =D41+D48 -> 0 | E49: =E41+E48 -> 0 | F49: =F41+F48 -> 932.173 | G49: =F49 -> 932.173 | H49: =H41+H48 -> 989.942 | I49: =I41+I48 -> 1155.137 | J49: =J41+J48 -> 1104.863 | K49: =K41+K48 -> 1051.61 | L49: =K49 -> 1051.61 | M49: =M41+M48 -> 1087.831 | N49: =N41+N48 -> 1239.736 | O49: =O41+O48 -> 1286.781 | P49: =P41+P48 -> 1555.045 | Q49: =P49 -> 1555.045 | R49: =R41+R48 -> 1691.506 | S49: =S41+S48 -> 1733.127 | T49: =T41+T48 -> 1720.808 | U49: =U41+U48 -> 1958.632 | V49: =U49 -> 1958.632 | W49: =W41+W48 -> 2122.81 | X49: =X41+X48 -> 2421.216 | Y49: =Y41+Y48 -> 2605.595 | Z49: =Z41+Z48 -> 2440.315 | AA49: 2440.315 | AB49: =AB41+AB48 -> 5801.733 | AC49: =AC41+AC48 -> 5501.486 | AD49: =AD41+AD48 -> 5620.785 | AE49: =AE41+AE48 -> 5954.668 | AF49: =AE49 -> 5954.668 | AG49: =AG41+AG48 -> 5904.184 | AH49: =AH41+AH48 -> 6135.949 | AI49: =AI41+AI48 -> 5666.461 | AJ49: =AJ41+AJ48 -> 5713.679 | AK49: =AJ49 -> 5713.679 | AL49: =AL41+AL48 -> 5340.901 | AM49: =AM41+AM48 -> 5460.417 | AN49: =AN41+AN48 -> 5638.75 | AO49: =AO41+AO48 -> 5821.598 | AP49: =AO49 -> 5821.598 | AQ49: =AQ41+AQ48 -> 5887.596 | AR49: =AR41+AR48 -> 6063.745 | AS49: =AS41+AS48 -> 5961.96 | AT49: =AT41+AT48 -> 7255.819 | AU49: =AT49 -> 7255.819 | AV49: =AV41+AV48 -> 7945.069 | AW49: =AW41+AW48 -> 8006.931 | AX49: =AX41+AX48 -> 7947.029 | AY49: =AY41+AY48 -> 8141.148 | AZ49: =AY49 -> 8141.148 | BA49: =BA41+BA48 -> 8310.024 | BB49: =BB41+BB48 -> 8339.716 | BC49: =BC41+BC48 -> 8492.758 | BD49: =BD41+BD48 -> 8991.183 | BE49: =BD49 -> 8991.183 | BF49: =BF41+BF48 -> 9132.708 | BG49: =BG41+BG48 -> 9365.832 | BH49: =BH41+BH48 -> 9630.013 | BI49: =BI41+BI48 -> 9974.523 | BJ49: =BI49 -> 9974.523 | BK49: =BK41+BK48 -> 10165.711 | BL49: =BL41+BL48 -> 10280.369 | BM49: =BM41+BM48 -> 10234.156 | BN49: =BN41+BN48 -> 10380.298 | BO49: =BN49 -> 10380.298 | BP49: =BP41+BP48 -> 10245.882 | BQ49: =BQ41+BQ48 -> 10372.199 | BR49: =BR41+BR48 -> 10493.68 | BS49: =BS41+BS48 -> 10609.89904 | BT49: =BS49 -> 10609.89904 | BU49: =BU41+BU48 -> 10040.56432 | BV49: =BV41+BV48 -> 10247.12023 | BW49: =BW41+BW48 -> 10415.92277 | BX49: =BX41+BX48 -> 10660.64946 | BY49: =BX49 -> 10660.64946 | BZ49: =BZ41+BZ48 -> 10838.94167 | CA49: =CA41+CA48 -> 11166.46035 | CB49: =CB41+CB48 -> 11423.53627 | CC49: =CC41+CC48 -> 11754.97058 | CD49: =CC49 -> 11754.97058 | CE49: =CE41+CE48 -> 12016.7567 | CF49: =CF41+CF48 -> 12369.93231 | CG49: =CG41+CG48 -> 12647.79101 | CH49: =CH41+CH48 -> 13023.64964 | CI49: =CH49 -> 13023.64964 | CJ49: =CJ41+CJ48 -> 13304.63752 | CK49: =CK41+CK48 -> 13676.33964 | CL49: =CL41+CL48 -> 13965.82997 | CM49: =CM41+CM48 -> 14359.00509 | CN49: =CM49 -> 14359.00509
F50: =IF(F49=F22," ",F49-F22) -> 768.914 | G50: 768.914 | H50: 826.203 | I50: 907.777 | J50: 863.669 | K50: 814.172 | L50: 814.172 | M50: 853.047 | W50: =IF(W49=W22," ",W49-W22) ->  | AE50: 0.011 | AF50: 0.011 | AL50: =IF(AL49=AL22," ",AL49-AL22) ->  | AM50: =IF(AM49=AM22," ",AM49-AM22) ->  | AN50: =IF(AN49=AN22," ",AN49-AN22) ->  | AO50: =IF(AO49=AO22," ",AO49-AO22) -> 
A51: Net Cash Per Share | AN51: 3.049825331 | AQ51: 3.85293371 | AR51: 4.382818226 | AS51: 4.148972657 | AT51: 1.700261861 | AV51: 2.213177632 | AW51: 2.158558974 | AX51: 2.030895735 | AY51: 1.864251069 | BA51: 2.200825347 | BB51: 2.204495536 | BC51: 2.43011503 | BD51: 2.834233348 | BF51: 2.524541447 | BG51: 2.986672703 | BH51: 3.496663378 | BI51: 4.065316616 | BK51: 4.23693683 | BL51: 4.605652108 | BM51: 3.231993776 | BN51: 3.276294215 | BP51: 4.397989535 | BQ51: 4.80308356 | BR51: 5.156184092 | BS51: 5.153394969 | BU51: 4.111690888 | BV51: 4.584121107 | BW51: 4.806176022 | BX51: 5.103040462 | BZ51: 5.526894602 | CA51: 6.270749178 | CB51: 6.661868456 | CC51: 7.10720218 | CE51: 7.719590915 | CF51: 8.582724908 | CG51: 9.039665608 | CH51: 9.564019471 | CJ51: 10.22618852 | CK51: 11.15678428 | CL51: 11.64395489 | CM51: 12.20028692
A54: Common/Preferred Stock Change, net | H54: =H42-F42 -> 0 | I54: =I42-H42 -> 0 | J54: =J42-I42 -> 0 | K54: =K42-J42 -> 0 | L54: =SUM(H54:K54) -> 0 | M54: =M42-K42 -> 0 | N54: =N42-M42 -> 0 | O54: =O42-N42 -> 0 | P54: =P42-O42 -> 0 | Q54: =SUM(M54:P54) -> 0 | R54: =R42-P42 -> 0 | S54: =S42-R42 -> 0 | T54: =T42-S42 -> 0 | U54: =U42-T42 -> 0 | V54: =SUM(R54:U54) -> 0 | W54: =W42-U42 -> 0 | X54: =X42-W42 -> 0.024 | Y54: =Y42-X42 -> 0 | Z54: =Z42-Y42 -> 0 | AA54: =SUM(W54:Z54) -> 0.024 | AB54: =AB42-Z42 -> 0.308 | AC54: =AC42-AB42 -> 0 | AD54: =AD42-AC42 -> -29.852 | AE54: =AE42-AD42 -> 0 | AF54: =SUM(AB54:AE54) -> -29.544 | AG54: =AG42-AE42 -> 0.005 | AH54: =AH42-AG42 -> 0 | AI54: =AI42-AH42 -> 0 | AJ54: =AJ42-AI42 -> 0 | AK54: =SUM(AG54:AJ54) -> 0.005 | AL54: =AL42-AJ42 -> 0 | AM54: =AM42-AL42 -> 0 | AN54: =AN42-AM42 -> 0 | AO54: =AO42-AN42 -> 0 | AP54: =SUM(AL54:AO54) -> 0 | AQ54: =AQ42-AO42 -> 0 | AR54: =AR42-AQ42 -> 0 | AS54: =AS42-AR42 -> 0 | AT54: =AT42-AS42 -> 0 | AU54: =SUM(AQ54:AT54) -> 0 | AV54: =AV42-AT42 -> 0 | AW54: =AW42-AV42 -> 0 | AX54: =AX42-AW42 -> 0 | AY54: =AY42-AX42 -> 0 | AZ54: =SUM(AV54:AY54) -> 0 | BA54: =BA42-AY42 -> 0 | BB54: =BB42-BA42 -> 0 | BC54: =BC42-BB42 -> 0 | BD54: =BD42-BC42 -> 0 | BE54: =SUM(BA54:BD54) -> 0 | BF54: =BF42-BD42 -> 0 | BG54: =BG42-BF42 -> 0 | BH54: =BH42-BG42 -> 0 | BI54: =BI42-BH42 -> 0 | BJ54: =SUM(BF54:BI54) -> 0 | BK54: =BK42-BI42 -> 0 | BL54: =BL42-BK42 -> 0 | BM54: =BM42-BL42 -> 0 | BN54: =BN42-BM42 -> 0 | BO54: =SUM(BK54:BN54) -> 0 | BP54: =BP42-BN42 -> 0 | BQ54: =BQ42-BP42 -> 0 | BR54: =BR42-BQ42 -> 0 | BS54: =BS42-BR42 -> 0 | BT54: =SUM(BP54:BS54) -> 0 | BU54: =BU42-BS42 -> 0 | BV54: =BV42-BU42 -> 0 | BW54: =BW42-BV42 -> 0 | BX54: =BX42-BW42 -> 0 | BY54: =SUM(BU54:BX54) -> 0 | BZ54: =BZ42-BX42 -> 0 | CA54: =CA42-BZ42 -> 0 | CB54: =CB42-CA42 -> 0 | CC54: =CC42-CB42 -> 0 | CD54: =SUM(BZ54:CC54) -> 0 | CE54: =CE42-CC42 -> 0 | CF54: =CF42-CE42 -> 0 | CG54: =CG42-CF42 -> 0 | CH54: =CH42-CG42 -> 0 | CI54: =SUM(CE54:CH54) -> 0 | CJ54: =CJ42-CH42 -> 0 | CK54: =CK42-CJ42 -> 0 | CL54: =CL42-CK42 -> 0 | CM54: =CM42-CL42 -> 0 | CN54: =SUM(CJ54:CM54) -> 0
A55: Additional Paid-in Capital, net | H55: =H43-F43+H45-F45+H93 -> 30.811 | I55: =I43-H43+I45-H45+I93 -> 73.057 | J55: =J43-I43+J45-I45+J93 -> -91.299 | K55: =K43-J43+K45-J45+K93 -> -126.923 | L55: =SUM(H55:K55) -> -114.354 | M55: =M43-K43+M45-K45+M93 -> -28.512 | N55: =N43-M43+N45-M45+N93 -> 45.026 | O55: =O43-N43+O45-N45+O93 -> -5.143 | P55: =P43-O43+P45-O45+P93 -> 157.535 | Q55: =SUM(M55:P55) -> 168.906 | R55: =R43-P43+R45-P45+R93 -> -9.943 | S55: =S43-R43+S45-R45+S93 -> -51.653 | T55: =T43-S43+T45-S45+T93 -> -141.844 | U55: =U43-T43+U45-T45+U93 -> 88.998 | V55: =SUM(R55:U55) -> -114.442 | W55: =W43-U43+W45-U45+W93 -> 53.172 | X55: =X43-W43+X45-W45+X93 -> 91.826 | Y55: =Y43-X43+Y45-X45+Y93 -> 68.666 | Z55: =Z43-Y43+Z45-Y45+Z93 -> -373.973 | AA55: =SUM(W55:Z55) -> -160.309 | AB55: =AB43-Z43+AB45-Z45+AB93 -> 3381.13 | AC55: =AC43-AB43+AC45-AB45+AC93 -> 64.616 | AD55: =AD43-AC43+AD45-AC45+AD93 -> 111.305 | AE55: =AE43-AD43+AE45-AD45+AE93 -> 185.818 | AF55: =SUM(AB55:AE55) -> 3742.869 | AG55: =AG43-AE43+AG45-AE45+AG93 -> -38.328 | AH55: =AH43-AG43+AH45-AG45+AH93 -> 87.693 | AI55: =AI43-AH43+AI45-AH45+AI93 -> 62.326 | AJ55: =AJ43-AI43+AJ45-AI45+AJ93 -> 18.904 | AK55: =SUM(AG55:AJ55) -> 130.595 | AL55: =AL43-AJ43+AL45-AJ45+AL93 -> 96.545 | AM55: =AM43-AL43+AM45-AL45+AM93 -> 166.672 | AN55: =AN43-AM43+AN45-AM45+AN93 -> 259.59 | AO55: =AO43-AN43+AO45-AN45+AO93 -> 59.192 | AP55: =SUM(AL55:AO55) -> 581.999 | AQ55: =AQ43-AO43+AQ45-AO45+AQ93 -> 76.512 | AR55: =AR43-AQ43+AR45-AQ45+AR93 -> 61.595 | AS55: =AS43-AR43+AS45-AR45+AS93 -> 113.053 | AT55: =AT43-AS43+AT45-AS45+AT93 -> 198.918 | AU55: =SUM(AQ55:AT55) -> 450.078 | AV55: =AV43-AT43+AV45-AT45+AV93 -> 175.472 | AW55: =AW43-AV43+AW45-AV45+AW93 -> 103.42 | AX55: =AX43-AW43+AX45-AW45+AX93 -> 155.76 | AY55: =AY43-AX43+AY45-AX45+AY93 -> 59.994 | AZ55: =SUM(AV55:AY55) -> 494.646 | BA55: =BA43-AY43+BA45-AY45+BA93 -> 240.536 | BB55: =BB43-BA43+BB45-BA45+BB93 -> 217.018 | BC55: =BC43-BB43+BC45-BB45+BC93 -> 116.735 | BD55: =BD43-BC43+BD45-BC45+BD93 -> 101.194 | BE55: =SUM(BA55:BD55) -> 675.483 | BF55: =BF43-BD43+BF45-BD45+BF93 -> 271.056 | BG55: =BG43-BF43+BG45-BF45+BG93 -> 141.017 | BH55: =BH43-BG43+BH45-BG45+BH93 -> 269.106 | BI55: =BI43-BH43+BI45-BH45+BI93 -> 97.66 | BJ55: =SUM(BF55:BI55) -> 778.839 | BK55: =BK43-BI43+BK45-BI45+BK93 -> 425.272 | BL55: =BL43-BK43+BL45-BK45+BL93 -> 259.639 | BM55: =BM43-BL43+BM45-BL45+BM93 -> 225.199 | BN55: =BN43-BM43+BN45-BM45+BN93 -> 210.99 | BO55: =SUM(BK55:BN55) -> 1121.1 | BP55: =BP43-BN43+BP45-BN45+BP93 -> 333.023 | BQ55: =BQ43-BP43+BQ45-BP45+BQ93 -> 130.552 | BR55: =BR43-BQ43+BR45-BQ45+BR93 -> 209.261 | BS55: =BS43-BR43+BS45-BR45+BS93 -> 176.3363448 | BT55: =SUM(BP55:BS55) -> 849.1723448 | BU55: =BU43-BS43+BU45-BS45+BU93 -> 130.9731498 | BV55: =BV43-BU43+BV45-BU45+BV93 -> 138.3343452 | BW55: =BW43-BV43+BW45-BV45+BW93 -> 145.6955406 | BX55: =BX43-BW43+BX45-BW45+BX93 -> 153.056736 | BY55: =SUM(BU55:BX55) -> 568.0597716 | BZ55: =BZ43-BX43+BZ45-BX45+BZ93 -> 133.0950671 | CA55: =CA43-BZ43+CA45-BZ45+CA93 -> 140.6491641 | CB55: =CB43-CA43+CB45-CA45+CB93 -> 148.2032611 | CC55: =CC43-CB43+CC45-CB45+CC93 -> 155.7573581 | CD55: =SUM(BZ55:CC55) -> 577.7048504 | CE55: =CE43-CC43+CE45-CC45+CE93 -> 135.3603734 | CF55: =CF43-CE43+CF45-CE45+CF93 -> 143.1204073 | CG55: =CG43-CF43+CG45-CF45+CG93 -> 150.8804413 | CH55: =CH43-CG43+CH45-CG45+CH93 -> 158.6404752 | CI55: =SUM(CE55:CH55) -> 588.0016971 | CJ55: =CJ43-CH43+CJ45-CH45+CJ93 -> 137.7486615 | CK55: =CK43-CJ43+CK45-CJ45+CK93 -> 145.7258125 | CL55: =CL43-CK43+CL45-CK45+CL93 -> 153.7029636 | CM55: =CM43-CL43+CM45-CL45+CM93 -> 161.6801146 | CN55: =SUM(CJ55:CM55) -> 598.8575522
A56: Shares Issued, net | L56: =SUM(H56:K56) -> 0 | Q56: =SUM(M56:P56) -> 0 | V56: =SUM(R56:U56) -> 0 | W56: -102.532854 | X56: 2.594425 | Y56: 2.538003 | Z56: -5.398574 | AA56: =SUM(W56:Z56) -> -102.799 | AB56: 119.590127 | AC56: -4.940038 | AD56: 16.225897 | AE56: 9.90832 | AF56: =SUM(AB56:AE56) -> 140.784306 | AG56: 8.23368 | AH56: 2.38632 | AI56: 12.59568 | AJ56: -1.50368 | AK56: 23.918 | AL56: -3.141118 | AM56: 13.831144 | AN56: 3.401899 | AO56: 0.079541 | AP56: =SUM(AL56:AO56) -> 14.171466 | AQ56: 5.059374 | AR56: 1.335 | AS56: 4.135 | AT56: 3.323 | AU56: =SUM(AQ56:AT56) -> 13.852374 | AV56: 4.825 | AW56: 1.786 | AX56: 2.5 | AY56: 4.9 | AZ56: =SUM(AV56:AY56) -> 14.011 | BA56: 5.819 | BB56: 2.642 | BC56: 4.671 | BD56: 4.9 | BE56: =SUM(BA56:BD56) -> 18.032 | BF56: 1.3 | BG56: 2.4 | BH56: 1.9 | BI56: 4.9 | BJ56: =SUM(BF56:BI56) -> 10.5 | BK56: 4.954 | BL56: 5.907 | BM56: 5.754 | BN56: 2.355 | BO56: =SUM(BK56:BN56) -> 18.97 | BP56: 6.74 | BQ56: 1.346 | BR56: 2.416518 | BS56: 3.5 | BT56: =SUM(BP56:BS56) -> 14.002518 | BU56: 3.5 | BV56: 3.5 | BW56: 3.5 | BX56: 3.5 | BY56: =SUM(BU56:BX56) -> 14 | BZ56: 3.5 | CA56: 3.5 | CB56: 3.5 | CC56: 3.5 | CD56: =SUM(BZ56:CC56) -> 14 | CE56: 3.5 | CF56: 3.5 | CG56: 3.5 | CH56: 3.5 | CI56: =SUM(CE56:CH56) -> 14 | CJ56: 3.5 | CK56: 3.5 | CL56: 3.5 | CM56: 3.5 | CN56: =SUM(CJ56:CM56) -> 14
A57: Average price | G57: =IF(ISERROR((G54+G55)/G56),"-",(G54+G55)/G56) -> - | H57: - | I57: - | J57: - | K57: - | L57: - | M57: - | N57: - | O57: - | P57: - | Q57: - | R57: - | S57: - | T57: - | U57: - | V57: - | W57: -0.5185849991 | X57: 35.40283492 | Y57: 27.05512956 | Z57: 69.27255234 | AA57: 1.559207774 | AB57: 28.2752271 | AC57: -13.08006133 | AD57: 5.019938189 | AE57: 18.75373424 | AF57: 26.37598682 | AG57: -4.654419409 | AH57: 36.74821482 | AI57: 4.948204464 | AJ57: -12.57182379 | AK57: 5.460322769 | AL57: -30.73587175 | AM57: 12.05048548 | AN57: 76.30738008 | AO57: 744.1696735 | AP57: 41.06836936 | AQ57: 15.12281954 | AR57: 46.13857678 | AS57: 27.34050786 | AT57: 59.860969 | AU57: 32.49103728 | AV57: 36.36725389 | AW57: 57.90593505 | AX57: 62.304 | AY57: 12.24367347 | AZ57: 35.30411819 | BA57: 41.33631208 | BB57: 82.14155942 | BC57: 24.99143652 | BD57: 20.65183673 | BE57: =IF(ISERROR((BE54+BE55)/BE56),"-",(BE54+BE55)/BE56) -> 37.46023736 | BF57: 208.5046154 | BG57: 58.75708333 | BH57: 141.6347368 | BI57: 19.93061224 | BJ57: =IF(ISERROR((BJ54+BJ55)/BJ56),"-",(BJ54+BJ55)/BJ56) -> 74.17514286 | BK57: 85.84416633 | BL57: 43.95446081 | BM57: 39.13781717 | BN57: =IF(ISERROR((BN54+BN55)/BN56),"-",(BN54+BN55)/BN56) -> 89.59235669 | BO57: =IF(ISERROR((BO54+BO55)/BO56),"-",(BO54+BO55)/BO56) -> 59.0985767 | BP57: 49.40994065 | BQ57: 96.99257058 | BR57: 86.59608577 | BS57: 50.38181279 | BT57: 60.64426018 | BU57: 37.42089993 | BV57: 39.52409862 | BW57: 41.62729732 | BX57: 43.73049601 | BY57: 40.57569797 | BZ57: 38.02716203 | CA57: 40.18547546 | CB57: 42.34378889 | CC57: 44.50210232 | CD57: 41.26463217 | CE57: 38.67439239 | CF57: 40.89154495 | CG57: 43.1086975 | CH57: 45.32585006 | CI57: 42.00012122 | CJ57: 39.35676043 | CK57: 41.63594644 | CL57: 43.91513245 | CM57: 46.19431847 | CN57: 42.77553945
A58: Average Share Price for FY | C58: 25.9931 | D58: 18.78453 | E58: 19.84446 | F58: 14.886833 | G58: 19.87133 | H58: 17.24967 | I58: 19.36039 | J58: 12.800772 | K58: 11.497993 | L58: 15.202844 | M58: 13.411863 | N58: 16.50071 | O58: 17.09908 | P58: 20.68031 | Q58: 16.95133 | R58: 19.33989 | S58: 20.4675 | T58: 22.04453 | U58: 26.61718 | V58: 22.13248 | W58: 30.4332 | X58: 31.40547 | Y58: 29.03815 | Z58: 30.4427 | AA58: 30.32988 | AB58: 37.99433 | AC58: 35.34078 | AD58: 30.13883 | AE58: 37.91061 | AF58: 35.3461375 | AG58: 39.71441 | AH58: 41.65503 | AI58: 41.31231 | AJ58: 44.24625 | AK58: 41.732 | AL58: 38.33371 | AM58: 40.58175 | AN58: 42.08815 | AO58: 31.05273 | AP58: 38.014085 | AQ58: 31.75568618 | AR58: 32.47455552 | AS58: 33.20969827 | AT58: 33.96148282 | AU58: 32.8503557 | AV58: 34.81603863 | AW58: 35.6920972 | AX58: 36.5901996 | AY58: 37.51090049 | AZ58: =AVERAGE(AV58:AY58) -> 36.15230898 | BA58: 38.45476853 | BB58: 39.42238664 | BC58: 40.41435244 | BD58: 41.43127859 | BE58: =AVERAGE(BA58:BD58) -> 39.93069655 | BF58: 42.47379313 | BG58: 43.54253995 | BH58: 44.63817912 | BI58: 45.7613873 | BJ58: =AVERAGE(BF58:BI58) -> 44.10397488 | BK58: 46.91285821 | BL58: 48.093303 | BM58: 49.30345074 | BN58: 50.54404882 | BO58: =AVERAGE(BK58:BN58) -> 48.71341519 | BP58: 51.81586344 | BQ58: 53.11968011 | BR58: 54.45630406 | BS58: 55.82656081 | BT58: =AVERAGE(BP58:BS58) -> 53.80460211 | BU58: 57.23129665 | BV58: 58.67137915 | BW58: 60.14769773 | BX58: 61.66116417 | BY58: =AVERAGE(BU58:BX58) -> 59.42788442 | BZ58: 63.21271321 | CA58: 64.80330311 | CB58: 66.43391622 | CC58: 68.10555964 | CD58: =AVERAGE(BZ58:CC58) -> 65.63887305 | CE58: 69.81926579 | CF58: 71.57609306 | CG58: 73.3771265 | CH58: 75.22347845 | CI58: =AVERAGE(CE58:CH58) -> 72.49899095 | CJ58: 77.11628922 | CK58: 79.05672785 | CL58: 81.04599277 | CM58: 83.08531256 | CN58: =AVERAGE(CJ58:CM58) -> 80.0760806
AF59: =AF57/AF58 -> 0.7462197764 | AK59: =AK57/AK58 -> 0.1308425853 | AP59: =AP57/AP58 -> 1.080346123 | AU59: =AU57/AU58 -> 0.9890619626 | AZ59: =AZ57/AZ58 -> 0.9765384063 | BE59: =BE57/BE58 -> 0.9381313274 | BJ59: =BJ57/BJ58 -> 1.68182444 | BO59: =BO57/BO58 -> 1.213188943 | BT59: =BT57/BT58 -> 1.127120317 | BY59: =BY57/BY58 -> 0.6827720415 | CD59: =CD57/CD58 -> 0.6286614967 | CI59: =CI57/CI58 -> 0.5793200798 | CN59: =CN57/CN58 -> 0.534186228
A60: Additional Paid-in Capital -- Q Beginning | D60: =C66 -> 0 | E60: =D66 -> 0 | F60: =E66 -> 0 | G60: 595.81 | H60: =F66 -> 595.81 | I60: =H66 -> 620.042 | J60: =I66 -> 695.781 | K60: =J66 -> 706.955 | L60: =G43 -> 595.81 | M60: =K66 -> 710.273 | N60: =M66 -> 718.286 | O60: =N66 -> 746.008 | P60: =O66 -> 764.323 | Q60: =L43 -> 710.273 | R60: =P66 -> 874.126 | S60: =R66 -> 901.831 | T60: =S66 -> 953.195 | U60: =T66 -> 1006.431 | V60: =Q43 -> 874.126 | W60: =U66 -> 1164.643 | X60: =W66 -> 1228.927 | Y60: =X66 -> 1264.712 | Z60: =Y66 -> 1290.905 | AA60: =V43 -> 1164.643 | AB60: =Z66 -> 1321.146 | AC60: =AB66 -> 2407.685 | AD60: =AC66 -> 2388.203 | AE60: =AD66 -> 2437.694 | AF60: =AA43 -> 1321.146 | AG60: =AE66 -> 2508.961 | AH60: =AG66 -> 2429.251 | AI60: =AH66 -> 2452.639 | AJ60: =AI66 -> 2432.489 | AK60: =AG60 -> 2508.961 | AL60: =AJ66 -> 2340.969 | AM60: =AL66 -> 2317.582 | AN60: =AM66 -> 2308.054 | AO60: =AN66 -> 2369.689 | AP60: =AL60 -> 2340.969 | AQ60: =AO66 -> 2396.819 | AR60: =AQ66 -> 2352.383 | AS60: =AR66 -> 2361.224 | AT60: =AS66 -> 2303.342 | AU60: =AQ60 -> 2396.819 | AV60: =AT66 -> 2363.644 | AW60: =AV66 -> 2339.965 | AX60: =AW66 -> 2376.202 | AY60: =AX66 -> 2425.083 | AZ60: =AU43 -> 2363.644 | BA60: =AZ66 -> 2458.278 | BB60: =BA66 -> 2529.789 | BC60: =BB66 -> 2611.997 | BD60: =BC66 -> 2680.407 | BE60: =AZ43 -> 2458.278 | BF60: =BE66 -> 2753.896 | BG60: =BF66 -> 2821.712 | BH60: =BG66 -> 2886.953 | BI60: =BH66 -> 2961.799 | BJ60: =BE43 -> 2753.896 | BK60: =BJ66 -> 3038.665 | BL60: =BK66 -> 3116.471 | BM60: =BL66 -> 3189.883 | BN60: =BM66 -> 3266.17 | BO60: =BJ43 -> 3038.665 | BP60: =BO66 -> 3392.696 | BQ60: =BP66 -> 3475.186 | BR60: =BQ66 -> 3562.682 | BS60: =BR66 -> 3675.629 | BT60: =BO43 -> 3392.696 | BU60: =BS66 -> 3801.965345 | BV60: =BU66 -> 3882.938495 | BW60: =BV66 -> 3971.27284 | BX60: =BW66 -> 4066.96838 | BY60: =BT43 -> 3801.965345 | BZ60: =BX66 -> 4170.025116 | CA60: =BZ66 -> 4253.120183 | CB60: =CA66 -> 4343.769348 | CC60: =CB66 -> 4441.972609 | CD60: =BY43 -> 4170.025116 | CE60: =CC66 -> 4547.729967 | CF60: =CE66 -> 4633.09034 | CG60: =CF66 -> 4726.210747 | CH60: =CG66 -> 4827.091189 | CI60: =CD43 -> 4547.729967 | CJ60: =CH66 -> 4935.731664 | CK60: =CJ66 -> 5023.480325 | CL60: =CK66 -> 5119.206138 | CM60: =CL66 -> 5222.909102 | CN60: =CI43 -> 4935.731664
A61: Issuance of Common Stock for Comp | AE61: -385.618 | AF61: =SUM(AB61:AE61) -> -385.618 | AG61: -75 | AH61: -75 | AI61: -75 | AJ61: -73.776 | AK61: =SUM(AG61:AJ61) -> -298.776 | AL61: -66.4 | AM61: -67.2 | AN61: -59 | AO61: -14.384 | AP61: =SUM(AL61:AO61) -> -206.984 | AQ61: -92.8 | AR61: -32.5 | AS61: -97.5 | AT61: -80.888 | AU61: =SUM(AQ61:AT61) -> -303.688 | AV61: 0 | AW61: 0 | AZ61: =SUM(AV61:AY61) -> 0 | BE61: =SUM(BA61:BD61) -> 0 | BJ61: =SUM(BF61:BI61) -> 0 | BO61: =SUM(BK61:BN61) -> 0 | BT61: =SUM(BP61:BS61) -> 0 | BY61: =SUM(BU61:BX61) -> 0 | CD61: =SUM(BZ61:CC61) -> 0 | CI61: =SUM(CE61:CH61) -> 0 | CN61: =SUM(CJ61:CM61) -> 0
A62: Issuance of Common Stock for Acq | AF62: =SUM(AB62:AE62) -> 0 | AK62: =SUM(AG62:AJ62) -> 0 | AP62: =SUM(AL62:AO62) -> 0 | AU62: =SUM(AQ62:AT62) -> 0 | AZ62: =SUM(AV62:AY62) -> 0 | BE62: =SUM(BA62:BD62) -> 0 | BJ62: =SUM(BF62:BI62) -> 0 | BO62: =SUM(BK62:BN62) -> 0 | BT62: =SUM(BP62:BS62) -> 0 | BY62: =SUM(BU62:BX62) -> 0 | CD62: =SUM(BZ62:CC62) -> 0 | CI62: =SUM(CE62:CH62) -> 0 | CN62: =SUM(CJ62:CM62) -> 0
A63: Tax Benefit from Employee Stock Plans | AB63: -23.42 | AC63: -22.732 | AD63: -35.435 | AE63: 224.705 | AF63: =SUM(AB63:AE63) -> 143.118 | AG63: 15.935 | AH63: 36.186 | AI63: 23.757 | AJ63: -8.912 | AK63: =SUM(AG63:AJ63) -> 66.966 | AL63: 0 | AM63: 9.329 | AN63: 74.411 | AO63: 6.62 | AP63: =SUM(AL63:AO63) -> 90.36 | AQ63: 2.627 | AR63: 0 | AS63: 0 | AT63: 41.754 | AU63: =SUM(AQ63:AT63) -> 44.381 | AV63: 28.551 | AW63: 1.707 | AX63: -1.687 | AY63: -4.11 | AZ63: =SUM(AV63:AY63) -> 24.461 | BA63: 0 | BB63: 0 | BC63: -0.318 | BD63: -0.853 | BE63: =SUM(BA63:BD63) -> -1.171 | BF63: -2.67 | BG63: -2.684 | BH63: -1.172 | BI63: -3.477 | BJ63: =SUM(BF63:BI63) -> -10.003 | BK63: 0 | BL63: 0 | BM63: 0 | BN63: -40.619 | BO63: =SUM(BK63:BN63) -> -40.619 | BP63: 0 | BQ63: -4.875 | BR63: -27.078 | BS63: 27.078 | BT63: =SUM(BP63:BS63) -> -4.875 | BU63: 0 | BV63: 0 | BW63: 0 | BX63: 0 | BY63: =SUM(BU63:BX63) -> 0 | BZ63: 0 | CA63: 0 | CB63: 0 | CC63: 0 | CD63: =SUM(BZ63:CC63) -> 0 | CE63: 0 | CF63: 0 | CG63: 0 | CH63: 0 | CI63: =SUM(CE63:CH63) -> 0 | CJ63: 0 | CK63: 0 | CL63: 0 | CM63: 0 | CN63: =SUM(CJ63:CM63) -> 0
A64: Stock-Based Compensation | AB64: 46.482 | AC64: 41.883 | AD64: 42.658 | AE64: 39.512 | AF64: =SUM(AB64:AE64) -> 170.535 | AG64: 31.906 | AH64: 39.615 | AI64: 38.569 | AJ64: 39.897 | AK64: =SUM(AG64:AJ64) -> 149.987 | AL64: 43.034 | AM64: 48.387 | AN64: 46.192 | AO64: 34.861 | AP64: =SUM(AL64:AO64) -> 172.474 | AQ64: 45.618 | AR64: 40.959 | AS64: 39.654 | AT64: 41.35 | AU64: =SUM(AQ64:AT64) -> 167.581 | AV64: 64.48 | AW64: 60.097 | AX64: 47.225 | AY64: 23.703 | AZ64: =SUM(AV64:AY64) -> 195.505 | BA64: 70.992 | BB64: 74.859 | BC64: 65.118 | BD64: 75.134 | BE64: =SUM(BA64:BD64) -> 286.103 | BF64: 71.582 | BG64: 71.398 | BH64: 79.669 | BI64: 75.853 | BJ64: =SUM(BF64:BI64) -> 298.502 | BK64: 84.196 | BL64: 78.87 | BM64: 81.024 | BN64: 84.897 | BO64: =SUM(BK64:BN64) -> 328.987 | BP64: 82.788 | BQ64: 83.01 | BR64: 82.986 | BS64: 99.25834475 | BT64: =SUM(BP64:BS64) -> 348.0423448 | BU64: 80.97314975 | BV64: 88.33434518 | BW64: 95.69554062 | BX64: 103.056736 | BY64: =SUM(BU64:BX64) -> 368.0597716 | BZ64: 83.09506709 | CA64: 90.6491641 | CB64: 98.20326111 | CC64: 105.7573581 | CD64: =SUM(BZ64:CC64) -> 377.7048504 | CE64: 85.36037337 | CF64: 93.12040731 | CG64: 100.8804413 | CH64: 108.6404752 | CI64: =SUM(CE64:CH64) -> 388.0016971 | CJ64: 87.74866149 | CK64: 95.72581254 | CL64: 103.7029636 | CM64: 111.6801146 | CN64: =SUM(CJ64:CM64) -> 398.8575522
A65: Other Items | AB65: =AB66-SUM(AB60:AB64) -> 1063.477 | AC65: =AC66-SUM(AC60:AC64) -> -38.633 | AD65: =AD66-SUM(AD60:AD64) -> 42.268 | AE65: =AE66-SUM(AE60:AE64) -> 192.668 | AF65: =SUM(AB65:AE65) -> 1259.78 | AG65: =AG66-SUM(AG60:AG64) -> -52.551 | AH65: =AH66-SUM(AH60:AH64) -> 22.587 | AI65: =AI66-SUM(AI60:AI64) -> -7.476 | AJ65: =AJ66-SUM(AJ60:AJ64) -> -48.729 | AK65: =SUM(AG65:AJ65) -> -86.169 | AL65: =AL66-SUM(AL60:AL64) -> -0.021 | AM65: =AM66-SUM(AM60:AM64) -> -0.044 | AN65: =AN66-SUM(AN60:AN64) -> 0.032 | AO65: =AO66-SUM(AO60:AO64) -> 0.033 | AP65: =SUM(AL65:AO65) -> -4.547473509e-13 | AQ65: =AQ66-SUM(AQ60:AQ64) -> 0.119 | AR65: =AR66-SUM(AR60:AR64) -> 0.382 | AS65: =AS66-SUM(AS60:AS64) -> -0.036 | AT65: =AT66-SUM(AT60:AT64) -> 58.086 | AU65: =SUM(AQ65:AT65) -> 58.551 | AV65: =AV66-SUM(AV60:AV64) -> -116.71 | AW65: =AW66-SUM(AW60:AW64) -> -25.567 | AX65: =AX66-SUM(AX60:AX64) -> 3.343 | AY65: =AY66-SUM(AY60:AY64) -> 13.602 | AZ65: =SUM(AV65:AY65) -> -125.332 | BA65: =BA66-SUM(BA60:BA64) -> 0.519 | BB65: =BB66-SUM(BB60:BB64) -> 7.349 | BC65: =BC66-SUM(BC60:BC64) -> 3.61 | BD65: =BD66-SUM(BD60:BD64) -> -0.792 | BE65: =SUM(BA65:BD65) -> 10.686 | BF65: =BF66-SUM(BF60:BF64) -> -1.096 | BG65: =BG66-SUM(BG60:BG64) -> -3.473 | BH65: =BH66-SUM(BH60:BH64) -> -3.651 | BI65: =BI66-SUM(BI60:BI64) -> 4.49 | BJ65: =SUM(BF65:BI65) -> -3.73 | BK65: =BK66-SUM(BK60:BK64) -> -6.39 | BL65: =BL66-SUM(BL60:BL64) -> -5.458 | BM65: =BM66-SUM(BM60:BM64) -> -4.737 | BN65: =BN66-SUM(BN60:BN64) -> 82.248 | BO65: =SUM(BK65:BN65) -> 65.663 | BP65: =BP66-SUM(BP60:BP64) -> -0.298 | BQ65: =BQ66-SUM(BQ60:BQ64) -> 9.361 | BR65: =BR66-SUM(BR60:BR64) -> 57.039 | BT65: =SUM(BP65:BS65) -> 66.102 | BY65: =SUM(BU65:BX65) -> 0 | CD65: =SUM(BZ65:CC65) -> 0 | CI65: =SUM(CE65:CH65) -> 0 | CN65: =SUM(CJ65:CM65) -> 0
A66: Additional Paid-in Capital-- Q End | C66: =C43 -> 0 | D66: =D43 -> 0 | E66: =E43 -> 0 | F66: =F43 -> 595.81 | G66: =F66 -> 595.81 | H66: =H43 -> 620.042 | I66: =I43 -> 695.781 | J66: =J43 -> 706.955 | K66: =K43 -> 710.273 | L66: =K66 -> 710.273 | M66: =M43 -> 718.286 | N66: 746.008 | O66: 764.323 | P66: 874.126 | Q66: 874.126 | R66: 901.831 | S66: 953.195 | T66: 1006.431 | U66: 1164.643 | V66: =U66 -> 1164.643 | W66: =W43 -> 1228.927 | X66: =X43 -> 1264.712 | Y66: =Y43 -> 1290.905 | Z66: =Z43 -> 1321.146 | AA66: =Z66 -> 1321.146 | AB66: =AB43 -> 2407.685 | AC66: =AC43 -> 2388.203 | AD66: =AD43 -> 2437.694 | AE66: =AE43 -> 2508.961 | AF66: =AE66 -> 2508.961 | AG66: =AG43 -> 2429.251 | AH66: =AH43 -> 2452.639 | AI66: =AI43 -> 2432.489 | AJ66: =AJ43 -> 2340.969 | AK66: =AJ66 -> 2340.969 | AL66: =AL43 -> 2317.582 | AM66: =AM43 -> 2308.054 | AN66: =AN43 -> 2369.689 | AO66: =AO43 -> 2396.819 | AP66: =AO66 -> 2396.819 | AQ66: =AQ43 -> 2352.383 | AR66: =AR43 -> 2361.224 | AS66: =AS43 -> 2303.342 | AT66: =AT43 -> 2363.644 | AU66: =SUM(AU60:AU65) -> 2363.644 | AV66: =AV43 -> 2339.965 | AW66: =AW43 -> 2376.202 | AX66: =AX43 -> 2425.083 | AY66: =AY43 -> 2458.278 | AZ66: =SUM(AZ60:AZ65) -> 2458.278 | BA66: =BA43 -> 2529.789 | BB66: =BB43 -> 2611.997 | BC66: =BC43 -> 2680.407 | BD66: =BD43 -> 2753.896 | BE66: =SUM(BE60:BE65) -> 2753.896 | BF66: =BF43 -> 2821.712 | BG66: =BG43 -> 2886.953 | BH66: =BH43 -> 2961.799 | BI66: =BI43 -> 3038.665 | BJ66: =SUM(BJ60:BJ65) -> 3038.665 | BK66: =BK43 -> 3116.471 | BL66: =BL43 -> 3189.883 | BM66: =BM43 -> 3266.17 | BN66: =BN43 -> 3392.696 | BO66: =SUM(BO60:BO65) -> 3392.696 | BP66: =BP43 -> 3475.186 | BQ66: =BQ43 -> 3562.682 | BR66: =BR43 -> 3675.629 | BS66: =SUM(BS60:BS65) -> 3801.965345 | BT66: 3801.965345 | BU66: 3882.938495 | BV66: 3971.27284 | BW66: 4066.96838 | BX66: 4170.025116 | BY66: 4170.025116 | BZ66: 4253.120183 | CA66: 4343.769348 | CB66: 4441.972609 | CC66: 4547.729967 | CD66: 4547.729967 | CE66: 4633.09034 | CF66: 4726.210747 | CG66: 4827.091189 | CH66: 4935.731664 | CI66: 4935.731664 | CJ66: 5023.480325 | CK66: 5119.206138 | CL66: 5222.909102 | CM66: 5334.589216 | CN66: 5334.589216
L67: =IF(ROUND(L66,2)=ROUND(L43,2),"cool","problem") -> cool | Q67: =IF(ROUND(Q66,2)=ROUND(Q43,2),"cool","problem") -> cool | V67: =IF(ROUND(V66,2)=ROUND(V43,2),"cool","problem") -> cool | Z67: =IF(ROUND(Z66,2)=ROUND(Z43,2),"cool","problem") -> cool | AA67: cool | AB67: cool | AC67: cool | AD67: cool | AE67: cool | AF67: cool | AG67: cool | AH67: cool | AI67: cool | AJ67: cool | AK67: cool | AL67: cool | AM67: cool | AN67: cool | AO67: cool | AP67: cool | AQ67: cool | AR67: cool | AS67: cool | AT67: cool | AU67: cool | AV67: cool | AW67: cool | AX67: cool | AY67: cool | AZ67: =IF(ROUND(AZ66,2)=ROUND(AZ43,2),"cool","problem") -> cool | BA67: cool | BB67: cool | BC67: cool | BD67: cool | BE67: cool | BF67: cool | BG67: cool | BH67: cool | BI67: cool | BJ67: cool | BK67: cool | BL67: cool | BM67: cool | BN67: =IF(ROUND(BN66,2)=ROUND(BN43,2),"cool","problem") -> cool | BO67: cool | BP67: =IF(ROUND(BP66,2)=ROUND(BP43,2),"cool","problem") -> cool | BQ67: cool | BR67: cool | BS67: cool | BT67: cool | BU67: cool | BV67: cool | BW67: cool | BX67: cool | BY67: cool | BZ67: cool | CA67: cool | CB67: cool | CC67: cool | CD67: cool | CE67: cool | CF67: cool | CG67: cool | CH67: cool | CI67: cool | CJ67: cool | CK67: cool | CL67: =IF(ROUND(CL66,2)=ROUND(CL43,2),"cool","problem") -> cool | CM67: cool | CN67: cool
A69: Treasury Stock -- Q Beginning | M69: =K73 -> 0 | N69: =M73 -> -1643.879 | O69: =N73 -> -1626.575 | P69: =O73 -> -1650.033 | Q69: =O73 -> -1650.033 | R69: =P73 -> -1602.301 | S69: =R73 -> -1639.949 | T69: =S73 -> -1742.966 | U69: =T73 -> -1938.046 | V69: =R69 -> -1602.301 | W69: =U73 -> -2007.26 | X69: =W73 -> -2018.372 | Y69: =X73 -> -1962.331 | Z69: =Y73 -> -1919.858 | AA69: =W69 -> -2007.26 | AB69: =Z73 -> -2324.072 | AC69: =AB73 -> -299.585 | AD69: =AC73 -> -713.347 | AE69: =AD73 -> -686.824 | AF69: =AB69 -> -2324.072 | AG69: =AE73 -> -623.924 | AH69: =AG73 -> -789.977 | AI69: =AH73 -> -887.885 | AJ69: =AI73 -> -1532.634 | AK69: =AG69 -> -623.924 | AL69: =AJ73 -> -1760.588 | AM69: =AL73 -> -2790.678 | AN69: =AM73 -> -2764.639 | AO69: =AN73 -> -2689.236 | AP69: =AL69 -> -1760.588 | AQ69: =AO73 -> -2957.154 | AR69: =AQ73 -> -2836.219 | AS69: =AR73 -> -2783.465 | AT69: =AS73 -> -2962.53 | AU69: =AP73 -> -2957.154 | AV69: =AT73 -> -2823.914 | AW69: =AV73 -> -2624.783 | AX69: =AW73 -> -2807.6 | AY69: =AX73 -> -3100.721 | AZ69: =AU73 -> -2823.914 | BA69: =AY73 -> -3264.294 | BB69: =BA73 -> -3178.769 | BC69: =BB73 -> -3505.559 | BD69: =BC73 -> -3557.234 | BE69: =AZ73 -> -3264.294 | BF69: =BD73 -> -3529.529 | BG69: =BF73 -> -3379.289 | BH69: =BG73 -> -3479.213 | BI69: =BH73 -> -3361.053 | BJ69: =BE73 -> -3529.529 | BK69: =BI73 -> -3407.259 | BL69: =BK73 -> -3159.793 | BM69: =BL73 -> -3145.566 | BN69: =BM73 -> -3322.654 | BO69: =BJ73 -> -3407.259 | BP69: =BN73 -> -3643.19 | BQ69: =BP73 -> -3655.657 | BR69: =BQ73 -> -3778.601 | BS69: =BR73 -> -3815.287 | BT69: =BO73 -> -3643.19 | BU69: =BS73 -> -3981.664801 | BV69: =BU73 -> -4155.84682 | BW69: =BV73 -> -4338.112855 | BX69: =BW73 -> -4528.752687 | BY69: =BT73 -> -3981.664801 | BZ69: =BX73 -> -4728.066439 | CA69: =BZ73 -> -4936.36494 | CB69: =CA73 -> -5153.970104 | CC69: =CB73 -> -5381.215331 | CD69: =BY73 -> -4728.066439 | CE69: =CC73 -> -5618.445907 | CF69: =CE73 -> -5866.019431 | CG69: =CF73 -> -6124.306253 | CH69: =CG73 -> -6393.689923 | CI69: =CD73 -> -5618.445907 | CJ69: =CH73 -> -6674.567664 | CK69: =CJ73 -> -6967.350857 | CL69: =CK73 -> -7272.46554 | CM69: =CL73 -> -7590.352935 | CN69: =CI73 -> -6674.567664
A70: Reissuance of Treas Stock for Comp | M70: 0 | N70: 0 | O70: 0 | P70: 0 | Q70: 0 | R70: 0 | S70: 0 | T70: 0 | U70: 0 | V70: =SUM(R70:U70) -> 0 | W70: 0 | X70: 0 | Y70: 0 | Z70: 0 | AA70: =SUM(W70:Z70) -> 0 | AB70: 0 | AC70: 0 | AD70: 0 | AE70: 385.618 | AF70: =SUM(AB70:AE70) -> 385.618 | AG70: 75 | AH70: 75 | AI70: 75 | AJ70: 73.776 | AK70: =SUM(AG70:AJ70) -> 298.776 | AL70: 119.91 | AM70: 176.157 | AN70: 197.987 | AO70: 32.095 | AP70: =SUM(AL70:AO70) -> 526.149 | AQ70: 121.404 | AR70: 52.715 | AS70: 170.9 | AT70: 138.235 | AU70: =SUM(AQ70:AT70) -> 483.254 | AV70: 49.824 | AW70: 34.236 | AX70: 45.58 | AY70: 0 | AZ70: =SUM(AV70:AY70) -> 129.64 | BA70: 40.651 | BB70: 46.732 | BC70: 56.18 | BD70: 1.191 | BE70: =SUM(BA70:BD70) -> 144.754 | BF70: 13.366 | BG70: 0 | BH70: 0 | BI70: 19.089 | BJ70: =SUM(BF70:BI70) -> 32.455 | BK70: 88.566 | BL70: 0 | BM70: 0 | BN70: 0 | BO70: =SUM(BK70:BN70) -> 88.566 | BP70: -53.776 | BQ70: 0 | BR70: 0 | BS70: 50 | BT70: =SUM(BP70:BS70) -> -3.776 | BU70: 50 | BV70: 50 | BW70: 50 | BX70: 50 | BY70: =SUM(BU70:BX70) -> 200 | BZ70: 50 | CA70: 50 | CB70: 50 | CC70: 50 | CD70: =SUM(BZ70:CC70) -> 200 | CE70: 50 | CF70: 50 | CG70: 50 | CH70: 50 | CI70: =SUM(CE70:CH70) -> 200 | CJ70: 50 | CK70: 50 | CL70: 50 | CM70: 50 | CN70: =SUM(CJ70:CM70) -> 200
A71: Purchases of Treasury Stock | M71: -31.478 | N71: 36.088 | O71: -8.047 | P71: 3.437 | Q71: 0 | R71: -15.251 | S71: -65.019 | T71: -153.436 | U71: 21.13 | V71: =SUM(R71:U71) -> -212.576 | W71: 25.899 | X71: 71.376 | Y71: 52.298 | Z71: -393.125 | AA71: =SUM(W71:Z71) -> -243.552 | AB71: -270.104 | AC71: -497.86 | AD71: -35.291 | AE71: -51.651 | AF71: =SUM(AB71:AE71) -> -854.906 | AG71: -207.435 | AH71: -162.213 | AI71: -727.225 | AJ71: -338.378 | AK71: =SUM(AG71:AJ71) -> -1435.251 | AL71: -1150.022 | AM71: -150.161 | AN71: -122.552 | AO71: -299.98 | AP71: =SUM(AL71:AO71) -> -1722.715 | AQ71: -0.013 | AR71: 0 | AS71: -350 | AT71: 0 | AU71: =SUM(AQ71:AT71) -> -350.013 | AV71: -0.02 | AW71: -250 | AX71: -400 | AY71: -190.372 | AZ71: =SUM(AV71:AY71) -> -840.392 | BA71: -125 | BB71: -420.015 | BC71: -150 | BD71: 0 | BE71: =SUM(BA71:BD71) -> -695.015 | BF71: -80 | BG71: -149.129 | BH71: 60.948 | BI71: -100 | BJ71: =SUM(BF71:BI71) -> -268.181 | BK71: -100 | BL71: -15.345 | BM71: -237.337 | BN71: -335.108 | BO71: =SUM(BK71:BN71) -> -687.79 | BP71: -200 | BQ71: -137.176 | BR71: -33.5 | BS71: =-BS93 -> -216.3778013 | BT71: =SUM(BP71:BS71) -> -587.0538013 | BU71: =-BU93 -> -224.1820189 | BV71: =-BV93 -> -232.2660345 | BW71: =-BW93 -> -240.6398325 | BX71: =-BX93 -> -249.3137521 | BY71: =SUM(BU71:BX71) -> -946.401638 | BZ71: =-BZ93 -> -258.2985004 | CA71: =-CA93 -> -267.6051647 | CB71: =-CB93 -> -277.2452267 | CC71: =-CC93 -> -287.2305759 | CD71: =SUM(BZ71:CC71) -> -1090.379468 | CE71: =-CE93 -> -297.5735243 | CF71: =-CF93 -> -308.2868216 | CG71: =-CG93 -> -319.3836701 | CH71: =-CH93 -> -330.8777414 | CI71: =SUM(CE71:CH71) -> -1256.121757 | CJ71: =-CJ93 -> -342.7831925 | CK71: =-CK93 -> -355.1146834 | CL71: =-CL93 -> -367.8873946 | CM71: =-CM93 -> -381.1170457 | CN71: =SUM(CJ71:CM71) -> -1446.902316
A72: Other | M72: =M73-SUM(M69:M71) -> -1612.401 | N72: -18.784 | O72: -15.411 | P72: 44.295 | Q72: 47.732 | R72: -22.397 | S72: -37.998 | T72: -41.644 | U72: -90.344 | V72: =SUM(R72:U72) -> -192.383 | W72: =W73-SUM(W69:W71) -> -37.011 | X72: =X73-SUM(X69:X71) -> -15.335 | Y72: =Y73-SUM(Y69:Y71) -> -9.825 | Z72: =Z73-SUM(Z69:Z71) -> -11.089 | AA72: =SUM(W72:Z72) -> -73.26 | AB72: =AB73-SUM(AB69:AB71) -> 2294.591 | AC72: =AC73-SUM(AC69:AC71) -> 84.098 | AD72: =AD73-SUM(AD69:AD71) -> 61.814 | AE72: =AE73-SUM(AE69:AE71) -> -271.067 | AF72: =SUM(AB72:AE72) -> 2169.436 | AG72: =AG73-SUM(AG69:AG71) -> -33.618 | AH72: =AH73-SUM(AH69:AH71) -> -10.695 | AI72: =AI73-SUM(AI69:AI71) -> 7.476 | AJ72: =AJ73-SUM(AJ69:AJ71) -> 36.648 | AK72: =SUM(AG72:AJ72) -> -0.189 | AL72: =AL73-SUM(AL69:AL71) -> 0.022 | AM72: =AM73-SUM(AM69:AM71) -> 0.043 | AN72: =AN73-SUM(AN69:AN71) -> -0.032 | AO72: =AO73-SUM(AO69:AO71) -> -0.033 | AP72: =SUM(AL72:AO72) -> -9.094947018e-13 | AQ72: =AQ73-SUM(AQ69:AQ71) -> -0.456 | AR72: =AR73-SUM(AR69:AR71) -> 0.039 | AS72: =AS73-SUM(AS69:AS71) -> 0.035 | AT72: =AT73-SUM(AT69:AT71) -> 0.381 | AU72: =SUM(AQ72:AT72) -> -0.001000000001 | AV72: =AV73-SUM(AV69:AV71) -> 149.327 | AW72: =AW73-SUM(AW69:AW71) -> 32.947 | AX72: =AX73-SUM(AX69:AX71) -> 61.299 | AY72: =AY73-SUM(AY69:AY71) -> 26.799 | AZ72: =SUM(AV72:AY72) -> 270.372 | BA72: =BA73-SUM(BA69:BA71) -> 169.874 | BB72: =BB73-SUM(BB69:BB71) -> 46.493 | BC72: =BC73-SUM(BC69:BC71) -> 42.145 | BD72: =BD73-SUM(BD69:BD71) -> 26.514 | BE72: =SUM(BA72:BD72) -> 285.026 | BF72: =BF73-SUM(BF69:BF71) -> 216.874 | BG72: =BG73-SUM(BG69:BG71) -> 49.205 | BH72: =BH73-SUM(BH69:BH71) -> 57.212 | BI72: =BI73-SUM(BI69:BI71) -> 34.705 | BJ72: =SUM(BF72:BI72) -> 357.996 | BK72: =BK73-SUM(BK69:BK71) -> 258.9 | BL72: =BL73-SUM(BL69:BL71) -> 29.572 | BM72: =BM73-SUM(BM69:BM71) -> 60.249 | BN72: =BN73-SUM(BN69:BN71) -> 14.572 | BO72: =SUM(BK72:BN72) -> 363.293 | BP72: =BP73-SUM(BP69:BP71) -> 241.309 | BQ72: =BQ73-SUM(BQ69:BQ71) -> 14.232 | BR72: =BR73-SUM(BR69:BR71) -> -3.186 | BT72: =SUM(BP72:BS72) -> 252.355 | BY72: =SUM(BU72:BX72) -> 0 | CD72: =SUM(BZ72:CC72) -> 0 | CI72: =SUM(CE72:CH72) -> 0 | CN72: =SUM(CJ72:CM72) -> 0
A73: Treasury Stock -- Q End | M73: =M45 -> -1643.879 | N73: -1626.575 | O73: -1650.033 | P73: -1602.301 | Q73: -1602.301 | R73: -1639.949 | S73: -1742.966 | T73: -1938.046 | U73: -2007.26 | V73: =U73 -> -2007.26 | W73: =W45 -> -2018.372 | X73: =X45 -> -1962.331 | Y73: =Y45 -> -1919.858 | Z73: =Z45 -> -2324.072 | AA73: =Z73 -> -2324.072 | AB73: =AB45 -> -299.585 | AC73: =AC45 -> -713.347 | AD73: =AD45 -> -686.824 | AE73: =AE45 -> -623.924 | AF73: =AE73 -> -623.924 | AG73: =AG45 -> -789.977 | AH73: =AH45 -> -887.885 | AI73: =AI45 -> -1532.634 | AJ73: =AJ45 -> -1760.588 | AK73: =AJ73 -> -1760.588 | AL73: =AL45 -> -2790.678 | AM73: =AM45 -> -2764.639 | AN73: =AN45 -> -2689.236 | AO73: =AO45 -> -2957.154 | AP73: =AO73 -> -2957.154 | AQ73: =AQ45 -> -2836.219 | AR73: =AR45 -> -2783.465 | AS73: =AS45 -> -2962.53 | AT73: =AT45 -> -2823.914 | AU73: =AT73 -> -2823.914 | AV73: =AV45 -> -2624.783 | AW73: =AW45 -> -2807.6 | AX73: =AX45 -> -3100.721 | AY73: =AY45 -> -3264.294 | AZ73: =AY73 -> -3264.294 | BA73: =BA45 -> -3178.769 | BB73: =BB45 -> -3505.559 | BC73: =BC45 -> -3557.234 | BD73: =BD45 -> -3529.529 | BE73: =BD73 -> -3529.529 | BF73: =BF45 -> -3379.289 | BG73: =BG45 -> -3479.213 | BH73: =BH45 -> -3361.053 | BI73: =BI45 -> -3407.259 | BJ73: =BI73 -> -3407.259 | BK73: =BK45 -> -3159.793 | BL73: =BL45 -> -3145.566 | BM73: =BM45 -> -3322.654 | BN73: =BN45 -> -3643.19 | BO73: =BN73 -> -3643.19 | BP73: =BP45 -> -3655.657 | BQ73: =BQ45 -> -3778.601 | BR73: =BR45 -> -3815.287 | BS73: =SUM(BS69:BS72) -> -3981.664801 | BT73: =BS73 -> -3981.664801 | BU73: =SUM(BU69:BU72) -> -4155.84682 | BV73: =SUM(BV69:BV72) -> -4338.112855 | BW73: =SUM(BW69:BW72) -> -4528.752687 | BX73: =SUM(BX69:BX72) -> -4728.066439 | BY73: =BX73 -> -4728.066439 | BZ73: =SUM(BZ69:BZ72) -> -4936.36494 | CA73: =SUM(CA69:CA72) -> -5153.970104 | CB73: =SUM(CB69:CB72) -> -5381.215331 | CC73: =SUM(CC69:CC72) -> -5618.445907 | CD73: =CC73 -> -5618.445907 | CE73: =SUM(CE69:CE72) -> -5866.019431 | CF73: =SUM(CF69:CF72) -> -6124.306253 | CG73: =SUM(CG69:CG72) -> -6393.689923 | CH73: =SUM(CH69:CH72) -> -6674.567664 | CI73: =CH73 -> -6674.567664 | CJ73: =SUM(CJ69:CJ72) -> -6967.350857 | CK73: =SUM(CK69:CK72) -> -7272.46554 | CL73: =SUM(CL69:CL72) -> -7590.352935 | CM73: =SUM(CM69:CM72) -> -7921.469981 | CN73: =CM73 -> -7921.469981
A75: Issuance of Common Stock
A77: Option Activity | C77: Exp./Res. | D77: Granted | E77: Exercised | F77: Cancelled | H77: Exp./Res. | I77: Granted | J77: Exercised | K77: Cancelled | M77: Exp./Res. | N77: Granted | O77: Exercised | P77: Cancelled | R77: Exp./Res. | S77: Granted | T77: Exercised | U77: Cancelled | W77: Exp./Res. | X77: Granted | Y77: Exercised | Z77: Cancelled | AB77: Exp./Res. | AC77: Granted | AD77: Exercised | AE77: Cancelled | AG77: Exp./Res. | AH77: Granted | AI77: Exercised | AJ77: Cancelled | AL77: Exp./Res. | AM77: Granted | AN77: Exercised | AO77: Cancelled | AQ77: Exp./Res. | AR77: Granted | AS77: Exercised | AT77: Cancelled | AV77: Exp./Res. | AW77: Granted | AX77: Exercised | AY77: Cancelled | BA77: Exp./Res. | BB77: Granted | BC77: Exercised | BD77: Cancelled | BF77: Exp./Res. | BG77: Granted | BH77: Exercised | BI77: Cancelled | BK77: Exp./Res. | BL77: Granted | BM77: Exercised | BN77: Cancelled | BP77: Exp./Res. | BQ77: Granted | BR77: Exercised | BS77: Cancelled | BU77: Exp./Res. | BV77: Granted | BW77: Exercised | BX77: Cancelled | BZ77: Exp./Res. | CA77: Granted | CB77: Exercised | CC77: Cancelled | CE77: Exp./Res. | CF77: Granted | CG77: Exercised | CH77: Cancelled | CJ77: Exp./Res. | CK77: Granted | CL77: Exercised | CM77: Cancelled
A79: Shares Available for Grant | D79: =-D80 -> -38.35463 | E79: 0 | F79: =-F80 -> 10.16715 | G79: =SUM(C79:F79) -> -28.18748 | H79: 0 | I79: =-I80 -> -23.94736 | J79: 0 | K79: =-K80 -> 9.444826 | L79: =SUM(G79:K79) -> -42.690014 | M79: 0 | N79: =-N80 -> -3.98826 | O79: 0 | P79: =-P80 -> 18.786946 | Q79: =SUM(L79:P79) -> -27.891328 | R79: 0 | S79: =-S80 -> -20.75951 | T79: 0 | U79: =-U80 -> 2.578456 | V79: =SUM(Q79:U79) -> -46.072382 | W79: 0 | X79: =-X80 -> -11.418499 | Y79: 0 | Z79: =-Z80 -> 2.205685 | AA79: =SUM(V79:Z79) -> -55.285196 | AC79: =-(AF85*AF84)/1000 -> -11.418499 | AD79: 0 | AE79: =AF84*(AF87)/1000 -> 2.205685 | AF79: =SUM(AA79:AE79) -> -64.49801 | AH79: =-(AK85*AK84)/1000 -> -16.16976708 | AI79: 0 | AJ79: =AK84*(AK87)/1000 -> 3.123476448 | AK79: =SUM(AF79:AJ79) -> -77.54430063 | AM79: =-(AP85*AP84)/1000 -> -16.16976708 | AN79: 0 | AO79: =AP84*(AP87)/1000 -> 3.123476448 | AP79: =SUM(AK79:AO79) -> -90.59059126 | AR79: =-(AU85*AU84)/1000 -> -23.07682645 | AS79: 0 | AT79: =AU84*(AU87)/1000 -> 4.457697106 | AU79: =SUM(AP79:AT79) -> -109.2097206 | AW79: =-(AZ85*AZ84)/1000 -> -24.29462203 | AX79: 0 | AY79: =AZ84*(AZ87)/1000 -> 4.692935856 | AZ79: =SUM(AU79:AY79) -> -128.8114068 | BB79: =-(BE85*BE84)/1000 -> -24.29462203 | BC79: 0 | BD79: =BE84*(BE87)/1000 -> 4.692935856 | BE79: =SUM(AZ79:BD79) -> -148.4130929 | BG79: =-(BJ85*BJ84)/1000 -> -24.29462203 | BH79: 0 | BI79: =BJ84*(BJ87)/1000 -> 4.692935856 | BJ79: =SUM(BE79:BI79) -> -168.0147791 | BL79: =-(BO85*BO84)/1000 -> -24.29462203 | BM79: 0 | BN79: =BO84*(BO87)/1000 -> 4.692935856 | BO79: =SUM(BJ79:BN79) -> -187.6164653 | BQ79: =-(BT85*BT84)/1000 -> -24.29462203 | BR79: 0 | BS79: =BT84*(BT87)/1000 -> 4.692935856 | BT79: =SUM(BO79:BS79) -> -207.2181515 | BV79: =-(BY85*BY84)/1000 -> -24.29462203 | BW79: 0 | BX79: =BY84*(BY87)/1000 -> 4.692935856 | BY79: =SUM(BT79:BX79) -> -226.8198376 | CA79: =-(CD85*CD84)/1000 -> -24.29462203 | CB79: 0 | CC79: =CD84*(CD87)/1000 -> 4.692935856 | CD79: =SUM(BY79:CC79) -> -246.4215238 | CF79: =-(CI85*CI84)/1000 -> -24.29462203 | CG79: 0 | CH79: =CI84*(CI87)/1000 -> 4.692935856 | CI79: =SUM(CD79:CH79) -> -266.02321 | CK79: =-(CN85*CN84)/1000 -> -24.29462203 | CL79: 0 | CM79: =CN84*(CN87)/1000 -> 4.692935856 | CN79: =SUM(CI79:CM79) -> -285.6248961
A80: Number of Shares | C80: 90.0348 | D80: 38.35463 | E80: -9.653646 | F80: -10.16715 | G80: =SUM(C80:F80) -> 108.568634 | H80: 0 | I80: 23.94736 | J80: -7.377068 | K80: -9.444826 | L80: 115.6941 | M80: 0 | N80: 3.98826 | O80: -15.956108 | P80: -18.786946 | Q80: =SUM(L80:P80) -> 84.939306 | R80: 0 | S80: 20.75951 | T80: -26.587728 | U80: -2.578456 | V80: =SUM(Q80:U80) -> 76.532632 | W80: 0 | X80: 11.418499 | Y80: -20.494162 | Z80: -2.205685 | AA80: =SUM(V80:Z80) -> 65.251284 | AB80: 0 | AC80: =-AC79 -> 11.418499 | AD80: =-AF84*(AF86)/1000 -> -20.494162 | AE80: =-AE79 -> -2.205685 | AF80: =SUM(AA80:AE80) -> 53.969936 | AG80: 0 | AH80: =-AH79 -> 16.16976708 | AI80: =-AK84*(AK86)/1000 -> -29.02183781 | AJ80: =-AJ79 -> -3.123476448 | AK80: =SUM(AF80:AJ80) -> 37.99438882 | AL80: 0 | AM80: =-AM79 -> 16.16976708 | AN80: =-AP84*(AP86)/1000 -> -29.02183781 | AO80: =-AO79 -> -3.123476448 | AP80: =SUM(AK80:AO80) -> 22.01884164 | AQ80: 0 | AR80: =-AR79 -> 23.07682645 | AS80: =-AU84*(AU86)/1000 -> -41.41877314 | AT80: =-AT79 -> -4.457697106 | AU80: =SUM(AP80:AT80) -> -0.7808021582 | AV80: 0 | AW80: =-AW79 -> 24.29462203 | AX80: =-AZ84*(AZ86)/1000 -> -43.60449824 | AY80: =-AY79 -> -4.692935856 | AZ80: =SUM(AU80:AY80) -> -24.78361423 | BA80: 0 | BB80: =-BB79 -> 24.29462203 | BC80: =-BE84*(BE86)/1000 -> -43.60449824 | BD80: =-BD79 -> -4.692935856 | BE80: =SUM(AZ80:BD80) -> -48.7864263 | BF80: 0 | BG80: =-BG79 -> 24.29462203 | BH80: =-BJ84*(BJ86)/1000 -> -43.60449824 | BI80: =-BI79 -> -4.692935856 | BJ80: =SUM(BE80:BI80) -> -72.78923837 | BK80: 0 | BL80: =-BL79 -> 24.29462203 | BM80: =-BO84*(BO86)/1000 -> -43.60449824 | BN80: =-BN79 -> -4.692935856 | BO80: =SUM(BJ80:BN80) -> -96.79205043 | BP80: 0 | BQ80: =-BQ79 -> 24.29462203 | BR80: =-BT84*(BT86)/1000 -> -43.60449824 | BS80: =-BS79 -> -4.692935856 | BT80: =SUM(BO80:BS80) -> -120.7948625 | BU80: 0 | BV80: =-BV79 -> 24.29462203 | BW80: =-BY84*(BY86)/1000 -> -43.60449824 | BX80: =-BX79 -> -4.692935856 | BY80: =SUM(BT80:BX80) -> -144.7976746 | BZ80: 0 | CA80: =-CA79 -> 24.29462203 | CB80: =-CD84*(CD86)/1000 -> -43.60449824 | CC80: =-CC79 -> -4.692935856 | CD80: =SUM(BY80:CC80) -> -168.8004866 | CE80: 0 | CF80: =-CF79 -> 24.29462203 | CG80: =-CI84*(CI86)/1000 -> -43.60449824 | CH80: =-CH79 -> -4.692935856 | CI80: =SUM(CD80:CH80) -> -192.8032987 | CJ80: 0 | CK80: =-CK79 -> 24.29462203 | CL80: =-CN84*(CN86)/1000 -> -43.60449824 | CM80: =-CM79 -> -4.692935856 | CN80: =SUM(CI80:CM80) -> -216.8061108
A81: Aggregate Price | C81: =C80*C82 -> 1722.365724 | D81: =D80*D82 -> 544.2521997 | E81: =E80*E82 -> -60.57662865 | F81: =F80*F82 -> -912.806727 | G81: =SUM(C81:F81) -> 1293.234568 | H81: =H82*H80 -> 0 | I81: =I80*I82 -> 344.4827736 | J81: =J80*J82 -> -58.97965866 | K81: =K80*K82 -> -213.4530676 | L81: =L80*L82 -> 2061.668862 | M81: =M82*M80 -> 0 | N81: =N80*N82 -> 66.0455856 | O81: =O80*O82 -> -190.0372463 | P81: =P80*P82 -> -544.821434 | Q81: =SUM(L81:P81) -> 1392.855767 | R81: =R82*R80 -> 0 | S81: =S80*S82 -> 437.4028757 | T81: =T80*T82 -> -360.2637144 | U81: =U80*U82 -> -52.75520976 | V81: =SUM(Q81:U81) -> 1417.239719 | W81: =W82*W80 -> 0 | X81: =X80*X82 -> 364.0217481 | Y81: =Y80*Y82 -> -313.9705618 | Z81: =Z80*Z82 -> -47.4663412 | AA81: =SUM(V81:Z81) -> 1419.824564 | AB81: 0 | AC81: =AC82*AC80 -> 424.2272888 | AD81: =AD80*AD82 -> -365.8981391 | AE81: =AE80*AE82 -> -55.31679725 | AF81: =SUM(AA81:AE81) -> 1422.836916 | AG81: 0 | AH81: =AH82*AH80 -> 709.2846864 | AI81: =AI80*AI82 -> -611.7615572 | AJ81: =AJ80*AJ82 -> -92.48664155 | AK81: =SUM(AF81:AJ81) -> 1427.873404 | AL81: 0 | AM81: =AM82*AM80 -> 646.0943247 | AN81: =AN80*AN82 -> -557.2595571 | AO81: =AO80*AO82 -> -84.24698201 | AP81: =SUM(AK81:AO81) -> 1432.46119 | AQ81: 0 | AR81: =AR82*AR80 -> 796.8265221 | AS81: =AS80*AS82 -> -687.2668244 | AT81: =AT80*AT82 -> -103.9015932 | AU81: =SUM(AP81:AT81) -> 1438.119294 | AV81: 0 | AW81: =AW82*AW80 -> 923.1957734 | AX81: =AX80*AX82 -> -796.2609299 | AY81: =AY80*AY82 -> -120.3794163 | AZ81: =SUM(AU81:AY81) -> 1444.674721 | BA81: 0 | BB81: =BB82*BB80 -> 1019.681766 | BC81: =BC80*BC82 -> -879.4805771 | BD81: =BD80*BD82 -> -132.9606346 | BE81: =SUM(AZ81:BD81) -> 1451.915276 | BF81: 0 | BG81: =BG82*BG80 -> 1126.251804 | BH81: =BH80*BH82 -> -971.3977623 | BI81: =BI80*BI82 -> -146.8567542 | BJ81: =SUM(BE81:BI81) -> 1459.912563 | BK81: 0 | BL81: =BL82*BL80 -> 1243.959799 | BM81: =BM80*BM82 -> -1072.921492 | BN81: =BN80*BN82 -> -162.2051994 | BO81: =SUM(BJ81:BN81) -> 1468.745671 | BP81: 0 | BQ81: =BQ82*BQ80 -> 1373.969814 | BR81: =BR80*BR82 -> -1185.055774 | BS81: =BS80*BS82 -> -179.1577573 | BT81: =SUM(BO81:BS81) -> 1478.501954 | BU81: 0 | BV81: =BV82*BV80 -> 1517.567571 | BW81: =BW80*BW82 -> -1308.909551 | BX81: =BX80*BX82 -> -197.8820784 | BY81: =SUM(BT81:BX81) -> 1489.277895 | BZ81: 0 | CA81: =CA82*CA80 -> 1676.173165 | CB81: =CB80*CB82 -> -1445.707662 | CC81: =CC80*CC82 -> -218.5633352 | CD81: =SUM(BY81:CC81) -> 1501.180063 | CE81: 0 | CF81: =CF82*CF80 -> 1851.355111 | CG81: =CG80*CG82 -> -1596.802959 | CH81: =CH80*CH82 -> -241.4060529 | CI81: =SUM(CD81:CH81) -> 1514.326163 | CJ81: 0 | CK81: =CK82*CK80 -> 2044.845855 | CL81: =CL80*CL82 -> -1763.689684 | CM81: =CM80*CM82 -> -266.6361325 | CN81: =SUM(CI81:CM81) -> 1528.846201
A82: Weighted Average Exercise Price | C82: 19.13 | D82: 14.19 | E82: 6.275 | F82: 89.78 | G82: =G81/G80 -> 11.91167762 | H82: 0 | I82: =28.77/2 -> 14.385 | J82: 7.995 | K82: 22.6 | L82: 17.82 | M82: 0 | N82: 16.56 | O82: 11.91 | P82: 29 | Q82: =Q81/Q80 -> 16.39824756 | R82: 0 | S82: 21.07 | T82: 13.55 | U82: 20.46 | V82: =V81/V80 -> 18.51811027 | W82: 0 | X82: 31.88 | Y82: 15.32 | Z82: 21.52 | AA82: =AA81/AA80 -> 21.75933525 | AB82: 0 | AC82: =AC83*AF58 -> 37.15263178 | AD82: =AD83*AF58 -> 17.85377412 | AE82: =AE83*AF58 -> 25.07919184 | AF82: =AF81/AF80 -> 26.36350943 | AG82: 0 | AH82: =AH83*AK58 -> 43.86486725 | AI82: =AI83*AK58 -> 21.07935277 | AJ82: =AJ83*AK58 -> 29.61016133 | AK82: =AK81/AK80 -> 37.58116523 | AL82: 0 | AM82: =AM83*AP58 -> 39.95693454 | AN82: =AN83*AP58 -> 19.20138762 | AO82: =AO83*AP58 -> 26.97218417 | AP82: =AP81/AP80 -> 65.05615568 | AQ82: 0 | AR82: =AR83*AU58 -> 34.52929387 | AS82: =AS83*AU58 -> 16.59312365 | AT82: =AT83*AU58 -> 23.30835647 | AU82: =AU81/AU80 -> -1841.848513 | AV82: 0 | AW82: =AW83*AZ58 -> 38.00000561 | AX82: =AX83*AZ58 -> 18.26098137 | AY82: =AY83*AZ58 -> 25.65119576 | AZ82: =AZ81/AZ80 -> -58.29152714 | BA82: 0 | BB82: =BB83*BE58 -> 41.97150157 | BC82: =BC83*BE58 -> 20.16949197 | BD82: =BD83*BE58 -> 28.33208011 | BE82: =BE81/BE80 -> -29.76064013 | BF82: 0 | BG82: =BG83*BJ58 -> 46.35807062 | BH82: =BH83*BJ58 -> 22.27746681 | BI82: =BI83*BJ58 -> 31.29315181 | BJ82: =BJ81/BJ80 -> -20.05670888 | BK82: 0 | BL82: =BL83*BO58 -> 51.20309333 | BM82: =BM83*BO58 -> 24.6057525 | BN82: =BN83*BO58 -> 34.56369412 | BO82: =BO81/BO80 -> -15.17423863 | BP82: 0 | BQ82: =BQ83*BT58 -> 56.55448406 | BR82: =BR83*BT58 -> 27.1773744 | BS82: =BS83*BT58 -> 38.17605072 | BT82: =BT81/BT80 -> -12.23977513 | BU82: 0 | BV82: =BV83*BY58 -> 62.46516489 | BW82: =BW83*BY58 -> 30.01776431 | BX82: =BX83*BY58 -> 42.16594569 | BY82: =BY81/BY80 -> -10.28523352 | BZ82: 0 | CA82: =CA83*CD58 -> 68.99358892 | CB82: =CB83*CD58 -> 33.15501199 | CC82: =CC83*CD58 -> 46.57283669 | CD82: =CD81/CD80 -> -8.893221182 | CE82: 0 | CF82: =CF83*CI58 -> 76.20431836 | CG82: =CG83*CI58 -> 36.62014295 | CH82: =CH83*CI58 -> 51.44030524 | CI82: =CI81/CI80 -> -7.854254429 | CJ82: 0 | CK82: =CK83*CN58 -> 84.16866303 | CL82: =CL83*CN58 -> 40.44742527 | CM82: =CM83*CN58 -> 56.81648772 | CN82: =CN81/CN80 -> -7.051674862
A83: Price as % of year end stock price | D83: =D82/G58 -> 0.7140941246 | E83: =E82/G58 -> 0.3157815808 | F83: =F82/G58 -> 4.518066984 | I83: =I82/L58 -> 0.9462045391 | J83: =J82/L58 -> 0.5258884456 | K83: =K82/L58 -> 1.486563961 | N83: =N82/Q58 -> 0.9769144958 | O83: =O82/Q58 -> 0.702599737 | P83: =P82/Q58 -> 1.710780216 | S83: =S82/V58 -> 0.9519945347 | T83: =T82/V58 -> 0.6122223989 | U83: =U82/V58 -> 0.9244332312 | X83: =X82/AA58 -> 1.051108676 | Y83: =Y82/AA58 -> 0.5051124502 | Z83: =Z82/AA58 -> 0.7095313269 | AC83: =X83 -> 1.051108676 | AD83: =Y83 -> 0.5051124502 | AE83: =Z83 -> 0.7095313269 | AH83: =AC83 -> 1.051108676 | AI83: =AD83 -> 0.5051124502 | AJ83: =AE83 -> 0.7095313269 | AM83: =AH83 -> 1.051108676 | AN83: =AI83 -> 0.5051124502 | AO83: =AJ83 -> 0.7095313269 | AR83: =AM83 -> 1.051108676 | AS83: =AN83 -> 0.5051124502 | AT83: =AO83 -> 0.7095313269 | AW83: =AR83 -> 1.051108676 | AX83: =AS83 -> 0.5051124502 | AY83: =AT83 -> 0.7095313269 | BB83: =AW83 -> 1.051108676 | BC83: =AX83 -> 0.5051124502 | BD83: =AY83 -> 0.7095313269 | BG83: =BB83 -> 1.051108676 | BH83: =BC83 -> 0.5051124502 | BI83: =BD83 -> 0.7095313269 | BL83: =BG83 -> 1.051108676 | BM83: =BH83 -> 0.5051124502 | BN83: =BI83 -> 0.7095313269 | BQ83: =BL83 -> 1.051108676 | BR83: =BM83 -> 0.5051124502 | BS83: =BN83 -> 0.7095313269 | BV83: =BQ83 -> 1.051108676 | BW83: =BR83 -> 0.5051124502 | BX83: =BS83 -> 0.7095313269 | CA83: =BV83 -> 1.051108676 | CB83: =BW83 -> 0.5051124502 | CC83: =BX83 -> 0.7095313269 | CF83: =CA83 -> 1.051108676 | CG83: =CB83 -> 0.5051124502 | CH83: =CC83 -> 0.7095313269 | CK83: =CF83 -> 1.051108676 | CL83: =CG83 -> 0.5051124502 | CM83: =CH83 -> 0.7095313269
A84: EoP # of Employees | G84: 3043 | L84: 3319 | Q84: 3515 | V84: 3848 | AA84: 4285 | AF84: =AA84 -> 4285 | AK84: 6068 | AP84: =AK84 -> 6068 | AU84: 8660 | AZ84: 9117 | BE84: =AZ84 -> 9117 | BJ84: =BE84 -> 9117 | BO84: =BJ84 -> 9117 | BT84: =BO84 -> 9117 | BY84: =BT84 -> 9117 | CD84: =BY84 -> 9117 | CI84: =CD84 -> 9117 | CN84: =CI84 -> 9117
A85: Net Options Granted / Employee | G85: =D80/(G84/1000) -> 12.60421623 | L85: =I80/(L84/1000) -> 7.215233504 | Q85: =N80/(Q84/1000) -> 1.134640114 | V85: =S80/(V84/1000) -> 5.394883056 | AA85: =X80/(AA84/1000) -> 2.66476056 | AF85: =AA85 -> 2.66476056 | AK85: =AF85 -> 2.66476056 | AP85: =AK85 -> 2.66476056 | AU85: =AP85 -> 2.66476056 | AZ85: =AU85 -> 2.66476056 | BE85: =AZ85 -> 2.66476056 | BJ85: =BE85 -> 2.66476056 | BO85: =BJ85 -> 2.66476056 | BT85: =BO85 -> 2.66476056 | BY85: =BT85 -> 2.66476056 | CD85: =BY85 -> 2.66476056 | CI85: =CD85 -> 2.66476056 | CN85: =CI85 -> 2.66476056
A86: Net Options Exercised / Employee | G86: =-E80/(G84/1000) -> 3.172410779 | L86: =-J80/(L84/1000) -> 2.222677915 | Q86: =-O80/(Q84/1000) -> 4.539433286 | V86: =-T80/(V84/1000) -> 6.909492723 | AA86: =-Y80/(AA84/1000) -> 4.782768261 | AF86: =AA86 -> 4.782768261 | AK86: =AF86 -> 4.782768261 | AP86: =AK86 -> 4.782768261 | AU86: =AP86 -> 4.782768261 | AZ86: =AU86 -> 4.782768261 | BE86: =AZ86 -> 4.782768261 | BJ86: =BE86 -> 4.782768261 | BO86: =BJ86 -> 4.782768261 | BT86: =BO86 -> 4.782768261 | BY86: =BT86 -> 4.782768261 | CD86: =BY86 -> 4.782768261 | CI86: =CD86 -> 4.782768261 | CN86: =CI86 -> 4.782768261
A87: Net Options Cancelled / Employee | G87: =-F80/(G84/1000) -> 3.341160039 | L87: =-K80/(L84/1000) -> 2.845684242 | Q87: =-P80/(Q84/1000) -> 5.344792603 | V87: =-U80/(V84/1000) -> 0.6700769231 | AA87: =-Z80/(AA84/1000) -> 0.5147456243 | AF87: =AA87 -> 0.5147456243 | AK87: =AF87 -> 0.5147456243 | AP87: =AK87 -> 0.5147456243 | AU87: =AP87 -> 0.5147456243 | AZ87: =AU87 -> 0.5147456243 | BE87: =AZ87 -> 0.5147456243 | BJ87: =BE87 -> 0.5147456243 | BO87: =BJ87 -> 0.5147456243 | BT87: =BO87 -> 0.5147456243 | BY87: =BT87 -> 0.5147456243 | CD87: =BY87 -> 0.5147456243 | CI87: =CD87 -> 0.5147456243 | CN87: =CI87 -> 0.5147456243
A90: Share Repurchase Activity
A91: Purchased | G91: 2 | L91: 4.064 | Q91: 12.69 | V91: 7.774 | AA91: 4.355 | AB91: 9.6 | AC91: 14.6 | AD91: 12.061146 | AE91: 7 | AF91: =SUM(AB91:AE91) -> 43.261146 | AG91: 4.8 | AH91: 5.9 | AI91: 17.6 | AJ91: 11.4 | AK91: =SUM(AG91:AJ91) -> 39.7 | AL91: 33.3 | AM91: 15.2 | AN91: 2.9 | AO91: 7 | AP91: =SUM(AL91:AO91) -> 58.4 | AQ91: 5 | AR91: 0.9 | AS91: 4 | AT91: 5.331 | AU91: =SUM(AQ91:AT91) -> 15.231 | AV91: 1.7 | AW91: 2.5 | AX91: 14.9 | AY91: 15.9 | AZ91: =SUM(AV91:AY91) -> 35 | BA91: 2.5 | BB91: 13.7 | BC91: 3.6 | BD91: 0 | BE91: =SUM(BA91:BD91) -> 19.8 | BF91: 1.8 | BG91: 5.3 | BH91: 2.4 | BI91: 2 | BJ91: =SUM(BF91:BI91) -> 11.5 | BK91: 2.7 | BL91: 3.9 | BM91: 7 | BN91: 7.9 | BO91: =SUM(BK91:BN91) -> 21.5 | BP91: 4.5 | BQ91: 2.6 | BR91: 1.9 | BS91: 2.986581108 | BT91: =SUM(BP91:BS91) -> 11.98658111 | BU91: 2.989661621 | BV91: 2.992723652 | BW91: 2.99576731 | BX91: 2.998792706 | BY91: =SUM(BU91:BX91) -> 11.97694529 | BZ91: 3.00179995 | CA91: 3.00478915 | CB91: 3.007760415 | CC91: 3.010713853 | CD91: =SUM(BZ91:CC91) -> 12.02506337 | CE91: 3.013649569 | CF91: 3.016567672 | CG91: 3.019468266 | CH91: 3.022351456 | CI91: =SUM(CE91:CH91) -> 12.07203696 | CJ91: 3.025217348 | CK91: 3.028066044 | CL91: 3.030897647 | CM91: 3.033712261 | CN91: =SUM(CJ91:CM91) -> 12.1178933
A92: Avg. Price | G92: =G93/G91 -> 0.5 | L92: =L93/L91 -> 56.30339567 | Q92: =Q93/Q91 -> 0.3981875493 | V92: =V93/V91 -> 52.09145871 | AA92: =AA93/AA91 -> 72.7467279 | AB92: =AB93/AB91 -> 28.13583333 | AC92: =AC93/AC91 -> 34.1 | AD92: =AD93/AD91 -> 2.926007197 | AE92: =AE58 -> 37.91061 | AF92: =AF93/AF91 -> 19.76151996 | AG92: 43.215625 | AH92: 27.49372881 | AI92: 41.31960227 | AJ92: 29.6822807 | AK92: 36.15241814 | AL92: =AL93/AL91 -> 34.5351952 | AM92: =AM93/AM91 -> 9.879013158 | AN92: =AN93/AN91 -> 42.25931034 | AO92: =AO58 -> 31.05273 | AP92: =AP93/AP91 -> 29.49854452 | AQ92: NM | AR92: 22.2 | AS92: =AS58 -> 33.20969827 | AT92: =AT58 -> 33.96148282 | AU92: =AU93/AU91 -> 22.98030333 | AV92: =AV58 -> 34.81603863 | AW92: =AW93/AW91 -> 100 | AX92: =AX93/AX91 -> 26.84563758 | AY92: =AY93/AY91 -> 11.97308176 | AZ92: =AZ93/AZ91 -> 24.0112 | BA92: 33.4 | BB92: =BB93/BB91 -> 33.69343066 | BC92: =BC93/BC91 -> 27.77777778 | BD92: 25.5 | BE92: =BE93/BE91 -> 32.58080808 | BF92: 29.44444444 | BG92: 33.1509434 | BH92: 31.70833333 | BI92: 33.5 | BJ92: =BJ93/BJ91 -> 32.33043478 | BK92: 37.03703704 | BL92: 44.1025641 | BM92: 46.57142857 | BN92: 51.26582278 | BO92: 46.65116279 | BP92: 58.44444444 | BQ92: 63.84615385 | BR92: 70 | BS92: =BR92*1.035 -> 72.45 | BT92: =BT93/BT91 -> 64.93743247 | BU92: =BS92*1.035 -> 74.98575 | BV92: =BU92*1.035 -> 77.61025125 | BW92: =BV92*1.035 -> 80.32661004 | BX92: =BW92*1.035 -> 83.1380414 | BY92: =BY93/BY91 -> 79.01861578 | BZ92: =BX92*1.035 -> 86.04787284 | CA92: =BZ92*1.035 -> 89.05954839 | CB92: =CA92*1.035 -> 92.17663259 | CC92: =CB92*1.035 -> 95.40281473 | CD92: =CD93/CD91 -> 90.67556938 | CE92: =CC92*1.035 -> 98.74191324 | CF92: =CE92*1.035 -> 102.1978802 | CG92: =CF92*1.035 -> 105.774806 | CH92: =CG92*1.035 -> 109.4769242 | CI92: =CI93/CI91 -> 104.0521795 | CJ92: =CH92*1.035 -> 113.3086166 | CK92: =CJ92*1.035 -> 117.2744182 | CL92: =CK92*1.035 -> 121.3790228 | CM92: =CL92*1.035 -> 125.6272886 | CN92: =CN93/CN91 -> 119.4021337
A93: Aggregate Price | G93: 1 | L93: 228.817 | Q93: 5.053 | V93: 404.959 | AA93: 316.812 | AB93: 270.104 | AC93: 497.86 | AD93: 35.291 | AE93: 51.651 | AF93: =SUM(AB93:AE93) -> 854.906 | AG93: 207.435 | AH93: 162.213 | AI93: 727.225 | AJ93: 338.378 | AK93: =SUM(AG93:AJ93) -> 1435.251 | AL93: 1150.022 | AM93: 150.161 | AN93: 122.552 | AO93: 299.98 | AP93: =SUM(AL93:AO93) -> 1722.715 | AQ93: 0.013 | AR93: 0 | AS93: 350 | AT93: 0 | AU93: =SUM(AQ93:AT93) -> 350.013 | AV93: 0.02 | AW93: 250 | AX93: 400 | AY93: 190.372 | AZ93: =SUM(AV93:AY93) -> 840.392 | BA93: =BA91*BA92 -> 83.5 | BB93: 461.6 | BC93: 100 | BD93: =BD91*BD92 -> 0 | BE93: =SUM(BA93:BD93) -> 645.1 | BF93: =BF91*BF92 -> 53 | BG93: 175.7 | BH93: 76.1 | BI93: =BI91*BI92 -> 67 | BJ93: =SUM(BF93:BI93) -> 371.8 | BK93: 100 | BL93: 172 | BM93: 326 | BN93: 405 | BO93: =SUM(BK93:BN93) -> 1003 | BP93: 263 | BQ93: 166 | BR93: 133 | BS93: =BS91*BS92 -> 216.3778013 | BT93: =SUM(BP93:BS93) -> 778.3778013 | BU93: =BU91*BU92 -> 224.1820189 | BV93: =BV91*BV92 -> 232.2660345 | BW93: =BW91*BW92 -> 240.6398325 | BX93: =BX91*BX92 -> 249.3137521 | BY93: =SUM(BU93:BX93) -> 946.401638 | BZ93: =BZ91*BZ92 -> 258.2985004 | CA93: =CA91*CA92 -> 267.6051647 | CB93: =CB91*CB92 -> 277.2452267 | CC93: =CC91*CC92 -> 287.2305759 | CD93: =SUM(BZ93:CC93) -> 1090.379468 | CE93: =CE91*CE92 -> 297.5735243 | CF93: =CF91*CF92 -> 308.2868216 | CG93: =CG91*CG92 -> 319.3836701 | CH93: =CH91*CH92 -> 330.8777414 | CI93: =SUM(CE93:CH93) -> 1256.121757 | CJ93: =CJ91*CJ92 -> 342.7831925 | CK93: =CK91*CK92 -> 355.1146834 | CL93: =CL91*CL92 -> 367.8873946 | CM93: =CM91*CM92 -> 381.1170457 | CN93: =SUM(CJ93:CM93) -> 1446.902316
A96: Balance Sheet
A98: Accounts Receivable and Payable (Based on DSO and Days Payable)
A99: DSO (on total revenue) | H99: 48.93069045 | I99: 38.49298035 | J99: 46.41600908 | K99: 36.08019066 | L99: 36.50852344 | M99: 41.68434127 | N99: 36.8327966 | O99: 31.08376655 | P99: 37.23201338 | Q99: 41.24622996 | R99: 26.50637224 | S99: 23.50958338 | T99: 24.99247299 | U99: 30.1569754 | V99: 31.0875529 | W99: 26.69718873 | X99: 31.67312042 | Y99: 29.45921169 | Z99: 30.97473456 | AA99: 32.15874977 | AB99: 39.19218113 | AC99: 39.66741993 | AD99: 43.12331553 | AE99: 47.72876278 | AF99: 50.57176834 | AG99: 42.82099669 | AH99: 38.93053635 | AI99: 27.95861532 | AJ99: 31.85950482 | AK99: 36.77241954 | AL99: 30.05297632 | AM99: 33.04250772 | AN99: 33.73009455 | AO99: 46.58041726 | AP99: 47.63846309 | AQ99: 34.81654141 | AR99: 34.00452054 | AS99: 36.86685402 | AT99: 49.509508 | AU99: 50.90913735 | AV99: 37.25416473 | AW99: 42.4931511 | AX99: 44.64741916 | AY99: 50.18367055 | AZ99: 53.24466316 | BA99: 47.3564047 | BB99: 50.70668231 | BC99: 50.37242946 | BD99: 50.24170776 | BE99: 54.91745168 | BF99: 44.71714448 | BG99: 42.96053334 | BH99: 47.85275385 | BI99: 48.83053927 | BJ99: 51.15952987 | BK99: 43.9830626 | BL99: 42.44449799 | BM99: 47.90363891 | BN99: 52.54260108 | BO99: 53.98800071 | BP99: 46.57817437 | BQ99: 45.4074265 | BR99: 47.95083767 | BS99: =BN99-0.5 -> 52.04260108 | BT99: 53.67898683 | BU99: =BP99-0.05 -> 46.52817437 | BV99: =BQ99-0.05 -> 45.3574265 | BW99: =BR99-0.05 -> 47.90083767 | BX99: =BS99-0.05 -> 51.99260108 | BY99: 57.50752328 | BZ99: =BU99-0.05 -> 46.47817437 | CA99: =BV99-0.05 -> 45.3074265 | CB99: =BW99-0.05 -> 47.85083767 | CC99: =BX99-0.05 -> 51.94260108 | CD99: 56.01387899 | CE99: =BZ99-0.05 -> 46.42817437 | CF99: =CA99-0.05 -> 45.2574265 | CG99: =CB99-0.05 -> 47.80083767 | CH99: =CC99-0.05 -> 51.89260108 | CI99: 54.75980947 | CJ99: =CE99-0.05 -> 46.37817437 | CK99: =CF99-0.05 -> 45.2074265 | CL99: =CG99-0.05 -> 47.75083767 | CM99: =CH99-0.05 -> 51.84260108 | CN99: 54.25028125
A100: A/R Turnover | H100: 7.459530953 | I100: 9.482248366 | J100: 7.863666163 | K100: 10.11635452 | L100: 9.997665356 | M100: 8.756285668 | N100: 9.909646666 | O100: 11.74246369 | P100: 9.803391406 | Q100: 8.849293628 | R100: 13.77027368 | S100: 15.52558351 | T100: 14.6043971 | U100: 12.1033358 | V100: 11.7410335 | W100: 13.67185151 | X100: 11.52396717 | Y100: 12.39001247 | Z100: 11.78379751 | AA100: 11.34994372 | AB100: 9.313082087 | AC100: 9.201505937 | AD100: 8.464098726 | AE100: 7.647380295 | AF100: 7.217465633 | AG100: 8.523855776 | AH100: 9.375673552 | AI100: 13.05500991 | AJ100: 11.45654969 | AK100: 9.925917428 | AL100: 12.1452197 | AM100: 11.04637708 | AN100: 10.82119706 | AO100: 7.835910914 | AP100: 7.661876062 | AQ100: 10.48352264 | AR100: 10.73386698 | AS100: 9.900492181 | AT100: 7.372321292 | AU100: 7.169636316 | AV100: 9.797562304 | AW100: 8.589619516 | AX100: 8.175164586 | AY100: 7.273282244 | AZ100: 6.855147133 | BA100: 7.707510786 | BB100: 7.198262307 | BC100: 7.246027319 | BD100: 7.264880441 | BE100: 6.646338984 | BF100: 8.162417441 | BG100: 8.496170128 | BH100: 7.627565201 | BI100: 7.474830413 | BJ100: 7.134545625 | BK100: 8.298649035 | BL100: 8.599465591 | BM100: 7.619462911 | BN100: 6.946744023 | BO100: 6.760761562 | BP100: 7.836288239 | BQ100: 8.038332672 | BR100: 7.611962955 | BS100: 7.013484961 | BT100: 6.799681245 | BU100: 7.844709253 | BV100: 8.04719377 | BW100: 7.619908498 | BX100: 7.020229656 | BY100: 6.346995648 | BZ100: 7.853148385 | CA100: 8.056074427 | CB100: 7.627870645 | CC100: 7.026987337 | CD100: 6.516242163 | CE100: 7.861605694 | CF100: 8.064974706 | CG100: 7.635849449 | CH100: 7.033758039 | CI100: 6.665472425 | CJ100: 7.870081239 | CK100: 8.073894672 | CL100: 7.643844963 | CM100: 7.040541802 | CN100: 6.728075718
A102: Days Payable (on total expense) | H102: 16.10013652 | I102: 13.92238239 | J102: 14.15600751 | K102: 16.34464658 | L102: 16.43187689 | M102: 14.41828183 | N102: 16.48194022 | O102: 12.87195508 | P102: 14.03341542 | Q102: 14.92009028 | R102: 12.49261592 | S102: 11.27094626 | T102: 12.70056549 | U102: 13.92069878 | V102: 14.66809703 | W102: 11.6489683 | X102: 11.25763164 | Y102: 11.25488135 | Z102: 11.76067937 | AA102: 12.10153269 | AB102: 11.59491239 | AC102: 11.50674009 | AD102: 8.923943263 | AE102: 11.72701632 | AF102: 12.40956163 | AG102: 10.01825739 | AH102: 10.83488306 | AI102: 11.49920521 | AJ102: 11.11368616 | AK102: 12.51451351 | AL102: 10.6475845 | AM102: 10.35402811 | AN102: 9.588666413 | AO102: 9.428278544 | AP102: 9.503998314 | AQ102: 7.690465289 | AR102: 8.257457005 | AS102: 9.595541443 | AT102: 10.92262298 | AU102: 11.25118072 | AV102: 7.081236148 | AW102: 7.538029788 | AX102: 8.511083553 | AY102: 7.666995712 | AZ102: 7.949555328 | BA102: 7.959272366 | BB102: 8.540618153 | BC102: 9.199031077 | BD102: 11.17544849 | BE102: 12.03129035 | BF102: 9.711912632 | BG102: 8.796389906 | BH102: 7.745312393 | BI102: 6.14533129 | BJ102: 6.472213759 | BK102: 8.649748504 | BL102: 6.418234839 | BM102: 8.399436207 | BN102: 6.93281619 | BO102: 7.264747909 | BP102: 7.402739578 | BQ102: 6.120568334 | BR102: 6.018742244 | BS102: 7.03281619 | BT102: 7.354268831 | BU102: =BP102 -> 7.402739578 | BV102: =BQ102 -> 6.120568334 | BW102: =BR102 -> 6.018742244 | BX102: =BS102 -> 7.03281619 | BY102: 7.518925158 | BZ102: 8 | CA102: 7 | CB102: 5.8 | CC102: 5 | CD102: 5.294456196 | CE102: 8 | CF102: 7 | CG102: 5.8 | CH102: 5 | CI102: 5.173918231 | CJ102: 8 | CK102: 7 | CL102: 5.8 | CM102: 5 | CN102: 5.127989442
A103: A/P Turnover | H103: 22.67061522 | I103: 26.21677741 | J103: 25.78410612 | K103: 22.33147094 | L103: 22.21292202 | M103: 25.31508292 | N103: 22.14545102 | O103: 28.35622077 | P103: 26.00934904 | Q103: 24.46365895 | R103: 29.2172594 | S103: 32.38414873 | T103: 28.73887783 | U103: 26.21994814 | V103: 24.88393684 | W103: 31.33324692 | X103: 32.42245009 | Y103: 32.43037298 | Z103: 31.03562205 | AA103: 30.16146874 | AB103: 31.47932368 | AC103: 31.7205392 | AD103: 40.90120133 | AE103: 31.12471153 | AF103: 29.41280369 | AG103: 36.43348198 | AH103: 33.68748864 | AI103: 31.74132414 | AJ103: 32.84238862 | AK103: 29.16613576 | AL103: 34.28007546 | AM103: 35.25198077 | AN103: 38.0657731 | AO103: 38.71332378 | AP103: 38.40488897 | AQ103: 47.46136759 | AR103: 44.20247054 | AS103: 38.03849967 | AT103: 33.41688171 | AU103: 32.44103966 | AV103: 51.54467276 | AW103: 48.42114057 | AX103: 42.88525635 | AY103: 47.60665243 | AZ103: 45.91451785 | BA103: 45.85846334 | BB103: 42.7369534 | BC103: 39.67809185 | BD103: 32.66088161 | BE103: 30.33756058 | BF103: 37.58271041 | BG103: 41.49429526 | BH103: 47.12527803 | BI103: 59.39468237 | BJ103: 56.39492353 | BK103: 42.19775868 | BL103: 56.86921859 | BM103: 43.45529759 | BN103: 52.64815769 | BO103: 50.24262432 | BP103: 49.30607056 | BQ103: 59.63498487 | BR103: 60.64389954 | BS103: 51.89955064 | BT103: 49.63103857 | BU103: 49.30607056 | BV103: 59.63498487 | BW103: 60.64389954 | BX103: 51.89955064 | BY103: 48.54417251 | BZ103: 45.625 | CA103: 52.14285714 | CB103: 62.93103448 | CC103: 73 | CD103: 68.94003585 | CE103: 45.625 | CF103: 52.14285714 | CG103: 62.93103448 | CH103: 73 | CI103: 70.54614776 | CJ103: 45.625 | CK103: 52.14285714 | CL103: 62.93103448 | CM103: 73 | CN103: 71.17799367
A105: Total Deferred Revenue (Based on Y/Y % Growth)
A106: Y/Y % Growth | H106: - | I106: - | J106: - | K106: =(K26+K37)/(F26+F37)-1 -> 0.4370305516 | L106: - | M106: =(M26+M37)/(H26+H37)-1 -> 0.3755663773 | N106: 0.6289734843 | O106: 0.5233022149 | P106: 0.4622414622 | Q106: 0.4622414622 | R106: 0.3337643147 | S106: 0.06565764737 | T106: 0.1331202384 | U106: 0.3057236842 | V106: 0.3057236842 | W106: 0.3176152887 | X106: 0.3629522108 | Y106: 0.272800543 | Z106: 0.1348482558 | AA106: 0.1348482558 | AB106: 0.6599751257 | AC106: 0.6650009012 | AD106: 1.079503416 | AE106: 1.411632381 | AF106: 1.411632381 | AG106: 0.7996369891 | AH106: 1.054674277 | AI106: 0.5393898598 | AJ106: 0.2842151773 | AK106: 0.2842151773 | AL106: 0.2584687374 | AM106: 0.03648058392 | AN106: 0.2099353468 | AO106: 0.3156335417 | AP106: 0.3156335417 | AQ106: 0.04970692113 | AR106: -0.01431522136 | AS106: =(AS26+AS37)/(AN26+AN37)-1 -> -0.06125258679 | AT106: 0.1560838297 | AU106: 0.1560838297 | AV106: 0.5968280319 | AW106: 0.8955207088 | AX106: 0.9290860427 | AY106: 0.3499417204 | AZ106: 0.3499417204 | BA106: 0.2325410084 | BB106: 0.1921240135 | BC106: 0.1500160365 | BD106: 0.2374527843 | BE106: 0.2374527843 | BF106: 0.2380840689 | BG106: 0.2297609885 | BH106: 0.157571701 | BI106: 0.1652420045 | BJ106: 0.1652420045 | BK106: 0.2751856224 | BL106: 0.166138082 | BM106: 0.310069191 | BN106: 0.3377321185 | BO106: 0.3377321185 | BP106: 0.2586399745 | BQ106: 0.3433478816 | BR106: 0.3575424854 | BS106: 0.2932177837 | BT106: 0.2932177837 | BU106: 0.2461398737 | BV106: 0.2628632432 | BW106: 0.26454942 | BX106: 0.2625903802 | BY106: =(BY26+BY37)/(BT26+BT37)-1 -> 0.2625903802 | BZ106: 0.2610432765 | CA106: 0.233636188 | CB106: 0.2089616318 | CC106: 0.1910606857 | CD106: 0.1910606857 | CE106: 0.1768672877 | CF106: 0.145130571 | CG106: 0.1229516164 | CH106: 0.1140143956 | CI106: 0.1140143956 | CJ106: 0.1120190162 | CK106: 0.1056009077 | CL106: 0.09914351288 | CM106: 0.09297415137 | CN106: 0.09297415137
A107: Q/Q % Growth | H107: =(H26+H37)/(F26+F37)-1 -> 0.08819870052 | I107: =(I26+I37)/(H26+H37)-1 -> 0.09235655304 | J107: =(J26+J37)/(I26+I37)-1 -> 0.05888509846 | K107: =(K26+K37)/(J26+J37)-1 -> 0.1416803954 | L107: - | M107: =(M26+M37)/(K26+K37)-1 -> 0.04165464165 | N107: =(N26+N37)/(M26+M37)-1 -> 0.2935906908 | O107: =(O26+O37)/(N26+N37)-1 -> -0.009804621499 | P107: =(P26+P37)/(O26+O37)-1 -> 0.09591674878 | Q107: - | R107: =(R26+R37)/(P26+P37)-1 -> -0.04986842105 | S107: =(S26+S37)/(R26+R37)-1 -> 0.03355952546 | T107: =(T26+T37)/(S26+S37)-1 -> 0.05288075033 | U107: =(U26+U37)/(T26+T37)-1 -> 0.2628531433 | V107: - | W107: =(W26+W37)/(U26+U37)-1 -> -0.04121529702 | X107: =(X26+X37)/(W26+W37)-1 -> 0.06912256731 | Y107: =(Y26+Y37)/(X26+X37)-1 -> -0.01676142415 | Z107: =(Z26+Z37)/(Y26+Y37)-1 -> 0.1259790035 | AA107: - | AB107: =(AB26+AB37)/(Z26+Z37)-1 -> 0.4024419121 | AC107: =(AC26+AC37)/(AB26+AB37)-1 -> 0.07235946519 | AD107: =(AD26+AD37)/(AC26+AC37)-1 -> 0.2280161386 | AE107: =(AE26+AE37)/(AD26+AD37)-1 -> 0.3058153232 | AF107: - | AG107: =(AG26+AG37)/(AE26+AE37)-1 -> 0.04654687826 | AH107: =(AH26+AH37)/(AG26+AG37)-1 -> 0.2243299187 | AI107: =(AI26+AI37)/(AH26+AH37)-1 -> -0.07995363896 | AJ107: =(AJ26+AJ37)/(AI26+AI37)-1 -> 0.08935877815 | AK107: - | AL107: =(AL26+AL37)/(AJ26+AJ37)-1 -> 0.02556530382 | AM107: =(AM26+AM37)/(AK26+AK37)-1 -> 0.03414282164 | AN107: =(AN26+AN37)/(AM26+AM37)-1 -> 0.07401588629 | AO107: =(AO26+AO37)/(AN26+AN37)-1 -> 0.184523579 | AP107: - | AQ107: =(AQ26+AQ37)/(AO26+AO37)-1 -> -0.1817303501 | AR107: =(AR26+AR37)/(AP26+AP37)-1 -> -0.225210664 | AS107: =(AS26+AS37)/(AQ26+AQ37)-1 -> -0.03147998544 | AT107: =(AT26+AT37)/(AR26+AR37)-1 -> 0.4921266671 | AU107: - | AV107: =(AV26+AV37)/(AT26+AT37)-1 -> 0.1302259239 | AW107: =(AW26+AW37)/(AU26+AU37)-1 -> 0.2703483897 | AX107: =(AX26+AX37)/(AV26+AV37)-1 -> 0.1700436145 | AY107: =(AY26+AY37)/(AW26+AW37)-1 -> 0.06265472631 | AZ107: - | BA107: =(BA26+BA37)/(AY26+AY37)-1 -> 0.03193328942 | BB107: =(BB26+BB37)/(BA26+BA37)-1 -> 0.08712037492 | BC107: =(BC26+BC37)/(BB26+BB37)-1 -> 0.004215531495 | BD107: =(BD26+BD37)/(BB26+BB37)-1 -> 0.1030606169 | BE107: - | BF107: =(BF26+BF37)/(BD26+BD37)-1 -> 0.03245972861 | BG107: =(BG26+BG37)/(BF26+BF37)-1 -> 0.07981215526 | BH107: =(BH26+BH37)/(BG26+BG37)-1 -> -0.05473381266 | BI107: =(BI26+BI37)/(BG26+BG37)-1 -> 0.04518892402 | BJ107: - | BK107: =(BK26+BK37)/(BI26+BI37)-1 -> 0.1298749929 | BL107: =(BL26+BL37)/(BK26+BK37)-1 -> -0.01252801662 | BM107: =(BM26+BM37)/(BL26+BL37)-1 -> 0.06193608492 | BN107: =(BN26+BN37)/(BM26+BM37)-1 -> 0.1290562953 | BO107: - | BP107: =(BP26+BP37)/(BN26+BN37)-1 -> 0.06307220455 | BQ107: =(BQ26+BQ37)/(BP26+BP37)-1 -> 0.05392997513 | BR107: =(BR26+BR37)/(BQ26+BQ37)-1 -> 0.07315712618 | BS107: =(BS26+BS37)/(BR26+BR37)-1 -> 0.07555799958 | BT107: - | BU107: =(BU26+BU37)/(BS26+BS37)-1 -> 0.02437244478 | BV107: =(BV26+BV37)/(BU26+BU37)-1 -> 0.06807386115 | BW107: =(BW26+BW37)/(BV26+BV37)-1 -> 0.07459000708 | BX107: =(BX26+BX37)/(BW26+BW37)-1 -> 0.07389174534 | BY107: - | BZ107: =(BZ26+BZ37)/(BX26+BX37)-1 -> 0.02311723923 | CA107: =(CA26+CA37)/(BZ26+BZ37)-1 -> 0.04486070472 | CB107: =(CB26+CB37)/(CA26+CA37)-1 -> 0.05309661073 | CC107: =(CC26+CC37)/(CB26+CB37)-1 -> 0.05799076248 | CD107: - | CE107: =(CE26+CE37)/(CC26+CC37)-1 -> 0.01092515665 | CF107: =(CF26+CF37)/(CE26+CE37)-1 -> 0.01668382484 | CG107: =(CG26+CG37)/(CF26+CF37)-1 -> 0.03270017524 | CH107: =(CH26+CH37)/(CG26+CG37)-1 -> 0.04957054478 | CI107: - | CJ107: =(CJ26+CJ37)/(CH26+CH37)-1 -> 0.009114426676 | CK107: =(CK26+CK37)/(CJ26+CJ37)-1 -> 0.01081595116 | CL107: =(CL26+CL37)/(CK26+CK37)-1 -> 0.02666856592 | CM107: =(CM26+CM37)/(CL26+CL37)-1 -> 0.04367943043 | CN107: -
A109: ST Deferred Revenue as % of Total Revenue | H109: 0.08814987906 | I109: 0.08128334158 | J109: 0.0958828134 | K109: 0.1058359975 | M109: 0.1094124185 | N109: 0.1312557396 | O109: 0.1303858712 | P109: 0.127166147 | Q109: - | R109: 0.1023575355 | S109: 0.1091968738 | T109: 0.1167859346 | U109: 0.1386279924 | V109: - | W109: 0.1207214485 | X109: 0.1230432092 | Y109: 0.1232139521 | Z109: 0.1133273638 | AA109: - | AB109: 0.1257219922 | AC109: 0.1400836565 | AD109: 0.1718873248 | AE109: 0.1910213655 | AF109: - | AG109: 0.215107013 | AH109: 0.2405264647 | AI109: 0.1930782002 | AJ109: 0.2011806267 | AK109: - | AL109: 0.2152429403 | AM109: 0.2160300196 | AN109: 0.2305904603 | AO109: 0.2665396411 | AP109: - | AQ109: 0.2521814876 | AR109: 0.2628041659 | AS109: 0.2700015914 | AT109: 0.3718240077 | AU109: - | AV109: 0.3732793758 | AW109: 0.3844671725 | AX109: 0.3796019262 | AY109: 0.3777464269 | AZ109: - | BA109: 0.3887999097 | BB109: 0.4281538225 | BC109: 0.4339565659 | BD109: 0.4134856153 | BE109: - | BF109: 0.4712357207 | BG109: 0.4758908585 | BH109: 0.4679394399 | BI109: 0.4867776749 | BJ109: - | BK109: 0.6407890677 | BL109: 0.632215756 | BM109: 0.6864937761 | BN109: 0.7444991307 | BO109: - | BP109: 0.8309772827 | BQ109: 0.8229754879 | BR109: 0.9424652057 | BS109: 0.9524652057 | BT109: - | BU109: =BS109 -> 0.9524652057 | BV109: =BU109 -> 0.9524652057 | BW109: =BV109 -> 0.9524652057 | BX109: =BW109 -> 0.9524652057 | BY109: - | BZ109: =BU109+0.001 -> 0.9534652057 | CA109: 0.9534652057 | CB109: 0.9534652057 | CC109: 0.9534652057 | CD109: - | CE109: =BZ109+0.001 -> 0.9544652057 | CF109: 0.9544652057 | CG109: 0.9544652057 | CH109: 0.9544652057 | CI109: - | CJ109: =CE109+0.001 -> 0.9554652057 | CK109: 0.9554652057 | CL109: 0.9554652057 | CM109: 0.9554652057 | CN109: -
A110: LT Deferred Revenue as % of Total Revenue | AB110: 0.01884884008 | AC110: 0.01983300181 | AD110: 0.03534094664 | AE110: 0.04785282369 | AG110: 0.04750025793 | AH110: 0.03951972767 | AI110: 0.03247675787 | AJ110: 0.02847858509 | AL110: 0.02578036824 | AM110: 0.02798443092 | AN110: 0.03137535122 | AO110: 0.03425758302 | AQ110: 0.03429977492 | AR110: 0.03991071036 | AS110: 0.04281820828 | AT110: 0.04848517661 | AV110: 0.04565971818 | AW110: 0.04430058269 | AX110: 0.0454277864 | AY110: 0.04854327514 | BA110: 0.04264449171 | BB110: 0.04295338352 | BC110: 0.0437904407 | BD110: 0.04799936814 | BF110: 0.05397810987 | BG110: 0.05128111635 | BH110: 0.05060893224 | BI110: 0.05037332196 | BK110: 0.05377364013 | BL110: 0.05182925321 | BM110: 0.05118181846 | BN110: 0.05113569275 | BP110: 0.05000399952 | BQ110: 0.04633460899 | BR110: 0.04871151939 | BS110: =BN110 -> 0.05113569275 | BU110: =BP110+0.001 -> 0.05100399952 | BV110: =BQ110+0.001 -> 0.04733460899 | BW110: =BR110+0.001 -> 0.04971151939 | BX110: =BS110+0.001 -> 0.05213569275 | BZ110: 0.05200399952 | CA110: 0.04833460899 | CB110: 0.05071151939 | CC110: 0.05313569275 | CE110: 0.05300399952 | CF110: 0.04933460899 | CG110: 0.05171151939 | CH110: 0.05413569275 | CJ110: 0.05400399952 | CK110: 0.05033460899 | CL110: 0.05271151939 | CM110: 0.05513569275
A112: Estimates Using % of Sales Approach
A113: Other Current Assets | H113: 0.07200928719 | I113: 0.05793438976 | J113: 0.08142755345 | K113: 0.06119720078 | L113: - | M113: 0.06222738679 | N113: 0.07663690941 | O113: 0.09788106116 | P113: 0.06296397517 | Q113: - | R113: 0.07053942889 | S113: 0.06809320019 | T113: 0.06587600597 | U113: 0.04334554903 | V113: - | W113: 0.05999805448 | X113: 0.08840208939 | Y113: 0.0734047992 | Z113: 0.08677021226 | AA113: - | AB113: 0.05213904967 | AC113: 0.0651012816 | AD113: 0.06793027461 | AE113: 0.05762597574 | AF113: - | AG113: 0.06479295727 | AH113: 0.08200494382 | AI113: 0.06934363134 | AJ113: 0.04920923913 | AK113: - | AL113: 0.05169437753 | AM113: 0.05456958391 | AN113: 0.06769064657 | AO113: 0.1006433949 | AP113: - | AQ113: 0.132407584 | AR113: 0.1193163354 | AS113: 0.1154153292 | AT113: 0.1067698601 | AU113: - | AV113: 0.1013077908 | AW113: 0.1285668082 | AX113: 0.09777253592 | AY113: 0.1095892042 | AZ113: - | BA113: 0.1106172388 | BB113: 0.1243291741 | BC113: 0.117954584 | BD113: 0.1158023922 | BE113: - | BF113: 0.1433305907 | BG113: 0.1457949627 | BH113: 0.1287410465 | BI113: 0.1007752543 | BJ113: - | BK113: 0.1604001695 | BL113: 0.1656248237 | BM113: 0.1528138846 | BN113: 0.1633005312 | BO113: - | BP113: 0.2086179658 | BQ113: 0.1685870168 | BR113: 0.1504134138 | BS113: =BR113 -> 0.1504134138 | BT113: - | BU113: =BP113 -> 0.2086179658 | BV113: 0.1685870168 | BW113: 0.1504134138 | BX113: 0.1504134138 | BY113: - | BZ113: =BU113 -> 0.2086179658 | CA113: 0.1685870168 | CB113: 0.1504134138 | CC113: 0.1504134138 | CD113: - | CE113: =BZ113 -> 0.2086179658 | CF113: 0.1685870168 | CG113: 0.1504134138 | CH113: 0.1504134138 | CI113: - | CJ113: =CE113 -> 0.2086179658 | CK113: 0.1685870168 | CL113: 0.1504134138 | CM113: 0.1504134138 | CN113: -
A114: Other Non-Current Assets | H114: 0.2692014812 | I114: 0.1124184283 | J114: 0.137879591 | K114: 0.08297868008 | L114: - | M114: 0.1431044645 | N114: 0.1323052607 | O114: 0.1237708463 | P114: 0.1051937332 | Q114: - | R114: 0.08439783501 | S114: 0.09444627333 | T114: 0.1162905331 | U114: 0.1288189578 | V114: - | W114: 0.1244179309 | X114: 0.1204042506 | Y114: 0.1210703866 | Z114: 0.1297644263 | AA114: - | AB114: 0.1574042149 | AC114: 0.1555638785 | AD114: 0.1585161519 | AE114: 0.09994942647 | AF114: - | AG114: 0.09714862944 | AH114: 0.1150545148 | AI114: 0.09853044432 | AJ114: 0.1020444222 | AK114: - | AL114: 0.1216009973 | AM114: 0.1386040596 | AN114: 0.2444466485 | AO114: 0.2365658947 | AP114: - | AQ114: 0.2506987627 | AR114: 0.2746138989 | AS114: 0.2648073783 | AT114: 0.2525687227 | AU114: - | AV114: 0.2244415978 | AW114: 0.191271798 | AX114: 0.1791604523 | AY114: 0.168531846 | AZ114: - | BA114: 0.160358118 | BB114: 0.1583691612 | BC114: 0.1551906215 | BD114: 0.07804638414 | BE114: - | BF114: 0.090059509 | BG114: 0.08099522522 | BH114: 0.08302300616 | BI114: 0.08091272277 | BJ114: - | BK114: 0.09655978481 | BL114: 0.09220136777 | BM114: 0.09121924112 | BN114: 0.08651347462 | BO114: - | BP114: 0.09253889533 | BQ114: 0.09553570091 | BR114: 0.1097036132 | BS114: =BR114 -> 0.1097036132 | BT114: - | BU114: 0.09253889533 | BV114: 0.09553570091 | BW114: 0.1097036132 | BX114: 0.1097036132 | BY114: - | BZ114: 0.09253889533 | CA114: 0.09553570091 | CB114: 0.1097036132 | CC114: 0.1097036132 | CD114: - | CE114: 0.09253889533 | CF114: 0.09553570091 | CG114: 0.1097036132 | CH114: 0.1097036132 | CI114: - | CJ114: 0.09253889533 | CK114: 0.09553570091 | CL114: 0.1097036132 | CM114: 0.1097036132 | CN114: -
A116: Estimates Using % of Operating Expense
A117: Accrued Expenses % of LTM Operating Expense | H117: 0.1628547677 | I117: 0.2125176095 | J117: 0.1758197222 | K117: 0.183815852 | L117: - | M117: 0.1928978756 | N117: 0.2067571583 | O117: 0.187975481 | P117: 0.1944632145 | Q117: - | R117: 0.2029848399 | S117: 0.2097660997 | T117: 0.1815503728 | U117: 0.2089448882 | V117: - | W117: 0.1946645434 | X117: 0.2044735792 | Y117: 0.1900048932 | Z117: 0.2017090417 | AA117: - | AB117: 0.2346194004 | AC117: 0.2175772417 | AD117: 0.1843590661 | AE117: 0.2021573872 | AF117: - | AG117: 0.1811687381 | AH117: 0.239572892 | AI117: 0.2144093694 | AJ117: 0.2223991917 | AK117: - | AL117: 0.203610129 | AM117: 0.200825488 | AN117: 0.1869180249 | AO117: 0.2101497591 | AP117: - | AQ117: 0.1858475497 | AR117: 0.2029124441 | AS117: 0.2022608822 | AT117: 0.2501183104 | AU117: - | AV117: 0.2084907296 | AW117: 0.2522566996 | AX117: 0.2375164647 | AY117: 0.2714460543 | AZ117: - | BA117: 0.2162980653 | BB117: 0.2302908789 | BC117: 0.205498136 | BD117: 0.2446635629 | BE117: - | BF117: 0.2070268425 | BG117: 0.2356877879 | BH117: 0.2295167684 | BI117: 0.2445604427 | BJ117: - | BK117: 0.202006941 | BL117: 0.2118170166 | BM117: 0.2108254863 | BN117: 0.2476763576 | BO117: - | BP117: 0.21954957 | BQ117: 0.2436793377 | BR117: 0.231220881 | BS117: =BR117 -> 0.231220881 | BT117: - | BU117: =BP117 -> 0.21954957 | BV117: =BQ117 -> 0.2436793377 | BW117: =BR117 -> 0.231220881 | BX117: =BS117 -> 0.231220881 | BY117: - | BZ117: =BU117 -> 0.21954957 | CA117: =BV117 -> 0.2436793377 | CB117: =BW117 -> 0.231220881 | CC117: =BX117 -> 0.231220881 | CD117: - | CE117: =BZ117 -> 0.21954957 | CF117: =CA117 -> 0.2436793377 | CG117: =CB117 -> 0.231220881 | CH117: =CC117 -> 0.231220881 | CI117: - | CJ117: =CE117 -> 0.21954957 | CK117: =CF117 -> 0.2436793377 | CL117: =CG117 -> 0.231220881 | CM117: =CH117 -> 0.231220881 | CN117: -
A119: Doubtful Accounts
A120: Allowance for Doubtful Accounts
A121: % of Revenues
A123: Provision for Doubtful Accounts (from CFS)
A124: Estimated Bad Debt Writeoff
A125: % of AR
A127: ADBE Debt
A128: Due Feb. 2015 @ 3.25% | AV128: 600 | AW128: 600 | AX128: 600 | AY128: 600 | BA128: 600 | BB128: 600 | BC128: 600 | BD128: 600 | BF128: 600 | BG128: 600 | BH128: 600 | BI128: 600 | BK128: 600 | BL128: 600 | BM128: 600 | BN128: 600 | BP128: 600 | BQ128: 600 | BR128: 600 | BS128: 600 | BU128: 0 | BV128: 0 | BW128: 0 | BX128: 0 | BZ128: 0 | CA128: 0 | CB128: 0 | CC128: 0 | CE128: 0 | CF128: 0 | CG128: 0 | CH128: 0 | CJ128: 0 | CK128: 0 | CL128: 0 | CM128: 0
A129: Due Feb. 2020 @ 4.75% | AV129: 900 | AW129: 900 | AX129: 900 | AY129: 900 | BA129: 900 | BB129: 900 | BC129: 900 | BD129: 900 | BF129: 900 | BG129: 900 | BH129: 900 | BI129: 900 | BK129: 900 | BL129: 900 | BM129: 900 | BN129: 900 | BP129: 900 | BQ129: 900 | BR129: 900 | BS129: 900 | BU129: 900 | BV129: 900 | BW129: 900 | BX129: 900 | BZ129: 900 | CA129: 900 | CB129: 900 | CC129: 900 | CE129: 900 | CF129: 900 | CG129: 900 | CH129: 900 | CJ129: 900 | CK129: 900 | CL129: 900 | CM129: 900
A130: Quarterly Interest | AV130: =(AV128*0.0325+AV129*0.0475)/4 -> 15.5625 | AW130: =(AW128*0.0325+AW129*0.0475)/4 -> 15.5625 | AX130: =(AX128*0.034+AX129*0.05)/4 -> 16.35 | AY130: =(AY128*0.034+AY129*0.05)/4 -> 16.35 | BA130: =(BA128*0.034+BA129*0.053)/4 -> 17.025 | BB130: =(BB128*0.034+BB129*0.052)/4 -> 16.8 | BC130: =(BC128*0.034+BC129*0.0505)/4 -> 16.4625 | BD130: =(BD128*0.034+BD129*0.058)/4 -> 18.15 | BF130: =(BF128*0.036+BF129*0.068)/4 -> 20.7 | BG130: =(BG128*0.034+BG129*0.052)/4 -> 16.8 | BH130: =(BH128*0.033+BH129*0.065)/4 -> 19.575 | BI130: =(BI128*0.033+BI129*0.065)/4 -> 19.575 | BK130: =(BK128*0.0345+BK129*0.0492)/4 -> 16.245 | BL130: =(BL128*0.0345+BL129*0.0492)/4 -> 16.245 | BM130: =(BM128*0.0345+BM129*0.0492)/4 -> 16.245 | BN130: =(BN128*0.0345+BN129*0.0492)/4 -> 16.245 | BP130: =(BP128*0.0345+BP129*0.0492)/4 -> 16.245 | BQ130: =(BQ128*0.0345+BQ129*0.0492)/4 -> 16.245 | BR130: =(BR128*0.0345+BR129*0.0492)/4 -> 16.245 | BS130: =(BS128*0.0345+BS129*0.0492)/4 -> 16.245 | BU130: =(BU128*0.0345+BU129*0.0492)/4 -> 11.07 | BV130: =(BV128*0.0345+BV129*0.0492)/4 -> 11.07 | BW130: =(BW128*0.0345+BW129*0.0492)/4 -> 11.07 | BX130: =(BX128*0.0345+BX129*0.0492)/4 -> 11.07 | BZ130: =(BZ128*0.0345+BZ129*0.0492)/4 -> 11.07 | CA130: =(CA128*0.0345+CA129*0.0492)/4 -> 11.07 | CB130: =(CB128*0.0345+CB129*0.0492)/4 -> 11.07 | CC130: =(CC128*0.0345+CC129*0.0492)/4 -> 11.07 | CE130: =(CE128*0.0345+CE129*0.0492)/4 -> 11.07 | CF130: =(CF128*0.0345+CF129*0.0492)/4 -> 11.07 | CG130: =(CG128*0.0345+CG129*0.0492)/4 -> 11.07 | CH130: =(CH128*0.0345+CH129*0.0492)/4 -> 11.07 | CJ130: =(CJ128*0.0345+CJ129*0.0492)/4 -> 11.07 | CK130: =(CK128*0.0345+CK129*0.0492)/4 -> 11.07 | CL130: =(CL128*0.0345+CL129*0.0492)/4 -> 11.07 | CM130: =(CM128*0.0345+CM129*0.0492)/4 -> 11.07
AX131: -16.395 | AY131: -16.786 | BA131: -17.02 | BB131: -16.727 | BC131: -16.431 | BD131: -18.1 | BG131: -16.629 | BH131: -17.253 | BI131: -16.767 | BK131: -16.834 | BL131: -16.747 | BM131: -16.747 | BN131: -16.722 | BP131: -16.59 | BQ131: -17.103 | BR131: -13.361
A132: Gross AR
A133: DSO on Gross AR
A135: Property, Plant & Equipment
A137: Computers and equipment | AF137: 237.48 | AK137: 264.732
A138: Furniture & Fixtures | AF138: 50.008 | AK138: 55.594
A139: Capital projects in progress | AF139: 2.363 | AK139: 15.801
A140: Land | AF140: 35.35 | AK140: 67.905
A141: Buildings | AF141: 62.461 | AK141: 62.464
A142: Leasehold Improvements | AF142: 93.91 | AK142: 114.139
A143: Total PPE | AF143: =SUM(AF137:AF142) -> 481.572 | AG143: =AF143+AG147 -> 529.872 | AH143: =AG143+AH147 -> 553.356 | AI143: =AH143+AI147 -> 585.516 | AJ143: =AI143+AJ147 -> 613.647 | AK143: =SUM(AK137:AK142) -> 580.635 | AL143: =AK143+AL147 -> 606.903 | AM143: =AL143+AM147 -> 629.306 | AN143: =AM143+AN147 -> 669.116 | AO143: =AN143+AO147 -> 692.427 | AP143: =AO143 -> 692.427 | AQ143: =AP143+AQ147 -> 708.343 | AR143: =AQ143+AR147 -> 718.655 | AS143: =AR143+AS147 -> 777.086 | AT143: =AS143+AT147 -> 812.019 | AU143: =AT143 -> 812.019 | AV143: =AU143+AV147 -> 837.566 | AW143: =AV143+AW147 -> 887.194 | AX143: =AW143+AX147 -> 894.083 | AY143: =AX143+AY147 -> 949.51 | AZ143: =AY143 -> 949.51 | BA143: =AZ143+BA147 -> 981.931 | BB143: =BA143+BB147 -> 1019.432 | BC143: =BB143+BC147 -> 1084.907 | BD143: =BC143+BD147 -> 1159.804 | BE143: =BD143 -> 1159.804 | BF143: =BE143+BF147 -> 1210.892 | BG143: =BF143+BG147 -> 1271.659 | BH143: =BG143+BH147 -> 1349.091 | BI143: =BH143+BI147 -> 1430.88 | BJ143: =BI143 -> 1430.88 | BK143: =BJ143+BK147 -> 1491.07 | BL143: =BK143+BL147 -> 1537.319 | BM143: =BL143+BM147 -> 1584.117 | BN143: =BM143+BN147 -> 1619.238 | BO143: =BN143 -> 1619.238 | BP143: =BO143+BP147 -> 1648.631 | BQ143: =BP143+BQ147 -> 1675.829 | BR143: =BQ143+BR147 -> 1730.795 | BS143: =BR143+BS147 -> 1780.495708 | BT143: =BS143 -> 1780.495708 | BU143: =BT143+BU147 -> 1831.324918 | BV143: =BU143+BV147 -> 1883.410848 | BW143: =BV143+BW147 -> 1938.521083 | BX143: =BW143+BX147 -> 1996.980534 | BY143: =BX143 -> 1996.980534 | BZ143: =BY143+BZ147 -> 2058.834532 | CA143: =BZ143+CA147 -> 2123.942346 | CB143: =CA143+CB147 -> 2192.166894 | CC143: =CB143+CC147 -> 2263.441698 | CD143: =CC143 -> 2263.441698 | CE143: =CD143+CE147 -> 2337.600538 | CF143: =CE143+CF147 -> 2414.234812 | CG143: =CF143+CG147 -> 2493.066899 | CH143: =CG143+CH147 -> 2574.047364 | CI143: =CH143 -> 2574.047364 | CJ143: =CI143+CJ147 -> 2657.159193 | CK143: =CJ143+CK147 -> 2742.318851 | CL143: =CK143+CL147 -> 2829.456921 | CM143: =CL143+CM147 -> 2918.535054 | CN143: =CM143 -> 2918.535054
A144: Less: Accumulated Depreciation | AF144: -254.375 | AG144: =AG145-AG143 -> -270.973 | AH144: =AH145-AH143 -> -286.961 | AI144: =AI145-AI143 -> -306.794 | AJ144: =AJ145-AJ143 -> -323.889 | AK144: =AJ144 -> -323.889 | AL144: =AL145-AL143 -> -309.381 | AM144: =AM145-AM143 -> -328.935 | AN144: =AN145-AN143 -> -352.045 | AO144: =AO145-AO143 -> -379.39 | AP144: =AO144 -> -379.39 | AQ144: =AQ145-AQ143 -> -407.967 | AR144: =AR145-AR143 -> -426.935 | AS144: =AS145-AS143 -> -441.334 | AT144: =AT145-AT143 -> -423.887 | AU144: =AT144 -> -423.887 | AV144: =AV145-AV143 -> -451.361 | AW144: =AW145-AW143 -> -479.573 | AX144: =AX145-AX143 -> -471.163 | AY144: =AY145-AY143 -> -500.629 | AZ144: =AY144 -> -500.629 | BA144: =BA145-BA143 -> -528.434 | BB144: =BB145-BB143 -> -556.017 | BC144: =BC145-BC143 -> -585.848 | BD144: =BD145-BD143 -> -631.976 | BE144: =BD144 -> -631.976 | BF144: =BF145-BF143 -> -661.112 | BG144: =BG145-BG143 -> -698.093 | BH144: =BH145-BH143 -> -729.699 | BI144: =BI145-BI143 -> -766.578 | BJ144: =BI144 -> -766.578 | BK144: =BK145-BK143 -> -805.056 | BL144: =BL145-BL143 -> -891.454 | BM144: =BM145-BM143 -> -924.37 | BN144: =BN145-BN143 -> -959.464 | BO144: =BN144 -> -959.464 | BP144: =BP145-BP143 -> -997.548 | BQ144: =BQ145-BQ143 -> -1033.379 | BR144: =BR145-BR143 -> -944.939 | BS144: =BR144-BS150 -> -1018.09089 | BT144: =BS144 -> -1018.09089 | BU144: =BT144-BU150 -> -1093.337153 | BV144: =BU144-BV150 -> -1170.727481 | BW144: =BV144-BW150 -> -1250.351063 | BX144: =BW144-BX150 -> -1332.34068 | BY144: =BX144 -> -1332.34068 | BZ144: =BY144-BZ150 -> -1416.836827 | CA144: =BZ144-CA150 -> -1503.978012 | CB144: =CA144-CB150 -> -1593.896955 | CC144: =CB144-CC150 -> -1686.722134 | CD144: =CC144 -> -1686.722134 | CE144: =CD144-CE150 -> -1782.57718 | CF144: =CE144-CF150 -> -1881.57375 | CG144: =CF144-CG150 -> -1983.809203 | CH144: =CG144-CH150 -> -2089.374083 | CI144: =CH144 -> -2089.374083 | CJ144: =CI144-CJ150 -> -2198.357553 | CK144: =CJ144-CK150 -> -2310.846679 | CL144: =CK144-CL150 -> -2426.925341 | CM144: =CL144-CM150 -> -2546.675174 | CN144: =CM144 -> -2546.675174
A145: Net PPE | AB145: =AB15 -> 208.159 | AC145: =AC15 -> 210.181 | AD145: =AD15 -> 212.875 | AE145: =AE15 -> 219.317 | AF145: =SUM(AF143:AF144) -> 227.197 | AG145: =AG15 -> 258.899 | AH145: =AH15 -> 266.395 | AI145: =AI15 -> 278.722 | AJ145: =AJ15 -> 289.758 | AK145: =SUM(AK143:AK144) -> 256.746 | AL145: =AL15 -> 297.522 | AM145: =AM15 -> 300.371 | AN145: =AN15 -> 317.071 | AO145: =AO15 -> 313.037 | AP145: =AO145 -> 313.037 | AQ145: =AQ15 -> 300.376 | AR145: =AR15 -> 291.72 | AS145: =AS15 -> 335.752 | AT145: =AT15 -> 388.132 | AU145: =AT145 -> 388.132 | AV145: =AV15 -> 386.205 | AW145: =AW15 -> 407.621 | AX145: =AX15 -> 422.92 | AY145: =AY15 -> 448.881 | AZ145: =AY145 -> 448.881 | BA145: =BA15 -> 453.497 | BB145: =BB15 -> 463.415 | BC145: =BC15 -> 499.059 | BD145: =BD15 -> 527.828 | BE145: =BD145 -> 527.828 | BF145: =BF15 -> 549.78 | BG145: =BG15 -> 573.566 | BH145: =BH15 -> 619.392 | BI145: =BI15 -> 664.302 | BJ145: =BI145 -> 664.302 | BK145: =BK15 -> 686.014 | BL145: =BL15 -> 645.865 | BM145: =BM15 -> 659.747 | BN145: =BN15 -> 659.774 | BO145: =BN145 -> 659.774 | BP145: =BP15 -> 651.083 | BQ145: =BQ15 -> 642.45 | BR145: =BR15 -> 785.856 | BS145: =SUM(BS143,BS144) -> 762.4048186 | BT145: =BS145 -> 762.4048186 | BU145: =SUM(BU143,BU144) -> 737.9877652 | BV145: =SUM(BV143,BV144) -> 712.6833664 | BW145: =SUM(BW143,BW144) -> 688.1700196 | BX145: =SUM(BX143,BX144) -> 664.6398534 | BY145: =BX145 -> 664.6398534 | BZ145: =SUM(BZ143,BZ144) -> 641.9977051 | CA145: =SUM(CA143,CA144) -> 619.9643338 | CB145: =SUM(CB143,CB144) -> 598.2699389 | CC145: =SUM(CC143,CC144) -> 576.7195641 | CD145: =CC145 -> 576.7195641 | CE145: =SUM(CE143,CE144) -> 555.0233575 | CF145: =SUM(CF143,CF144) -> 532.6610619 | CG145: =SUM(CG143,CG144) -> 509.2576968 | CH145: =SUM(CH143,CH144) -> 484.6732812 | CI145: =CH145 -> 484.6732812 | CJ145: =SUM(CJ143,CJ144) -> 458.8016396 | CK145: =SUM(CK143,CK144) -> 431.4721725 | CL145: =SUM(CL143,CL144) -> 402.5315802 | CM145: =SUM(CM143,CM144) -> 371.8598802 | CN145: =CM145 -> 371.8598802
A146: Assumed Uselful Life | AG146: 5 | AH146: 5 | AI146: 5 | AJ146: 5 | AK146: =(AVERAGE(AK143,AF143)/AK150) -> 4.929629561 | AL146: =(AVERAGE(AL143,AG143)/AL150) -> 18.86387773 | AM146: 5 | AN146: 6 | AO146: 6 | AQ146: 6 | AR146: 6 | AS146: 6 | AT146: 7 | AV146: 6 | AW146: 6 | AX146: 7 | AY146: 8 | BA146: 6 | BB146: 6 | BC146: 6 | BD146: 8 | BF146: 6 | BG146: 6 | BH146: 6 | BI146: 8 | BK146: 6 | BL146: 6 | BM146: 6 | BN146: 6 | BP146: 6 | BQ146: 6 | BR146: 6 | BS146: 6 | BU146: 6 | BV146: 6 | BW146: 6 | BX146: 6 | BZ146: 6 | CA146: 6 | CB146: 6 | CC146: 6 | CE146: 6 | CF146: 6 | CG146: 6 | CH146: 6 | CJ146: 6 | CK146: 6 | CL146: 6 | CM146: 6
A147: Capex | AG147: 48.3 | AH147: 23.484 | AI147: 32.16 | AJ147: 28.131 | AK147: =SUM(AG147:AJ147) -> 132.075 | AL147: 26.268 | AM147: 22.403 | AN147: 39.81 | AO147: 23.311 | AP147: =SUM(AL147:AO147) -> 111.792 | AQ147: 15.916 | AR147: 10.312 | AS147: 58.431 | AT147: 34.933 | AU147: =SUM(AQ147:AT147) -> 119.592 | AV147: 25.547 | AW147: 49.628 | AX147: 6.889 | AY147: 55.427 | AZ147: =SUM(AV147:AY147) -> 137.491 | BA147: 32.421 | BB147: 37.501 | BC147: 65.475 | BD147: 74.897 | BE147: =SUM(BA147:BD147) -> 210.294 | BF147: 51.088 | BG147: 60.767 | BH147: 77.432 | BI147: 81.789 | BJ147: =SUM(BF147:BI147) -> 271.076 | BK147: 60.19 | BL147: 46.249 | BM147: 46.798 | BN147: 35.121 | BO147: =SUM(BK147:BN147) -> 188.358 | BP147: 29.393 | BQ147: 27.198 | BR147: 54.966 | BS147: 49.70070839 | BT147: =SUM(BP147:BS147) -> 161.2577084 | BU147: 50.82920964 | BV147: 52.0859296 | BW147: 55.11023513 | BX147: 58.45945075 | BY147: =SUM(BU147:BX147) -> 216.4848251 | BZ147: 61.85399892 | CA147: 65.10781372 | CB147: 68.22454759 | CC147: 71.2748042 | CD147: =SUM(BZ147:CC147) -> 266.4611644 | CE147: 74.15883991 | CF147: 76.63427427 | CG147: 78.83208715 | CH147: 80.9804649 | CI147: =SUM(CE147:CH147) -> 310.6056662 | CJ147: 83.1118284 | CK147: 85.15965874 | CL147: 87.13806967 | CM147: 89.07813277 | CN147: =SUM(CJ147:CM147) -> 344.4876896
A148: Capex as % of LTM revs | AG148: 0.01879941414 | AH148: 0.008764812361 | AI148: 0.01098043768 | AJ148: 0.008908188751 | AL148: 0.00772833951 | AM148: 0.006328123499 | AN148: 0.01113317611 | AO148: 0.006511654412 | AQ148: 0.004579044914 | AR148: 0.003130900611 | AS148: 0.01882520246 | AT148: 0.01185836496 | AV148: 0.008464420245 | AW148: 0.0152395575 | AX148: 0.001940925869 | AY148: 0.01458605263 | BA148: 0.008168543963 | BB148: 0.009261449934 | BC148: 0.01607915241 | BD148: 0.01776385601 | BF148: 0.01206678111 | BG148: 0.01401762659 | BH148: 0.01758854809 | BI148: 0.01857288807 | BK148: 0.01378503228 | BL148: 0.01087589919 | BM148: 0.0112307051 | BN148: 0.008660646472 | BP148: 0.007262036913 | BQ148: 0.006625342923 | BR148: 0.01335605754 | BS148: 0.012 | BU148: 0.012 | BV148: 0.012 | BW148: 0.012 | BX148: 0.012 | BZ148: 0.012 | CA148: 0.012 | CB148: 0.012 | CC148: 0.012 | CE148: 0.012 | CF148: 0.012 | CG148: 0.012 | CH148: 0.012 | CJ148: 0.012 | CK148: 0.012 | CL148: 0.012 | CM148: 0.012
A149: D&A on CF Statement | AG149: 15.927 | AH149: 24.996 | AI149: 35.194 | AJ149: 31.62 | AK149: =SUM(AG149:AJ149) -> 107.737 | AL149: 30.131 | AM149: 27.486 | AN149: 45.655 | AO149: 52.708 | AP149: =SUM(AL149:AO149) -> 155.98 | AQ149: 51.716 | AR149: 64.725 | AS149: 60.495 | AT149: 85.037 | AU149: =SUM(AQ149:AT149) -> 261.973 | AV149: 68.581 | AW149: 74.906 | AX149: 73.154 | AY149: 76.097 | AZ149: =SUM(AV149:AY149) -> 292.738 | BA149: 66.286 | BB149: 66.62 | BC149: 64.009 | BD149: 73.29 | BE149: =SUM(BA149:BD149) -> 270.205 | BF149: 69.861 | BG149: 77.174 | BH149: 74.11 | BI149: 78.621 | BJ149: =SUM(BF149:BI149) -> 299.766 | BK149: 76.752 | BL149: 80.95 | BM149: 82.175 | BN149: 81.35 | BO149: =SUM(BK149:BN149) -> 321.227 | BP149: 77.636 | BQ149: 77.653 | BR149: 80.154 | BS149: =BS150 -> 73.15188976 | BT149: =SUM(BP149:BS149) -> 308.5948898 | BU149: =BU150 -> 75.24626305 | BV149: =BV150 -> 77.39032845 | BW149: =BW150 -> 79.62358188 | BX149: =BX150 -> 81.98961701 | BY149: =SUM(BU149:BX149) -> 314.2497904 | BZ149: =BZ150 -> 84.49614721 | CA149: =CA150 -> 87.14118497 | CB149: =CB150 -> 89.9189425 | CC149: =CC150 -> 92.82517899 | CD149: =SUM(BZ149:CC149) -> 354.3814537 | CE149: =CE150 -> 95.85504658 | CF149: =CF150 -> 98.99656979 | CG149: =CG150 -> 102.2354523 | CH149: =CH150 -> 105.5648805 | CI149: =SUM(CE149:CH149) -> 402.6519492 | CJ149: =CJ150 -> 108.9834699 | CK149: =CK150 -> 112.4891259 | CL149: =CL150 -> 116.0786619 | CM149: =CM150 -> 119.7498328 | CN149: =SUM(CJ149:CM149) -> 457.3010906
A150: Estimated Depreciation of PP&E | AG150: =AG149 -> 15.927 | AH150: =AH149 -> 24.996 | AI150: =AI149 -> 35.194 | AJ150: =AJ149 -> 31.62 | AK150: =SUM(AG150:AJ150) -> 107.737 | AL150: =AL149 -> 30.131 | AM150: =AM149 -> 27.486 | AN150: =AN149 -> 45.655 | AO150: =AO149 -> 52.708 | AP150: =SUM(AL150:AO150) -> 155.98 | AQ150: =AQ149 -> 51.716 | AR150: =AR149 -> 64.725 | AS150: =AS149 -> 60.495 | AT150: =AT149 -> 85.037 | AU150: =SUM(AQ150:AT150) -> 261.973 | AV150: =AV149 -> 68.581 | AW150: =AW149 -> 74.906 | AX150: =AX149 -> 73.154 | AY150: =AY149 -> 76.097 | AZ150: =SUM(AV150:AY150) -> 292.738 | BA150: =BA149 -> 66.286 | BB150: =BB149 -> 66.62 | BC150: =BC149 -> 64.009 | BD150: =BD149 -> 73.29 | BE150: =SUM(BA150:BD150) -> 270.205 | BF150: =BF149 -> 69.861 | BG150: =BG149 -> 77.174 | BH150: =BH149 -> 74.11 | BI150: =BI149 -> 78.621 | BJ150: =SUM(BF150:BI150) -> 299.766 | BK150: =BK149 -> 76.752 | BL150: =BL149 -> 80.95 | BM150: =BM149 -> 82.175 | BN150: =BN149 -> 81.35 | BO150: =SUM(BK150:BN150) -> 321.227 | BP150: =BP149 -> 77.636 | BQ150: =BQ149 -> 77.653 | BR150: =BR149 -> 80.154 | BS150: =AVERAGE(BS143,BR143)/BS146/4 -> 73.15188976 | BT150: =SUM(BP150:BS150) -> 308.5948898 | BU150: =AVERAGE(BU143,BS143)/BU146/4 -> 75.24626305 | BV150: =AVERAGE(BV143,BU143)/BV146/4 -> 77.39032845 | BW150: =AVERAGE(BW143,BV143)/BW146/4 -> 79.62358188 | BX150: =AVERAGE(BX143,BW143)/BX146/4 -> 81.98961701 | BY150: =SUM(BU150:BX150) -> 314.2497904 | BZ150: =AVERAGE(BZ143,BX143)/BZ146/4 -> 84.49614721 | CA150: =AVERAGE(CA143,BZ143)/CA146/4 -> 87.14118497 | CB150: =AVERAGE(CB143,CA143)/CB146/4 -> 89.9189425 | CC150: =AVERAGE(CC143,CB143)/CC146/4 -> 92.82517899 | CD150: =SUM(BZ150:CC150) -> 354.3814537 | CE150: =AVERAGE(CE143,CC143)/CE146/4 -> 95.85504658 | CF150: =AVERAGE(CF143,CE143)/CF146/4 -> 98.99656979 | CG150: =AVERAGE(CG143,CF143)/CG146/4 -> 102.2354523 | CH150: =AVERAGE(CH143,CG143)/CH146/4 -> 105.5648805 | CI150: =SUM(CE150:CH150) -> 402.6519492 | CJ150: =AVERAGE(CJ143,CH143)/CJ146/4 -> 108.9834699 | CK150: =AVERAGE(CK143,CJ143)/CK146/4 -> 112.4891259 | CL150: =AVERAGE(CL143,CK143)/CL146/4 -> 116.0786619 | CM150: =AVERAGE(CM143,CL143)/CM146/4 -> 119.7498328 | CN150: =SUM(CJ150:CM150) -> 457.3010906
A151: Est PPE as % of Total Depreciation | AG151: =AG150/AG149 -> 1 | AH151: 1 | AI151: 1 | AJ151: 1 | AK151: 1 | AL151: 1 | AM151: 1 | AN151: 1 | AO151: 1 | AP151: 1 | AQ151: 1 | AR151: 1 | AS151: 1 | AT151: 1 | AU151: 1 | AV151: 1 | AW151: 1 | AX151: 1 | AY151: 1 | AZ151: 1 | BA151: 1 | BB151: 1 | BC151: 1 | BD151: 1 | BE151: 1 | BF151: 1 | BG151: 1 | BH151: 1 | BI151: 1 | BJ151: =BJ150/BJ149 -> 1 | BK151: 1 | BL151: 1 | BM151: 1 | BN151: =BN150/BN149 -> 1 | BO151: =BO150/BO149 -> 1 | BP151: 1 | BQ151: 1 | BR151: 1 | BS151: 1 | BT151: 1 | BU151: 1 | BV151: 1 | BW151: 1 | BX151: 1 | BY151: 1 | BZ151: 1 | CA151: 1 | CB151: 1 | CC151: 1 | CD151: 1 | CE151: 1 | CF151: 1 | CG151: 1 | CH151: 1 | CI151: 1 | CJ151: 1 | CK151: 1 | CL151: 1 | CM151: 1 | CN151: 1
A154: Reset (0=reset, 1=normal) | C154: 1

Sheet E___Excel_Errors
B2: Excel Error 1 | C2: =F3+F4 F6 ->  | D2: Arises when you specify an intersection of two ranges that don't intersect
B3: product 1 | C3: 3 | D3: 10 | E3: 41 | F3: 28 | G3: 48
B4: product 2 | C4: 13 | D4: 16 | E4: 25 | F4: 38 | G4: 19
B5: product 3 | C5: 47 | D5: 25 | E5: 48 | F5: 19 | G5: 35
B6: product 4 | C6: 42 | D6: 48 | E6: 40 | F6: 49 | G6: 21
B7: Total | C7: =C3+C4+C6 -> 58 | D7: =D3+D4+D6 -> 74 | E7: 106 | F7: =F3+F4 F6 ->  | G7: 88
B10: Excel Error 2 | C10: =F11/F12 ->  | D10: Your formula is attempting to divide by zero
B11: product 1 | C11: 3 | D11: 10 | E11: 60 | F11: 28 | G11: 48
B12: product 2 | C12: 1 | D12: 2 | E12: 3 | F12: 0 | G12: 4
C13: =C11/C12 -> 3 | D13: =D11/D12 -> 5 | E13: 20 | G13: 12
B16: Excel Error 3 | C16: =F17+F18+F20+F19 ->  | D16: One of the variables in your formula is of the wrong type
B17: product 1 | C17: 3 | D17: 10 | E17: 41 | F17: 28 | G17: 48
B18: product 2 | C18: 13 | D18: 16 | E18: 25 | F18: 38 | G18: 19
B19: product 3 | C19: 47 | D19: 25 | E19: 48 | F19: 19 | G19: 35
B20: product 4 | C20: 60 | D20: 28 | E20: 3 | F20: product 4 | G20: 19
B21: Total | C21: =C17+C18+C20+C19 -> 123 | D21: =D17+D18+D20+D19 -> 79 | E21: =E17+E18+E20+E19 -> 117 | F21: =F17+F18+F20+F19 ->  | G21: =G17+G18+G20+G19 -> 121
B24: Excel Error 4 | D24: The formula contains an invalid cell reference
B25: product 1 | C25: 3 | D25: 10 | E25: 41 | F25: 28 | G25: 48
B26: product 2 | C26: 13 | D26: 16 | E26: 25 | F26: 38 | G26: 19
B27: product 3 | C27: 47 | D27: 25 | E27: 48 | F27: 19 | G27: 35
B28: product 4 | C28: 42 | D28: 48 | E28: 40 | F28: 49 | G28: 21
B29: Total | C29: =C25+C26+C28 -> 58 | D29: =D25+D26+D28 -> 74 | E29: =E25+E26+E28 -> 106 | F29: =F25+F26+F27+#REF! ->  | G29: 88
B32: Excel Error 5 | C32: =SU(F33:F36) ->  | D32: Excel doesn't recognise text in a formula
B33: product 1 | C33: 3 | D33: 10 | E33: 41 | F33: 28 | G33: 48
B34: product 2 | C34: 13 | D34: 16 | E34: 25 | F34: 38 | G34: 19
B35: product 3 | C35: 47 | D35: 25 | E35: 48 | F35: 19 | G35: 35
B36: product 4 | C36: 42 | D36: 48 | E36: 40 | F36: 49 | G36: 21
B37: Total | C37: =SUM(C33:C36) -> 105 | D37: =SUM(D33:D36) -> 99 | E37: 154 | F37: =SU(F33:F36) ->  | G37: 123
B40: Excel Error 6 | C40: =DATEDIF(D$43,D$44,"D") ->  | D40: Excel has encountered an invalid number
C41: number of days
C42: =DATEDIF(C$43,C$44,"d") -> 164 | D42: =DATEDIF(D$43,D$44,"D") -> 
C43: 2012-11-20T14:51:24 | D43: 2013-05-03T10:57:59
C44: 2013-05-03T10:57:59 | D44: 2009-11-20T14:51:24
B47: Excel Error 7 | C47: =VLOOKUP(F49,$C$49:$D$51,2,FALSE) ->  | D47: Indicates that a value is not available to the formula
D48: Price | G48: Price
C49: Nissan | D49: 36000 | F49: Fiat | G49: =VLOOKUP(F49,$C$49:$D$51,2,FALSE) -> 
C50: Bmw | D50: 900 | F50: Bmw | G50: =VLOOKUP(F50,$C$49:$D$51,2,FALSE) -> 900
C51: Opel | D51: 750 | F51: Nissan | G51: =VLOOKUP(F51,$C$49:$D$51,2,FALSE) -> 36000
B54: Excel Error 8 | C54: Numbers formatted as text
B55: product 1 | C55: 3 | D55: 10 | E55: 41 | F55: 28 | G55: 48
B56: product 2 | C56: 13 | D56: 16 | E56: 25 | F56: 38 | G56: 19
B57: product 3 | C57: 47 | D57: 25 | E57: 48 | F57: 19 | G57: 35
B58: product 4 | C58: 42 | D58: 48 | E58: 40 | F58: 49 | G58: 21
B59: Total | C59: =SUM(C55:C58) -> 105 | D59: =SUM(D55:D58) -> 58 | E59: =SUM(E55:E58) -> 154 | F59: =SUM(F55:F58) -> 134 | G59: =SUM(G55:G58) -> 123
B62: Excel Error 9 | C62: Circular references
C66: Suppress Excel errors

Sheet F1__World_Data
A1: Total population per country (1960 to 2018) | BJ1: Life expectancy per country (1960 to 2018)
A2: Data Source | B2: https://population.un.org/wpp/Download/Standard/CSV/ | BJ2: Data Source | BL2: https://data.worldbank.org/indicator/SP.DYN.LE00.IN
B3: 1960 | C3: 1961 | D3: 1962 | E3: 1963 | F3: 1964 | G3: 1965 | H3: 1966 | I3: 1967 | J3: 1968 | K3: 1969 | L3: 1970 | M3: 1971 | N3: 1972 | O3: 1973 | P3: 1974 | Q3: 1975 | R3: 1976 | S3: 1977 | T3: 1978 | U3: 1979 | V3: 1980 | W3: 1981 | X3: 1982 | Y3: 1983 | Z3: 1984 | AA3: 1985 | AB3: 1986 | AC3: 1987 | AD3: 1988 | AE3: 1989 | AF3: 1990 | AG3: 1991 | AH3: 1992 | AI3: 1993 | AJ3: 1994 | AK3: 1995 | AL3: 1996 | AM3: 1997 | AN3: 1998 | AO3: 1999 | AP3: 2000 | AQ3: 2001 | AR3: 2002 | AS3: 2003 | AT3: 2004 | AU3: 2005 | AV3: 2006 | AW3: 2007 | AX3: 2008 | AY3: 2009 | AZ3: 2010 | BA3: 2011 | BB3: 2012 | BC3: 2013 | BD3: 2014 | BE3: 2015 | BF3: 2016 | BG3: 2017 | BH3: 2018 | BJ3: 1960 | BK3: 1961 | BL3: 1962 | BM3: 1963 | BN3: 1964 | BO3: 1965 | BP3: 1966 | BQ3: 1967 | BR3: 1968 | BS3: 1969 | BT3: 1970 | BU3: 1971 | BV3: 1972 | BW3: 1973 | BX3: 1974 | BY3: 1975 | BZ3: 1976 | CA3: 1977 | CB3: 1978 | CC3: 1979 | CD3: 1980 | CE3: 1981 | CF3: 1982 | CG3: 1983 | CH3: 1984 | CI3: 1985 | CJ3: 1986 | CK3: 1987 | CL3: 1988 | CM3: 1989 | CN3: 1990 | CO3: 1991 | CP3: 1992 | CQ3: 1993 | CR3: 1994 | CS3: 1995 | CT3: 1996 | CU3: 1997 | CV3: 1998 | CW3: 1999 | CX3: 2000 | CY3: 2001 | CZ3: 2002 | DA3: 2003 | DB3: 2004 | DC3: 2005 | DD3: 2006 | DE3: 2007 | DF3: 2008 | DG3: 2009 | DH3: 2010 | DI3: 2011 | DJ3: 2012 | DK3: 2013 | DL3: 2014 | DM3: 2015 | DN3: 2016 | DO3: 2017 | DP3: 2018
A4: Albania | B4: 1636.091 | C4: 1685.926 | D4: 1737.675 | E4: 1790.571 | F4: 1843.649 | G4: 1896.175 | H4: 1947.836 | I4: 1998.743 | J4: 2049.214 | K4: 2099.738 | L4: 2150.704 | M4: 2202.186 | N4: 2254.058 | O4: 2306.284 | P4: 2358.852 | Q4: 2411.733 | R4: 2464.981 | S4: 2518.685 | T4: 2572.852 | U4: 2627.506 | V4: 2682.697 | W4: 2737.018 | X4: 2790.284 | Y4: 2844.867 | Z4: 2904.142 | AA4: 2969.671 | AB4: 3044.201 | AC4: 3124.892 | AD4: 3200.972 | AE4: 3257.913 | AF4: 3286.07 | AG4: 3280.397 | AH4: 3245.887 | AI4: 3195.196 | AJ4: 3146.518 | AK4: 3112.923 | AL4: 3098.699 | AM4: 3099.747 | AN4: 3110.699 | AO4: 3122.7 | AP4: 3129.246 | AQ4: 3129.701 | AR4: 3126.183 | AS4: 3118.017 | AT4: 3104.893 | AU4: 3086.81 | AV4: 3063.021 | AW4: 3033.993 | AX4: 3002.683 | AY4: 2973.044 | AZ4: 2948.029 | BA4: 2928.601 | BB4: 2914.091 | BC4: 2903.788 | BD4: 2896.307 | BE4: 2890.524 | BF4: 2886.427 | BG4: 2884.169 | BH4: 2882.735 | BJ4: 62.283 | BK4: 63.301 | BL4: 64.19 | BM4: 64.914 | BN4: 65.463 | BO4: 65.85 | BP4: 66.11 | BQ4: 66.304 | BR4: 66.487 | BS4: 66.689 | BT4: 66.935 | BU4: 67.237 | BV4: 67.582 | BW4: 67.953 | BX4: 68.343 | BY4: 68.736 | BZ4: 69.11 | CA4: 69.448 | CB4: 69.742 | CC4: 69.991 | CD4: 70.208 | CE4: 70.416 | CF4: 70.635 | CG4: 70.876 | CH4: 71.134 | CI4: 71.388 | CJ4: 71.605 | CK4: 71.76 | CL4: 71.843 | CM4: 71.86 | CN4: 71.836 | CO4: 71.803 | CP4: 71.802 | CQ4: 71.86 | CR4: 71.992 | CS4: 72.205 | CT4: 72.495 | CU4: 72.838 | CV4: 73.208 | CW4: 73.587 | CX4: 73.955 | CY4: 74.288 | CZ4: 74.579 | DA4: 74.828 | DB4: 75.039 | DC4: 75.228 | DD4: 75.423 | DE4: 75.646 | DF4: 75.912 | DG4: 76.221 | DH4: 76.562 | DI4: 76.914 | DJ4: 77.252 | DK4: 77.554 | DL4: 77.813 | DM4: 78.025 | DN4: 78.194 | DO4: 78.333 | DP4: 78.458
A5: Algeria | B5: 11057.864 | C5: 11336.336 | D5: 11619.828 | E5: 11912.8 | F5: 12221.675 | G5: 12550.88 | H5: 12902.626 | I5: 13275.02 | J5: 13663.581 | K5: 14061.724 | L5: 14464.992 | M5: 14872.253 | N5: 15285.992 | O5: 15709.831 | P5: 16149.018 | Q5: 16607.706 | R5: 17085.799 | S5: 17582.899 | T5: 18102.266 | U5: 18647.801 | V5: 19221.659 | W5: 19824.297 | X5: 20452.901 | Y5: 21101.875 | Z5: 21763.578 | AA5: 22431.507 | AB5: 23102.386 | AC5: 23774.287 | AD5: 24443.472 | AE5: 25106.192 | AF5: 25758.872 | AG5: 26400.468 | AH5: 27028.33 | AI5: 27635.517 | AJ5: 28213.777 | AK5: 28757.788 | AL5: 29266.415 | AM5: 29742.98 | AN5: 30192.75 | AO5: 30623.406 | AP5: 31042.238 | AQ5: 31451.513 | AR5: 31855.11 | AS5: 32264.159 | AT5: 32692.153 | AU5: 33149.72 | AV5: 33641.007 | AW5: 34166.976 | AX5: 34730.604 | AY5: 35333.882 | AZ5: 35977.451 | BA5: 36661.438 | BB5: 37383.899 | BC5: 38140.135 | BD5: 38923.688 | BE5: 39728.02 | BF5: 40551.398 | BG5: 41389.174 | BH5: 42228.415 | BJ5: 62.283 | BK5: 63.301 | BL5: 64.19 | BM5: 64.914 | BN5: 65.463 | BO5: 65.85 | BP5: 66.11 | BQ5: 66.304 | BR5: 66.487 | BS5: 66.689 | BT5: 66.935 | BU5: 67.237 | BV5: 67.582 | BW5: 67.953 | BX5: 68.343 | BY5: 68.736 | BZ5: 69.11 | CA5: 69.448 | CB5: 69.742 | CC5: 69.991 | CD5: 70.208 | CE5: 70.416 | CF5: 70.635 | CG5: 70.876 | CH5: 71.134 | CI5: 71.388 | CJ5: 71.605 | CK5: 71.76 | CL5: 71.843 | CM5: 71.86 | CN5: 71.836 | CO5: 71.803 | CP5: 71.802 | CQ5: 71.86 | CR5: 71.992 | CS5: 72.205 | CT5: 72.495 | CU5: 72.838 | CV5: 73.208 | CW5: 73.587 | CX5: 73.955 | CY5: 74.288 | CZ5: 74.579 | DA5: 74.828 | DB5: 75.039 | DC5: 75.228 | DD5: 75.423 | DE5: 75.646 | DF5: 75.912 | DG5: 76.221 | DH5: 76.562 | DI5: 76.914 | DJ5: 77.252 | DK5: 77.554 | DL5: 77.813 | DM5: 78.025 | DN5: 78.194 | DO5: 78.333 | DP5: 78.458
A6: American Samoa | B6: 20.127 | C6: 20.605 | D6: 21.246 | E6: 22.029 | F6: 22.85 | G6: 23.675 | H6: 24.473 | I6: 25.235 | J6: 25.98 | K6: 26.698 | L6: 27.362 | M6: 27.982 | N6: 28.564 | O6: 29.103 | P6: 29.595 | Q6: 30.045 | R6: 30.455 | S6: 30.834 | T6: 31.262 | U6: 31.842 | V6: 32.648 | W6: 33.697 | X6: 34.969 | Y6: 36.413 | Z6: 37.946 | AA6: 39.521 | AB6: 41.114 | AC6: 42.741 | AD6: 44.346 | AE6: 45.894 | AF6: 47.351 | AG6: 48.682 | AH6: 49.9 | AI6: 51.025 | AJ6: 52.099 | AK6: 53.158 | AL6: 54.209 | AM6: 55.227 | AN6: 56.18 | AO6: 57.049 | AP6: 57.816 | AQ6: 58.496 | AR6: 59.077 | AS6: 59.495 | AT6: 59.684 | AU6: 59.557 | AV6: 59.109 | AW6: 58.367 | AX6: 57.49 | AY6: 56.675 | AZ6: 56.084 | BA6: 55.755 | BB6: 55.669 | BC6: 55.717 | BD6: 55.791 | BE6: 55.806 | BF6: 55.739 | BG6: 55.617 | BH6: 55.461 | BJ6: 62.283 | BK6: 63.301 | BL6: 64.19 | BM6: 64.914 | BN6: 65.463 | BO6: 65.85 | BP6: 66.11 | BQ6: 66.304 | BR6: 66.487 | BS6: 66.689 | BT6: 66.935 | BU6: 67.237 | BV6: 67.582 | BW6: 67.953 | BX6: 68.343 | BY6: 68.736 | BZ6: 69.11 | CA6: 69.448 | CB6: 69.742 | CC6: 69.991 | CD6: 70.208 | CE6: 70.416 | CF6: 70.635 | CG6: 70.876 | CH6: 71.134 | CI6: 71.388 | CJ6: 71.605 | CK6: 71.76 | CL6: 71.843 | CM6: 71.86 | CN6: 71.836 | CO6: 71.803 | CP6: 71.802 | CQ6: 71.86 | CR6: 71.992 | CS6: 72.205 | CT6: 72.495 | CU6: 72.838 | CV6: 73.208 | CW6: 73.587 | CX6: 73.955 | CY6: 74.288 | CZ6: 74.579 | DA6: 74.828 | DB6: 75.039 | DC6: 75.228 | DD6: 75.423 | DE6: 75.646 | DF6: 75.912 | DG6: 76.221 | DH6: 76.562 | DI6: 76.914 | DJ6: 77.252 | DK6: 77.554 | DL6: 77.813 | DM6: 78.025 | DN6: 78.194 | DO6: 78.333 | DP6: 78.458
A7: Andorra | B7: 13.41 | C7: 14.378 | D7: 15.379 | E7: 16.407 | F7: 17.466 | G7: 18.542 | H7: 19.646 | I7: 20.76 | J7: 21.886 | K7: 23.053 | L7: 24.275 | M7: 25.571 | N7: 26.885 | O7: 28.232 | P7: 29.515 | Q7: 30.705 | R7: 31.782 | S7: 32.769 | T7: 33.744 | U7: 34.825 | V7: 36.063 | W7: 37.498 | X7: 39.115 | Y7: 40.854 | Z7: 42.706 | AA7: 44.593 | AB7: 46.52 | AC7: 48.459 | AD7: 50.433 | AE7: 52.452 | AF7: 54.508 | AG7: 56.666 | AH7: 58.882 | AI7: 60.974 | AJ7: 62.676 | AK7: 63.86 | AL7: 64.363 | AM7: 64.318 | AN7: 64.14 | AO7: 64.368 | AP7: 65.39 | AQ7: 67.344 | AR7: 70.048 | AS7: 73.18 | AT7: 76.25 | AU7: 78.871 | AV7: 80.995 | AW7: 82.682 | AX7: 83.86 | AY7: 84.461 | AZ7: 84.454 | BA7: 83.748 | BB7: 82.427 | BC7: 80.77 | BD7: 79.213 | BE7: 77.993 | BF7: 77.295 | BG7: 76.997 | BH7: 77.008 | BJ7: 0 | BK7: 0 | BL7: 0 | BM7: 0 | BN7: 0 | BO7: 0 | BP7: 0 | BQ7: 0 | BR7: 0 | BS7: 0 | BT7: 0 | BU7: 0 | BV7: 0 | BW7: 0 | BX7: 0 | BY7: 0 | BZ7: 0 | CA7: 0 | CB7: 0 | CC7: 0 | CD7: 0 | CE7: 0 | CF7: 0 | CG7: 0 | CH7: 0 | CI7: 0 | CJ7: 0 | CK7: 0 | CL7: 0 | CM7: 0 | CN7: 0 | CO7: 0 | CP7: 0 | CQ7: 0 | CR7: 0 | CS7: 0 | CT7: 0 | CU7: 0 | CV7: 0 | CW7: 0 | CX7: 0 | CY7: 0 | CZ7: 0 | DA7: 0 | DB7: 0 | DC7: 0 | DD7: 0 | DE7: 0 | DF7: 0 | DG7: 0 | DH7: 0 | DI7: 0 | DJ7: 0 | DK7: 0 | DL7: 0 | DM7: 0 | DN7: 0 | DO7: 0 | DP7: 0
A8: Angola | B8: 5454.938 | C8: 5531.451 | D8: 5608.499 | E8: 5679.409 | F8: 5734.995 | G8: 5770.573 | H8: 5781.305 | I8: 5774.44 | J8: 5771.973 | K8: 5803.677 | L8: 5890.36 | M8: 6041.239 | N8: 6248.965 | O8: 6497.283 | P8: 6761.623 | Q8: 7023.994 | R8: 7279.63 | S8: 7533.814 | T8: 7790.774 | U8: 8058.112 | V8: 8341.29 | W8: 8640.478 | X8: 8952.971 | Y8: 9278.104 | Z8: 9614.756 | AA8: 9961.993 | AB8: 10320.116 | AC8: 10689.247 | AD8: 11068.051 | AE8: 11454.784 | AF8: 11848.385 | AG8: 12248.901 | AH8: 12657.361 | AI8: 13075.044 | AJ8: 13503.753 | AK8: 13945.205 | AL8: 14400.722 | AM8: 14871.572 | AN8: 15359.6 | AO8: 15866.871 | AP8: 16395.477 | AQ8: 16945.753 | AR8: 17519.418 | AS8: 18121.477 | AT8: 18758.138 | AU8: 19433.604 | AV8: 20149.905 | AW8: 20905.36 | AX8: 21695.636 | AY8: 22514.275 | AZ8: 23356.247 | BA8: 24220.66 | BB8: 25107.925 | BC8: 26015.786 | BD8: 26941.773 | BE8: 27884.38 | BF8: 28842.482 | BG8: 29816.769 | BH8: 30809.787 | BJ8: 0 | BK8: 0 | BL8: 0 | BM8: 0 | BN8: 0 | BO8: 0 | BP8: 0 | BQ8: 0 | BR8: 0 | BS8: 0 | BT8: 0 | BU8: 0 | BV8: 0 | BW8: 0 | BX8: 0 | BY8: 0 | BZ8: 0 | CA8: 0 | CB8: 0 | CC8: 0 | CD8: 0 | CE8: 0 | CF8: 0 | CG8: 0 | CH8: 0 | CI8: 0 | CJ8: 0 | CK8: 0 | CL8: 0 | CM8: 0 | CN8: 0 | CO8: 0 | CP8: 0 | CQ8: 0 | CR8: 0 | CS8: 0 | CT8: 0 | CU8: 0 | CV8: 0 | CW8: 0 | CX8: 0 | CY8: 0 | CZ8: 0 | DA8: 0 | DB8: 0 | DC8: 0 | DD8: 0 | DE8: 0 | DF8: 0 | DG8: 0 | DH8: 0 | DI8: 0 | DJ8: 0 | DK8: 0 | DL8: 0 | DM8: 0 | DN8: 0 | DO8: 0 | DP8: 0
A9: Anguilla | B9: 6.02 | C9: 6.09 | D9: 6.141 | E9: 6.207 | F9: 6.283 | G9: 6.36 | H9: 6.434 | I9: 6.52 | J9: 6.608 | K9: 6.69 | L9: 6.773 | M9: 6.854 | N9: 6.949 | O9: 7.023 | P9: 7.101 | Q9: 7.161 | R9: 7.202 | S9: 7.252 | T9: 7.285 | U9: 7.296 | V9: 7.284 | W9: 7.249 | X9: 7.194 | Y9: 7.145 | Z9: 7.182 | AA9: 7.292 | AB9: 7.512 | AC9: 7.842 | AD9: 8.222 | AE9: 8.582 | AF9: 8.894 | AG9: 9.138 | AH9: 9.333 | AI9: 9.491 | AJ9: 9.661 | AK9: 9.868 | AL9: 10.117 | AM9: 10.388 | AN9: 10.684 | AO9: 10.979 | AP9: 11.247 | AQ9: 11.52 | AR9: 11.756 | AS9: 11.993 | AT9: 12.23 | AU9: 12.442 | AV9: 12.66 | AW9: 12.862 | AX9: 13.056 | AY9: 13.248 | AZ9: 13.436 | BA9: 13.612 | BB9: 13.794 | BC9: 13.952 | BD9: 14.114 | BE9: 14.279 | BF9: 14.435 | BG9: 14.588 | BH9: 14.738 | BJ9: 0 | BK9: 0 | BL9: 0 | BM9: 0 | BN9: 0 | BO9: 0 | BP9: 0 | BQ9: 0 | BR9: 0 | BS9: 0 | BT9: 0 | BU9: 0 | BV9: 0 | BW9: 0 | BX9: 0 | BY9: 0 | BZ9: 0 | CA9: 0 | CB9: 0 | CC9: 0 | CD9: 0 | CE9: 0 | CF9: 0 | CG9: 0 | CH9: 0 | CI9: 0 | CJ9: 0 | CK9: 0 | CL9: 0 | CM9: 0 | CN9: 0 | CO9: 0 | CP9: 0 | CQ9: 0 | CR9: 0 | CS9: 0 | CT9: 0 | CU9: 0 | CV9: 0 | CW9: 0 | CX9: 0 | CY9: 0 | CZ9: 0 | DA9: 0 | DB9: 0 | DC9: 0 | DD9: 0 | DE9: 0 | DF9: 0 | DG9: 0 | DH9: 0 | DI9: 0 | DJ9: 0 | DK9: 0 | DL9: 0 | DM9: 0 | DN9: 0 | DO9: 0 | DP9: 0
A10: Argentina | B10: 20481.781 | C10: 20817.27 | D10: 21153.042 | E10: 21488.916 | F10: 21824.427 | G10: 22159.644 | H10: 22494.031 | I10: 22828.872 | J10: 23168.268 | K10: 23517.613 | L10: 23880.564 | M10: 24259.564 | N10: 24653.172 | O10: 25056.475 | P10: 25462.305 | Q10: 25865.775 | R10: 26264.681 | S10: 26661.397 | T10: 27061.041 | U10: 27471.046 | V10: 27896.532 | W10: 28338.514 | X10: 28794.55 | Y10: 29262.049 | Z10: 29737.097 | AA10: 30216.284 | AB10: 30698.964 | AC10: 31184.411 | AD10: 31668.939 | AE10: 32148.137 | AF10: 32618.648 | AG10: 33079.002 | AH10: 33529.32 | AI10: 33970.103 | AJ10: 34402.669 | AK10: 34828.168 | AL10: 35246.376 | AM10: 35657.438 | AN10: 36063.451 | AO10: 36467.218 | AP10: 36870.796 | AQ10: 37275.644 | AR10: 37681.743 | AS10: 38087.866 | AT10: 38491.97 | AU10: 38892.924 | AV10: 39289.876 | AW10: 39684.303 | AX10: 40080.159 | AY10: 40482.786 | AZ10: 40895.751 | BA10: 41320.497 | BB10: 41755.188 | BC10: 42196.034 | BD10: 42637.508 | BE10: 43075.416 | BF10: 43508.459 | BG10: 43937.143 | BH10: 44361.15 | BJ10: 65.055 | BK10: 65.176 | BL10: 65.269 | BM10: 65.348 | BN10: 65.426 | BO10: 65.518 | BP10: 65.64 | BQ10: 65.796 | BR10: 65.989 | BS10: 66.219 | BT10: 66.483 | BU10: 66.774 | BV10: 67.078 | BW10: 67.383 | BX10: 67.686 | BY10: 67.985 | BZ10: 68.283 | CA10: 68.585 | CB10: 68.891 | CC10: 69.197 | CD10: 69.496 | CE10: 69.777 | CF10: 70.033 | CG10: 70.262 | CH10: 70.466 | CI10: 70.65 | CJ10: 70.825 | CK10: 71.001 | CL10: 71.186 | CM10: 71.384 | CN10: 71.594 | CO10: 71.813 | CP10: 72.032 | CQ10: 72.246 | CR10: 72.453 | CS10: 72.651 | CT10: 72.843 | CU10: 73.029 | CV10: 73.213 | CW10: 73.396 | CX10: 73.576 | CY10: 73.755 | CZ10: 73.932 | DA10: 74.107 | DB10: 74.28 | DC10: 74.451 | DD10: 74.62 | DE10: 74.787 | DF10: 74.952 | DG10: 75.116 | DH10: 75.278 | DI10: 75.439 | DJ10: 75.598 | DK10: 75.756 | DL10: 75.913 | DM10: 76.068 | DN10: 76.221 | DO10: 76.372 | DP10: 76.52
A11: Armenia | B11: 1874.119 | C11: 1941.498 | D11: 2009.524 | E11: 2077.584 | F11: 2145.004 | G11: 2211.316 | H11: 2276.038 | I11: 2339.133 | J11: 2401.142 | K11: 2462.938 | L11: 2525.067 | M11: 2587.716 | N11: 2650.484 | O11: 2712.78 | P11: 2773.75 | Q11: 2832.752 | R11: 2889.583 | S11: 2944.375 | T11: 2997.419 | U11: 3049.107 | V11: 3099.759 | W11: 3148.096 | X11: 3193.696 | Y11: 3238.592 | Z11: 3285.593 | AA11: 3335.935 | AB11: 3392.264 | AC11: 3451.947 | AD11: 3504.667 | AE11: 3536.473 | AF11: 3538.164 | AG11: 3505.249 | AH11: 3442.82 | AI11: 3363.111 | AJ11: 3283.664 | AK11: 3217.349 | AL11: 3168.213 | AM11: 3133.081 | AN11: 3108.691 | AO11: 3089.02 | AP11: 3069.597 | AQ11: 3050.686 | AR11: 3033.976 | AS11: 3017.938 | AT11: 3000.715 | AU11: 2981.262 | AV11: 2958.301 | AW11: 2932.615 | AX11: 2907.615 | AY11: 2888.094 | AZ11: 2877.314 | BA11: 2876.536 | BB11: 2884.239 | BC11: 2897.593 | BD11: 2912.403 | BE11: 2925.559 | BF11: 2936.147 | BG11: 2944.789 | BH11: 2951.741 | BJ11: 61.968 | BK11: 62.523 | BL11: 63.049 | BM11: 63.54 | BN11: 63.992 | BO11: 64.401 | BP11: 64.762 | BQ11: 65.081 | BR11: 65.363 | BS11: 65.616 | BT11: 65.847 | BU11: 66.066 | BV11: 66.28 | BW11: 66.498 | BX11: 66.727 | BY11: 66.975 | BZ11: 67.244 | CA11: 67.533 | CB11: 67.837 | CC11: 68.154 | CD11: 68.482 | CE11: 68.818 | CF11: 69.156 | CG11: 69.491 | CH11: 69.82 | CI11: 70.137 | CJ11: 70.44 | CK11: 70.728 | CL11: 71.004 | CM11: 71.267 | CN11: 71.52 | CO11: 71.765 | CP11: 72.006 | CQ11: 72.247 | CR11: 72.489 | CS11: 72.732 | CT11: 72.977 | CU11: 73.222 | CV11: 73.465 | CW11: 73.705 | CX11: 73.94 | CY11: 74.171 | CZ11: 74.395 | DA11: 74.613 | DB11: 74.821 | DC11: 75.019 | DD11: 75.204 | DE11: 75.376 | DF11: 75.535 | DG11: 75.683 | DH11: 75.823 | DI11: 75.956 | DJ11: 76.087 | DK11: 76.218 | DL11: 76.349 | DM11: 76.483 | DN11: 76.617 | DO11: 76.752 | DP11: 76.885
A12: Aruba | B12: 54.208 | C12: 55.434 | D12: 56.234 | E12: 56.699 | F12: 57.029 | G12: 57.357 | H12: 57.702 | I12: 58.044 | J12: 58.377 | K12: 58.734 | L12: 59.07 | M12: 59.442 | N12: 59.849 | O12: 60.236 | P12: 60.527 | Q12: 60.653 | R12: 60.586 | S12: 60.366 | T12: 60.102 | U12: 59.972 | V12: 60.097 | W12: 60.561 | X12: 61.341 | Y12: 62.213 | Z12: 62.826 | AA12: 63.024 | AB12: 62.645 | AC12: 61.838 | AD12: 61.072 | AE12: 61.033 | AF12: 62.152 | AG12: 64.623 | AH12: 68.24 | AI12: 72.495 | AJ12: 76.705 | AK12: 80.324 | AL12: 83.211 | AM12: 85.45 | AN12: 87.28 | AO12: 89.009 | AP12: 90.866 | AQ12: 92.892 | AR12: 94.992 | AS12: 97.016 | AT12: 98.744 | AU12: 100.028 | AV12: 100.83 | AW12: 101.226 | AX12: 101.362 | AY12: 101.452 | AZ12: 101.665 | BA12: 102.05 | BB12: 102.565 | BC12: 103.165 | BD12: 103.776 | BE12: 104.339 | BF12: 104.865 | BG12: 105.361 | BH12: 105.846 | BJ12: 61.968 | BK12: 62.523 | BL12: 63.049 | BM12: 63.54 | BN12: 63.992 | BO12: 64.401 | BP12: 64.762 | BQ12: 65.081 | BR12: 65.363 | BS12: 65.616 | BT12: 65.847 | BU12: 66.066 | BV12: 66.28 | BW12: 66.498 | BX12: 66.727 | BY12: 66.975 | BZ12: 67.244 | CA12: 67.533 | CB12: 67.837 | CC12: 68.154 | CD12: 68.482 | CE12: 68.818 | CF12: 69.156 | CG12: 69.491 | CH12: 69.82 | CI12: 70.137 | CJ12: 70.44 | CK12: 70.728 | CL12: 71.004 | CM12: 71.267 | CN12: 71.52 | CO12: 71.765 | CP12: 72.006 | CQ12: 72.247 | CR12: 72.489 | CS12: 72.732 | CT12: 72.977 | CU12: 73.222 | CV12: 73.465 | CW12: 73.705 | CX12: 73.94 | CY12: 74.171 | CZ12: 74.395 | DA12: 74.613 | DB12: 74.821 | DC12: 75.019 | DD12: 75.204 | DE12: 75.376 | DF12: 75.535 | DG12: 75.683 | DH12: 75.823 | DI12: 75.956 | DJ12: 76.087 | DK12: 76.218 | DL12: 76.349 | DM12: 76.483 | DN12: 76.617 | DO12: 76.752 | DP12: 76.885
A13: Australia | B13: 10242.07 | C13: 10445.836 | D13: 10643.42 | E13: 10845.179 | F13: 11065.419 | G13: 11313.186 | H13: 11593.402 | I13: 11899.644 | J13: 12215.704 | K13: 12518.931 | L13: 12793.03 | M13: 13033.13 | N13: 13244.163 | O13: 13431.79 | P13: 13605.574 | Q13: 13773.29 | R13: 13935.722 | S13: 14092.545 | T13: 14249.403 | U13: 14413.002 | V13: 14588.4 | W13: 14777.241 | X13: 14979.203 | Y13: 15194.644 | Z13: 15423.156 | AA13: 15663.672 | AB13: 15917.58 | AC13: 16183.159 | AD13: 16452.258 | AE13: 16713.989 | AF13: 16960.6 | AG13: 17189.235 | AH13: 17402.179 | AI13: 17603.211 | AJ13: 17798.526 | AK13: 17993.083 | AL13: 18189.274 | AM13: 18387.205 | AN13: 18587.027 | AO13: 18788.187 | AP13: 18991.434 | AQ13: 19194.676 | AR13: 19401.366 | AS13: 19624.163 | AT13: 19879.654 | AU13: 20178.543 | AV13: 20526.3 | AW13: 20916.339 | AX13: 21332.293 | AY13: 21750.852 | AZ13: 22154.687 | BA13: 22538.002 | BB13: 22903.951 | BC13: 23254.912 | BD13: 23596.426 | BE13: 23932.499 | BF13: 24262.71 | BG13: 24584.619 | BH13: 24898.153 | BJ13: 70.81707317 | BK13: 70.97317073 | BL13: 70.94243902 | BM13: 70.91170732 | BN13: 70.88097561 | BO13: 70.8502439 | BP13: 70.8195122 | BQ13: 70.86926829 | BR13: 70.91902439 | BS13: 70.96878049 | BT13: 71.01853659 | BU13: 71.06829268 | BV13: 71.45756098 | BW13: 71.84682927 | BX13: 72.23609756 | BY13: 72.62536585 | BZ13: 73.01463415 | CA13: 73.34439024 | CB13: 73.67414634 | CC13: 74.00390244 | CD13: 74.33365854 | CE13: 74.66341463 | CF13: 74.90487805 | CG13: 75.14634146 | CH13: 75.38780488 | CI13: 75.62926829 | CJ13: 75.87073171 | CK13: 76.15170732 | CL13: 76.43268293 | CM13: 76.71365854 | CN13: 76.99463415 | CO13: 77.27560976 | CP13: 77.37804878 | CQ13: 77.87804878 | CR13: 77.87804878 | CS13: 77.82926829 | CT13: 78.07804878 | CU13: 78.4804878 | CV13: 78.63170732 | CW13: 78.93170732 | CX13: 79.23414634 | CY13: 79.63414634 | CZ13: 79.93658537 | DA13: 80.23902439 | DB13: 80.4902439 | DC13: 80.84146341 | DD13: 81.04146341 | DE13: 81.29268293 | DF13: 81.39512195 | DG13: 81.54390244 | DH13: 81.69512195 | DI13: 81.89512195 | DJ13: 82.04634146 | DK13: 82.14878049 | DL13: 82.3 | DM13: 82.4 | DN13: 82.44878049 | DO13: 82.5 | DP13: 82.74878049
A14: Austria | B14: 7070.773 | C14: 7111.139 | D14: 7156.836 | E14: 7205.991 | F14: 7256.091 | G14: 7305.154 | H14: 7352.239 | I14: 7397.168 | J14: 7439.581 | K14: 7479.34 | L14: 7516.238 | M14: 7550.339 | N14: 7581.12 | O14: 7607.067 | P14: 7626.29 | Q14: 7637.686 | R14: 7640.755 | S14: 7636.573 | T14: 7627.762 | U14: 7617.883 | V14: 7609.75 | W14: 7604.512 | X14: 7602.177 | Y14: 7603.1 | Z14: 7607.296 | AA14: 7614.874 | AB14: 7625.395 | AC14: 7639.351 | AD14: 7658.856 | AE14: 7686.564 | AF14: 7723.954 | AG14: 7772.698 | AH14: 7830.938 | AI14: 7892.089 | AJ14: 7947.215 | AK14: 7990.113 | AL14: 8017.852 | AM14: 8032.873 | AN14: 8041.054 | AO14: 8051.116 | AP14: 8069.276 | AQ14: 8097.755 | AR14: 8134.403 | AS14: 8175.855 | AT14: 8216.81 | AU14: 8253.656 | AV14: 8285.345 | AW14: 8313.731 | AX14: 8341.525 | AY14: 8372.658 | AZ14: 8409.945 | BA14: 8453.501 | BB14: 8502.23 | BC14: 8556.191 | BD14: 8615.205 | BE14: 8678.667 | BF14: 8747.306 | BG14: 8819.902 | BH14: 8891.383 | BJ14: 68.58560976 | BK14: 69.57731707 | BL14: 69.3095122 | BM14: 69.44365854 | BN14: 69.92195122 | BO14: 69.72219512 | BP14: 70.04585366 | BQ14: 69.91780488 | BR14: 70.05756098 | BS14: 69.83317073 | BT14: 69.91463415 | BU14: 70.11463415 | BV14: 70.46341463 | BW14: 71.01463415 | BX14: 71.01219512 | BY14: 71.11463415 | BZ14: 71.56585366 | CA14: 71.91463415 | CB14: 72.01219512 | CC14: 72.31219512 | CD14: 72.46341463 | CE14: 72.81219512 | CF14: 72.96097561 | CG14: 73.01219512 | CH14: 73.61219512 | CI14: 73.81463415 | CJ14: 74.31707317 | CK14: 74.76829268 | CL14: 75.21707317 | CM14: 75.26585366 | CN14: 75.56829268 | CO14: 75.61707317 | CP14: 75.81707317 | CQ14: 76.06829268 | CR14: 76.4195122 | CS14: 76.66829268 | CT14: 76.87073171 | CU14: 77.3195122 | CV14: 77.67073171 | CW14: 77.87560976 | CX14: 78.12682927 | CY14: 78.57560976 | CZ14: 78.67804878 | DA14: 78.63170732 | DB14: 79.1804878 | DC14: 79.33170732 | DD14: 79.8804878 | DE14: 80.1804878 | DF14: 80.43170732 | DG14: 80.33170732 | DH14: 80.5804878 | DI14: 80.98292683 | DJ14: 80.93658537 | DK14: 81.13658537 | DL14: 81.4902439 | DM14: 81.1902439 | DN14: 81.64146341 | DO14: 81.64390244 | DP14: 81.64390244
A15: Azerbaijan | B15: 3895.398 | C15: 4030.325 | D15: 4171.428 | E15: 4315.127 | F15: 4456.691 | G15: 4592.601 | H15: 4721.528 | I15: 4843.872 | J15: 4960.237 | K15: 5071.93 | L15: 5180.032 | M15: 5284.518 | N15: 5385.266 | O15: 5483.088 | P15: 5579.071 | Q15: 5674.129 | R15: 5768.73 | S15: 5863.138 | T15: 5957.927 | U15: 6053.635 | V15: 6150.735 | W15: 6249.312 | X15: 6349.555 | Y15: 6452.067 | Z15: 6557.581 | AA15: 6666.447 | AB15: 6778.631 | AC15: 6893.486 | AD15: 7010.027 | AE15: 7126.877 | AF15: 7242.758 | AG15: 7357.945 | AH15: 7471.924 | AI15: 7581.754 | AJ15: 7683.704 | AK15: 7775.418 | AL15: 7855.558 | AM15: 7925.668 | AN15: 7989.903 | AO15: 8054.126 | AP15: 8122.743 | AQ15: 8197.295 | AR15: 8277.065 | AS15: 8361.433 | AT15: 8448.938 | AU15: 8538.61 | AV15: 8630.153 | AW15: 8724.237 | AX15: 8821.869 | AY15: 8924.383 | AZ15: 9032.465 | BA15: 9146.277 | BB15: 9264.684 | BC15: 9385.467 | BD15: 9505.616 | BE15: 9622.741 | BF15: 9736.041 | BG15: 9845.316 | BH15: 9949.537 | BJ15: 61.034 | BK15: 61.256 | BL15: 61.469 | BM15: 61.679 | BN15: 61.889 | BO15: 62.104 | BP15: 62.322 | BQ15: 62.539 | BR15: 62.75 | BS15: 62.953 | BT15: 63.141 | BU15: 63.31 | BV15: 63.457 | BW15: 63.582 | BX15: 63.687 | BY15: 63.776 | BZ15: 63.852 | CA15: 63.921 | CB15: 63.992 | CC15: 64.069 | CD15: 64.161 | CE15: 64.28 | CF15: 64.425 | CG15: 64.587 | CH15: 64.759 | CI15: 64.913 | CJ15: 65.016 | CK15: 65.053 | CL15: 65.021 | CM15: 64.935 | CN15: 64.827 | CO15: 64.745 | CP15: 64.731 | CQ15: 64.81 | CR15: 64.991 | CS15: 65.256 | CT15: 65.573 | CU15: 65.899 | CV15: 66.207 | CW15: 66.491 | CX15: 66.763 | CY15: 67.054 | CZ15: 67.391 | DA15: 67.791 | DB15: 68.249 | DC15: 68.747 | DD15: 69.259 | DE15: 69.752 | DF15: 70.201 | DG15: 70.597 | DH15: 70.938 | DI15: 71.234 | DJ15: 71.506 | DK15: 71.768 | DL15: 72.022 | DM15: 72.266 | DN15: 72.493 | DO15: 72.693 | DP15: 72.864
A16: Bahamas | B16: 109.532 | C16: 115.119 | D16: 121.092 | E16: 127.34 | F16: 133.705 | G16: 140.06 | H16: 146.381 | I16: 152.621 | J16: 158.648 | K16: 164.265 | L16: 169.376 | M16: 173.894 | N16: 177.863 | O16: 181.519 | P16: 185.105 | Q16: 188.895 | R16: 192.903 | S16: 197.1 | T16: 201.482 | U16: 205.991 | V16: 210.589 | W16: 215.321 | X16: 220.182 | Y16: 225.095 | Z16: 229.913 | AA16: 234.579 | AB16: 239.02 | AC16: 243.265 | AD16: 247.451 | AE16: 251.738 | AF16: 256.227 | AG16: 261.007 | AH16: 266.028 | AI16: 271.065 | AJ16: 275.849 | AK16: 280.179 | AL16: 283.98 | AM16: 287.363 | AN16: 290.6 | AO16: 294.063 | AP16: 298.045 | AQ16: 302.618 | AR16: 307.657 | AS16: 313.123 | AT16: 318.893 | AU16: 324.848 | AV16: 331.032 | AW16: 337.387 | AX16: 343.68 | AY16: 349.6 | AZ16: 354.936 | BA16: 359.583 | BB16: 363.581 | BC16: 367.162 | BD16: 370.625 | BE16: 374.2 | BF16: 377.923 | BG16: 381.749 | BH16: 385.635 | BJ16: 61.034 | BK16: 61.256 | BL16: 61.469 | BM16: 61.679 | BN16: 61.889 | BO16: 62.104 | BP16: 62.322 | BQ16: 62.539 | BR16: 62.75 | BS16: 62.953 | BT16: 63.141 | BU16: 63.31 | BV16: 63.457 | BW16: 63.582 | BX16: 63.687 | BY16: 63.776 | BZ16: 63.852 | CA16: 63.921 | CB16: 63.992 | CC16: 64.069 | CD16: 64.161 | CE16: 64.28 | CF16: 64.425 | CG16: 64.587 | CH16: 64.759 | CI16: 64.913 | CJ16: 65.016 | CK16: 65.053 | CL16: 65.021 | CM16: 64.935 | CN16: 64.827 | CO16: 64.745 | CP16: 64.731 | CQ16: 64.81 | CR16: 64.991 | CS16: 65.256 | CT16: 65.573 | CU16: 65.899 | CV16: 66.207 | CW16: 66.491 | CX16: 66.763 | CY16: 67.054 | CZ16: 67.391 | DA16: 67.791 | DB16: 68.249 | DC16: 68.747 | DD16: 69.259 | DE16: 69.752 | DF16: 70.201 | DG16: 70.597 | DH16: 70.938 | DI16: 71.234 | DJ16: 71.506 | DK16: 71.768 | DL16: 72.022 | DM16: 72.266 | DN16: 72.493 | DO16: 72.693 | DP16: 72.864
A17: Bahrain | B17: 162.429 | C17: 167.899 | D17: 173.14 | E17: 178.142 | F17: 182.888 | G17: 187.432 | H17: 191.785 | I17: 196.06 | J17: 200.652 | K17: 206.037 | L17: 212.607 | M17: 220.311 | N17: 229.151 | O17: 239.527 | P17: 251.908 | Q17: 266.54 | R17: 283.746 | S17: 303.169 | T17: 323.468 | U17: 342.804 | V17: 359.897 | W17: 374.12 | X17: 385.953 | Y17: 396.451 | Z17: 407.233 | AA17: 419.428 | AB17: 433.478 | AC17: 448.981 | AD17: 465.198 | AE17: 481.081 | AF17: 495.927 | AG17: 509.762 | AH17: 523.082 | AI17: 536.212 | AJ17: 549.59 | AK17: 563.698 | AL17: 578.661 | AM17: 594.927 | AN17: 613.697 | AO17: 636.54 | AP17: 664.61 | AQ17: 697.55 | AR17: 735.14 | AS17: 778.708 | AT17: 829.846 | AU17: 889.157 | AV17: 958.423 | AW17: 1035.924 | AX17: 1114.645 | AY17: 1185.075 | AZ17: 1240.864 | BA17: 1278.153 | BB17: 1299.942 | BC17: 1315.029 | BD17: 1336.073 | BE17: 1371.853 | BF17: 1425.793 | BG17: 1494.077 | BH17: 1569.44 | BJ17: 61.034 | BK17: 61.256 | BL17: 61.469 | BM17: 61.679 | BN17: 61.889 | BO17: 62.104 | BP17: 62.322 | BQ17: 62.539 | BR17: 62.75 | BS17: 62.953 | BT17: 63.141 | BU17: 63.31 | BV17: 63.457 | BW17: 63.582 | BX17: 63.687 | BY17: 63.776 | BZ17: 63.852 | CA17: 63.921 | CB17: 63.992 | CC17: 64.069 | CD17: 64.161 | CE17: 64.28 | CF17: 64.425 | CG17: 64.587 | CH17: 64.759 | CI17: 64.913 | CJ17: 65.016 | CK17: 65.053 | CL17: 65.021 | CM17: 64.935 | CN17: 64.827 | CO17: 64.745 | CP17: 64.731 | CQ17: 64.81 | CR17: 64.991 | CS17: 65.256 | CT17: 65.573 | CU17: 65.899 | CV17: 66.207 | CW17: 66.491 | CX17: 66.763 | CY17: 67.054 | CZ17: 67.391 | DA17: 67.791 | DB17: 68.249 | DC17: 68.747 | DD17: 69.259 | DE17: 69.752 | DF17: 70.201 | DG17: 70.597 | DH17: 70.938 | DI17: 71.234 | DJ17: 71.506 | DK17: 71.768 | DL17: 72.022 | DM17: 72.266 | DN17: 72.493 | DO17: 72.693 | DP17: 72.864
A18: Bangladesh | B18: 48013.505 | C18: 49362.834 | D18: 50752.15 | E18: 52202.008 | F18: 53741.721 | G18: 55385.114 | H18: 57157.651 | I18: 59034.25 | J18: 60918.452 | K18: 62679.765 | L18: 64232.486 | M18: 65531.635 | N18: 66625.706 | O18: 67637.541 | P18: 68742.222 | Q18: 70066.31 | R18: 71652.386 | S18: 73463.593 | T18: 75450.033 | U18: 77529.04 | V18: 79639.498 | W18: 81767.516 | X18: 83932.132 | Y18: 86142.49 | Z18: 88416.529 | AA18: 90764.18 | AB18: 93187.593 | AC18: 95671.159 | AD18: 98186.35 | AE18: 100695.496 | AF18: 103171.957 | AG18: 105599.125 | AH18: 107983.708 | AI18: 110350.641 | AJ18: 112737.684 | AK18: 115169.933 | AL18: 117649.927 | AM18: 120160.571 | AN18: 122682.818 | AO18: 125189.655 | AP18: 127657.862 | AQ18: 130088.709 | AR18: 132478.077 | AS18: 134791.598 | AT18: 136986.429 | AU18: 139035.505 | AV18: 140921.154 | AW18: 142660.381 | AX18: 144304.164 | AY18: 145924.795 | AZ18: 147575.433 | BA18: 149273.134 | BB18: 151005.733 | BC18: 152761.413 | BD18: 154517.385 | BE18: 156256.287 | BF18: 157977.151 | BG18: 159685.421 | BH18: 161376.713 | BJ18: 61.034 | BK18: 61.256 | BL18: 61.469 | BM18: 61.679 | BN18: 61.889 | BO18: 62.104 | BP18: 62.322 | BQ18: 62.539 | BR18: 62.75 | BS18: 62.953 | BT18: 63.141 | BU18: 63.31 | BV18: 63.457 | BW18: 63.582 | BX18: 63.687 | BY18: 63.776 | BZ18: 63.852 | CA18: 63.921 | CB18: 63.992 | CC18: 64.069 | CD18: 64.161 | CE18: 64.28 | CF18: 64.425 | CG18: 64.587 | CH18: 64.759 | CI18: 64.913 | CJ18: 65.016 | CK18: 65.053 | CL18: 65.021 | CM18: 64.935 | CN18: 64.827 | CO18: 64.745 | CP18: 64.731 | CQ18: 64.81 | CR18: 64.991 | CS18: 65.256 | CT18: 65.573 | CU18: 65.899 | CV18: 66.207 | CW18: 66.491 | CX18: 66.763 | CY18: 67.054 | CZ18: 67.391 | DA18: 67.791 | DB18: 68.249 | DC18: 68.747 | DD18: 69.259 | DE18: 69.752 | DF18: 70.201 | DG18: 70.597 | DH18: 70.938 | DI18: 71.234 | DJ18: 71.506 | DK18: 71.768 | DL18: 72.022 | DM18: 72.266 | DN18: 72.493 | DO18: 72.693 | DP18: 72.864
A19: Barbados | B19: 230.985 | C19: 231.718 | D19: 232.623 | E19: 233.632 | F19: 234.588 | G19: 235.415 | H19: 236.084 | I19: 236.661 | J19: 237.241 | K19: 237.963 | L19: 238.895 | M19: 240.093 | N19: 241.523 | O19: 243.076 | P19: 244.643 | Q19: 246.158 | R19: 247.584 | S19: 248.931 | T19: 250.2 | U19: 251.347 | V19: 252.388 | W19: 253.296 | X19: 254.078 | Y19: 254.791 | Z19: 255.493 | AA19: 256.26 | AB19: 257.117 | AC19: 258.012 | AD19: 258.97 | AE19: 259.961 | AF19: 260.933 | AG19: 261.912 | AH19: 262.89 | AI19: 263.869 | AJ19: 264.893 | AK19: 265.955 | AL19: 267.047 | AM19: 268.183 | AN19: 269.334 | AO19: 270.455 | AP19: 271.511 | AQ19: 272.494 | AR19: 273.423 | AS19: 274.331 | AT19: 275.283 | AU19: 276.32 | AV19: 277.475 | AW19: 278.701 | AX19: 279.946 | AY19: 281.107 | AZ19: 282.131 | BA19: 282.987 | BB19: 283.698 | BC19: 284.294 | BD19: 284.825 | BE19: 285.327 | BF19: 285.798 | BG19: 286.229 | BH19: 286.64 | BJ19: 61.034 | BK19: 61.256 | BL19: 61.469 | BM19: 61.679 | BN19: 61.889 | BO19: 62.104 | BP19: 62.322 | BQ19: 62.539 | BR19: 62.75 | BS19: 62.953 | BT19: 63.141 | BU19: 63.31 | BV19: 63.457 | BW19: 63.582 | BX19: 63.687 | BY19: 63.776 | BZ19: 63.852 | CA19: 63.921 | CB19: 63.992 | CC19: 64.069 | CD19: 64.161 | CE19: 64.28 | CF19: 64.425 | CG19: 64.587 | CH19: 64.759 | CI19: 64.913 | CJ19: 65.016 | CK19: 65.053 | CL19: 65.021 | CM19: 64.935 | CN19: 64.827 | CO19: 64.745 | CP19: 64.731 | CQ19: 64.81 | CR19: 64.991 | CS19: 65.256 | CT19: 65.573 | CU19: 65.899 | CV19: 66.207 | CW19: 66.491 | CX19: 66.763 | CY19: 67.054 | CZ19: 67.391 | DA19: 67.791 | DB19: 68.249 | DC19: 68.747 | DD19: 69.259 | DE19: 69.752 | DF19: 70.201 | DG19: 70.597 | DH19: 70.938 | DI19: 71.234 | DJ19: 71.506 | DK19: 71.768 | DL19: 72.022 | DM19: 72.266 | DN19: 72.493 | DO19: 72.693 | DP19: 72.864
A20: Belarus | B20: 8124.881 | C20: 8204.344 | D20: 8279.893 | E20: 8353.294 | F20: 8427.839 | G20: 8505.724 | H20: 8587.174 | I20: 8670.567 | J20: 8754.2 | K20: 8835.743 | L20: 8913.549 | M20: 8987.034 | N20: 9056.732 | O20: 9123.451 | P20: 9188.463 | Q20: 9252.78 | R20: 9316.324 | S20: 9378.923 | T20: 9441.415 | U20: 9504.864 | V20: 9569.847 | W20: 9636.152 | X20: 9703.088 | Y20: 9770.125 | Z20: 9836.582 | AA20: 9901.493 | AB20: 9965.178 | AC20: 10026.47 | AD20: 10081.209 | AE20: 10124 | AF20: 10151.135 | AG20: 10160.785 | AH20: 10154.338 | AI20: 10135.133 | AJ20: 10108.28 | AK20: 10077.606 | AL20: 10044.854 | AM20: 10009.393 | AN20: 9969.986 | AO20: 9924.44 | AP20: 9871.635 | AQ20: 9811.399 | AR20: 9745.932 | AS20: 9679.235 | AT20: 9616.628 | AU20: 9562.083 | AV20: 9516.884 | AW20: 9480.514 | AX20: 9452.855 | AY20: 9433.159 | AZ20: 9420.576 | BA20: 9415.316 | BB20: 9417.045 | BC20: 9423.502 | BD20: 9431.742 | BE20: 9439.424 | BF20: 9445.638 | BG20: 9450.233 | BH20: 9452.615 | BJ20: 61.034 | BK20: 61.256 | BL20: 61.469 | BM20: 61.679 | BN20: 61.889 | BO20: 62.104 | BP20: 62.322 | BQ20: 62.539 | BR20: 62.75 | BS20: 62.953 | BT20: 63.141 | BU20: 63.31 | BV20: 63.457 | BW20: 63.582 | BX20: 63.687 | BY20: 63.776 | BZ20: 63.852 | CA20: 63.921 | CB20: 63.992 | CC20: 64.069 | CD20: 64.161 | CE20: 64.28 | CF20: 64.425 | CG20: 64.587 | CH20: 64.759 | CI20: 64.913 | CJ20: 65.016 | CK20: 65.053 | CL20: 65.021 | CM20: 64.935 | CN20: 64.827 | CO20: 64.745 | CP20: 64.731 | CQ20: 64.81 | CR20: 64.991 | CS20: 65.256 | CT20: 65.573 | CU20: 65.899 | CV20: 66.207 | CW20: 66.491 | CX20: 66.763 | CY20: 67.054 | CZ20: 67.391 | DA20: 67.791 | DB20: 68.249 | DC20: 68.747 | DD20: 69.259 | DE20: 69.752 | DF20: 70.201 | DG20: 70.597 | DH20: 70.938 | DI20: 71.234 | DJ20: 71.506 | DK20: 71.768 | DL20: 72.022 | DM20: 72.266 | DN20: 72.493 | DO20: 72.693 | DP20: 72.864
A21: Belgium | B21: 9167.361 | C21: 9225.414 | D21: 9283.545 | E21: 9340.419 | F21: 9394.3 | G21: 9443.948 | H21: 9488.759 | I21: 9529.046 | J21: 9565.591 | K21: 9599.651 | L21: 9632.179 | M21: 9663.323 | N21: 9692.845 | O21: 9720.75 | P21: 9747.023 | Q21: 9771.582 | R21: 9794.771 | S21: 9816.693 | T21: 9836.812 | U21: 9854.372 | V21: 9868.999 | W21: 9880.594 | X21: 9889.819 | Y21: 9897.877 | Z21: 9906.37 | AA21: 9916.577 | AB21: 9928.539 | AC21: 9942.281 | AD21: 9959.011 | AE21: 9980.175 | AF21: 10006.545 | AG21: 10039.45 | AH21: 10078.098 | AI21: 10118.684 | AJ21: 10155.909 | AK21: 10186.304 | AL21: 10208.265 | AM21: 10223.785 | AN21: 10237.298 | AO21: 10255.161 | AP21: 10282.046 | AQ21: 10319.026 | AR21: 10364.879 | AS21: 10419.029 | AT21: 10480.118 | AU21: 10546.885 | AV21: 10619.484 | AW21: 10697.576 | AX21: 10778.764 | AY21: 10859.934 | AZ21: 10938.735 | BA21: 11013.86 | BB21: 11085.355 | BC21: 11154.008 | BD21: 11221.225 | BE21: 11287.931 | BF21: 11354.407 | BG21: 11419.752 | BH21: 11482.18 | BJ21: 69.70195122 | BK21: 70.52097561 | BL21: 70.2195122 | BM21: 70.05146341 | BN21: 70.75512195 | BO21: 70.62536585 | BP21: 70.70634146 | BQ21: 71.01292683 | BR21: 70.69317073 | BS21: 70.76487805 | BT21: 70.97195122 | BU21: 71.0604878 | BV21: 71.40512195 | BW21: 71.63536585 | BX21: 71.98585366 | BY21: 71.97121951 | BZ21: 72.1197561 | CA21: 72.77390244 | CB21: 72.69804878 | CC21: 73.19365854 | CD21: 73.20707317 | CE21: 73.62170732 | CF21: 73.88804878 | CG21: 73.86902439 | CH21: 74.40487805 | CI21: 74.5202439 | CJ21: 74.73170732 | CK21: 75.36585366 | CL21: 75.56585366 | CM21: 75.63268293 | CN21: 76.05195122 | CO21: 76.19219512 | CP21: 76.35121951 | CQ21: 76.34536585 | CR21: 76.69170732 | CS21: 76.84073171 | CT21: 77.18731707 | CU21: 77.37073171 | CV21: 77.47317073 | CW21: 77.6195122 | CX21: 77.72195122 | CY21: 77.97317073 | CZ21: 78.07560976 | DA21: 78.12926829 | DB21: 78.87804878 | DC21: 78.9804878 | DD21: 79.3804878 | DE21: 79.78292683 | DF21: 79.6804878 | DG21: 80.03414634 | DH21: 80.18292683 | DI21: 80.58536585 | DJ21: 80.38536585 | DK21: 80.58780488 | DL21: 81.28780488 | DM21: 80.99268293 | DN21: 81.43902439 | DO21: 81.49268293 | DP21: 81.59512195
A22: Benin | B22: 2431.617 | C22: 2465.865 | D22: 2502.897 | E22: 2542.864 | F22: 2585.961 | G22: 2632.361 | H22: 2682.159 | I22: 2735.308 | J22: 2791.588 | K22: 2850.657 | L22: 2912.338 | M22: 2976.575 | N22: 3043.563 | O22: 3113.681 | P22: 3187.413 | Q22: 3265.167 | R22: 3347.169 | S22: 3433.445 | T22: 3523.933 | U22: 3618.519 | V22: 3717.161 | W22: 3820.126 | X22: 3927.717 | Y22: 4039.94 | Z22: 4156.819 | AA22: 4278.502 | AB22: 4404.504 | AC22: 4535.262 | AD22: 4672.844 | AE22: 4820.02 | AF22: 4978.489 | AG22: 5149.496 | AH22: 5331.805 | AI22: 5521.761 | AJ22: 5714.215 | AK22: 5905.552 | AL22: 6094.272 | AM22: 6281.644 | AN22: 6470.275 | AO22: 6664.102 | AP22: 6865.946 | AQ22: 7076.728 | AR22: 7295.4 | AS22: 7520.556 | AT22: 7750.003 | AU22: 7982.223 | AV22: 8216.893 | AW22: 8454.79 | AX22: 8696.915 | AY22: 8944.713 | AZ22: 9199.254 | BA22: 9460.829 | BB22: 9729.254 | BC22: 10004.594 | BD22: 10286.839 | BE22: 10575.962 | BF22: 10872.072 | BG22: 11175.192 | BH22: 11485.035 | BJ22: 37.271 | BK22: 37.727 | BL22: 38.188 | BM22: 38.655 | BN22: 39.13 | BO22: 39.615 | BP22: 40.109 | BQ22: 40.61 | BR22: 41.117 | BS22: 41.63 | BT22: 42.152 | BU22: 42.684 | BV22: 43.229 | BW22: 43.781 | BX22: 44.337 | BY22: 44.882 | BZ22: 45.399 | CA22: 45.883 | CB22: 46.335 | CC22: 46.764 | CD22: 47.19 | CE22: 47.643 | CF22: 48.145 | CG22: 48.71 | CH22: 49.339 | CI22: 50.034 | CJ22: 50.79 | CK22: 51.581 | CL22: 52.372 | CM22: 53.132 | CN22: 53.812 | CO22: 54.366 | CP22: 54.776 | CQ22: 55.042 | CR22: 55.174 | CS22: 55.203 | CT22: 55.17 | CU22: 55.133 | CV22: 55.139 | CW22: 55.218 | CX22: 55.391 | CY22: 55.668 | CZ22: 56.025 | DA22: 56.436 | DB22: 56.887 | DC22: 57.355 | DD22: 57.817 | DE22: 58.255 | DF22: 58.654 | DG22: 59.009 | DH22: 59.318 | DI22: 59.59 | DJ22: 59.842 | DK22: 60.092 | DL22: 60.345 | DM22: 60.608 | DN22: 60.885 | DO22: 61.174 | DP22: 61.47
A23: Bermuda | B23: 44.986 | C23: 45.899 | D23: 46.815 | E23: 47.723 | F23: 48.592 | G23: 49.382 | H23: 50.118 | I23: 50.785 | J23: 51.387 | K23: 51.979 | L23: 52.565 | M23: 53.154 | N23: 53.75 | O23: 54.327 | P23: 54.882 | Q23: 55.399 | R23: 55.877 | S23: 56.318 | T23: 56.751 | U23: 57.17 | V23: 57.58 | W23: 57.987 | X23: 58.39 | Y23: 58.785 | Z23: 59.181 | AA23: 59.594 | AB23: 60.011 | AC23: 60.422 | AD23: 60.839 | AE23: 61.243 | AF23: 61.63 | AG23: 62.012 | AH23: 62.391 | AI23: 62.75 | AJ23: 63.101 | AK23: 63.439 | AL23: 63.77 | AM23: 64.092 | AN23: 64.39 | AO23: 64.704 | AP23: 65.017 | AQ23: 65.33 | AR23: 65.652 | AS23: 65.936 | AT23: 66.156 | AU23: 66.26 | AV23: 66.24 | AW23: 66.126 | AX23: 65.94 | AY23: 65.675 | AZ23: 65.388 | BA23: 65.076 | BB23: 64.737 | BC23: 64.381 | BD23: 64.038 | BE23: 63.695 | BF23: 63.36 | BG23: 63.04 | BH23: 62.763 | BJ23: 37.271 | BK23: 37.727 | BL23: 38.188 | BM23: 38.655 | BN23: 39.13 | BO23: 39.615 | BP23: 40.109 | BQ23: 40.61 | BR23: 41.117 | BS23: 41.63 | BT23: 42.152 | BU23: 42.684 | BV23: 43.229 | BW23: 43.781 | BX23: 44.337 | BY23: 44.882 | BZ23: 45.399 | CA23: 45.883 | CB23: 46.335 | CC23: 46.764 | CD23: 47.19 | CE23: 47.643 | CF23: 48.145 | CG23: 48.71 | CH23: 49.339 | CI23: 50.034 | CJ23: 50.79 | CK23: 51.581 | CL23: 52.372 | CM23: 53.132 | CN23: 53.812 | CO23: 54.366 | CP23: 54.776 | CQ23: 55.042 | CR23: 55.174 | CS23: 55.203 | CT23: 55.17 | CU23: 55.133 | CV23: 55.139 | CW23: 55.218 | CX23: 55.391 | CY23: 55.668 | CZ23: 56.025 | DA23: 56.436 | DB23: 56.887 | DC23: 57.355 | DD23: 57.817 | DE23: 58.255 | DF23: 58.654 | DG23: 59.009 | DH23: 59.318 | DI23: 59.59 | DJ23: 59.842 | DK23: 60.092 | DL23: 60.345 | DM23: 60.608 | DN23: 60.885 | DO23: 61.174 | DP23: 61.47
A24: Bhutan | B24: 223.284 | C24: 228.849 | D24: 234.552 | E24: 240.529 | F24: 246.961 | G24: 253.993 | H24: 261.664 | I24: 269.944 | J24: 278.731 | K24: 287.886 | L24: 297.307 | M24: 306.957 | N24: 316.822 | O24: 326.986 | P24: 337.491 | Q24: 348.395 | R24: 359.721 | S24: 371.424 | T24: 383.324 | U24: 395.192 | V24: 406.883 | W24: 418.107 | X24: 428.938 | Y24: 439.823 | Z24: 451.471 | AA24: 464.264 | AB24: 478.683 | AC24: 494.313 | AD24: 509.532 | AE24: 522.173 | AF24: 530.801 | AG24: 534.637 | AH24: 534.525 | AI24: 532.59 | AJ24: 531.905 | AK24: 534.629 | AL24: 541.471 | AM24: 551.713 | AN24: 564.378 | AO24: 577.886 | AP24: 591.014 | AQ24: 603.643 | AR24: 616.025 | AS24: 627.84 | AT24: 638.809 | AU24: 648.744 | AV24: 657.404 | AW24: 664.873 | AX24: 671.611 | AY24: 678.329 | AZ24: 685.502 | BA24: 693.297 | BB24: 701.582 | BC24: 710.235 | BD24: 719.053 | BE24: 727.885 | BF24: 736.706 | BG24: 745.563 | BH24: 754.396 | BJ24: 37.271 | BK24: 37.727 | BL24: 38.188 | BM24: 38.655 | BN24: 39.13 | BO24: 39.615 | BP24: 40.109 | BQ24: 40.61 | BR24: 41.117 | BS24: 41.63 | BT24: 42.152 | BU24: 42.684 | BV24: 43.229 | BW24: 43.781 | BX24: 44.337 | BY24: 44.882 | BZ24: 45.399 | CA24: 45.883 | CB24: 46.335 | CC24: 46.764 | CD24: 47.19 | CE24: 47.643 | CF24: 48.145 | CG24: 48.71 | CH24: 49.339 | CI24: 50.034 | CJ24: 50.79 | CK24: 51.581 | CL24: 52.372 | CM24: 53.132 | CN24: 53.812 | CO24: 54.366 | CP24: 54.776 | CQ24: 55.042 | CR24: 55.174 | CS24: 55.203 | CT24: 55.17 | CU24: 55.133 | CV24: 55.139 | CW24: 55.218 | CX24: 55.391 | CY24: 55.668 | CZ24: 56.025 | DA24: 56.436 | DB24: 56.887 | DC24: 57.355 | DD24: 57.817 | DE24: 58.255 | DF24: 58.654 | DG24: 59.009 | DH24: 59.318 | DI24: 59.59 | DJ24: 59.842 | DK24: 60.092 | DL24: 60.345 | DM24: 60.608 | DN24: 60.885 | DO24: 61.174 | DP24: 61.47
A25: Bosnia and Herzegovina | B25: 3225.664 | C25: 3288.604 | D25: 3353.228 | E25: 3417.573 | F25: 3478.999 | G25: 3535.632 | H25: 3586.63 | I25: 3632.678 | J25: 3675.448 | K25: 3717.476 | L25: 3760.536 | M25: 3805.286 | N25: 3851.153 | O25: 3897.259 | P25: 3942.221 | Q25: 3985.107 | R25: 4025.271 | S25: 4063.188 | T25: 4100.355 | U25: 4138.816 | V25: 4179.85 | W25: 4222.479 | X25: 4265.183 | Y25: 4307.907 | Z25: 4350.566 | AA25: 4392.135 | AB25: 4435.925 | AC25: 4479.516 | AD25: 4509.462 | AE25: 4507.819 | AF25: 4463.422 | AG25: 4369.32 | AH25: 4233.673 | AI25: 4078.94 | AJ25: 3936.527 | AK25: 3829.049 | AL25: 3764.419 | AM25: 3736.07 | AN25: 3734.338 | AO25: 3743.353 | AP25: 3751.176 | AQ25: 3755.514 | AR25: 3759.389 | AS25: 3762.179 | AT25: 3764.194 | AU25: 3765.332 | AV25: 3765.422 | AW25: 3762.791 | AX25: 3754.261 | AY25: 3735.945 | AZ25: 3705.478 | BA25: 3661.173 | BB25: 3604.972 | BC25: 3542.598 | BD25: 3482.106 | BE25: 3429.362 | BF25: 3386.263 | BG25: 3351.534 | BH25: 3323.929 | BJ25: 37.271 | BK25: 37.727 | BL25: 38.188 | BM25: 38.655 | BN25: 39.13 | BO25: 39.615 | BP25: 40.109 | BQ25: 40.61 | BR25: 41.117 | BS25: 41.63 | BT25: 42.152 | BU25: 42.684 | BV25: 43.229 | BW25: 43.781 | BX25: 44.337 | BY25: 44.882 | BZ25: 45.399 | CA25: 45.883 | CB25: 46.335 | CC25: 46.764 | CD25: 47.19 | CE25: 47.643 | CF25: 48.145 | CG25: 48.71 | CH25: 49.339 | CI25: 50.034 | CJ25: 50.79 | CK25: 51.581 | CL25: 52.372 | CM25: 53.132 | CN25: 53.812 | CO25: 54.366 | CP25: 54.776 | CQ25: 55.042 | CR25: 55.174 | CS25: 55.203 | CT25: 55.17 | CU25: 55.133 | CV25: 55.139 | CW25: 55.218 | CX25: 55.391 | CY25: 55.668 | CZ25: 56.025 | DA25: 56.436 | DB25: 56.887 | DC25: 57.355 | DD25: 57.817 | DE25: 58.255 | DF25: 58.654 | DG25: 59.009 | DH25: 59.318 | DI25: 59.59 | DJ25: 59.842 | DK25: 60.092 | DL25: 60.345 | DM25: 60.608 | DN25: 60.885 | DO25: 61.174 | DP25: 61.47
A26: Botswana | B26: 502.733 | C26: 512.688 | D26: 523.777 | E26: 535.692 | F26: 547.87 | G26: 559.996 | H26: 571.957 | I26: 584.098 | J26: 596.946 | K26: 611.297 | L26: 627.714 | M26: 646.35 | N26: 667.096 | O26: 689.906 | P26: 714.701 | Q26: 741.346 | R26: 769.982 | S26: 800.532 | T26: 832.467 | U26: 865.073 | V26: 897.86 | W26: 930.412 | X26: 962.859 | Y26: 996.124 | Z26: 1031.439 | AA26: 1069.585 | AB26: 1110.948 | AC26: 1154.904 | AD26: 1200.073 | AE26: 1244.484 | AF26: 1286.756 | AG26: 1326.321 | AH26: 1363.541 | AI26: 1399.11 | AJ26: 1434.061 | AK26: 1469.173 | AL26: 1504.724 | AM26: 1540.424 | AN26: 1575.827 | AO26: 1610.26 | AP26: 1643.333 | AQ26: 1674.674 | AR26: 1704.637 | AS26: 1734.387 | AT26: 1765.533 | AU26: 1799.077 | AV26: 1835.911 | AW26: 1875.458 | AX26: 1915.636 | AY26: 1953.495 | AZ26: 1987.106 | BA26: 2015.406 | BB26: 2039.551 | BC26: 2062.551 | BD26: 2088.619 | BE26: 2120.716 | BF26: 2159.925 | BG26: 2205.076 | BH26: 2254.067 | BJ26: 37.271 | BK26: 37.727 | BL26: 38.188 | BM26: 38.655 | BN26: 39.13 | BO26: 39.615 | BP26: 40.109 | BQ26: 40.61 | BR26: 41.117 | BS26: 41.63 | BT26: 42.152 | BU26: 42.684 | BV26: 43.229 | BW26: 43.781 | BX26: 44.337 | BY26: 44.882 | BZ26: 45.399 | CA26: 45.883 | CB26: 46.335 | CC26: 46.764 | CD26: 47.19 | CE26: 47.643 | CF26: 48.145 | CG26: 48.71 | CH26: 49.339 | CI26: 50.034 | CJ26: 50.79 | CK26: 51.581 | CL26: 52.372 | CM26: 53.132 | CN26: 53.812 | CO26: 54.366 | CP26: 54.776 | CQ26: 55.042 | CR26: 55.174 | CS26: 55.203 | CT26: 55.17 | CU26: 55.133 | CV26: 55.139 | CW26: 55.218 | CX26: 55.391 | CY26: 55.668 | CZ26: 56.025 | DA26: 56.436 | DB26: 56.887 | DC26: 57.355 | DD26: 57.817 | DE26: 58.255 | DF26: 58.654 | DG26: 59.009 | DH26: 59.318 | DI26: 59.59 | DJ26: 59.842 | DK26: 60.092 | DL26: 60.345 | DM26: 60.608 | DN26: 60.885 | DO26: 61.174 | DP26: 61.47
A27: Brazil | B27: 72179.235 | C27: 74311.338 | D27: 76514.329 | E27: 78772.647 | F27: 81064.572 | G27: 83373.533 | H27: 85696.502 | I27: 88035.815 | J27: 90387.079 | K27: 92746.607 | L27: 95113.265 | M27: 97482.928 | N27: 99859.388 | O27: 102259.497 | P27: 104706.193 | Q27: 107216.209 | R27: 109790.943 | S27: 112425.392 | T27: 115121.158 | U27: 117878.412 | V27: 120694.012 | W27: 123570.327 | X27: 126498.322 | Y27: 129448.815 | Z27: 132383.569 | AA27: 135274.083 | AB27: 138108.915 | AC27: 140891.606 | AD27: 143627.505 | AE27: 146328.305 | AF27: 149003.225 | AG27: 151648.007 | AH27: 154259.382 | AI27: 156849.086 | AJ27: 159432.717 | AK27: 162019.889 | AL27: 164614.682 | AM27: 167209.046 | AN27: 169785.253 | AO27: 172318.674 | AP27: 174790.339 | AQ27: 177196.051 | AR27: 179537.523 | AS27: 181809.244 | AT27: 184006.479 | AU27: 186127.108 | AV27: 188167.353 | AW27: 190130.445 | AX27: 192030.362 | AY27: 193886.505 | AZ27: 195713.637 | BA27: 197514.541 | BB27: 199287.292 | BC27: 201035.904 | BD27: 202763.744 | BE27: 204471.759 | BF27: 206163.056 | BG27: 207833.825 | BH27: 209469.32 | BJ27: 54.143 | BK27: 54.634 | BL27: 55.13 | BM27: 55.627 | BN27: 56.121 | BO27: 56.61 | BP27: 57.091 | BQ27: 57.563 | BR27: 58.025 | BS27: 58.475 | BT27: 58.911 | BU27: 59.332 | BV27: 59.739 | BW27: 60.132 | BX27: 60.513 | BY27: 60.884 | BZ27: 61.243 | CA27: 61.595 | CB27: 61.942 | CC27: 62.286 | CD27: 62.63 | CE27: 62.976 | CF27: 63.326 | CG27: 63.68 | CH27: 64.039 | CI27: 64.406 | CJ27: 64.782 | CK27: 65.165 | CL27: 65.553 | CM27: 65.947 | CN27: 66.343 | CO27: 66.742 | CP27: 67.141 | CQ27: 67.539 | CR27: 67.932 | CS27: 68.318 | CT27: 68.695 | CU27: 69.061 | CV27: 69.419 | CW27: 69.769 | CX27: 70.116 | CY27: 70.462 | CZ27: 70.813 | DA27: 71.17 | DB27: 71.531 | DC27: 71.896 | DD27: 72.26 | DE27: 72.618 | DF27: 72.966 | DG27: 73.3 | DH27: 73.619 | DI27: 73.921 | DJ27: 74.209 | DK27: 74.483 | DL27: 74.745 | DM27: 74.994 | DN27: 75.23 | DO27: 75.456 | DP27: 75.672
A28: Bulgaria | B28: 7885.607 | C28: 7953.472 | D28: 8022.157 | E28: 8090.703 | F28: 8157.834 | G28: 8222.588 | H28: 8284.449 | I28: 8343.494 | J28: 8400.012 | K28: 8454.584 | L28: 8507.541 | M28: 8559.035 | N28: 8608.66 | O28: 8655.707 | P28: 8699.174 | Q28: 8738.386 | R28: 8772.556 | S28: 8801.899 | T28: 8828.03 | U28: 8853.207 | V28: 8878.787 | W28: 8905.097 | X28: 8930.708 | Y28: 8953.122 | Z28: 8968.909 | AA28: 8975.353 | AB28: 8972.555 | AC28: 8960.554 | AD28: 8936.652 | AE28: 8897.541 | AF28: 8841.466 | AG28: 8767 | AH28: 8676.379 | AI28: 8576.042 | AJ28: 8474.822 | AK28: 8379.305 | AL28: 8291.97 | AM28: 8211.804 | AN28: 8137.669 | AO28: 8067.005 | AP28: 7997.951 | AQ28: 7930.7 | AR28: 7866.242 | AS28: 7804.306 | AT28: 7744.63 | AU28: 7686.964 | AV28: 7631.02 | AW28: 7576.675 | AX28: 7524.084 | AY28: 7473.509 | AZ28: 7425.011 | BA28: 7378.652 | BB28: 7334.007 | BC28: 7290.092 | BD28: 7245.648 | BE28: 7199.739 | BF28: 7151.948 | BG28: 7102.452 | BH28: 7051.61 | BJ28: 49.179 | BK28: 49.684 | BL28: 50.171 | BM28: 50.641 | BN28: 51.099 | BO28: 51.547 | BP28: 51.991 | BQ28: 52.435 | BR28: 52.885 | BS28: 53.346 | BT28: 53.824 | BU28: 54.327 | BV28: 54.853 | BW28: 55.398 | BX28: 55.957 | BY28: 56.524 | BZ28: 57.091 | CA28: 57.649 | CB28: 58.186 | CC28: 58.692 | CD28: 59.174 | CE28: 59.647 | CF28: 60.109 | CG28: 60.543 | CH28: 60.916 | CI28: 61.167 | CJ28: 61.227 | CK28: 61.059 | CL28: 60.651 | CM28: 60.016 | CN28: 59.191 | CO28: 58.232 | CP28: 57.219 | CQ28: 56.222 | CR28: 55.284 | CS28: 54.41 | CT28: 53.572 | CU28: 52.749 | CV28: 51.947 | CW28: 51.214 | CX28: 50.629 | CY28: 50.281 | CZ28: 50.232 | DA28: 50.518 | DB28: 51.15 | DC28: 52.13 | DD28: 53.435 | DE28: 54.983 | DF28: 56.679 | DG28: 58.447 | DH28: 60.211 | DI28: 61.91 | DJ28: 63.511 | DK28: 64.976 | DL28: 66.265 | DM28: 67.338 | DN28: 68.178 | DO28: 68.812 | DP28: 69.275
A29: Burkina Faso | B29: 4829.289 | C29: 4894.58 | D29: 4960.328 | E29: 5027.811 | F29: 5098.891 | G29: 5174.874 | H29: 5256.36 | I29: 5343.025 | J29: 5434.046 | K29: 5528.172 | L29: 5624.592 | M29: 5723.378 | N29: 5825.174 | O29: 5930.493 | P29: 6040.045 | Q29: 6154.554 | R29: 6274.032 | S29: 6398.933 | T29: 6530.82 | U29: 6671.656 | V29: 6822.837 | W29: 6985.166 | X29: 7158.259 | Y29: 7340.91 | Z29: 7531.239 | AA29: 7727.908 | AB29: 7930.689 | AC29: 8140.08 | AD29: 8356.313 | AE29: 8579.818 | AF29: 8811.033 | AG29: 9050.086 | AH29: 9297.11 | AI29: 9552.473 | AJ29: 9816.584 | AK29: 10089.88 | AL29: 10372.734 | AM29: 10665.552 | AN29: 10968.722 | AO29: 11282.696 | AP29: 11607.951 | AQ29: 11944.589 | AR29: 12293.097 | AS29: 12654.624 | AT29: 13030.576 | AU29: 13421.935 | AV29: 13829.173 | AW29: 14252.029 | AX29: 14689.725 | AY29: 15141.098 | AZ29: 15605.211 | BA29: 16081.915 | BB29: 16571.252 | BC29: 17072.791 | BD29: 17586.029 | BE29: 18110.616 | BF29: 18646.35 | BG29: 19193.236 | BH29: 19751.466 | BJ29: 49.179 | BK29: 49.684 | BL29: 50.171 | BM29: 50.641 | BN29: 51.099 | BO29: 51.547 | BP29: 51.991 | BQ29: 52.435 | BR29: 52.885 | BS29: 53.346 | BT29: 53.824 | BU29: 54.327 | BV29: 54.853 | BW29: 55.398 | BX29: 55.957 | BY29: 56.524 | BZ29: 57.091 | CA29: 57.649 | CB29: 58.186 | CC29: 58.692 | CD29: 59.174 | CE29: 59.647 | CF29: 60.109 | CG29: 60.543 | CH29: 60.916 | CI29: 61.167 | CJ29: 61.227 | CK29: 61.059 | CL29: 60.651 | CM29: 60.016 | CN29: 59.191 | CO29: 58.232 | CP29: 57.219 | CQ29: 56.222 | CR29: 55.284 | CS29: 54.41 | CT29: 53.572 | CU29: 52.749 | CV29: 51.947 | CW29: 51.214 | CX29: 50.629 | CY29: 50.281 | CZ29: 50.232 | DA29: 50.518 | DB29: 51.15 | DC29: 52.13 | DD29: 53.435 | DE29: 54.983 | DF29: 56.679 | DG29: 58.447 | DH29: 60.211 | DI29: 61.91 | DJ29: 63.511 | DK29: 64.976 | DL29: 66.265 | DM29: 67.338 | DN29: 68.178 | DO29: 68.812 | DP29: 69.275
A30: Burundi | B30: 2797.925 | C30: 2852.438 | D30: 2907.32 | E30: 2964.416 | F30: 3026.292 | G30: 3094.378 | H30: 3170.496 | I30: 3253.215 | J30: 3336.93 | K30: 3413.909 | L30: 3479.07 | M30: 3530 | N30: 3569.655 | O30: 3605.12 | P30: 3646.428 | Q30: 3700.879 | R30: 3770.87 | S30: 3854.446 | T30: 3949.264 | U30: 4051.239 | V30: 4157.296 | W30: 4266.52 | X30: 4379.727 | Y30: 4497.544 | Z30: 4621.096 | AA30: 4750.832 | AB30: 4886.745 | AC30: 5027.143 | AD30: 5168.703 | AE30: 5307.069 | AF30: 5438.959 | AG30: 5564.923 | AH30: 5685.569 | AI30: 5798.054 | AJ30: 5898.964 | AK30: 5987.044 | AL30: 6060.11 | AM30: 6122.13 | AN30: 6185.564 | AO30: 6267.132 | AP30: 6378.871 | AQ30: 6525.546 | AR30: 6704.118 | AS30: 6909.161 | AT30: 7131.688 | AU30: 7364.857 | AV30: 7607.85 | AW30: 7862.226 | AX30: 8126.104 | AY30: 8397.661 | AZ30: 8675.606 | BA30: 8958.406 | BB30: 9245.992 | BC30: 9540.302 | BD30: 9844.301 | BE30: 10160.034 | BF30: 10488.002 | BG30: 10827.01 | BH30: 11175.379 | BJ30: 49.179 | BK30: 49.684 | BL30: 50.171 | BM30: 50.641 | BN30: 51.099 | BO30: 51.547 | BP30: 51.991 | BQ30: 52.435 | BR30: 52.885 | BS30: 53.346 | BT30: 53.824 | BU30: 54.327 | BV30: 54.853 | BW30: 55.398 | BX30: 55.957 | BY30: 56.524 | BZ30: 57.091 | CA30: 57.649 | CB30: 58.186 | CC30: 58.692 | CD30: 59.174 | CE30: 59.647 | CF30: 60.109 | CG30: 60.543 | CH30: 60.916 | CI30: 61.167 | CJ30: 61.227 | CK30: 61.059 | CL30: 60.651 | CM30: 60.016 | CN30: 59.191 | CO30: 58.232 | CP30: 57.219 | CQ30: 56.222 | CR30: 55.284 | CS30: 54.41 | CT30: 53.572 | CU30: 52.749 | CV30: 51.947 | CW30: 51.214 | CX30: 50.629 | CY30: 50.281 | CZ30: 50.232 | DA30: 50.518 | DB30: 51.15 | DC30: 52.13 | DD30: 53.435 | DE30: 54.983 | DF30: 56.679 | DG30: 58.447 | DH30: 60.211 | DI30: 61.91 | DJ30: 63.511 | DK30: 64.976 | DL30: 66.265 | DM30: 67.338 | DN30: 68.178 | DO30: 68.812 | DP30: 69.275
